Workbook

Sheet Title
A1: The column titles for this worksheet are in row 2. They span cells C2. The data spans cells A3 through C29. There is information in every cell for column A through C inclusive. If you are not using a screen reader, you can press Alt + R, T for the Review Ribbon, Edit Comment to move to and open a Comment once you are on a cell with a Comment. When you are finished reading the Comment, press Escape to close the comment and return to the worksheet. If you are using the JAWS screen reader, press Ctrl + Shift + Apostrophe to get a list of Comments and their cell coordinates in the worksheet. Press Enter on the Comment you want to go to or Escape once you’ve read the Comment for a cell. You are returned to the workbook. Note that there is no keyboard command with JAWS to reread Comments or read Comments once you are on them in a cell. You must use the ability to list Comments in order to read them if you are using the JAWS screen reader.
C2: California Life-Cycle Benefit/Cost Analysis Model for 2022 INFRA/RAISE Applications (Cal-B/C Corridor) Version 8.1
B22: Office of Transportation Economics
B23: Division of Transportation Planning
B24: March 2022
B27: For questions and comments, please contact:
B29: Transportation Economics Branch | C29: eab@dot.ca.gov

Sheet Instructions

Sheet 1) Project Information
C2: District: | E2: 7 | W2: Enter all project costs (in today's dollars) in columns 1 to 7. Costs during construction should be entered in the first eight rows.
P3: EA: | W3: Project costs (including maintenance and operating costs) should be net of costs without project.
C4: PROJECT: | E4: Ontario Airport Avion/Jurupa realignment | P4: PPNO:
C7: 1A | D7: PROJECT DATA | L7: 1B | M7: MODEL STRUCTURE | V7: 1C | W7: PROJECT COSTS (enter costs in thousands of dollars)
C9: Type of Project | V9: Col. no. | W9: (1) | X9: (2) | Y9: (3) | Z9: (4) | AA9: (5) | AB9: (6) | AC9: (7)
P10: Values In This Model | W10: DIRECT PROJECT COSTS | AC10: Transit
M11: Number of Model Groups | N11: 2 | P11: =MAX('2) Model Inputs'!$D:$D) -> 2 | W11: INITIAL COSTS | Z11: SUBSEQUENT COSTS | AC11: Agency | AD11: TOTAL COSTS (in dollars)
C12: Project Location (enter 1 for So. Cal., 2 for No. Cal., or 3 for rural) | H12: 1 | M12: Number of Safety Groups | N12: =DVSegments -> 2 | P12: =MAX('2) Model Inputs'!$AJ:$AJ) -> 2 | V12: Year | W12: Project | Z12: Maint./ | AC12: Cost | AD12: Constant | AE12: Present
M13: Number of Reliability Groups | N13: =DVSegments -> 2 | P13: =MAX('2) Model Inputs'!$BN:$BN) -> 2 | W13: Support | X13: R / W | Y13: Construction | Z13: Op. | AA13: Rehab. | AB13: Mitigation | AC13: Savings | AD13: Dollars | AE13: Value
C14: Project Timing | M14: Years | N14: 30 | O14: 2-50 | P14: =COUNT('1) Project Information'!$V24:$V53) -> 30 | V14: Construction Period
V15: =YearStart -> 2023 | Y15: 1 | Z15: =IF(V15<YearOpen,IF(SUM(W15:Y15)>0,"","Enter Construction Cost"),IF(SUM(W15:Y15)>0,"After Construction Period","")) ->  | AD15: =SUM(W15:AC15)*1000 -> 1000 | AE15: =$AD15/(1+DiscRate)^($V15-YearCurrent) -> 816.2978769
D16: Current Year | F16: 2020 | V16: =V15+1 -> 2024 | Y16: 1 | AD16: =SUM(W16:AC16)*1000 -> 1000 | AE16: 762.895212
V17: =V16+1 -> 2025 | AD17: =SUM(W17:AC17)*1000 -> 0 | AE17: 0
D18: Year Construction Begins | F18: 2023 | V18: 2026 | AD18: 0 | AE18: 0
V19: 2027 | AD19: 0 | AE19: 0
D20: Year Project Opens | F20: 2025 | M20: of segments and years to include. | V20: 2028 | AD20: 0 | AE20: 0
V21: 2029 | AD21: 0 | AE21: 0
V22: 2030 | AD22: 0 | AE22: 0
V23: Project Open
V24: =YearOpen -> 2025 | Z24: 1 | AD24: =SUM(W24:AC24)*1000 -> 1000 | AE24: =$AD24/(1+DiscRate)^($V24-YearCurrent) -> 712.9861795
V25: =V24+1 -> 2026 | Z25: 1 | AD25: 1000 | AE25: 666.3422238
V26: =V25+1 -> 2027 | Z26: 1 | AD26: 1000 | AE26: 622.7497419
V27: 2028 | Z27: 1 | AD27: 1000 | AE27: 582.0091046
V28: 2029 | Z28: 1 | AD28: 1000 | AE28: 543.9337426
V29: 2030 | Z29: 1 | AD29: 1000 | AE29: 508.3492921
V30: 2031 | Z30: 1 | AD30: 1000 | AE30: 475.0927964
V31: 2032 | Z31: 1 | AD31: 1000 | AE31: 444.0119592
V32: 2033 | Z32: 1 | AD32: 1000 | AE32: 414.9644479
V33: 2034 | Z33: 1 | AD33: 1000 | AE33: 387.817241
V34: 2035 | Z34: 1 | AD34: 1000 | AE34: 362.4460196
V35: 2036 | Z35: 1 | AD35: 1000 | AE35: 338.7345978
V36: 2037 | Z36: 1 | AD36: 1000 | AE36: 316.5743905
V37: 2038 | Z37: 1 | AD37: 1000 | AE37: 295.8639163
V38: 2039 | Z38: 1 | AD38: 1000 | AE38: 276.508333
V39: 2040 | Z39: 1 | AD39: 1000 | AE39: 258.4190028
V40: 2041 | Z40: 1 | AD40: 1000 | AE40: 241.5130867
V41: 2042 | Z41: 1 | AD41: =SUM(W41:AC41)*1000 -> 1000 | AE41: 225.7131652
V42: 2043 | Z42: 1 | AD42: 1000 | AE42: 210.9468833
V43: 2044 | Z43: 1 | AD43: 1000 | AE43: 197.1466199
V44: 2045 | Z44: 1 | AD44: 1000 | AE44: 184.2491775
V45: 2046 | Z45: 1 | AD45: 1000 | AE45: 172.195493
V46: 2047 | Z46: 1 | AD46: 1000 | AE46: 160.9303673
V47: 2048 | Z47: 1 | AD47: 1000 | AE47: 150.4022124
V48: 2049 | Z48: 1 | AD48: 1000 | AE48: 140.5628154
V49: 2050 | Z49: 1 | AD49: 1000 | AE49: 131.3671172
V50: 2051 | Z50: 1 | AD50: 1000 | AE50: 122.7730067
V51: 2052 | Z51: 1 | AD51: 1000 | AE51: 114.7411277
V52: 2053 | Z52: 1 | AD52: 1000 | AE52: 107.2346988
V53: 2054 | Z53: 1 | AD53: 1000 | AE53: 100.2193447
V54: Total | W54: =SUM(W15:W53) -> 0 | X54: 0 | Y54: 2 | Z54: 30 | AA54: 0 | AB54: 0 | AC54: 0 | AD54: 32000 | AE54: 11045.99119
AB58: Present Value = Future Value (in Constant Dollars)
AC59: ( 1 + Real Discount Rate) ^ Year

Sheet 2) Model Inputs
D5: 2A | E5: DEFINITIONS OF MODEL GROUPS AND YEARS | T5: 2B | Y5: AVERAGE PROFILE FOR DIVERTED TRIPS/INDUCED TRIPS | AJ5: 2E | AK5: DEFINITIONS OF SAFETY GROUPS AND YEARS | BN5: 2H | BO5: DEFINITIONS OF RELIABILITY GROUPS AND YEARS | CT5: 2K | CU5: TRAVEL TIME RELIABILITY
Y6: Typical 'No Build' conditions for persons 'on the margin' who will divert from highway to transit in Build Scenario, or for induced trips. | CU6: (for adjustments to Reliability Calculations, standard deviation of travel time in seconds/vehicle)
Y7: This profile should reflect a lower cost alternative than the average traffic profile entered in Table 2C and 2D.
V9: For Trips Diverting from Highway to Transit | AA9: Least Cost Alternative (for Induced Trips) | BQ9: Reliability Group Definition | CD9: No-Build | CK9: Build | CW9: Calculated by Model | CX9: Changed by User | CY9: Used for Proj. Eval. | CZ9: Reason for Change | DG9: Calculated by Model | DH9: Changed by User | DI9: Used for Proj. Eval. | DJ9: Reason for Change
F10: Select Mode | G10: Name | I10: Description | M10: Avg. Vehicle Occupancy (AVO) | N10: Percent Trucks | S10: No Build | V10: ="Average Speed in Year "&YearFirst&" (mph)" -> Average Speed in Year 2020 (mph) | W10: ="Average Trip Length in Year "&YearFirst&" (miles)" -> Average Trip Length in Year 2020 (miles) | X10: ="Average Speed in Year "&YearLast&" (mph)" -> Average Speed in Year 2054 (mph) | Y10: ="Average Trip Length in Year "&YearLast&" (miles)" -> Average Trip Length in Year 2054 (miles) | AA10: ="Average Speed in Year "&YearFirst&" (mph)" -> Average Speed in Year 2020 (mph) | AB10: ="Average Trip Length in Year "&YearFirst&" (miles)" -> Average Trip Length in Year 2020 (miles) | AC10: ="Average Speed in Year "&YearLast&" (mph)" -> Average Speed in Year 2054 (mph) | AD10: ="Average Trip Length in Year "&YearLast&" (miles)" -> Average Trip Length in Year 2054 (miles) | AL10: Select Mode | AM10: Name | AN10: Description | AQ10: Fatal Reduction Factor | AR10: Injury Reduction Factor | AS10: PDO Reduction Factor | BQ10: Name | BS10: Description (time period & geography) | CB10: Duration (hours per day) | CD10: Roadway Length (miles) | CE10: # of Lanes | CF10: Lane Miles | CG10: Free Flow Speed (mph) | CH10: Average Passenger Vehicle Occupancy | CK10: Roadway Length (miles) | CL10: Number of Lanes | CM10: Lane Miles | CN10: Free Flow Speed (mph) | CO10: Average Passenger Vehicle Occupancy | CS10: Adjustment Factor
D11: Model Group 1 | F11: Highway | G11: Avion/Jurupa | I11: Avion Jurupa | M11: 1.48 | N11: 0.38 | T11: =D11 -> Model Group 1 | AJ11: Safety Group 1 | AL11: Highway | AM11: Avion | AO11: Avion realignment | AQ11: 0.8 | AR11: 0.8 | AS11: 0.8 | BN11: Reliability Group 1 | BP11: Highway | BQ11: Avion | BS11: Avion Realignment | CB11: 24 | CD11: 1.0896 | CE11: 2 | CF11: =CD11*CE11 -> 2.1792 | CG11: 10 | CH11: 1.48 | CK11: 1.04148 | CL11: 2 | CM11: =CK11*CL11 -> 2.08296 | CN11: 35 | CO11: 1.48 | CU11: =BN11 -> Reliability Group 1 | CV11: Automobile | CW11: =1 -> 1 | CY11: =IF(ISNUMBER(CX11),CX11,CW11) -> 1 | DF11: Truck | DG11: =1 -> 1 | DI11: =IF(ISNUMBER(DH11),DH11,DG11) -> 1
D12: Model Group 2 | F12: Highway | G12: Dummy | I12: Dummy | M12: 0 | N12: 0 | T12: =D12 -> Model Group 2 | AJ12: Safety Group 2 | AL12: Highway | AM12: Dummy | AN12: Dummy | AQ12: 0.8 | AR12: 0.8 | AS12: 0.8 | BN12: Reliability Group 2 | BP12: Highway | BQ12: Dummy | BS12: Dummy | CB12: 24 | CD12: 0 | CE12: 0 | CF12: =CD12*CE12 -> 0 | CG12: 0 | CH12: 0 | CK12: 0 | CL12: 0 | CM12: =CK12*CL12 -> 0 | CN12: 0 | CO12: 0 | CU12: =BN12 -> Reliability Group 2 | CV12: Automobile | CW12: =1 -> 1 | CY12: =IF(ISNUMBER(CX12),CX12,CW12) -> 1 | DF12: Truck | DG12: =1 -> 1 | DI12: =IF(ISNUMBER(DH12),DH12,DG12) -> 1
D14: Base Year | F14: 2020 | AJ14: Safety Base Year | AL14: =YearFirst -> 2020 | BN14: Reliability Base Year | BP14: =YearFirst -> 2020
D15: Forecast Year | F15: 2054 | AJ15: Safety Forecast Year | AL15: =YearLast -> 2054 | BN15: Reliability Forecast Year | BP15: =YearLast -> 2054
D21: 2C | E21: ="MODEL DATA - YEAR " & YearFirst -> MODEL DATA - YEAR 2020 | T21: 2D | U21: ="MODEL DATA - YEAR " & YearLast -> MODEL DATA - YEAR 2054 | AJ21: 2F | AK21: ="SAFETY DATA - YEAR " & SafetyYearFirst -> SAFETY DATA - YEAR 2020 | AY21: 2G | AZ21: ="SAFETY DATA - YEAR " & SafetyYearLast -> SAFETY DATA - YEAR 2054 | BN21: 2I | BO21: ="RELIABILITY DATA - YEAR " & $BP$14 -> RELIABILITY DATA - YEAR 2020 | BZ21: 2J | CA21: ="RELIABILITY DATA - YEAR " & $BP$15 -> RELIABILITY DATA - YEAR 2054
F22: REQUIRED FOR | V22: REQUIRED FOR
F23: TRANSIT | V23: TRANSIT
G24: Vehicle | H24: Vehicle | I24: Passenger | J24: Passenger | K24: Out-of- | M24: Average | W24: Vehicle | X24: Vehicle | Y24: Passenger | Z24: Passenger | AA24: Out-of- | AC24: Average | AM24: Vehicle | AN24: Fatal | AO24: Injury | AP24: PDO | AQ24: Number | AR24: Number | AS24: Number | BA24: Vehicle | BB24: Fatal | BC24: Injury | BD24: PDO | BE24: Number | BF24: Number | BG24: Number
F25: Number of | G25: Miles | H25: Hours | I25: Miles | J25: Hours | K25: Pocket | M25: Vehicle | V25: Number of | W25: Miles | X25: Hours | Y25: Miles | Z25: Hours | AA25: Pocket | AC25: Vehicle | AM25: Miles | AN25: Crash | AO25: Crash | AP25: Crash | AQ25: of | AR25: of | AS25: of | BA25: Miles | BB25: Crash | BC25: Crash | BD25: Crash | BE25: of | BF25: of | BG25: of
F26: Trips | G26: Traveled | H26: Traveled | I26: Traveled | J26: Traveled | K26: Cost | M26: Occupancy | N26: Percent | V26: Trips | W26: Traveled | X26: Traveled | Y26: Traveled | Z26: Traveled | AA26: Cost | AC26: Occupancy | AD26: Percent | AM26: Traveled | AN26: Rate | AO26: Rate | AP26: Rate | AQ26: Fatal | AR26: Injury | AS26: PDO | BA26: Traveled | BB26: Rate | BC26: Rate | BD26: Rate | BE26: Fatal | BF26: Injury | BG26: PDO
F27: (Trips) * ** | G27: (VMT) * | H27: (VHT) | I27: (PMT) | J27: (PHT) | K27: ($ per trip) | L27: Speed | M27: (AVO) | N27: Trucks | V27: (Trips) * ** | W27: (VMT) * | X27: (VHT) | Y27: (PMT) | Z27: (PHT) | AA27: ($ per trip) | AB27: Speed | AC27: (AVO) | AD27: Trucks | AM27: (VMT) | AN27: Per MVM | AO27: Per MVM | AP27: Per MVM | AQ27: Crashes | AR27: Crashes | AS27: Crashes | BA27: (VMT) | BB27: Per MVM | BC27: Per MVM | BD27: Per MVM | BE27: Crashes | BF27: Crashes | BG27: Crashes
C28: No Build | S28: No Build | AI28: No Build | AX28: No Build | BM28: No Build | BY28: No Build
BP29: VMT | BQ29: VHT | BR29: % Truck | BS29: Avg. Speed | BT29: Volume | CD29: VMT | CE29: VHT | CF29: % Truck | CG29: Avg. Speed | CH29: Volume
D30: 1 | E30: =IF(ISBLANK(INDEX(HwyTransitModelGroup,D30,2)),"Not Used",INDEX(HwyTransitModelGroup,D30,2)) -> Avion/Jurupa | F30: 1930 | G30: 2103 | H30: 210 | L30: =IFERROR(IF($F11=Hwy,G30/H30,I30/J30),55) -> 10.01428571 | M30: =INDEX(HwyTransitModelGroup,D30,8) -> 1.48 | N30: =INDEX(HwyTransitModelGroup,D30,9) -> 0.38 | T30: 1 | U30: =IF(ISBLANK(INDEX(HwyTransitModelGroup,T30,2)),"Not Used",INDEX(HwyTransitModelGroup,T30,2)) -> Avion/Jurupa | V30: 18591 | W30: 20256 | X30: 2026 | AB30: =IFERROR(IF($F11=Hwy,W30/X30,Y30/Z30),55) -> 9.998025666 | AC30: =INDEX(HwyTransitModelGroup,T30,8) -> 1.48 | AD30: =INDEX(HwyTransitModelGroup,T30,9) -> 0.38 | AJ30: 1 | AK30: =IF(ISBLANK(INDEX(SafetyGroup,AJ30,2)),"Not Used",INDEX(SafetyGroup,AJ30,2)) -> Avion | AM30: 2103 | AN30: 0.43 | AO30: 1.3 | AP30: 1.74 | AQ30: =AM30*AN30/10^6 -> 0.00090429 | AR30: =AM30*AO30/10^6 -> 0.0027339 | AS30: =AM30*AP30/10^6 -> 0.00365922 | AY30: 1 | AZ30: =IF(ISBLANK(INDEX(SafetyGroup,AY30,2)),"Not Used",INDEX(SafetyGroup,AY30,2)) -> Avion | BA30: 20256 | BB30: =AN30 -> 0.43 | BC30: 1.3 | BD30: 1.74 | BE30: =BA30*BB30/10^6 -> 0.00871008 | BF30: =BA30*BC30/10^6 -> 0.0263328 | BG30: =BA30*BD30/10^6 -> 0.03524544 | BN30: 1 | BO30: =IF(ISBLANK(INDEX(ReliabilityGroup,BN30,2)),"Not Used",INDEX(ReliabilityGroup,BN30,2)) -> Avion | BP30: 2103 | BQ30: 210 | BR30: 0.38 | BS30: =IFERROR(BP30/BQ30,0) -> 10.01428571 | BT30: =IFERROR(BP30/$CF11/$CB11,"") -> 40.20970999 | BZ30: 1 | CA30: =IF(ISBLANK(INDEX(ReliabilityGroup,BZ30,2)),"Not Used",INDEX(ReliabilityGroup,BZ30,2)) -> Avion | CD30: 20256 | CE30: 2026 | CF30: 0.38 | CG30: =IFERROR(CD30/CE30,0) -> 9.998025666 | CH30: =IFERROR(CD30/$CF11/$CB11,"") -> 387.298091
D31: 2 | E31: =IF(ISBLANK(INDEX(HwyTransitModelGroup,D31,2)),"Not Used",INDEX(HwyTransitModelGroup,D31,2)) -> Dummy | F31: 0 | G31: 0 | H31: 0 | L31: =IFERROR(IF($F12=Hwy,G31/H31,I31/J31),55) -> 55 | M31: =INDEX(HwyTransitModelGroup,D31,8) -> 0 | N31: =INDEX(HwyTransitModelGroup,D31,9) -> 0 | T31: 2 | U31: =IF(ISBLANK(INDEX(HwyTransitModelGroup,T31,2)),"Not Used",INDEX(HwyTransitModelGroup,T31,2)) -> Dummy | V31: 0 | W31: 0 | X31: 0 | AB31: =IFERROR(IF($F12=Hwy,W31/X31,Y31/Z31),55) -> 55 | AC31: =INDEX(HwyTransitModelGroup,T31,8) -> 0 | AD31: =INDEX(HwyTransitModelGroup,T31,9) -> 0 | AJ31: 2 | AK31: =IF(ISBLANK(INDEX(SafetyGroup,AJ31,2)),"Not Used",INDEX(SafetyGroup,AJ31,2)) -> Dummy | AM31: 0 | AN31: 0 | AO31: 0 | AP31: 0 | AQ31: =AM31*AN31/10^6 -> 0 | AR31: =AM31*AO31/10^6 -> 0 | AS31: =AM31*AP31/10^6 -> 0 | AY31: 2 | AZ31: =IF(ISBLANK(INDEX(SafetyGroup,AY31,2)),"Not Used",INDEX(SafetyGroup,AY31,2)) -> Dummy | BA31: 0 | BB31: 0 | BC31: 0 | BD31: 0 | BE31: =BA31*BB31/10^6 -> 0 | BF31: =BA31*BC31/10^6 -> 0 | BG31: =BA31*BD31/10^6 -> 0 | BN31: 2 | BO31: =IF(ISBLANK(INDEX(ReliabilityGroup,BN31,2)),"Not Used",INDEX(ReliabilityGroup,BN31,2)) -> Dummy | BP31: 0 | BQ31: 0 | BR31: 0 | BS31: =IFERROR(BP31/BQ31,0) -> 0 | BT31: =IFERROR(BP31/$CF12/$CB12,"") ->  | BZ31: 2 | CA31: =IF(ISBLANK(INDEX(ReliabilityGroup,BZ31,2)),"Not Used",INDEX(ReliabilityGroup,BZ31,2)) -> Dummy | CD31: 0 | CE31: 0 | CF31: 0 | CG31: =IFERROR(CD31/CE31,0) -> 0 | CH31: =IFERROR(CD31/$CF12/$CB12,"") -> 
E32: TOTAL | F32: =SUM(F30:F31) -> 1930 | G32: 2103 | H32: 210 | I32: 0 | J32: 0 | U32: TOTAL | V32: =SUM(V30:V31) -> 18591 | W32: 20256 | X32: 2026 | Y32: 0 | Z32: 0 | AK32: TOTAL | AM32: =SUM(AM30:AM31) -> 2103 | AQ32: =SUM(AQ30:AQ31) -> 0.00090429 | AR32: =SUM(AR30:AR31) -> 0.0027339 | AS32: =SUM(AS30:AS31) -> 0.00365922 | AZ32: TOTAL | BA32: =SUM(BA30:BA31) -> 20256 | BE32: =SUM(BE30:BE31) -> 0.00871008 | BF32: =SUM(BF30:BF31) -> 0.0263328 | BG32: =SUM(BG30:BG31) -> 0.03524544 | BO32: TOTAL | BP32: =SUM(BP30:BP31) -> 2103 | BQ32: =SUM(BQ30:BQ31) -> 210 | BT32: =SUM(BT30:BT31) -> 40.20970999 | CA32: TOTAL | CD32: =SUM(CD30:CD31) -> 20256 | CE32: =SUM(CE30:CE31) -> 2026 | CH32: =SUM(CH30:CH31) -> 387.298091
AK33: =IF(AND(SafetyYearFirst=YearFirst,SafetyYearLast=YearLast),IF(G32=AM32,"Total VMT in model groups equals total VMT in safety groups", "Warning: Total VMT in model groups DOES NOT equal total VMT in safety groups"),"") -> Total VMT in model groups equals total VMT in safety groups | AZ33: =IF(AND(SafetyYearFirst=YearFirst,SafetyYearLast=YearLast),IF(W32=BA32,"Total VMT in traffic inputs equals total VMT in safety inputs", "Warning: Total VMT in traffic inputs DOES NOT equal total VMT in safety inputs"),"") -> Total VMT in traffic inputs equals total VMT in safety inputs | BO33: =IF(AND(RelYearFirst=YearFirst,RelYearLast=YearLast),IF(G32=BP32,"Total VMT in traffic inputs equals total VMT in reliability inputs", "Warning: Total VMT in traffic inputs DOES NOT equal total VMT in reliability inputs"),"") -> Total VMT in traffic inputs equals total VMT in reliability inputs | CA33: =IF(AND(RelYearFirst=YearFirst,RelYearLast=YearLast),IF(W32=CD32,"Total VMT in traffic inputs equals total VMT in reliability inputs", "Warning: Total VMT in traffic inputs DOES NOT equal total VMT in reliability inputs"),"") -> Total VMT in traffic inputs equals total VMT in reliability inputs
C35: Build | S35: Build | AI35: Build | AX35: Build | BM35: Build | BY35: Build
BP36: VMT | BQ36: VHT | BR36: % Truck | BS36: Avg. Speed | BT36: Volume | CD36: VMT | CE36: VHT | CF36: % Truck | CG36: Avg. Speed | CH36: Volume
D37: 1 | E37: =IF(ISBLANK(INDEX(HwyTransitModelGroup,D37,2)),"Not Used",INDEX(HwyTransitModelGroup,D37,2)) -> Avion/Jurupa | F37: 2126 | G37: 2214 | H37: 63 | L37: =IFERROR(IF($F11=Hwy,G37/H37,I37/J37),55) -> 35.14285714 | M37: =INDEX(HwyTransitModelGroup,D37,8) -> 1.48 | N37: =INDEX(HwyTransitModelGroup,D37,9) -> 0.38 | T37: 1 | U37: =IF(ISBLANK(INDEX(HwyTransitModelGroup,T37,2)),"Not Used",INDEX(HwyTransitModelGroup,T37,2)) -> Avion/Jurupa | V37: 21360 | W37: 23274 | X37: 665 | AB37: =IFERROR(IF($F11=Hwy,W37/X37,Y37/Z37),55) -> 34.99849624 | AC37: =INDEX(HwyTransitModelGroup,T37,8) -> 1.48 | AD37: =INDEX(HwyTransitModelGroup,T37,9) -> 0.38 | AJ37: 1 | AK37: =IF(ISBLANK(INDEX(SafetyGroup,AJ37,2)),"Not Used",INDEX(SafetyGroup,AJ37,2)) -> Avion | AM37: 2214 | AN37: =IFERROR(INDEX(SafetyData1NB,AJ37,2)*(1-INDEX(SafetyGroup,AJ37,6)),0) -> 0.086 | AO37: =IFERROR(INDEX(SafetyData1NB,AJ37,3)*(1-INDEX(SafetyGroup,AJ37,7)),0) -> 0.26 | AP37: =IFERROR(INDEX(SafetyData1NB,AJ37,4)*(1-INDEX(SafetyGroup,AJ37,8)),0) -> 0.348 | AQ37: =AM37*AN37/10^6 -> 0.000190404 | AR37: =AM37*AO37/10^6 -> 0.00057564 | AS37: =AM37*AP37/10^6 -> 0.000770472 | AY37: 1 | AZ37: =IF(ISBLANK(INDEX(SafetyGroup,AY37,2)),"Not Used",INDEX(SafetyGroup,AY37,2)) -> Avion | BA37: 23274 | BB37: =IFERROR(INDEX(SafetyData20NB,AY37,2)*(1-INDEX(SafetyGroup,AY37,6)),0) -> 0.086 | BC37: =IFERROR(INDEX(SafetyData20NB,AY37,3)*(1-INDEX(SafetyGroup,AY37,7)),0) -> 0.26 | BD37: =IFERROR(INDEX(SafetyData20NB,AY37,4)*(1-INDEX(SafetyGroup,AY37,8)),0) -> 0.348 | BE37: =BA37*BB37/10^6 -> 0.002001564 | BF37: =BA37*BC37/10^6 -> 0.00605124 | BG37: =BA37*BD37/10^6 -> 0.008099352 | BN37: 1 | BO37: =IF(ISBLANK(INDEX(ReliabilityGroup,BN37,2)),"Not Used",INDEX(ReliabilityGroup,BN37,2)) -> Avion | BP37: 2214 | BQ37: 63 | BR37: 0.38 | BS37: =IFERROR(BP37/BQ37,0) -> 35.14285714 | BT37: =IFERROR(BP37/$CM11/$CB11,"") -> 44.2879364 | BZ37: 1 | CA37: =IF(ISBLANK(INDEX(ReliabilityGroup,BZ37,2)),"Not Used",INDEX(ReliabilityGroup,BZ37,2)) -> Avion | CD37: 23274 | CE37: 665 | CF37: 0.4 | CG37: =IFERROR(CD37/CE37,0) -> 34.99849624 | CH37: =IFERROR(CD37/$CM11/$CB11,"") -> 465.563429
D38: 2 | E38: =IF(ISBLANK(INDEX(HwyTransitModelGroup,D38,2)),"Not Used",INDEX(HwyTransitModelGroup,D38,2)) -> Dummy | F38: 0 | G38: 0 | H38: 0 | L38: =IFERROR(IF($F12=Hwy,G38/H38,I38/J38),55) -> 55 | M38: =INDEX(HwyTransitModelGroup,D38,8) -> 0 | N38: =INDEX(HwyTransitModelGroup,D38,9) -> 0 | T38: 2 | U38: =IF(ISBLANK(INDEX(HwyTransitModelGroup,T38,2)),"Not Used",INDEX(HwyTransitModelGroup,T38,2)) -> Dummy | V38: 0 | W38: 0 | X38: 0 | AB38: =IFERROR(IF($F12=Hwy,W38/X38,Y38/Z38),55) -> 55 | AC38: =INDEX(HwyTransitModelGroup,T38,8) -> 0 | AD38: =INDEX(HwyTransitModelGroup,T38,9) -> 0 | AJ38: 2 | AK38: =IF(ISBLANK(INDEX(SafetyGroup,AJ38,2)),"Not Used",INDEX(SafetyGroup,AJ38,2)) -> Dummy | AM38: 0 | AN38: =IFERROR(INDEX(SafetyData1NB,AJ38,2)*(1-INDEX(SafetyGroup,AJ38,6)),0) -> 0 | AO38: =IFERROR(INDEX(SafetyData1NB,AJ38,3)*(1-INDEX(SafetyGroup,AJ38,7)),0) -> 0 | AP38: =IFERROR(INDEX(SafetyData1NB,AJ38,4)*(1-INDEX(SafetyGroup,AJ38,8)),0) -> 0 | AQ38: =AM38*AN38/10^6 -> 0 | AR38: =AM38*AO38/10^6 -> 0 | AS38: =AM38*AP38/10^6 -> 0 | AY38: 2 | AZ38: =IF(ISBLANK(INDEX(SafetyGroup,AY38,2)),"Not Used",INDEX(SafetyGroup,AY38,2)) -> Dummy | BA38: 0 | BB38: =IFERROR(INDEX(SafetyData20NB,AY38,2)*(1-INDEX(SafetyGroup,AY38,6)),0) -> 0 | BC38: =IFERROR(INDEX(SafetyData20NB,AY38,3)*(1-INDEX(SafetyGroup,AY38,7)),0) -> 0 | BD38: =IFERROR(INDEX(SafetyData20NB,AY38,4)*(1-INDEX(SafetyGroup,AY38,8)),0) -> 0 | BE38: =BA38*BB38/10^6 -> 0 | BF38: =BA38*BC38/10^6 -> 0 | BG38: =BA38*BD38/10^6 -> 0 | BN38: 2 | BO38: =IF(ISBLANK(INDEX(ReliabilityGroup,BN38,2)),"Not Used",INDEX(ReliabilityGroup,BN38,2)) -> Dummy | BP38: 0 | BQ38: 0 | BR38: 0 | BS38: =IFERROR(BP38/BQ38,0) -> 0 | BT38: =IFERROR(BP38/$CM12/$CB12,"") ->  | BZ38: 2 | CA38: =IF(ISBLANK(INDEX(ReliabilityGroup,BZ38,2)),"Not Used",INDEX(ReliabilityGroup,BZ38,2)) -> Dummy | CD38: 0 | CE38: 0 | CF38: 0 | CG38: =IFERROR(CD38/CE38,0) -> 0 | CH38: =IFERROR(CD38/$CM12/$CB12,"") -> 
E39: TOTAL | F39: =SUM(F37:F38) -> 2126 | G39: 2214 | H39: 63 | I39: 0 | J39: 0 | U39: TOTAL | V39: =SUM(V37:V38) -> 21360 | W39: 23274 | X39: 665 | Y39: 0 | Z39: 0 | AK39: TOTAL | AM39: =SUM(AM37:AM38) -> 2214 | AQ39: =SUM(AQ37:AQ38) -> 0.000190404 | AR39: =SUM(AR37:AR38) -> 0.00057564 | AS39: =SUM(AS37:AS38) -> 0.000770472 | AZ39: TOTAL | BA39: =SUM(BA37:BA38) -> 23274 | BE39: =SUM(BE37:BE38) -> 0.002001564 | BF39: =SUM(BF37:BF38) -> 0.00605124 | BG39: =SUM(BG37:BG38) -> 0.008099352 | BO39: TOTAL | BP39: =SUM(BP37:BP38) -> 2214 | BQ39: =SUM(BQ37:BQ38) -> 63 | BT39: =SUM(BT37:BT38) -> 44.2879364 | CA39: TOTAL | CD39: =SUM(CD37:CD38) -> 23274 | CE39: =SUM(CE37:CE38) -> 665 | CH39: =SUM(CH37:CH38) -> 465.563429
AK40: =IF(AND(SafetyYearFirst=YearFirst,SafetyYearLast=YearLast),IF(G39=AM39,"Total VMT in model groups equals total VMT in safety groups", "Warning: Total VMT in model groups DOES NOT equal total VMT in safety groups"),"") -> Total VMT in model groups equals total VMT in safety groups | AZ40: =IF(AND(SafetyYearFirst=YearFirst,SafetyYearLast=YearLast),IF(W39=BA39,"Total VMT in traffic inputs equals total VMT in safety inputs", "Warning: Total VMT in traffic inputs DOES NOT equal total VMT in safety inputs"),"") -> Total VMT in traffic inputs equals total VMT in safety inputs | BO40: =IF(AND(RelYearFirst=YearFirst,RelYearLast=YearLast),IF(G39=BP39,"Total VMT in traffic inputs equals total VMT in reliability inputs", "Warning: Total VMT in traffic inputs DOES NOT equal total VMT in reliability inputs"),"") -> Total VMT in traffic inputs equals total VMT in reliability inputs | CA40: =IF(AND(RelYearFirst=YearFirst,RelYearLast=YearLast),IF(W39=CD39,"Total VMT in traffic inputs equals total VMT in reliability inputs", "Warning: Total VMT in traffic inputs DOES NOT equal total VMT in reliability inputs"),"") -> Total VMT in traffic inputs equals total VMT in reliability inputs
E43: * For Highway Model Groups, Trips and VMT refer to vehicle trips and vehicle-miles traveled. For Transit Model Groups, Trips and VMT refer to person (transit) trips and transit vehicle-miles traveled. | U43: * For Highway Model Groups, Trips and VMT refer to vehicle trips and vehicle-miles traveled. For Transit Model Groups, Trips and VMT refer to person (transit) trips and transit vehicle-miles traveled. | AK43: *For Highway Model Groups, VMT refers to vehicle miles traveled. For Transit Model Groups, VMT refers to transit vehicle miles traveled | AZ43: *For Highway Model Groups, VMT refers to vehicle-miles traveled. For Transit Model Groups, VMT refers to transit vehicle-miles traveled
E44: **Number of Trips is an optional field for Highway Model Groups, unless Transit Model Groups are included. This is a required input if induced demand exists. | U44: **Number of Trips is an optional field for Highway Model Groups, unless Transit Model Groups are included. This is a required input if induced demand exists.

Sheet 3) Results
B2: District: | E2: =IF('1) Project Information'!E2<>"",'1) Project Information'!E2,"") -> 7
Q3: EA: | R3: ='1) Project Information'!Q3 -> 0
B4: PROJECT: | E4: =IF(ProjName<>"",ProjName,"") -> Ontario Airport Avion/Jurupa realignment | Q4: PPNO: | R4: ='1) Project Information'!Q4 -> 0
D9: 3 | E9: INVESTMENT ANALYSIS
E10: SUMMARY RESULTS
Q12: Total Over | R12: Average
E13: Life-Cycle Costs (mil. $) | H13: =LifeCycleCost/1000000 -> 0.01104599119 | L13: ITEMIZED BENEFITS (mil. $) | Q13: =DVYearsModel& " Years" -> 30 Years | R13: Annual
E14: Life-Cycle Benefits (mil. $) | H14: =LifeCycleBene/1000000 -> 251.1717258 | L14: Travel Time Savings | Q14: =('Final Calculations'!C65+'Final Calculations'!H65+'Final Calculations'!M65+'Final Calculations'!R65)/1000000 -> 90.79598486 | R14: =Q14/DVYearsModel -> 3.026532829
E15: Net Present Value (mil. $) | H15: =NetPresentValue/1000000 -> 251.1606798 | L15: Travel Time Reliability Benefits | Q15: =('Final Calculations'!D65+'Final Calculations'!I65+'Final Calculations'!N65+'Final Calculations'!S65)/1000000 -> 6.517822217 | R15: =Q15/DVYearsModel -> 0.2172607406
L16: Veh. Op. Cost Savings | Q16: =('Final Calculations'!E65+'Final Calculations'!J65+'Final Calculations'!O65+'Final Calculations'!T65)/1000000 -> 0.3104068946 | R16: =Q16/DVYearsModel -> 0.01034689649
L17: Accident Cost Savings | Q17: =('Final Calculations'!F65+'Final Calculations'!K65+'Final Calculations'!P65+'Final Calculations'!U65)/1000000 -> 153.0526792 | R17: =Q17/DVYearsModel -> 5.101755972
E18: Benefit / Cost Ratio: | H18: =IF(LifeCycleCost=0,"N/A",LifeCycleBene/LifeCycleCost) -> 22738.72226 | L18: Emission Cost Savings | Q18: =('Final Calculations'!G65+'Final Calculations'!L65+'Final Calculations'!Q65+'Final Calculations'!V65)/1000000 -> 0.4948326931 | R18: =Q18/DVYearsModel -> 0.0164944231
L19: TOTAL BENEFITS | Q19: =SUM(Q14:Q18) -> 251.1717258 | R19: =Q19/DVYearsModel -> 8.372390861
E20: Rate of Return on Investment: | H20: =IFERROR(ReturnOnInvest,"N/A") -> 111.4224408
L21: Person-Hours of Time Saved | Q21: ='Final Calculations'!C67+'Final Calculations'!G67+'Final Calculations'!K67+'Final Calculations'!O67 -> 14507352.37 | R21: =Q21/DVYearsModel -> 483578.4125
E22: Payback Period: | H22: =Payback -> 1 year | L22: Fatalities Avoided | Q22: ='Final Calculations'!C78+'Final Calculations'!G78+'Final Calculations'!K78+'Final Calculations'!O78 -> 49.55598853 | R22: =Q22/DVYearsModel -> 1.651866284
L23: Injuries Avoided | Q23: ='Final Calculations'!C79+'Final Calculations'!G79+'Final Calculations'!K79+'Final Calculations'!O79 -> 234.7539179 | R23: =Q23/DVYearsModel -> 7.825130598
L24: PDO Avoided | Q24: ='Final Calculations'!C80+'Final Calculations'!G80+'Final Calculations'!K80+'Final Calculations'!O80 -> 981.1070715 | R24: =Q24/DVYearsModel -> 32.70356905
D27: Should benefit-cost results include: | O27: Tons | Q27: Value (mil. $)
O28: Total Over | P28: Average | Q28: Total Over | R28: Average
E29: 1) Induced Travel? (y/n) | H29: Y | L29: EMISSIONS REDUCTION | O29: =DVYearsModel& " Years" -> 30 Years | P29: Annual | Q29: =DVYearsModel& " Years" -> 30 Years | R29: Annual
H30: Default = Y | L30: CO Emissions Saved | O30: ='Final Calculations'!C70+'Final Calculations'!G70+'Final Calculations'!K70+'Final Calculations'!O70 -> 7.788448825 | P30: =O30/DVYearsModel -> 0.2596149608 | Q30: =('Final Calculations'!D70+'Final Calculations'!H70+'Final Calculations'!L70+'Final Calculations'!P70)/1000000 -> 0.0006810709201 | R30: =Q30/DVYearsModel -> 2.2702364e-05
E31: 2) Travel Time Reliability? (y/n) | H31: Y | L31: CO2 Emissions Saved | O31: ='Final Calculations'!C71+'Final Calculations'!G71+'Final Calculations'!K71+'Final Calculations'!O71 -> 18241.99251 | P31: 608.0664171 | Q31: =('Final Calculations'!D71+'Final Calculations'!H71+'Final Calculations'!L71+'Final Calculations'!P71)/1000000 -> 0.3659360815 | R31: =Q31/DVYearsModel -> 0.01219786938
H32: Default = Y | L32: NOX Emissions Saved | O32: ='Final Calculations'!C72+'Final Calculations'!G72+'Final Calculations'!K72+'Final Calculations'!O72 -> 26.12768524 | P32: 0.8709228413 | Q32: =('Final Calculations'!D72+'Final Calculations'!H72+'Final Calculations'!L72+'Final Calculations'!P72)/1000000 -> 0.1103672023 | R32: =Q32/DVYearsModel -> 0.003678906744
E33: 3) Vehicle Operating Costs? (y/n) | H33: Y | L33: PM2.5 Emissions Saved | O33: ='Final Calculations'!C73+'Final Calculations'!G73+'Final Calculations'!K73+'Final Calculations'!O73 -> 0.4692761988 | P33: =O33/DVYearsModel -> 0.01564253996 | Q33: =('Final Calculations'!D73+'Final Calculations'!H73+'Final Calculations'!L73+'Final Calculations'!P73)/1000000 -> 0.01191813661 | R33: =Q33/DVYearsModel -> 0.0003972712204
H34: Default = Y
E35: 3) Accident Costs? (y/n) | H35: Y | L35: SOX Emissions Saved | O35: ='Final Calculations'!C75+'Final Calculations'!G75+'Final Calculations'!K75+'Final Calculations'!O75 -> 0.1790439395 | P35: =O35/DVYearsModel -> 0.005968131316 | Q35: =('Final Calculations'!D75+'Final Calculations'!H75+'Final Calculations'!L75+'Final Calculations'!P75)/1000000 -> 0.002101607608 | R35: =Q35/DVYearsModel -> 7.005358694e-05
H36: Default = Y | L36: VOC Emissions Saved | O36: ='Final Calculations'!C76+'Final Calculations'!G76+'Final Calculations'!K76+'Final Calculations'!O76 -> 2.240441461 | P36: =O36/DVYearsModel -> 0.07468138204 | Q36: =('Final Calculations'!D76+'Final Calculations'!H76+'Final Calculations'!L76+'Final Calculations'!P76)/1000000 -> 0.003828594224 | R36: =Q36/DVYearsModel -> 0.0001276198075
E37: 4) Vehicle Emissions? (y/n) | H37: Y
E38: includes value for CO2e | H38: Default = Y

Sheet Travel Time
B1: Travel Time Benefits
B3: This sheet calculates total travel time benefits on highway and transit.
B5: Formulas: | S5: Present Value = Future Value (in Constant Dollars)
H6: Avg. Travel Time = Total PHT / Total Person Trips | L6: for transit | R6: ( 1 + Real Discount Rate) ^ Year
B7: Total Vehicle-Hours Traveled = Daily VHT x Annualization Factor | H7: hrs / person passenger-hrs / yr | J7: trips / yr
B8: vehicle-hrs / yr | D8: vehicle hrs / day | E8: days / yr | H8: Avg. Value of Time (varies by vehicle type)
B10: Avg. Travel Time = Total VHT x AVO / Total Person Trips | G10: for hwy | H10: TT Savings = Travel Time Reduction x Avg. Value of Time | O10: =MATCH(W$20,$A:$A) -> 18
B11: hrs / person vehicle-hrs / yr | D11: people / veh | E11: trips / yr | H11: dollars / year | I11: hours | J11: dollars / hr
B15: A | C15: HIGHWAY AND TRANSIT BENEFITS | V15: B | W15: SUMMARY OF TRAVEL TIME BENEFITS
A18: =MAX($A$1:A17)+1 -> 1 | B18: =IF(ISBLANK(INDEX(ModelGroup,A18,1)),"Not Used",INDEX(ModelGroup,A18,1)) -> Avion/Jurupa
C20: TOTAL VHT | E20: AVERAGE VEH OCC | G20: =IF(INDEX(HwyTransitModelGroup,A18,1)=Hwy,"TOTAL VEHICLE TRIPS","TOTAL PERSON TRIPS") -> TOTAL VEHICLE TRIPS | I20: PERCENT TRUCKS | K20: TOTAL PHT | M20: AVERAGE TRAVEL TIME | O20: =IF(INDEX(HwyTransitModelGroup,A18,1)=Hwy,"TOTAL VEHICLE TRIPS","TOTAL PERSON TRIPS") -> TOTAL VEHICLE TRIPS | P20: TIME BENEFIT | T20: Total Per-Hrs of Time Saved | W20: 1 | X20: 2 | Z20: Present | AD20: Total
C21: (veh-hours/yr) | E21: (persons/vehicle) | G21: (trips/yr) | I21: (%) | K21: (per-hours/yr) | M21: (hours/trip) | O21: (trips/yr) | P21: ($/yr) | T21: (per-hours/yr) | W21: =IF(ISBLANK(INDEX(ModelGroup,W20,1)),"Not Used",INDEX(ModelGroup,W20,1)) -> Avion/Jurupa | X21: =IF(ISBLANK(INDEX(ModelGroup,X20,1)),"Not Used",INDEX(ModelGroup,X20,1)) -> Dummy | Z21: Value of | AD21: Per-Hrs
B22: Year | O22: Adjusted (no induced) | P22: Existing | Q22: Constant | R22: Present | T22: Existing | V22: Year | Z22: Travel Time | AB22: Constant | AD22: of Time
C23: No Build | D23: Build | E23: No Build | F23: Build | G23: No Build | H23: Build | I23: No Build | J23: Build | K23: No Build | L23: Build | M23: No Build | N23: Build | O23: Build | P23: Users | Q23: Dollars | R23: Value | T23: Users | Z23: =IF(Induced="Y","Benefits","Benefits*") -> Benefits | AB23: Dollars | AD23: Saved
B24: =YearFirst -> 2020 | C24: =IF(INDEX(HwyTransitModelGroup,A18,1)=Hwy,INDEX(ModelData1NB,A18,3),0)*AnnualFactor -> 76650 | D24: =IF(INDEX(HwyTransitModelGroup,A18,1)=Hwy,INDEX(ModelData1B,A18,3),0)*AnnualFactor -> 22995 | E24: =IF(INDEX(HwyTransitModelGroup,A18,1)=Hwy,INDEX(ModelData1NB,A18,8),0) -> 1.48 | F24: =IF(INDEX(HwyTransitModelGroup,A18,1)=Hwy,INDEX(ModelData1B,A18,8),0) -> 1.48 | G24: =IF(AND(INDEX(HwyTransitModelGroup,A18,1)=Hwy,INDEX(ModelData1NB,A18,1)=0),1,INDEX(ModelData1NB,A18,1)*AnnualFactor) -> 704450 | H24: =IF(AND(INDEX(HwyTransitModelGroup,A18,1)=Hwy,INDEX(ModelData1B,A18,1)=0),1,INDEX(ModelData1B,A18,1)*AnnualFactor) -> 775990 | I24: =IF(INDEX(HwyTransitModelGroup,A18,1)=Hwy,INDEX(ModelData1NB,A18,9),0) -> 0.38 | J24: =IF(INDEX(HwyTransitModelGroup,A18,1)=Hwy,INDEX(ModelData1B,A18,9),0) -> 0.38 | K24: =IF(INDEX(HwyTransitModelGroup,A18,1)=Hwy,0,INDEX(ModelData1NB,A18,5))*AnnualFactor -> 0 | L24: =IF(INDEX(HwyTransitModelGroup,A18,1)=Hwy,0,INDEX(ModelData1B,A18,5))*AnnualFactor -> 0 | M24: =IFERROR(IF(INDEX(HwyTransitModelGroup,A18,1)=Hwy,C24*E24/G24,K24/G24),0) -> 0.1610362694 | N24: =IFERROR(IF(INDEX(HwyTransitModelGroup,A18,1)=Hwy,D24*F24/H24,L24/H24),0) -> 0.04385700847 | O24: =$H24-INDEX(ModeShare1,A18)*SUMIF('Consumer Surplus'!$C$197:$C$200,INDEX(HwyTransitModelGroup,A18,1),'Consumer Surplus'!$G$197:$G$200) -> 704450 | P24: =IF(INDEX(HwyTransitModelGroup,A18,1)=Hwy,G24*M24*(I24*ValTimeTruck+(1-I24)*ValTimeAuto)-O24*N24*(J24*ValTimeTruck+(1-J24)*ValTimeAuto),G24*IF(INDEX(NoTransit1,A18)=TRUE,INDEX(DivIndTrips,A18,2)/IF(INDEX(DivIndTrips,A18,1)=0,1,INDEX(DivIndTrips,A18,1)),M24)*ValTimeAuto-O24*N24*ValTimeAuto)*(1+TTUprater)^($B24-YearCurrent) -> 1914758.597 | Q24: =SUM(P24) -> 1914758.597 | R24: =Q24/(1+DiscRate)^(B24-YearCurrent) -> 1914758.597 | T24: =IF(INDEX(HwyTransitModelGroup,A18,1)=Hwy,G24*M24-O24*N24,G24*IF(INDEX(NoTransit1,A18)=TRUE,INDEX(DivIndTrips,A18,2)/IF(INDEX(DivIndTrips,A18,1)=0,1,INDEX(DivIndTrips,A18,1)),M24)-O24*N24) -> 82546.93039 | V24: =YearOpen -> 2025 | W24: =OFFSET($R9,MATCH(W$20,$A:$A),0) -> 3065242.693 | X24: 0 | Z24: =SUM($W24:Y24) -> 3065242.693 | AB24: =$Z24*(1+DiscRate)^($V24-YearCurrent) -> 4299161.444 | AD24: =SUM($W68:Y68) -> 185375.5155
B25: =YearLast -> 2054 | C25: =IF(INDEX(HwyTransitModelGroup,A18,1)=Hwy,INDEX(ModelData20NB,A18,3),0)*AnnualFactor -> 739490 | D25: =IF(INDEX(HwyTransitModelGroup,A18,1)=Hwy,INDEX(ModelData20B,A18,3),0)*AnnualFactor -> 242725 | E25: =IF(INDEX(HwyTransitModelGroup,A18,1)=Hwy,INDEX(ModelData20NB,A18,8),0) -> 1.48 | F25: =IF(INDEX(HwyTransitModelGroup,A18,1)=Hwy,INDEX(ModelData20B,A18,8),0) -> 1.48 | G25: =IF(AND(INDEX(HwyTransitModelGroup,A18,1)=Hwy,INDEX(ModelData20NB,A18,1)=0),1,INDEX(ModelData20NB,A18,1)*AnnualFactor) -> 6785715 | H25: =IF(AND(INDEX(HwyTransitModelGroup,A18,1)=Hwy,INDEX(ModelData20B,A18,1)=0),1,INDEX(ModelData20B,A18,1)*AnnualFactor) -> 7796400 | I25: =IF(INDEX(HwyTransitModelGroup,A18,1)=Hwy,INDEX(ModelData20NB,A18,9),0) -> 0.38 | J25: =IF(INDEX(HwyTransitModelGroup,A18,1)=Hwy,INDEX(ModelData20B,A18,9),0) -> 0.38 | K25: =IF(INDEX(HwyTransitModelGroup,A18,1)=Hwy,0,INDEX(ModelData20NB,A18,5))*AnnualFactor -> 0 | L25: =IF(INDEX(HwyTransitModelGroup,A18,1)=Hwy,0,INDEX(ModelData20B,A18,5))*AnnualFactor -> 0 | M25: =IFERROR(IF(INDEX(HwyTransitModelGroup,A18,1)=Hwy,C25*E25/G25,K25/G25),0) -> 0.1612866441 | N25: =IFERROR(IF(INDEX(HwyTransitModelGroup,A18,1)=Hwy,D25*F25/H25,L25/H25),0) -> 0.04607677903 | O25: =$H25-INDEX(ModeShare20,A18)*SUMIF('Consumer Surplus'!$C$197:$C$200,INDEX(HwyTransitModelGroup,A18,1),'Consumer Surplus'!$K$197:$K$200) -> 6785715 | P25: =IF(INDEX(HwyTransitModelGroup,A18,1)=Hwy,G25*M25*(I25*ValTimeTruck+(1-I25)*ValTimeAuto)-O25*N25*(J25*ValTimeTruck+(1-J25)*ValTimeAuto),G25*IF(INDEX(NoTransit20,A18)=TRUE,INDEX(DivIndTrips,A18,4)/IF(INDEX(DivIndTrips,A18,3)=0,1,INDEX(DivIndTrips,A18,3)),M25)*ValTimeAuto-O25*N25*ValTimeAuto)*(1+TTUprater)^($B25-YearCurrent) -> 18134199.25 | Q25: =SUM(P25) -> 18134199.25 | R25: =Q25/(1+DiscRate)^(B25-YearCurrent) -> 1817397.566 | T25: =IF(INDEX(HwyTransitModelGroup,A18,1)=Hwy,G25*M25-O25*N25,G25*IF(INDEX(NoTransit1,A18)=TRUE,INDEX(DivIndTrips,A18,2)/IF(INDEX(DivIndTrips,A18,1)=0,1,INDEX(DivIndTrips,A18,1)),M25)-O25*N25) -> 781781.3094 | V25: =V24+1 -> 2026 | W25: 3182564.77 | X25: 0 | Z25: =SUM($W25:Y25) -> 3182564.77 | AB25: 4776171.548 | AD25: =SUM($W69:Y69) -> 205941.2326
V26: =V25+1 -> 2027 | W26: 3271426.91 | X26: 0 | Z26: =SUM($W26:Y26) -> 3271426.91 | AB26: 5253196.734 | AD26: =SUM($W70:Y70) -> 226506.9496
B27: =YearOpen -> 2025 | C27: =MAX(TREND(C24:C25,B24:B25,B27),0) -> 174126.4706 | D27: =MAX(TREND(D24:D25,B24:B25,B27),0) -> 55308.23529 | E27: =MAX(TREND(E24:E25,B24:B25,B27),0) -> 1.48 | F27: =MAX(TREND(F24:F25,B24:B25,B27),0) -> 1.48 | G27: =MAX(TREND(G24:G25,$B24:$B25,$B27),0) -> 1598753.676 | H27: =MAX(TREND(H24:H25,$B24:$B25,$B27),0) -> 1808403.235 | I27: =MIN(MAX(TREND(I24:I25,B24:B25,B27),0),1) -> 0.38 | J27: =MIN(MAX(TREND(J24:J25,B24:B25,B27),0),1) -> 0.38 | K27: =MAX(TREND(K24:K25,B24:B25,B27),0) -> 0 | L27: =MAX(TREND(L24:L25,B24:B25,B27),0) -> 0 | M27: =IFERROR(IF(INDEX(HwyTransitModelGroup,A18,1)=Hwy,C27*E27/G27,K27/G27),0) -> 0.1611925466 | N27: =IFERROR(IF(INDEX(HwyTransitModelGroup,A18,1)=Hwy,D27*F27/H27,L27/H27),0) -> 0.04526434516 | O27: =TREND(O24:O25,$B24:$B25,$B27) -> 1598753.676 | P27: =IF(INDEX(HwyTransitModelGroup,A18,1)=Hwy,G27*M27*(I27*ValTimeTruck+(1-I27)*ValTimeAuto)-O27*N27*(J27*ValTimeTruck+(1-J27)*ValTimeAuto),G27*IF(INDEX(NoTransit20,A18)=TRUE,INDEX(DivIndTrips,A18,4)/IF(INDEX(DivIndTrips,A18,3)=0,1,INDEX(DivIndTrips,A18,3)),M27)*ValTimeAuto-O27*N27*ValTimeAuto)*(1+TTUprater)^($B27-YearCurrent) -> 4299161.444 | Q27: =SUM(P27) -> 4299161.444 | R27: =Q27/(1+DiscRate)^(B27-YearCurrent) -> 3065242.693 | T27: =TREND(T24:T25,$B24:$B25,$B27) -> 185375.5155 | V27: 2028 | W27: 3335047.868 | X27: 0 | Z27: =SUM($W27:Y27) -> 3335047.868 | AB27: 5730233.155 | AD27: =SUM($W71:Y71) -> 247072.6666
B28: =B27+1 -> 2026 | C28: =MAX(TREND(C24:C25,B24:B25,B28),0) -> 193621.7647 | D28: =MAX(TREND(D24:D25,B24:B25,B28),0) -> 61770.88235 | E28: =MAX(TREND(E24:E25,B24:B25,B28),0) -> 1.48 | F28: =MAX(TREND(F24:F25,B24:B25,B28),0) -> 1.48 | G28: =MAX(TREND(G24:G25,$B24:$B25,$B28),0) -> 1777614.412 | H28: =MAX(TREND(H24:H25,$B24:$B25,$B28),0) -> 2014885.882 | I28: =MIN(MAX(TREND(I24:I25,B24:B25,B28),0),1) -> 0.38 | J28: =MIN(MAX(TREND(J24:J25,B24:B25,B28),0),1) -> 0.38 | K28: =MAX(TREND(K24:K25,B24:B25,B28),0) -> 0 | L28: =MAX(TREND(L24:L25,B24:B25,B28),0) -> 0 | M28: =IFERROR(IF(INDEX(HwyTransitModelGroup,A18,1)=Hwy,C28*E28/G28,K28/G28),0) -> 0.1612049328 | N28: =IFERROR(IF(INDEX(HwyTransitModelGroup,A18,1)=Hwy,D28*F28/H28,L28/H28),0) -> 0.04537274626 | O28: =TREND(O24:O25,$B24:$B25,$B28) -> 1777614.412 | P28: =IF(INDEX(HwyTransitModelGroup,A18,1)=Hwy,G28*M28*(I28*ValTimeTruck+(1-I28)*ValTimeAuto)-O28*N28*(J28*ValTimeTruck+(1-J28)*ValTimeAuto),G28*IF(INDEX(NoTransit20,A18)=TRUE,INDEX(DivIndTrips,A18,4)/IF(INDEX(DivIndTrips,A18,3)=0,1,INDEX(DivIndTrips,A18,3)),M28)*ValTimeAuto-O28*N28*ValTimeAuto)*(1+TTUprater)^($B28-YearCurrent) -> 4776171.548 | Q28: 4776171.548 | R28: 3182564.77 | T28: =TREND(T24:T25,$B24:$B25,$B28) -> 205941.2326 | V28: 2029 | W28: 3376348.046 | X28: 0 | Z28: =SUM($W28:Y28) -> 3376348.046 | AB28: 6207278.17 | AD28: =SUM($W72:Y72) -> 267638.3837
B29: =B28+1 -> 2027 | C29: =MAX(TREND(C24:C25,B24:B25,B29),0) -> 213117.0588 | D29: =MAX(TREND(D24:D25,B24:B25,B29),0) -> 68233.52941 | E29: =MAX(TREND(E24:E25,B24:B25,B29),0) -> 1.48 | F29: =MAX(TREND(F24:F25,B24:B25,B29),0) -> 1.48 | G29: =MAX(TREND(G24:G25,$B24:$B25,$B29),0) -> 1956475.147 | H29: =MAX(TREND(H24:H25,$B24:$B25,$B29),0) -> 2221368.529 | I29: =MIN(MAX(TREND(I24:I25,B24:B25,B29),0),1) -> 0.38 | J29: =MIN(MAX(TREND(J24:J25,B24:B25,B29),0),1) -> 0.38 | K29: =MAX(TREND(K24:K25,B24:B25,B29),0) -> 0 | L29: =MAX(TREND(L24:L25,B24:B25,B29),0) -> 0 | M29: =IFERROR(IF(INDEX(HwyTransitModelGroup,A18,1)=Hwy,C29*E29/G29,K29/G29),0) -> 0.1612150543 | N29: =IFERROR(IF(INDEX(HwyTransitModelGroup,A18,1)=Hwy,D29*F29/H29,L29/H29),0) -> 0.04546099496 | O29: =TREND(O24:O25,$B24:$B25,$B29) -> 1956475.147 | P29: =IF(INDEX(HwyTransitModelGroup,A18,1)=Hwy,G29*M29*(I29*ValTimeTruck+(1-I29)*ValTimeAuto)-O29*N29*(J29*ValTimeTruck+(1-J29)*ValTimeAuto),G29*IF(INDEX(NoTransit20,A18)=TRUE,INDEX(DivIndTrips,A18,4)/IF(INDEX(DivIndTrips,A18,3)=0,1,INDEX(DivIndTrips,A18,3)),M29)*ValTimeAuto-O29*N29*ValTimeAuto)*(1+TTUprater)^($B29-YearCurrent) -> 5253196.734 | Q29: 5253196.734 | R29: 3271426.91 | T29: =TREND(T24:T25,$B24:$B25,$B29) -> 226506.9496 | V29: 2030 | W29: 3397974.375 | X29: 0 | Z29: =SUM($W29:Y29) -> 3397974.375 | AB29: 6684329.904 | AD29: =SUM($W73:Y73) -> 288204.1007
B30: 2028 | C30: =MAX(TREND(C24:C25,B24:B25,B30),0) -> 232612.3529 | D30: =MAX(TREND(D24:D25,B24:B25,B30),0) -> 74696.17647 | E30: =MAX(TREND(E24:E25,B24:B25,B30),0) -> 1.48 | F30: =MAX(TREND(F24:F25,B24:B25,B30),0) -> 1.48 | G30: =MAX(TREND(G24:G25,$B24:$B25,$B30),0) -> 2135335.882 | H30: =MAX(TREND(H24:H25,$B24:$B25,$B30),0) -> 2427851.176 | I30: =MIN(MAX(TREND(I24:I25,B24:B25,B30),0),1) -> 0.38 | J30: =MIN(MAX(TREND(J24:J25,B24:B25,B30),0),1) -> 0.38 | K30: =MAX(TREND(K24:K25,B24:B25,B30),0) -> 0 | L30: =MAX(TREND(L24:L25,B24:B25,B30),0) -> 0 | M30: =IFERROR(IF(INDEX(HwyTransitModelGroup,A18,1)=Hwy,C30*E30/G30,K30/G30),0) -> 0.1612234802 | N30: =IFERROR(IF(INDEX(HwyTransitModelGroup,A18,1)=Hwy,D30*F30/H30,L30/H30),0) -> 0.04553423301 | O30: =TREND(O24:O25,$B24:$B25,$B30) -> 2135335.882 | P30: =IF(INDEX(HwyTransitModelGroup,A18,1)=Hwy,G30*M30*(I30*ValTimeTruck+(1-I30)*ValTimeAuto)-O30*N30*(J30*ValTimeTruck+(1-J30)*ValTimeAuto),G30*IF(INDEX(NoTransit20,A18)=TRUE,INDEX(DivIndTrips,A18,4)/IF(INDEX(DivIndTrips,A18,3)=0,1,INDEX(DivIndTrips,A18,3)),M30)*ValTimeAuto-O30*N30*ValTimeAuto)*(1+TTUprater)^($B30-YearCurrent) -> 5730233.155 | Q30: 5730233.155 | R30: 3335047.868 | T30: =TREND(T24:T25,$B24:$B25,$B30) -> 247072.6666 | V30: 2031 | W30: 3402323.372 | X30: 0 | Z30: =SUM($W30:Y30) -> 3402323.372 | AB30: 7161386.991 | AD30: =SUM($W74:Y74) -> 308769.8177
B31: 2029 | C31: =MAX(TREND(C24:C25,B24:B25,B31),0) -> 252107.6471 | D31: =MAX(TREND(D24:D25,B24:B25,B31),0) -> 81158.82353 | E31: =MAX(TREND(E24:E25,B24:B25,B31),0) -> 1.48 | F31: =MAX(TREND(F24:F25,B24:B25,B31),0) -> 1.48 | G31: =MAX(TREND(G24:G25,$B24:$B25,$B31),0) -> 2314196.618 | H31: =MAX(TREND(H24:H25,$B24:$B25,$B31),0) -> 2634333.824 | I31: =MIN(MAX(TREND(I24:I25,B24:B25,B31),0),1) -> 0.38 | J31: =MIN(MAX(TREND(J24:J25,B24:B25,B31),0),1) -> 0.38 | K31: =MAX(TREND(K24:K25,B24:B25,B31),0) -> 0 | L31: =MAX(TREND(L24:L25,B24:B25,B31),0) -> 0 | M31: =IFERROR(IF(INDEX(HwyTransitModelGroup,A18,1)=Hwy,C31*E31/G31,K31/G31),0) -> 0.1612306037 | N31: =IFERROR(IF(INDEX(HwyTransitModelGroup,A18,1)=Hwy,D31*F31/H31,L31/H31),0) -> 0.04559599006 | O31: =TREND(O24:O25,$B24:$B25,$B31) -> 2314196.618 | P31: =IF(INDEX(HwyTransitModelGroup,A18,1)=Hwy,G31*M31*(I31*ValTimeTruck+(1-I31)*ValTimeAuto)-O31*N31*(J31*ValTimeTruck+(1-J31)*ValTimeAuto),G31*IF(INDEX(NoTransit20,A18)=TRUE,INDEX(DivIndTrips,A18,4)/IF(INDEX(DivIndTrips,A18,3)=0,1,INDEX(DivIndTrips,A18,3)),M31)*ValTimeAuto-O31*N31*ValTimeAuto)*(1+TTUprater)^($B31-YearCurrent) -> 6207278.17 | Q31: 6207278.17 | R31: 3376348.046 | T31: =TREND(T24:T25,$B24:$B25,$B31) -> 267638.3837 | V31: 2032 | W31: 3391562.445 | X31: 0 | Z31: =SUM($W31:Y31) -> 3391562.445 | AB31: 7638448.413 | AD31: =SUM($W75:Y75) -> 329335.5347
B32: 2030 | C32: =MAX(TREND(C24:C25,B24:B25,B32),0) -> 271602.9412 | D32: =MAX(TREND(D24:D25,B24:B25,B32),0) -> 87621.47059 | E32: =MAX(TREND(E24:E25,B24:B25,B32),0) -> 1.48 | F32: =MAX(TREND(F24:F25,B24:B25,B32),0) -> 1.48 | G32: =MAX(TREND(G24:G25,$B24:$B25,$B32),0) -> 2493057.353 | H32: =MAX(TREND(H24:H25,$B24:$B25,$B32),0) -> 2840816.471 | I32: =MIN(MAX(TREND(I24:I25,B24:B25,B32),0),1) -> 0.38 | J32: =MIN(MAX(TREND(J24:J25,B24:B25,B32),0),1) -> 0.38 | K32: =MAX(TREND(K24:K25,B24:B25,B32),0) -> 0 | L32: =MAX(TREND(L24:L25,B24:B25,B32),0) -> 0 | M32: =IFERROR(IF(INDEX(HwyTransitModelGroup,A18,1)=Hwy,C32*E32/G32,K32/G32),0) -> 0.161236705 | N32: =IFERROR(IF(INDEX(HwyTransitModelGroup,A18,1)=Hwy,D32*F32/H32,L32/H32),0) -> 0.04564876957 | O32: =TREND(O24:O25,$B24:$B25,$B32) -> 2493057.353 | P32: =IF(INDEX(HwyTransitModelGroup,A18,1)=Hwy,G32*M32*(I32*ValTimeTruck+(1-I32)*ValTimeAuto)-O32*N32*(J32*ValTimeTruck+(1-J32)*ValTimeAuto),G32*IF(INDEX(NoTransit20,A18)=TRUE,INDEX(DivIndTrips,A18,4)/IF(INDEX(DivIndTrips,A18,3)=0,1,INDEX(DivIndTrips,A18,3)),M32)*ValTimeAuto-O32*N32*ValTimeAuto)*(1+TTUprater)^($B32-YearCurrent) -> 6684329.904 | Q32: 6684329.904 | R32: 3397974.375 | T32: =TREND(T24:T25,$B24:$B25,$B32) -> 288204.1007 | V32: 2033 | W32: 3367649.534 | X32: 0 | Z32: =SUM($W32:Y32) -> 3367649.534 | AB32: 8115513.393 | AD32: =SUM($W76:Y76) -> 349901.2518
B33: 2031 | C33: =MAX(TREND(C24:C25,B24:B25,B33),0) -> 291098.2353 | D33: =MAX(TREND(D24:D25,B24:B25,B33),0) -> 94084.11765 | E33: =MAX(TREND(E24:E25,B24:B25,B33),0) -> 1.48 | F33: =MAX(TREND(F24:F25,B24:B25,B33),0) -> 1.48 | G33: =MAX(TREND(G24:G25,$B24:$B25,$B33),0) -> 2671918.088 | H33: =MAX(TREND(H24:H25,$B24:$B25,$B33),0) -> 3047299.118 | I33: =MIN(MAX(TREND(I24:I25,B24:B25,B33),0),1) -> 0.38 | J33: =MIN(MAX(TREND(J24:J25,B24:B25,B33),0),1) -> 0.38 | K33: =MAX(TREND(K24:K25,B24:B25,B33),0) -> 0 | L33: =MAX(TREND(L24:L25,B24:B25,B33),0) -> 0 | M33: =IFERROR(IF(INDEX(HwyTransitModelGroup,A18,1)=Hwy,C33*E33/G33,K33/G33),0) -> 0.1612419895 | N33: =IFERROR(IF(INDEX(HwyTransitModelGroup,A18,1)=Hwy,D33*F33/H33,L33/H33),0) -> 0.04569439649 | O33: =TREND(O24:O25,$B24:$B25,$B33) -> 2671918.088 | P33: =IF(INDEX(HwyTransitModelGroup,A18,1)=Hwy,G33*M33*(I33*ValTimeTruck+(1-I33)*ValTimeAuto)-O33*N33*(J33*ValTimeTruck+(1-J33)*ValTimeAuto),G33*IF(INDEX(NoTransit20,A18)=TRUE,INDEX(DivIndTrips,A18,4)/IF(INDEX(DivIndTrips,A18,3)=0,1,INDEX(DivIndTrips,A18,3)),M33)*ValTimeAuto-O33*N33*ValTimeAuto)*(1+TTUprater)^($B33-YearCurrent) -> 7161386.991 | Q33: 7161386.991 | R33: 3402323.372 | T33: =TREND(T24:T25,$B24:$B25,$B33) -> 308769.8177 | V33: 2034 | W33: 3332351.185 | X33: 0 | Z33: =SUM($W33:Y33) -> 3332351.185 | AB33: 8592581.33 | AD33: =SUM($W77:Y77) -> 370466.9688
B34: 2032 | C34: =MAX(TREND(C24:C25,B24:B25,B34),0) -> 310593.5294 | D34: =MAX(TREND(D24:D25,B24:B25,B34),0) -> 100546.7647 | E34: =MAX(TREND(E24:E25,B24:B25,B34),0) -> 1.48 | F34: =MAX(TREND(F24:F25,B24:B25,B34),0) -> 1.48 | G34: =MAX(TREND(G24:G25,$B24:$B25,$B34),0) -> 2850778.824 | H34: =MAX(TREND(H24:H25,$B24:$B25,$B34),0) -> 3253781.765 | I34: =MIN(MAX(TREND(I24:I25,B24:B25,B34),0),1) -> 0.38 | J34: =MIN(MAX(TREND(J24:J25,B24:B25,B34),0),1) -> 0.38 | K34: =MAX(TREND(K24:K25,B24:B25,B34),0) -> 0 | L34: =MAX(TREND(L24:L25,B24:B25,B34),0) -> 0 | M34: =IFERROR(IF(INDEX(HwyTransitModelGroup,A18,1)=Hwy,C34*E34/G34,K34/G34),0) -> 0.1612466108 | N34: =IFERROR(IF(INDEX(HwyTransitModelGroup,A18,1)=Hwy,D34*F34/H34,L34/H34),0) -> 0.04573423251 | O34: =TREND(O24:O25,$B24:$B25,$B34) -> 2850778.824 | P34: =IF(INDEX(HwyTransitModelGroup,A18,1)=Hwy,G34*M34*(I34*ValTimeTruck+(1-I34)*ValTimeAuto)-O34*N34*(J34*ValTimeTruck+(1-J34)*ValTimeAuto),G34*IF(INDEX(NoTransit20,A18)=TRUE,INDEX(DivIndTrips,A18,4)/IF(INDEX(DivIndTrips,A18,3)=0,1,INDEX(DivIndTrips,A18,3)),M34)*ValTimeAuto-O34*N34*ValTimeAuto)*(1+TTUprater)^($B34-YearCurrent) -> 7638448.413 | Q34: 7638448.413 | R34: 3391562.445 | T34: =TREND(T24:T25,$B24:$B25,$B34) -> 329335.5347 | V34: 2035 | W34: 3287259.177 | X34: 0 | Z34: =SUM($W34:Y34) -> 3287259.177 | AB34: 9069651.752 | AD34: =SUM($W78:Y78) -> 391032.6858
B35: 2033 | C35: =MAX(TREND(C24:C25,B24:B25,B35),0) -> 330088.8235 | D35: =MAX(TREND(D24:D25,B24:B25,B35),0) -> 107009.4118 | E35: =MAX(TREND(E24:E25,B24:B25,B35),0) -> 1.48 | F35: =MAX(TREND(F24:F25,B24:B25,B35),0) -> 1.48 | G35: =MAX(TREND(G24:G25,$B24:$B25,$B35),0) -> 3029639.559 | H35: =MAX(TREND(H24:H25,$B24:$B25,$B35),0) -> 3460264.412 | I35: =MIN(MAX(TREND(I24:I25,B24:B25,B35),0),1) -> 0.38 | J35: =MIN(MAX(TREND(J24:J25,B24:B25,B35),0),1) -> 0.38 | K35: =MAX(TREND(K24:K25,B24:B25,B35),0) -> 0 | L35: =MAX(TREND(L24:L25,B24:B25,B35),0) -> 0 | M35: =IFERROR(IF(INDEX(HwyTransitModelGroup,A18,1)=Hwy,C35*E35/G35,K35/G35),0) -> 0.1612506865 | N35: =IFERROR(IF(INDEX(HwyTransitModelGroup,A18,1)=Hwy,D35*F35/H35,L35/H35),0) -> 0.0457693143 | O35: =TREND(O24:O25,$B24:$B25,$B35) -> 3029639.559 | P35: =IF(INDEX(HwyTransitModelGroup,A18,1)=Hwy,G35*M35*(I35*ValTimeTruck+(1-I35)*ValTimeAuto)-O35*N35*(J35*ValTimeTruck+(1-J35)*ValTimeAuto),G35*IF(INDEX(NoTransit20,A18)=TRUE,INDEX(DivIndTrips,A18,4)/IF(INDEX(DivIndTrips,A18,3)=0,1,INDEX(DivIndTrips,A18,3)),M35)*ValTimeAuto-O35*N35*ValTimeAuto)*(1+TTUprater)^($B35-YearCurrent) -> 8115513.393 | Q35: 8115513.393 | R35: 3367649.534 | T35: =TREND(T24:T25,$B24:$B25,$B35) -> 349901.2518 | V35: 2036 | W35: 3233805.809 | X35: 0 | Z35: =SUM($W35:Y35) -> 3233805.809 | AB35: 9546724.28 | AD35: =SUM($W79:Y79) -> 411598.4029
B36: 2034 | C36: =MAX(TREND(C24:C25,B24:B25,B36),0) -> 349584.1176 | D36: =MAX(TREND(D24:D25,B24:B25,B36),0) -> 113472.0588 | E36: =MAX(TREND(E24:E25,B24:B25,B36),0) -> 1.48 | F36: =MAX(TREND(F24:F25,B24:B25,B36),0) -> 1.48 | G36: =MAX(TREND(G24:G25,$B24:$B25,$B36),0) -> 3208500.294 | H36: =MAX(TREND(H24:H25,$B24:$B25,$B36),0) -> 3666747.059 | I36: =MIN(MAX(TREND(I24:I25,B24:B25,B36),0),1) -> 0.38 | J36: =MIN(MAX(TREND(J24:J25,B24:B25,B36),0),1) -> 0.38 | K36: =MAX(TREND(K24:K25,B24:B25,B36),0) -> 0 | L36: =MAX(TREND(L24:L25,B24:B25,B36),0) -> 0 | M36: =IFERROR(IF(INDEX(HwyTransitModelGroup,A18,1)=Hwy,C36*E36/G36,K36/G36),0) -> 0.1612543078 | N36: =IFERROR(IF(INDEX(HwyTransitModelGroup,A18,1)=Hwy,D36*F36/H36,L36/H36),0) -> 0.04580044502 | O36: =TREND(O24:O25,$B24:$B25,$B36) -> 3208500.294 | P36: =IF(INDEX(HwyTransitModelGroup,A18,1)=Hwy,G36*M36*(I36*ValTimeTruck+(1-I36)*ValTimeAuto)-O36*N36*(J36*ValTimeTruck+(1-J36)*ValTimeAuto),G36*IF(INDEX(NoTransit20,A18)=TRUE,INDEX(DivIndTrips,A18,4)/IF(INDEX(DivIndTrips,A18,3)=0,1,INDEX(DivIndTrips,A18,3)),M36)*ValTimeAuto-O36*N36*ValTimeAuto)*(1+TTUprater)^($B36-YearCurrent) -> 8592581.33 | Q36: 8592581.33 | R36: 3332351.185 | T36: =TREND(T24:T25,$B24:$B25,$B36) -> 370466.9688 | V36: 2037 | W36: 3173277.936 | X36: 0 | Z36: =SUM($W36:Y36) -> 3173277.936 | AB36: 10023798.61 | AD36: =SUM($W80:Y80) -> 432164.1199
B37: 2035 | C37: =MAX(TREND(C24:C25,B24:B25,B37),0) -> 369079.4118 | D37: =MAX(TREND(D24:D25,B24:B25,B37),0) -> 119934.7059 | E37: =MAX(TREND(E24:E25,B24:B25,B37),0) -> 1.48 | F37: =MAX(TREND(F24:F25,B24:B25,B37),0) -> 1.48 | G37: =MAX(TREND(G24:G25,$B24:$B25,$B37),0) -> 3387361.029 | H37: =MAX(TREND(H24:H25,$B24:$B25,$B37),0) -> 3873229.706 | I37: =MIN(MAX(TREND(I24:I25,B24:B25,B37),0),1) -> 0.38 | J37: =MIN(MAX(TREND(J24:J25,B24:B25,B37),0),1) -> 0.38 | K37: =MAX(TREND(K24:K25,B24:B25,B37),0) -> 0 | L37: =MAX(TREND(L24:L25,B24:B25,B37),0) -> 0 | M37: =IFERROR(IF(INDEX(HwyTransitModelGroup,A18,1)=Hwy,C37*E37/G37,K37/G37),0) -> 0.1612575467 | N37: =IFERROR(IF(INDEX(HwyTransitModelGroup,A18,1)=Hwy,D37*F37/H37,L37/H37),0) -> 0.04582825657 | O37: =TREND(O24:O25,$B24:$B25,$B37) -> 3387361.029 | P37: =IF(INDEX(HwyTransitModelGroup,A18,1)=Hwy,G37*M37*(I37*ValTimeTruck+(1-I37)*ValTimeAuto)-O37*N37*(J37*ValTimeTruck+(1-J37)*ValTimeAuto),G37*IF(INDEX(NoTransit20,A18)=TRUE,INDEX(DivIndTrips,A18,4)/IF(INDEX(DivIndTrips,A18,3)=0,1,INDEX(DivIndTrips,A18,3)),M37)*ValTimeAuto-O37*N37*ValTimeAuto)*(1+TTUprater)^($B37-YearCurrent) -> 9069651.752 | Q37: 9069651.752 | R37: 3287259.177 | T37: =TREND(T24:T25,$B24:$B25,$B37) -> 391032.6858 | V37: 2038 | W37: 3106829.853 | X37: 0 | Z37: =SUM($W37:Y37) -> 3106829.853 | AB37: 10500874.5 | AD37: =SUM($W81:Y81) -> 452729.8369
B38: 2036 | C38: =MAX(TREND(C24:C25,B24:B25,B38),0) -> 388574.7059 | D38: =MAX(TREND(D24:D25,B24:B25,B38),0) -> 126397.3529 | E38: =MAX(TREND(E24:E25,B24:B25,B38),0) -> 1.48 | F38: =MAX(TREND(F24:F25,B24:B25,B38),0) -> 1.48 | G38: =MAX(TREND(G24:G25,$B24:$B25,$B38),0) -> 3566221.765 | H38: =MAX(TREND(H24:H25,$B24:$B25,$B38),0) -> 4079712.353 | I38: =MIN(MAX(TREND(I24:I25,B24:B25,B38),0),1) -> 0.38 | J38: =MIN(MAX(TREND(J24:J25,B24:B25,B38),0),1) -> 0.38 | K38: =MAX(TREND(K24:K25,B24:B25,B38),0) -> 0 | L38: =MAX(TREND(L24:L25,B24:B25,B38),0) -> 0 | M38: =IFERROR(IF(INDEX(HwyTransitModelGroup,A18,1)=Hwy,C38*E38/G38,K38/G38),0) -> 0.1612604607 | N38: =IFERROR(IF(INDEX(HwyTransitModelGroup,A18,1)=Hwy,D38*F38/H38,L38/H38),0) -> 0.04585325292 | O38: =TREND(O24:O25,$B24:$B25,$B38) -> 3566221.765 | P38: =IF(INDEX(HwyTransitModelGroup,A18,1)=Hwy,G38*M38*(I38*ValTimeTruck+(1-I38)*ValTimeAuto)-O38*N38*(J38*ValTimeTruck+(1-J38)*ValTimeAuto),G38*IF(INDEX(NoTransit20,A18)=TRUE,INDEX(DivIndTrips,A18,4)/IF(INDEX(DivIndTrips,A18,3)=0,1,INDEX(DivIndTrips,A18,3)),M38)*ValTimeAuto-O38*N38*ValTimeAuto)*(1+TTUprater)^($B38-YearCurrent) -> 9546724.28 | Q38: 9546724.28 | R38: 3233805.809 | T38: =TREND(T24:T25,$B24:$B25,$B38) -> 411598.4029 | V38: 2039 | W38: 3035495.133 | X38: 0 | Z38: =SUM($W38:Y38) -> 3035495.133 | AB38: 10977951.73 | AD38: =SUM($W82:Y82) -> 473295.554
B39: 2037 | C39: =MAX(TREND(C24:C25,B24:B25,B39),0) -> 408070 | D39: =MAX(TREND(D24:D25,B24:B25,B39),0) -> 132860 | E39: =MAX(TREND(E24:E25,B24:B25,B39),0) -> 1.48 | F39: =MAX(TREND(F24:F25,B24:B25,B39),0) -> 1.48 | G39: =MAX(TREND(G24:G25,$B24:$B25,$B39),0) -> 3745082.5 | H39: =MAX(TREND(H24:H25,$B24:$B25,$B39),0) -> 4286195 | I39: =MIN(MAX(TREND(I24:I25,B24:B25,B39),0),1) -> 0.38 | J39: =MIN(MAX(TREND(J24:J25,B24:B25,B39),0),1) -> 0.38 | K39: =MAX(TREND(K24:K25,B24:B25,B39),0) -> 0 | L39: =MAX(TREND(L24:L25,B24:B25,B39),0) -> 0 | M39: =IFERROR(IF(INDEX(HwyTransitModelGroup,A18,1)=Hwy,C39*E39/G39,K39/G39),0) -> 0.1612630963 | N39: =IFERROR(IF(INDEX(HwyTransitModelGroup,A18,1)=Hwy,D39*F39/H39,L39/H39),0) -> 0.04587584093 | O39: =TREND(O24:O25,$B24:$B25,$B39) -> 3745082.5 | P39: =IF(INDEX(HwyTransitModelGroup,A18,1)=Hwy,G39*M39*(I39*ValTimeTruck+(1-I39)*ValTimeAuto)-O39*N39*(J39*ValTimeTruck+(1-J39)*ValTimeAuto),G39*IF(INDEX(NoTransit20,A18)=TRUE,INDEX(DivIndTrips,A18,4)/IF(INDEX(DivIndTrips,A18,3)=0,1,INDEX(DivIndTrips,A18,3)),M39)*ValTimeAuto-O39*N39*ValTimeAuto)*(1+TTUprater)^($B39-YearCurrent) -> 10023798.61 | Q39: 10023798.61 | R39: 3173277.936 | T39: =TREND(T24:T25,$B24:$B25,$B39) -> 432164.1199 | V39: 2040 | W39: 2960197.467 | X39: 0 | Z39: =SUM($W39:Y39) -> 2960197.467 | AB39: 11455030.14 | AD39: =SUM($W83:Y83) -> 493861.271
B40: 2038 | C40: =MAX(TREND(C24:C25,B24:B25,B40),0) -> 427565.2941 | D40: =MAX(TREND(D24:D25,B24:B25,B40),0) -> 139322.6471 | E40: =MAX(TREND(E24:E25,B24:B25,B40),0) -> 1.48 | F40: =MAX(TREND(F24:F25,B24:B25,B40),0) -> 1.48 | G40: =MAX(TREND(G24:G25,$B24:$B25,$B40),0) -> 3923943.235 | H40: =MAX(TREND(H24:H25,$B24:$B25,$B40),0) -> 4492677.647 | I40: =MIN(MAX(TREND(I24:I25,B24:B25,B40),0),1) -> 0.38 | J40: =MIN(MAX(TREND(J24:J25,B24:B25,B40),0),1) -> 0.38 | K40: =MAX(TREND(K24:K25,B24:B25,B40),0) -> 0 | L40: =MAX(TREND(L24:L25,B24:B25,B40),0) -> 0 | M40: =IFERROR(IF(INDEX(HwyTransitModelGroup,A18,1)=Hwy,C40*E40/G40,K40/G40),0) -> 0.1612654917 | N40: =IFERROR(IF(INDEX(HwyTransitModelGroup,A18,1)=Hwy,D40*F40/H40,L40/H40),0) -> 0.04589635265 | O40: =TREND(O24:O25,$B24:$B25,$B40) -> 3923943.235 | P40: =IF(INDEX(HwyTransitModelGroup,A18,1)=Hwy,G40*M40*(I40*ValTimeTruck+(1-I40)*ValTimeAuto)-O40*N40*(J40*ValTimeTruck+(1-J40)*ValTimeAuto),G40*IF(INDEX(NoTransit20,A18)=TRUE,INDEX(DivIndTrips,A18,4)/IF(INDEX(DivIndTrips,A18,3)=0,1,INDEX(DivIndTrips,A18,3)),M40)*ValTimeAuto-O40*N40*ValTimeAuto)*(1+TTUprater)^($B40-YearCurrent) -> 10500874.5 | Q40: 10500874.5 | R40: 3106829.853 | T40: =TREND(T24:T25,$B24:$B25,$B40) -> 452729.8369 | V40: 2041 | W40: 2881760.619 | X40: 0 | Z40: =SUM($W40:Y40) -> 2881760.619 | AB40: 11932109.59 | AD40: =SUM($W84:Y84) -> 514426.988
B41: 2039 | C41: =MAX(TREND(C24:C25,B24:B25,B41),0) -> 447060.5882 | D41: =MAX(TREND(D24:D25,B24:B25,B41),0) -> 145785.2941 | E41: =MAX(TREND(E24:E25,B24:B25,B41),0) -> 1.48 | F41: =MAX(TREND(F24:F25,B24:B25,B41),0) -> 1.48 | G41: =MAX(TREND(G24:G25,$B24:$B25,$B41),0) -> 4102803.971 | H41: =MAX(TREND(H24:H25,$B24:$B25,$B41),0) -> 4699160.294 | I41: =MIN(MAX(TREND(I24:I25,B24:B25,B41),0),1) -> 0.38 | J41: =MIN(MAX(TREND(J24:J25,B24:B25,B41),0),1) -> 0.38 | K41: =MAX(TREND(K24:K25,B24:B25,B41),0) -> 0 | L41: =MAX(TREND(L24:L25,B24:B25,B41),0) -> 0 | M41: =IFERROR(IF(INDEX(HwyTransitModelGroup,A18,1)=Hwy,C41*E41/G41,K41/G41),0) -> 0.1612676782 | N41: =IFERROR(IF(INDEX(HwyTransitModelGroup,A18,1)=Hwy,D41*F41/H41,L41/H41),0) -> 0.0459150618 | O41: =TREND(O24:O25,$B24:$B25,$B41) -> 4102803.971 | P41: =IF(INDEX(HwyTransitModelGroup,A18,1)=Hwy,G41*M41*(I41*ValTimeTruck+(1-I41)*ValTimeAuto)-O41*N41*(J41*ValTimeTruck+(1-J41)*ValTimeAuto),G41*IF(INDEX(NoTransit20,A18)=TRUE,INDEX(DivIndTrips,A18,4)/IF(INDEX(DivIndTrips,A18,3)=0,1,INDEX(DivIndTrips,A18,3)),M41)*ValTimeAuto-O41*N41*ValTimeAuto)*(1+TTUprater)^($B41-YearCurrent) -> 10977951.73 | Q41: 10977951.73 | R41: 3035495.133 | T41: =TREND(T24:T25,$B24:$B25,$B41) -> 473295.554 | V41: 2042 | W41: 2800917.543 | X41: 0 | Z41: =SUM($W41:Y41) -> 2800917.543 | AB41: 12409189.96 | AD41: =SUM($W85:Y85) -> 534992.705
B42: 2040 | C42: =MAX(TREND(C24:C25,B24:B25,B42),0) -> 466555.8824 | D42: =MAX(TREND(D24:D25,B24:B25,B42),0) -> 152247.9412 | E42: =MAX(TREND(E24:E25,B24:B25,B42),0) -> 1.48 | F42: =MAX(TREND(F24:F25,B24:B25,B42),0) -> 1.48 | G42: =MAX(TREND(G24:G25,$B24:$B25,$B42),0) -> 4281664.706 | H42: =MAX(TREND(H24:H25,$B24:$B25,$B42),0) -> 4905642.941 | I42: =MIN(MAX(TREND(I24:I25,B24:B25,B42),0),1) -> 0.38 | J42: =MIN(MAX(TREND(J24:J25,B24:B25,B42),0),1) -> 0.38 | K42: =MAX(TREND(K24:K25,B24:B25,B42),0) -> 0 | L42: =MAX(TREND(L24:L25,B24:B25,B42),0) -> 0 | M42: =IFERROR(IF(INDEX(HwyTransitModelGroup,A18,1)=Hwy,C42*E42/G42,K42/G42),0) -> 0.1612696821 | N42: =IFERROR(IF(INDEX(HwyTransitModelGroup,A18,1)=Hwy,D42*F42/H42,L42/H42),0) -> 0.04593219597 | O42: =TREND(O24:O25,$B24:$B25,$B42) -> 4281664.706 | P42: =IF(INDEX(HwyTransitModelGroup,A18,1)=Hwy,G42*M42*(I42*ValTimeTruck+(1-I42)*ValTimeAuto)-O42*N42*(J42*ValTimeTruck+(1-J42)*ValTimeAuto),G42*IF(INDEX(NoTransit20,A18)=TRUE,INDEX(DivIndTrips,A18,4)/IF(INDEX(DivIndTrips,A18,3)=0,1,INDEX(DivIndTrips,A18,3)),M42)*ValTimeAuto-O42*N42*ValTimeAuto)*(1+TTUprater)^($B42-YearCurrent) -> 11455030.14 | Q42: 11455030.14 | R42: 2960197.467 | T42: =TREND(T24:T25,$B24:$B25,$B42) -> 493861.271 | V42: 2043 | W42: 2718318.734 | X42: 0 | Z42: =SUM($W42:Y42) -> 2718318.734 | AB42: 12886271.13 | AD42: =SUM($W86:Y86) -> 555558.4221
B43: 2041 | C43: =MAX(TREND(C24:C25,B24:B25,B43),0) -> 486051.1765 | D43: =MAX(TREND(D24:D25,B24:B25,B43),0) -> 158710.5882 | E43: =MAX(TREND(E24:E25,B24:B25,B43),0) -> 1.48 | F43: =MAX(TREND(F24:F25,B24:B25,B43),0) -> 1.48 | G43: =MAX(TREND(G24:G25,$B24:$B25,$B43),0) -> 4460525.441 | H43: =MAX(TREND(H24:H25,$B24:$B25,$B43),0) -> 5112125.588 | I43: =MIN(MAX(TREND(I24:I25,B24:B25,B43),0),1) -> 0.38 | J43: =MIN(MAX(TREND(J24:J25,B24:B25,B43),0),1) -> 0.38 | K43: =MAX(TREND(K24:K25,B24:B25,B43),0) -> 0 | L43: =MAX(TREND(L24:L25,B24:B25,B43),0) -> 0 | M43: =IFERROR(IF(INDEX(HwyTransitModelGroup,A18,1)=Hwy,C43*E43/G43,K43/G43),0) -> 0.1612715252 | N43: =IFERROR(IF(INDEX(HwyTransitModelGroup,A18,1)=Hwy,D43*F43/H43,L43/H43),0) -> 0.04594794602 | O43: =TREND(O24:O25,$B24:$B25,$B43) -> 4460525.441 | P43: =IF(INDEX(HwyTransitModelGroup,A18,1)=Hwy,G43*M43*(I43*ValTimeTruck+(1-I43)*ValTimeAuto)-O43*N43*(J43*ValTimeTruck+(1-J43)*ValTimeAuto),G43*IF(INDEX(NoTransit20,A18)=TRUE,INDEX(DivIndTrips,A18,4)/IF(INDEX(DivIndTrips,A18,3)=0,1,INDEX(DivIndTrips,A18,3)),M43)*ValTimeAuto-O43*N43*ValTimeAuto)*(1+TTUprater)^($B43-YearCurrent) -> 11932109.59 | Q43: 11932109.59 | R43: 2881760.619 | T43: =TREND(T24:T25,$B24:$B25,$B43) -> 514426.988 | V43: 2044 | W43: 2634539.882 | X43: 0 | Z43: =SUM($W43:Y43) -> 2634539.882 | AB43: 13363353.04 | AD43: =SUM($W87:Y87) -> 576124.1391
B44: 2042 | C44: =MAX(TREND(C24:C25,B24:B25,B44),0) -> 505546.4706 | D44: =MAX(TREND(D24:D25,B24:B25,B44),0) -> 165173.2353 | E44: =MAX(TREND(E24:E25,B24:B25,B44),0) -> 1.48 | F44: =MAX(TREND(F24:F25,B24:B25,B44),0) -> 1.48 | G44: =MAX(TREND(G24:G25,$B24:$B25,$B44),0) -> 4639386.176 | H44: =MAX(TREND(H24:H25,$B24:$B25,$B44),0) -> 5318608.235 | I44: =MIN(MAX(TREND(I24:I25,B24:B25,B44),0),1) -> 0.38 | J44: =MIN(MAX(TREND(J24:J25,B24:B25,B44),0),1) -> 0.38 | K44: =MAX(TREND(K24:K25,B24:B25,B44),0) -> 0 | L44: =MAX(TREND(L24:L25,B24:B25,B44),0) -> 0 | M44: =IFERROR(IF(INDEX(HwyTransitModelGroup,A18,1)=Hwy,C44*E44/G44,K44/G44),0) -> 0.1612732262 | N44: =IFERROR(IF(INDEX(HwyTransitModelGroup,A18,1)=Hwy,D44*F44/H44,L44/H44),0) -> 0.04596247315 | O44: =TREND(O24:O25,$B24:$B25,$B44) -> 4639386.176 | P44: =IF(INDEX(HwyTransitModelGroup,A18,1)=Hwy,G44*M44*(I44*ValTimeTruck+(1-I44)*ValTimeAuto)-O44*N44*(J44*ValTimeTruck+(1-J44)*ValTimeAuto),G44*IF(INDEX(NoTransit20,A18)=TRUE,INDEX(DivIndTrips,A18,4)/IF(INDEX(DivIndTrips,A18,3)=0,1,INDEX(DivIndTrips,A18,3)),M44)*ValTimeAuto-O44*N44*ValTimeAuto)*(1+TTUprater)^($B44-YearCurrent) -> 12409189.96 | Q44: 12409189.96 | R44: 2800917.543 | T44: =TREND(T24:T25,$B24:$B25,$B44) -> 534992.705 | V44: 2045 | W44: 2550088.874 | X44: 0 | Z44: =SUM($W44:Y44) -> 2550088.874 | AB44: 13840435.59 | AD44: =SUM($W88:Y88) -> 596689.8561
B45: 2043 | C45: =MAX(TREND(C24:C25,B24:B25,B45),0) -> 525041.7647 | D45: =MAX(TREND(D24:D25,B24:B25,B45),0) -> 171635.8824 | E45: =MAX(TREND(E24:E25,B24:B25,B45),0) -> 1.48 | F45: =MAX(TREND(F24:F25,B24:B25,B45),0) -> 1.48 | G45: =MAX(TREND(G24:G25,$B24:$B25,$B45),0) -> 4818246.912 | H45: =MAX(TREND(H24:H25,$B24:$B25,$B45),0) -> 5525090.882 | I45: =MIN(MAX(TREND(I24:I25,B24:B25,B45),0),1) -> 0.38 | J45: =MIN(MAX(TREND(J24:J25,B24:B25,B45),0),1) -> 0.38 | K45: =MAX(TREND(K24:K25,B24:B25,B45),0) -> 0 | L45: =MAX(TREND(L24:L25,B24:B25,B45),0) -> 0 | M45: =IFERROR(IF(INDEX(HwyTransitModelGroup,A18,1)=Hwy,C45*E45/G45,K45/G45),0) -> 0.161274801 | N45: =IFERROR(IF(INDEX(HwyTransitModelGroup,A18,1)=Hwy,D45*F45/H45,L45/H45),0) -> 0.04597591448 | O45: =TREND(O24:O25,$B24:$B25,$B45) -> 4818246.912 | P45: =IF(INDEX(HwyTransitModelGroup,A18,1)=Hwy,G45*M45*(I45*ValTimeTruck+(1-I45)*ValTimeAuto)-O45*N45*(J45*ValTimeTruck+(1-J45)*ValTimeAuto),G45*IF(INDEX(NoTransit20,A18)=TRUE,INDEX(DivIndTrips,A18,4)/IF(INDEX(DivIndTrips,A18,3)=0,1,INDEX(DivIndTrips,A18,3)),M45)*ValTimeAuto-O45*N45*ValTimeAuto)*(1+TTUprater)^($B45-YearCurrent) -> 12886271.13 | Q45: 12886271.13 | R45: 2718318.734 | T45: =TREND(T24:T25,$B24:$B25,$B45) -> 555558.4221 | V45: 2046 | W45: 2465412.195 | X45: 0 | Z45: =SUM($W45:Y45) -> 2465412.195 | AB45: 14317518.72 | AD45: =SUM($W89:Y89) -> 617255.5732
B46: 2044 | C46: =MAX(TREND(C24:C25,B24:B25,B46),0) -> 544537.0588 | D46: =MAX(TREND(D24:D25,B24:B25,B46),0) -> 178098.5294 | E46: =MAX(TREND(E24:E25,B24:B25,B46),0) -> 1.48 | F46: =MAX(TREND(F24:F25,B24:B25,B46),0) -> 1.48 | G46: =MAX(TREND(G24:G25,$B24:$B25,$B46),0) -> 4997107.647 | H46: =MAX(TREND(H24:H25,$B24:$B25,$B46),0) -> 5731573.529 | I46: =MIN(MAX(TREND(I24:I25,B24:B25,B46),0),1) -> 0.38 | J46: =MIN(MAX(TREND(J24:J25,B24:B25,B46),0),1) -> 0.38 | K46: =MAX(TREND(K24:K25,B24:B25,B46),0) -> 0 | L46: =MAX(TREND(L24:L25,B24:B25,B46),0) -> 0 | M46: =IFERROR(IF(INDEX(HwyTransitModelGroup,A18,1)=Hwy,C46*E46/G46,K46/G46),0) -> 0.161276263 | N46: =IFERROR(IF(INDEX(HwyTransitModelGroup,A18,1)=Hwy,D46*F46/H46,L46/H46),0) -> 0.04598838734 | O46: =TREND(O24:O25,$B24:$B25,$B46) -> 4997107.647 | P46: =IF(INDEX(HwyTransitModelGroup,A18,1)=Hwy,G46*M46*(I46*ValTimeTruck+(1-I46)*ValTimeAuto)-O46*N46*(J46*ValTimeTruck+(1-J46)*ValTimeAuto),G46*IF(INDEX(NoTransit20,A18)=TRUE,INDEX(DivIndTrips,A18,4)/IF(INDEX(DivIndTrips,A18,3)=0,1,INDEX(DivIndTrips,A18,3)),M46)*ValTimeAuto-O46*N46*ValTimeAuto)*(1+TTUprater)^($B46-YearCurrent) -> 13363353.04 | Q46: 13363353.04 | R46: 2634539.882 | T46: =TREND(T24:T25,$B24:$B25,$B46) -> 576124.1391 | V46: 2047 | W46: 2380900.796 | X46: 0 | Z46: =SUM($W46:Y46) -> 2380900.796 | AB46: 14794602.38 | AD46: =SUM($W90:Y90) -> 637821.2902
B47: 2045 | C47: =MAX(TREND(C24:C25,B24:B25,B47),0) -> 564032.3529 | D47: =MAX(TREND(D24:D25,B24:B25,B47),0) -> 184561.1765 | E47: =MAX(TREND(E24:E25,B24:B25,B47),0) -> 1.48 | F47: =MAX(TREND(F24:F25,B24:B25,B47),0) -> 1.48 | G47: =MAX(TREND(G24:G25,$B24:$B25,$B47),0) -> 5175968.382 | H47: =MAX(TREND(H24:H25,$B24:$B25,$B47),0) -> 5938056.176 | I47: =MIN(MAX(TREND(I24:I25,B24:B25,B47),0),1) -> 0.38 | J47: =MIN(MAX(TREND(J24:J25,B24:B25,B47),0),1) -> 0.38 | K47: =MAX(TREND(K24:K25,B24:B25,B47),0) -> 0 | L47: =MAX(TREND(L24:L25,B24:B25,B47),0) -> 0 | M47: =IFERROR(IF(INDEX(HwyTransitModelGroup,A18,1)=Hwy,C47*E47/G47,K47/G47),0) -> 0.161277624 | N47: =IFERROR(IF(INDEX(HwyTransitModelGroup,A18,1)=Hwy,D47*F47/H47,L47/H47),0) -> 0.04599999277 | O47: =TREND(O24:O25,$B24:$B25,$B47) -> 5175968.382 | P47: =IF(INDEX(HwyTransitModelGroup,A18,1)=Hwy,G47*M47*(I47*ValTimeTruck+(1-I47)*ValTimeAuto)-O47*N47*(J47*ValTimeTruck+(1-J47)*ValTimeAuto),G47*IF(INDEX(NoTransit20,A18)=TRUE,INDEX(DivIndTrips,A18,4)/IF(INDEX(DivIndTrips,A18,3)=0,1,INDEX(DivIndTrips,A18,3)),M47)*ValTimeAuto-O47*N47*ValTimeAuto)*(1+TTUprater)^($B47-YearCurrent) -> 13840435.59 | Q47: 13840435.59 | R47: 2550088.874 | T47: =TREND(T24:T25,$B24:$B25,$B47) -> 596689.8561 | V47: 2048 | W47: 2296895.441 | X47: 0 | Z47: =SUM($W47:Y47) -> 2296895.441 | AB47: 15271686.52 | AD47: =SUM($W91:Y91) -> 658387.0072
B48: 2046 | C48: =MAX(TREND(C24:C25,B24:B25,B48),0) -> 583527.6471 | D48: =MAX(TREND(D24:D25,B24:B25,B48),0) -> 191023.8235 | E48: =MAX(TREND(E24:E25,B24:B25,B48),0) -> 1.48 | F48: =MAX(TREND(F24:F25,B24:B25,B48),0) -> 1.48 | G48: =MAX(TREND(G24:G25,$B24:$B25,$B48),0) -> 5354829.118 | H48: =MAX(TREND(H24:H25,$B24:$B25,$B48),0) -> 6144538.824 | I48: =MIN(MAX(TREND(I24:I25,B24:B25,B48),0),1) -> 0.38 | J48: =MIN(MAX(TREND(J24:J25,B24:B25,B48),0),1) -> 0.38 | K48: =MAX(TREND(K24:K25,B24:B25,B48),0) -> 0 | L48: =MAX(TREND(L24:L25,B24:B25,B48),0) -> 0 | M48: =IFERROR(IF(INDEX(HwyTransitModelGroup,A18,1)=Hwy,C48*E48/G48,K48/G48),0) -> 0.161278894 | N48: =IFERROR(IF(INDEX(HwyTransitModelGroup,A18,1)=Hwy,D48*F48/H48,L48/H48),0) -> 0.04601081821 | O48: =TREND(O24:O25,$B24:$B25,$B48) -> 5354829.118 | P48: =IF(INDEX(HwyTransitModelGroup,A18,1)=Hwy,G48*M48*(I48*ValTimeTruck+(1-I48)*ValTimeAuto)-O48*N48*(J48*ValTimeTruck+(1-J48)*ValTimeAuto),G48*IF(INDEX(NoTransit20,A18)=TRUE,INDEX(DivIndTrips,A18,4)/IF(INDEX(DivIndTrips,A18,3)=0,1,INDEX(DivIndTrips,A18,3)),M48)*ValTimeAuto-O48*N48*ValTimeAuto)*(1+TTUprater)^($B48-YearCurrent) -> 14317518.72 | Q48: 14317518.72 | R48: 2465412.195 | T48: =TREND(T24:T25,$B24:$B25,$B48) -> 617255.5732 | V48: 2049 | W48: 2213691.604 | X48: 0 | Z48: =SUM($W48:Y48) -> 2213691.604 | AB48: 15748771.1 | AD48: =SUM($W92:Y92) -> 678952.7243
B49: 2047 | C49: =MAX(TREND(C24:C25,B24:B25,B49),0) -> 603022.9412 | D49: =MAX(TREND(D24:D25,B24:B25,B49),0) -> 197486.4706 | E49: =MAX(TREND(E24:E25,B24:B25,B49),0) -> 1.48 | F49: =MAX(TREND(F24:F25,B24:B25,B49),0) -> 1.48 | G49: =MAX(TREND(G24:G25,$B24:$B25,$B49),0) -> 5533689.853 | H49: =MAX(TREND(H24:H25,$B24:$B25,$B49),0) -> 6351021.471 | I49: =MIN(MAX(TREND(I24:I25,B24:B25,B49),0),1) -> 0.38 | J49: =MIN(MAX(TREND(J24:J25,B24:B25,B49),0),1) -> 0.38 | K49: =MAX(TREND(K24:K25,B24:B25,B49),0) -> 0 | L49: =MAX(TREND(L24:L25,B24:B25,B49),0) -> 0 | M49: =IFERROR(IF(INDEX(HwyTransitModelGroup,A18,1)=Hwy,C49*E49/G49,K49/G49),0) -> 0.1612800819 | N49: =IFERROR(IF(INDEX(HwyTransitModelGroup,A18,1)=Hwy,D49*F49/H49,L49/H49),0) -> 0.04602093975 | O49: =TREND(O24:O25,$B24:$B25,$B49) -> 5533689.853 | P49: =IF(INDEX(HwyTransitModelGroup,A18,1)=Hwy,G49*M49*(I49*ValTimeTruck+(1-I49)*ValTimeAuto)-O49*N49*(J49*ValTimeTruck+(1-J49)*ValTimeAuto),G49*IF(INDEX(NoTransit20,A18)=TRUE,INDEX(DivIndTrips,A18,4)/IF(INDEX(DivIndTrips,A18,3)=0,1,INDEX(DivIndTrips,A18,3)),M49)*ValTimeAuto-O49*N49*ValTimeAuto)*(1+TTUprater)^($B49-YearCurrent) -> 14794602.38 | Q49: 14794602.38 | R49: 2380900.796 | T49: =TREND(T24:T25,$B24:$B25,$B49) -> 637821.2902 | V49: 2050 | W49: 2131543.934 | X49: 0 | Z49: =SUM($W49:Y49) -> 2131543.934 | AB49: 16225856.06 | AD49: =SUM($W93:Y93) -> 699518.4413
B50: 2048 | C50: =MAX(TREND(C24:C25,B24:B25,B50),0) -> 622518.2353 | D50: =MAX(TREND(D24:D25,B24:B25,B50),0) -> 203949.1176 | E50: =MAX(TREND(E24:E25,B24:B25,B50),0) -> 1.48 | F50: =MAX(TREND(F24:F25,B24:B25,B50),0) -> 1.48 | G50: =MAX(TREND(G24:G25,$B24:$B25,$B50),0) -> 5712550.588 | H50: =MAX(TREND(H24:H25,$B24:$B25,$B50),0) -> 6557504.118 | I50: =MIN(MAX(TREND(I24:I25,B24:B25,B50),0),1) -> 0.38 | J50: =MIN(MAX(TREND(J24:J25,B24:B25,B50),0),1) -> 0.38 | K50: =MAX(TREND(K24:K25,B24:B25,B50),0) -> 0 | L50: =MAX(TREND(L24:L25,B24:B25,B50),0) -> 0 | M50: =IFERROR(IF(INDEX(HwyTransitModelGroup,A18,1)=Hwy,C50*E50/G50,K50/G50),0) -> 0.1612811955 | N50: =IFERROR(IF(INDEX(HwyTransitModelGroup,A18,1)=Hwy,D50*F50/H50,L50/H50),0) -> 0.04603042388 | O50: =TREND(O24:O25,$B24:$B25,$B50) -> 5712550.588 | P50: =IF(INDEX(HwyTransitModelGroup,A18,1)=Hwy,G50*M50*(I50*ValTimeTruck+(1-I50)*ValTimeAuto)-O50*N50*(J50*ValTimeTruck+(1-J50)*ValTimeAuto),G50*IF(INDEX(NoTransit20,A18)=TRUE,INDEX(DivIndTrips,A18,4)/IF(INDEX(DivIndTrips,A18,3)=0,1,INDEX(DivIndTrips,A18,3)),M50)*ValTimeAuto-O50*N50*ValTimeAuto)*(1+TTUprater)^($B50-YearCurrent) -> 15271686.52 | Q50: 15271686.52 | R50: 2296895.441 | T50: =TREND(T24:T25,$B24:$B25,$B50) -> 658387.0072 | V50: 2051 | W50: 2050670.335 | X50: 0 | Z50: =SUM($W50:Y50) -> 2050670.335 | AB50: 16702941.39 | AD50: =SUM($W94:Y94) -> 720084.1583
B51: 2049 | C51: =MAX(TREND(C24:C25,B24:B25,B51),0) -> 642013.5294 | D51: =MAX(TREND(D24:D25,B24:B25,B51),0) -> 210411.7647 | E51: =MAX(TREND(E24:E25,B24:B25,B51),0) -> 1.48 | F51: =MAX(TREND(F24:F25,B24:B25,B51),0) -> 1.48 | G51: =MAX(TREND(G24:G25,$B24:$B25,$B51),0) -> 5891411.324 | H51: =MAX(TREND(H24:H25,$B24:$B25,$B51),0) -> 6763986.765 | I51: =MIN(MAX(TREND(I24:I25,B24:B25,B51),0),1) -> 0.38 | J51: =MIN(MAX(TREND(J24:J25,B24:B25,B51),0),1) -> 0.38 | K51: =MAX(TREND(K24:K25,B24:B25,B51),0) -> 0 | L51: =MAX(TREND(L24:L25,B24:B25,B51),0) -> 0 | M51: =IFERROR(IF(INDEX(HwyTransitModelGroup,A18,1)=Hwy,C51*E51/G51,K51/G51),0) -> 0.1612822414 | N51: =IFERROR(IF(INDEX(HwyTransitModelGroup,A18,1)=Hwy,D51*F51/H51,L51/H51),0) -> 0.04603932896 | O51: =TREND(O24:O25,$B24:$B25,$B51) -> 5891411.324 | P51: =IF(INDEX(HwyTransitModelGroup,A18,1)=Hwy,G51*M51*(I51*ValTimeTruck+(1-I51)*ValTimeAuto)-O51*N51*(J51*ValTimeTruck+(1-J51)*ValTimeAuto),G51*IF(INDEX(NoTransit20,A18)=TRUE,INDEX(DivIndTrips,A18,4)/IF(INDEX(DivIndTrips,A18,3)=0,1,INDEX(DivIndTrips,A18,3)),M51)*ValTimeAuto-O51*N51*ValTimeAuto)*(1+TTUprater)^($B51-YearCurrent) -> 15748771.1 | Q51: 15748771.1 | R51: 2213691.604 | T51: =TREND(T24:T25,$B24:$B25,$B51) -> 678952.7243 | V51: 2052 | W51: 1971255.678 | X51: 0 | Z51: =SUM($W51:Y51) -> 1971255.678 | AB51: 17180027.05 | AD51: =SUM($W95:Y95) -> 740649.8753
B52: 2050 | C52: =MAX(TREND(C24:C25,B24:B25,B52),0) -> 661508.8235 | D52: =MAX(TREND(D24:D25,B24:B25,B52),0) -> 216874.4118 | E52: =MAX(TREND(E24:E25,B24:B25,B52),0) -> 1.48 | F52: =MAX(TREND(F24:F25,B24:B25,B52),0) -> 1.48 | G52: =MAX(TREND(G24:G25,$B24:$B25,$B52),0) -> 6070272.059 | H52: =MAX(TREND(H24:H25,$B24:$B25,$B52),0) -> 6970469.412 | I52: =MIN(MAX(TREND(I24:I25,B24:B25,B52),0),1) -> 0.38 | J52: =MIN(MAX(TREND(J24:J25,B24:B25,B52),0),1) -> 0.38 | K52: =MAX(TREND(K24:K25,B24:B25,B52),0) -> 0 | L52: =MAX(TREND(L24:L25,B24:B25,B52),0) -> 0 | M52: =IFERROR(IF(INDEX(HwyTransitModelGroup,A18,1)=Hwy,C52*E52/G52,K52/G52),0) -> 0.1612832257 | N52: =IFERROR(IF(INDEX(HwyTransitModelGroup,A18,1)=Hwy,D52*F52/H52,L52/H52),0) -> 0.04604770647 | O52: =TREND(O24:O25,$B24:$B25,$B52) -> 6070272.059 | P52: =IF(INDEX(HwyTransitModelGroup,A18,1)=Hwy,G52*M52*(I52*ValTimeTruck+(1-I52)*ValTimeAuto)-O52*N52*(J52*ValTimeTruck+(1-J52)*ValTimeAuto),G52*IF(INDEX(NoTransit20,A18)=TRUE,INDEX(DivIndTrips,A18,4)/IF(INDEX(DivIndTrips,A18,3)=0,1,INDEX(DivIndTrips,A18,3)),M52)*ValTimeAuto-O52*N52*ValTimeAuto)*(1+TTUprater)^($B52-YearCurrent) -> 16225856.06 | Q52: 16225856.06 | R52: 2131543.934 | T52: =TREND(T24:T25,$B24:$B25,$B52) -> 699518.4413 | V52: 2053 | W52: 1893455.196 | X52: 0 | Z52: =SUM($W52:Y52) -> 1893455.196 | AB52: 17657113.01 | AD52: =SUM($W96:Y96) -> 761215.5924
B53: 2051 | C53: =MAX(TREND(C24:C25,B24:B25,B53),0) -> 681004.1176 | D53: =MAX(TREND(D24:D25,B24:B25,B53),0) -> 223337.0588 | E53: =MAX(TREND(E24:E25,B24:B25,B53),0) -> 1.48 | F53: =MAX(TREND(F24:F25,B24:B25,B53),0) -> 1.48 | G53: =MAX(TREND(G24:G25,$B24:$B25,$B53),0) -> 6249132.794 | H53: =MAX(TREND(H24:H25,$B24:$B25,$B53),0) -> 7176952.059 | I53: =MIN(MAX(TREND(I24:I25,B24:B25,B53),0),1) -> 0.38 | J53: =MIN(MAX(TREND(J24:J25,B24:B25,B53),0),1) -> 0.38 | K53: =MAX(TREND(K24:K25,B24:B25,B53),0) -> 0 | L53: =MAX(TREND(L24:L25,B24:B25,B53),0) -> 0 | M53: =IFERROR(IF(INDEX(HwyTransitModelGroup,A18,1)=Hwy,C53*E53/G53,K53/G53),0) -> 0.1612841537 | N53: =IFERROR(IF(INDEX(HwyTransitModelGroup,A18,1)=Hwy,D53*F53/H53,L53/H53),0) -> 0.04605560193 | O53: =TREND(O24:O25,$B24:$B25,$B53) -> 6249132.794 | P53: =IF(INDEX(HwyTransitModelGroup,A18,1)=Hwy,G53*M53*(I53*ValTimeTruck+(1-I53)*ValTimeAuto)-O53*N53*(J53*ValTimeTruck+(1-J53)*ValTimeAuto),G53*IF(INDEX(NoTransit20,A18)=TRUE,INDEX(DivIndTrips,A18,4)/IF(INDEX(DivIndTrips,A18,3)=0,1,INDEX(DivIndTrips,A18,3)),M53)*ValTimeAuto-O53*N53*ValTimeAuto)*(1+TTUprater)^($B53-YearCurrent) -> 16702941.39 | Q53: 16702941.39 | R53: 2050670.335 | T53: =TREND(T24:T25,$B24:$B25,$B53) -> 720084.1583 | V53: 2054 | W53: 1817397.566 | X53: 0 | Z53: =SUM($W53:Y53) -> 1817397.566 | AB53: 18134199.25 | AD53: =SUM($W97:Y97) -> 781781.3094
B54: 2052 | C54: =MAX(TREND(C24:C25,B24:B25,B54),0) -> 700499.4118 | D54: =MAX(TREND(D24:D25,B24:B25,B54),0) -> 229799.7059 | E54: =MAX(TREND(E24:E25,B24:B25,B54),0) -> 1.48 | F54: =MAX(TREND(F24:F25,B24:B25,B54),0) -> 1.48 | G54: =MAX(TREND(G24:G25,$B24:$B25,$B54),0) -> 6427993.529 | H54: =MAX(TREND(H24:H25,$B24:$B25,$B54),0) -> 7383434.706 | I54: =MIN(MAX(TREND(I24:I25,B24:B25,B54),0),1) -> 0.38 | J54: =MIN(MAX(TREND(J24:J25,B24:B25,B54),0),1) -> 0.38 | K54: =MAX(TREND(K24:K25,B24:B25,B54),0) -> 0 | L54: =MAX(TREND(L24:L25,B24:B25,B54),0) -> 0 | M54: =IFERROR(IF(INDEX(HwyTransitModelGroup,A18,1)=Hwy,C54*E54/G54,K54/G54),0) -> 0.16128503 | N54: =IFERROR(IF(INDEX(HwyTransitModelGroup,A18,1)=Hwy,D54*F54/H54,L54/H54),0) -> 0.04606305578 | O54: =TREND(O24:O25,$B24:$B25,$B54) -> 6427993.529 | P54: =IF(INDEX(HwyTransitModelGroup,A18,1)=Hwy,G54*M54*(I54*ValTimeTruck+(1-I54)*ValTimeAuto)-O54*N54*(J54*ValTimeTruck+(1-J54)*ValTimeAuto),G54*IF(INDEX(NoTransit20,A18)=TRUE,INDEX(DivIndTrips,A18,4)/IF(INDEX(DivIndTrips,A18,3)=0,1,INDEX(DivIndTrips,A18,3)),M54)*ValTimeAuto-O54*N54*ValTimeAuto)*(1+TTUprater)^($B54-YearCurrent) -> 17180027.05 | Q54: 17180027.05 | R54: 1971255.678 | T54: =TREND(T24:T25,$B24:$B25,$B54) -> 740649.8753
B55: 2053 | C55: =MAX(TREND(C24:C25,B24:B25,B55),0) -> 719994.7059 | D55: =MAX(TREND(D24:D25,B24:B25,B55),0) -> 236262.3529 | E55: =MAX(TREND(E24:E25,B24:B25,B55),0) -> 1.48 | F55: =MAX(TREND(F24:F25,B24:B25,B55),0) -> 1.48 | G55: =MAX(TREND(G24:G25,$B24:$B25,$B55),0) -> 6606854.265 | H55: =MAX(TREND(H24:H25,$B24:$B25,$B55),0) -> 7589917.353 | I55: =MIN(MAX(TREND(I24:I25,B24:B25,B55),0),1) -> 0.38 | J55: =MIN(MAX(TREND(J24:J25,B24:B25,B55),0),1) -> 0.38 | K55: =MAX(TREND(K24:K25,B24:B25,B55),0) -> 0 | L55: =MAX(TREND(L24:L25,B24:B25,B55),0) -> 0 | M55: =IFERROR(IF(INDEX(HwyTransitModelGroup,A18,1)=Hwy,C55*E55/G55,K55/G55),0) -> 0.1612858589 | N55: =IFERROR(IF(INDEX(HwyTransitModelGroup,A18,1)=Hwy,D55*F55/H55,L55/H55),0) -> 0.04607010407 | O55: =TREND(O24:O25,$B24:$B25,$B55) -> 6606854.265 | P55: =IF(INDEX(HwyTransitModelGroup,A18,1)=Hwy,G55*M55*(I55*ValTimeTruck+(1-I55)*ValTimeAuto)-O55*N55*(J55*ValTimeTruck+(1-J55)*ValTimeAuto),G55*IF(INDEX(NoTransit20,A18)=TRUE,INDEX(DivIndTrips,A18,4)/IF(INDEX(DivIndTrips,A18,3)=0,1,INDEX(DivIndTrips,A18,3)),M55)*ValTimeAuto-O55*N55*ValTimeAuto)*(1+TTUprater)^($B55-YearCurrent) -> 17657113.01 | Q55: 17657113.01 | R55: 1893455.196 | T55: =TREND(T24:T25,$B24:$B25,$B55) -> 761215.5924 | V55: Total | W55: =SUM(W24:W53) -> 84726204.97 | X55: =SUM(X24:X53) -> 0 | Z55: =SUM(Z24:Z53) -> 84726204.97 | AB55: =SUM(AB24:AB53) -> 336496406.9 | AD55: =SUM(W99:Y99) -> 14507352.37
B56: 2054 | C56: =MAX(TREND(C24:C25,B24:B25,B56),0) -> 739490 | D56: =MAX(TREND(D24:D25,B24:B25,B56),0) -> 242725 | E56: =MAX(TREND(E24:E25,B24:B25,B56),0) -> 1.48 | F56: =MAX(TREND(F24:F25,B24:B25,B56),0) -> 1.48 | G56: =MAX(TREND(G24:G25,$B24:$B25,$B56),0) -> 6785715 | H56: =MAX(TREND(H24:H25,$B24:$B25,$B56),0) -> 7796400 | I56: =MIN(MAX(TREND(I24:I25,B24:B25,B56),0),1) -> 0.38 | J56: =MIN(MAX(TREND(J24:J25,B24:B25,B56),0),1) -> 0.38 | K56: =MAX(TREND(K24:K25,B24:B25,B56),0) -> 0 | L56: =MAX(TREND(L24:L25,B24:B25,B56),0) -> 0 | M56: =IFERROR(IF(INDEX(HwyTransitModelGroup,A18,1)=Hwy,C56*E56/G56,K56/G56),0) -> 0.1612866441 | N56: =IFERROR(IF(INDEX(HwyTransitModelGroup,A18,1)=Hwy,D56*F56/H56,L56/H56),0) -> 0.04607677903 | O56: =TREND(O24:O25,$B24:$B25,$B56) -> 6785715 | P56: =IF(INDEX(HwyTransitModelGroup,A18,1)=Hwy,G56*M56*(I56*ValTimeTruck+(1-I56)*ValTimeAuto)-O56*N56*(J56*ValTimeTruck+(1-J56)*ValTimeAuto),G56*IF(INDEX(NoTransit20,A18)=TRUE,INDEX(DivIndTrips,A18,4)/IF(INDEX(DivIndTrips,A18,3)=0,1,INDEX(DivIndTrips,A18,3)),M56)*ValTimeAuto-O56*N56*ValTimeAuto)*(1+TTUprater)^($B56-YearCurrent) -> 18134199.25 | Q56: 18134199.25 | R56: 1817397.566 | T56: =TREND(T24:T25,$B24:$B25,$B56) -> 781781.3094
V57: =IF(Induced="Y","","* Induced Travel Not Counted") -> 
B58: Total | R58: =SUM(R27:R56) -> 84726204.97 | T58: =SUM(T27:T56) -> 14507352.37
V59: SUMMARY OF PERSON-HOURS SAVED
A60: =MAX($A$1:A59)+1 -> 2 | B60: =IF(ISBLANK(INDEX(ModelGroup,A60,1)),"Not Used",INDEX(ModelGroup,A60,1)) -> Dummy
C62: TOTAL VHT | E62: AVERAGE VEH OCC | G62: =IF(INDEX(HwyTransitModelGroup,A60,1)=Hwy,"TOTAL VEHICLE TRIPS","TOTAL PERSON TRIPS") -> TOTAL VEHICLE TRIPS | I62: PERCENT TRUCKS | K62: TOTAL PHT | M62: AVERAGE TRAVEL TIME | O62: =IF(INDEX(HwyTransitModelGroup,A60,1)=Hwy,"TOTAL VEHICLE TRIPS","TOTAL PERSON TRIPS") -> TOTAL VEHICLE TRIPS | P62: TIME BENEFIT | T62: Total Per-Hrs of Time Saved
C63: (veh-hours/yr) | E63: (persons/vehicle) | G63: (trips/yr) | I63: (%) | K63: (per-hours/yr) | M63: (hours/trip) | O63: (trips/yr) | P63: ($/yr) | T63: (per-hours/yr)
B64: Year | O64: Adjusted (no induced) | P64: Existing | Q64: Constant | R64: Present | T64: Existing | W64: 1 | X64: 2
C65: No Build | D65: Build | E65: No Build | F65: Build | G65: No Build | H65: Build | I65: No Build | J65: Build | K65: No Build | L65: Build | M65: No Build | N65: Build | O65: Build | P65: Users | Q65: Dollars | R65: Value | T65: Users | W65: =IF(ISBLANK(INDEX(ModelGroup,W64,1)),"Not Used",INDEX(ModelGroup,W64,1)) -> Avion/Jurupa | X65: =IF(ISBLANK(INDEX(ModelGroup,X64,1)),"Not Used",INDEX(ModelGroup,X64,1)) -> Dummy
B66: =YearFirst -> 2020 | C66: =IF(INDEX(HwyTransitModelGroup,A60,1)=Hwy,INDEX(ModelData1NB,A60,3),0)*AnnualFactor -> 0 | D66: =IF(INDEX(HwyTransitModelGroup,A60,1)=Hwy,INDEX(ModelData1B,A60,3),0)*AnnualFactor -> 0 | E66: =IF(INDEX(HwyTransitModelGroup,A60,1)=Hwy,INDEX(ModelData1NB,A60,8),0) -> 0 | F66: =IF(INDEX(HwyTransitModelGroup,A60,1)=Hwy,INDEX(ModelData1B,A60,8),0) -> 0 | G66: =IF(AND(INDEX(HwyTransitModelGroup,A60,1)=Hwy,INDEX(ModelData1NB,A60,1)=0),1,INDEX(ModelData1NB,A60,1)*AnnualFactor) -> 1 | H66: =IF(AND(INDEX(HwyTransitModelGroup,A60,1)=Hwy,INDEX(ModelData1B,A60,1)=0),1,INDEX(ModelData1B,A60,1)*AnnualFactor) -> 1 | I66: =IF(INDEX(HwyTransitModelGroup,A60,1)=Hwy,INDEX(ModelData1NB,A60,9),0) -> 0 | J66: =IF(INDEX(HwyTransitModelGroup,A60,1)=Hwy,INDEX(ModelData1B,A60,9),0) -> 0 | K66: =IF(INDEX(HwyTransitModelGroup,A60,1)=Hwy,0,INDEX(ModelData1NB,A60,5))*AnnualFactor -> 0 | L66: =IF(INDEX(HwyTransitModelGroup,A60,1)=Hwy,0,INDEX(ModelData1B,A60,5))*AnnualFactor -> 0 | M66: =IFERROR(IF(INDEX(HwyTransitModelGroup,A60,1)=Hwy,C66*E66/G66,K66/G66),0) -> 0 | N66: =IFERROR(IF(INDEX(HwyTransitModelGroup,A60,1)=Hwy,D66*F66/H66,L66/H66),0) -> 0 | O66: =$H66-INDEX(ModeShare1,A60)*SUMIF('Consumer Surplus'!$C$197:$C$200,INDEX(HwyTransitModelGroup,A60,1),'Consumer Surplus'!$G$197:$G$200) -> 1 | P66: =IF(INDEX(HwyTransitModelGroup,A60,1)=Hwy,G66*M66*(I66*ValTimeTruck+(1-I66)*ValTimeAuto)-O66*N66*(J66*ValTimeTruck+(1-J66)*ValTimeAuto),G66*IF(INDEX(NoTransit1,A60)=TRUE,INDEX(DivIndTrips,A60,2)/IF(INDEX(DivIndTrips,A60,1)=0,1,INDEX(DivIndTrips,A60,1)),M66)*ValTimeAuto-O66*N66*ValTimeAuto)*(1+TTUprater)^($B66-YearCurrent) -> 0 | Q66: =SUM(P66) -> 0 | R66: =Q66/(1+DiscRate)^(B66-YearCurrent) -> 0 | T66: =IF(INDEX(HwyTransitModelGroup,A60,1)=Hwy,G66*M66-O66*N66,G66*IF(INDEX(NoTransit1,A60)=TRUE,INDEX(DivIndTrips,A60,2)/IF(INDEX(DivIndTrips,A60,1)=0,1,INDEX(DivIndTrips,A60,1)),M66)-O66*N66) -> 0 | V66: Year
B67: =YearLast -> 2054 | C67: =IF(INDEX(HwyTransitModelGroup,A60,1)=Hwy,INDEX(ModelData20NB,A60,3),0)*AnnualFactor -> 0 | D67: =IF(INDEX(HwyTransitModelGroup,A60,1)=Hwy,INDEX(ModelData20B,A60,3),0)*AnnualFactor -> 0 | E67: =IF(INDEX(HwyTransitModelGroup,A60,1)=Hwy,INDEX(ModelData20NB,A60,8),0) -> 0 | F67: =IF(INDEX(HwyTransitModelGroup,A60,1)=Hwy,INDEX(ModelData20B,A60,8),0) -> 0 | G67: =IF(AND(INDEX(HwyTransitModelGroup,A60,1)=Hwy,INDEX(ModelData20NB,A60,1)=0),1,INDEX(ModelData20NB,A60,1)*AnnualFactor) -> 1 | H67: =IF(AND(INDEX(HwyTransitModelGroup,A60,1)=Hwy,INDEX(ModelData20B,A60,1)=0),1,INDEX(ModelData20B,A60,1)*AnnualFactor) -> 1 | I67: =IF(INDEX(HwyTransitModelGroup,A60,1)=Hwy,INDEX(ModelData20NB,A60,9),0) -> 0 | J67: =IF(INDEX(HwyTransitModelGroup,A60,1)=Hwy,INDEX(ModelData20B,A60,9),0) -> 0 | K67: =IF(INDEX(HwyTransitModelGroup,A60,1)=Hwy,0,INDEX(ModelData20NB,A60,5))*AnnualFactor -> 0 | L67: =IF(INDEX(HwyTransitModelGroup,A60,1)=Hwy,0,INDEX(ModelData20B,A60,5))*AnnualFactor -> 0 | M67: =IFERROR(IF(INDEX(HwyTransitModelGroup,A60,1)=Hwy,C67*E67/G67,K67/G67),0) -> 0 | N67: =IFERROR(IF(INDEX(HwyTransitModelGroup,A60,1)=Hwy,D67*F67/H67,L67/H67),0) -> 0 | O67: =$H67-INDEX(ModeShare20,A60)*SUMIF('Consumer Surplus'!$C$197:$C$200,INDEX(HwyTransitModelGroup,A60,1),'Consumer Surplus'!$K$197:$K$200) -> 1 | P67: =IF(INDEX(HwyTransitModelGroup,A60,1)=Hwy,G67*M67*(I67*ValTimeTruck+(1-I67)*ValTimeAuto)-O67*N67*(J67*ValTimeTruck+(1-J67)*ValTimeAuto),G67*IF(INDEX(NoTransit20,A60)=TRUE,INDEX(DivIndTrips,A60,4)/IF(INDEX(DivIndTrips,A60,3)=0,1,INDEX(DivIndTrips,A60,3)),M67)*ValTimeAuto-O67*N67*ValTimeAuto)*(1+TTUprater)^($B67-YearCurrent) -> 0 | Q67: =SUM(P67) -> 0 | R67: =Q67/(1+DiscRate)^(B67-YearCurrent) -> 0 | T67: =IF(INDEX(HwyTransitModelGroup,A60,1)=Hwy,G67*M67-O67*N67,G67*IF(INDEX(NoTransit1,A60)=TRUE,INDEX(DivIndTrips,A60,2)/IF(INDEX(DivIndTrips,A60,1)=0,1,INDEX(DivIndTrips,A60,1)),M67)-O67*N67) -> 0
V68: =YearOpen -> 2025 | W68: =OFFSET($T9,MATCH(W$64,$A:$A),0) -> 185375.5155 | X68: 0
B69: =YearOpen -> 2025 | C69: =MAX(TREND(C66:C67,B66:B67,B69),0) -> 0 | D69: =MAX(TREND(D66:D67,B66:B67,B69),0) -> 0 | E69: =MAX(TREND(E66:E67,B66:B67,B69),0) -> 0 | F69: =MAX(TREND(F66:F67,B66:B67,B69),0) -> 0 | G69: =MAX(TREND(G66:G67,$B66:$B67,$B69),0) -> 1 | H69: =MAX(TREND(H66:H67,$B66:$B67,$B69),0) -> 1 | I69: =MIN(MAX(TREND(I66:I67,B66:B67,B69),0),1) -> 0 | J69: =MIN(MAX(TREND(J66:J67,B66:B67,B69),0),1) -> 0 | K69: =MAX(TREND(K66:K67,B66:B67,B69),0) -> 0 | L69: =MAX(TREND(L66:L67,B66:B67,B69),0) -> 0 | M69: =IFERROR(IF(INDEX(HwyTransitModelGroup,A60,1)=Hwy,C69*E69/G69,K69/G69),0) -> 0 | N69: =IFERROR(IF(INDEX(HwyTransitModelGroup,A60,1)=Hwy,D69*F69/H69,L69/H69),0) -> 0 | O69: =TREND(O66:O67,$B66:$B67,$B69) -> 1 | P69: =IF(INDEX(HwyTransitModelGroup,A60,1)=Hwy,G69*M69*(I69*ValTimeTruck+(1-I69)*ValTimeAuto)-O69*N69*(J69*ValTimeTruck+(1-J69)*ValTimeAuto),G69*IF(INDEX(NoTransit20,A60)=TRUE,INDEX(DivIndTrips,A60,4)/IF(INDEX(DivIndTrips,A60,3)=0,1,INDEX(DivIndTrips,A60,3)),M69)*ValTimeAuto-O69*N69*ValTimeAuto)*(1+TTUprater)^($B69-YearCurrent) -> 0 | Q69: =SUM(P69) -> 0 | R69: =Q69/(1+DiscRate)^(B69-YearCurrent) -> 0 | T69: =TREND(T66:T67,$B66:$B67,$B69) -> 0 | V69: =V68+1 -> 2026 | W69: 205941.2326 | X69: 0
B70: =B69+1 -> 2026 | C70: =MAX(TREND(C66:C67,B66:B67,B70),0) -> 0 | D70: =MAX(TREND(D66:D67,B66:B67,B70),0) -> 0 | E70: =MAX(TREND(E66:E67,B66:B67,B70),0) -> 0 | F70: =MAX(TREND(F66:F67,B66:B67,B70),0) -> 0 | G70: =MAX(TREND(G66:G67,$B66:$B67,$B70),0) -> 1 | H70: =MAX(TREND(H66:H67,$B66:$B67,$B70),0) -> 1 | I70: =MIN(MAX(TREND(I66:I67,B66:B67,B70),0),1) -> 0 | J70: =MIN(MAX(TREND(J66:J67,B66:B67,B70),0),1) -> 0 | K70: =MAX(TREND(K66:K67,B66:B67,B70),0) -> 0 | L70: =MAX(TREND(L66:L67,B66:B67,B70),0) -> 0 | M70: =IFERROR(IF(INDEX(HwyTransitModelGroup,A60,1)=Hwy,C70*E70/G70,K70/G70),0) -> 0 | N70: =IFERROR(IF(INDEX(HwyTransitModelGroup,A60,1)=Hwy,D70*F70/H70,L70/H70),0) -> 0 | O70: =TREND(O66:O67,$B66:$B67,$B70) -> 1 | P70: =IF(INDEX(HwyTransitModelGroup,A60,1)=Hwy,G70*M70*(I70*ValTimeTruck+(1-I70)*ValTimeAuto)-O70*N70*(J70*ValTimeTruck+(1-J70)*ValTimeAuto),G70*IF(INDEX(NoTransit20,A60)=TRUE,INDEX(DivIndTrips,A60,4)/IF(INDEX(DivIndTrips,A60,3)=0,1,INDEX(DivIndTrips,A60,3)),M70)*ValTimeAuto-O70*N70*ValTimeAuto)*(1+TTUprater)^($B70-YearCurrent) -> 0 | Q70: 0 | R70: 0 | T70: =TREND(T66:T67,$B66:$B67,$B70) -> 0 | V70: =V69+1 -> 2027 | W70: 226506.9496 | X70: 0
B71: =B70+1 -> 2027 | C71: =MAX(TREND(C66:C67,B66:B67,B71),0) -> 0 | D71: =MAX(TREND(D66:D67,B66:B67,B71),0) -> 0 | E71: =MAX(TREND(E66:E67,B66:B67,B71),0) -> 0 | F71: =MAX(TREND(F66:F67,B66:B67,B71),0) -> 0 | G71: =MAX(TREND(G66:G67,$B66:$B67,$B71),0) -> 1 | H71: =MAX(TREND(H66:H67,$B66:$B67,$B71),0) -> 1 | I71: =MIN(MAX(TREND(I66:I67,B66:B67,B71),0),1) -> 0 | J71: =MIN(MAX(TREND(J66:J67,B66:B67,B71),0),1) -> 0 | K71: =MAX(TREND(K66:K67,B66:B67,B71),0) -> 0 | L71: =MAX(TREND(L66:L67,B66:B67,B71),0) -> 0 | M71: =IFERROR(IF(INDEX(HwyTransitModelGroup,A60,1)=Hwy,C71*E71/G71,K71/G71),0) -> 0 | N71: =IFERROR(IF(INDEX(HwyTransitModelGroup,A60,1)=Hwy,D71*F71/H71,L71/H71),0) -> 0 | O71: =TREND(O66:O67,$B66:$B67,$B71) -> 1 | P71: =IF(INDEX(HwyTransitModelGroup,A60,1)=Hwy,G71*M71*(I71*ValTimeTruck+(1-I71)*ValTimeAuto)-O71*N71*(J71*ValTimeTruck+(1-J71)*ValTimeAuto),G71*IF(INDEX(NoTransit20,A60)=TRUE,INDEX(DivIndTrips,A60,4)/IF(INDEX(DivIndTrips,A60,3)=0,1,INDEX(DivIndTrips,A60,3)),M71)*ValTimeAuto-O71*N71*ValTimeAuto)*(1+TTUprater)^($B71-YearCurrent) -> 0 | Q71: 0 | R71: 0 | T71: =TREND(T66:T67,$B66:$B67,$B71) -> 0 | V71: 2028 | W71: 247072.6666 | X71: 0
B72: 2028 | C72: =MAX(TREND(C66:C67,B66:B67,B72),0) -> 0 | D72: =MAX(TREND(D66:D67,B66:B67,B72),0) -> 0 | E72: =MAX(TREND(E66:E67,B66:B67,B72),0) -> 0 | F72: =MAX(TREND(F66:F67,B66:B67,B72),0) -> 0 | G72: =MAX(TREND(G66:G67,$B66:$B67,$B72),0) -> 1 | H72: =MAX(TREND(H66:H67,$B66:$B67,$B72),0) -> 1 | I72: =MIN(MAX(TREND(I66:I67,B66:B67,B72),0),1) -> 0 | J72: =MIN(MAX(TREND(J66:J67,B66:B67,B72),0),1) -> 0 | K72: =MAX(TREND(K66:K67,B66:B67,B72),0) -> 0 | L72: =MAX(TREND(L66:L67,B66:B67,B72),0) -> 0 | M72: =IFERROR(IF(INDEX(HwyTransitModelGroup,A60,1)=Hwy,C72*E72/G72,K72/G72),0) -> 0 | N72: =IFERROR(IF(INDEX(HwyTransitModelGroup,A60,1)=Hwy,D72*F72/H72,L72/H72),0) -> 0 | O72: =TREND(O66:O67,$B66:$B67,$B72) -> 1 | P72: =IF(INDEX(HwyTransitModelGroup,A60,1)=Hwy,G72*M72*(I72*ValTimeTruck+(1-I72)*ValTimeAuto)-O72*N72*(J72*ValTimeTruck+(1-J72)*ValTimeAuto),G72*IF(INDEX(NoTransit20,A60)=TRUE,INDEX(DivIndTrips,A60,4)/IF(INDEX(DivIndTrips,A60,3)=0,1,INDEX(DivIndTrips,A60,3)),M72)*ValTimeAuto-O72*N72*ValTimeAuto)*(1+TTUprater)^($B72-YearCurrent) -> 0 | Q72: 0 | R72: 0 | T72: =TREND(T66:T67,$B66:$B67,$B72) -> 0 | V72: 2029 | W72: 267638.3837 | X72: 0
B73: 2029 | C73: =MAX(TREND(C66:C67,B66:B67,B73),0) -> 0 | D73: =MAX(TREND(D66:D67,B66:B67,B73),0) -> 0 | E73: =MAX(TREND(E66:E67,B66:B67,B73),0) -> 0 | F73: =MAX(TREND(F66:F67,B66:B67,B73),0) -> 0 | G73: =MAX(TREND(G66:G67,$B66:$B67,$B73),0) -> 1 | H73: =MAX(TREND(H66:H67,$B66:$B67,$B73),0) -> 1 | I73: =MIN(MAX(TREND(I66:I67,B66:B67,B73),0),1) -> 0 | J73: =MIN(MAX(TREND(J66:J67,B66:B67,B73),0),1) -> 0 | K73: =MAX(TREND(K66:K67,B66:B67,B73),0) -> 0 | L73: =MAX(TREND(L66:L67,B66:B67,B73),0) -> 0 | M73: =IFERROR(IF(INDEX(HwyTransitModelGroup,A60,1)=Hwy,C73*E73/G73,K73/G73),0) -> 0 | N73: =IFERROR(IF(INDEX(HwyTransitModelGroup,A60,1)=Hwy,D73*F73/H73,L73/H73),0) -> 0 | O73: =TREND(O66:O67,$B66:$B67,$B73) -> 1 | P73: =IF(INDEX(HwyTransitModelGroup,A60,1)=Hwy,G73*M73*(I73*ValTimeTruck+(1-I73)*ValTimeAuto)-O73*N73*(J73*ValTimeTruck+(1-J73)*ValTimeAuto),G73*IF(INDEX(NoTransit20,A60)=TRUE,INDEX(DivIndTrips,A60,4)/IF(INDEX(DivIndTrips,A60,3)=0,1,INDEX(DivIndTrips,A60,3)),M73)*ValTimeAuto-O73*N73*ValTimeAuto)*(1+TTUprater)^($B73-YearCurrent) -> 0 | Q73: 0 | R73: 0 | T73: =TREND(T66:T67,$B66:$B67,$B73) -> 0 | V73: 2030 | W73: 288204.1007 | X73: 0
B74: 2030 | C74: =MAX(TREND(C66:C67,B66:B67,B74),0) -> 0 | D74: =MAX(TREND(D66:D67,B66:B67,B74),0) -> 0 | E74: =MAX(TREND(E66:E67,B66:B67,B74),0) -> 0 | F74: =MAX(TREND(F66:F67,B66:B67,B74),0) -> 0 | G74: =MAX(TREND(G66:G67,$B66:$B67,$B74),0) -> 1 | H74: =MAX(TREND(H66:H67,$B66:$B67,$B74),0) -> 1 | I74: =MIN(MAX(TREND(I66:I67,B66:B67,B74),0),1) -> 0 | J74: =MIN(MAX(TREND(J66:J67,B66:B67,B74),0),1) -> 0 | K74: =MAX(TREND(K66:K67,B66:B67,B74),0) -> 0 | L74: =MAX(TREND(L66:L67,B66:B67,B74),0) -> 0 | M74: =IFERROR(IF(INDEX(HwyTransitModelGroup,A60,1)=Hwy,C74*E74/G74,K74/G74),0) -> 0 | N74: =IFERROR(IF(INDEX(HwyTransitModelGroup,A60,1)=Hwy,D74*F74/H74,L74/H74),0) -> 0 | O74: =TREND(O66:O67,$B66:$B67,$B74) -> 1 | P74: =IF(INDEX(HwyTransitModelGroup,A60,1)=Hwy,G74*M74*(I74*ValTimeTruck+(1-I74)*ValTimeAuto)-O74*N74*(J74*ValTimeTruck+(1-J74)*ValTimeAuto),G74*IF(INDEX(NoTransit20,A60)=TRUE,INDEX(DivIndTrips,A60,4)/IF(INDEX(DivIndTrips,A60,3)=0,1,INDEX(DivIndTrips,A60,3)),M74)*ValTimeAuto-O74*N74*ValTimeAuto)*(1+TTUprater)^($B74-YearCurrent) -> 0 | Q74: 0 | R74: 0 | T74: =TREND(T66:T67,$B66:$B67,$B74) -> 0 | V74: 2031 | W74: 308769.8177 | X74: 0
B75: 2031 | C75: =MAX(TREND(C66:C67,B66:B67,B75),0) -> 0 | D75: =MAX(TREND(D66:D67,B66:B67,B75),0) -> 0 | E75: =MAX(TREND(E66:E67,B66:B67,B75),0) -> 0 | F75: =MAX(TREND(F66:F67,B66:B67,B75),0) -> 0 | G75: =MAX(TREND(G66:G67,$B66:$B67,$B75),0) -> 1 | H75: =MAX(TREND(H66:H67,$B66:$B67,$B75),0) -> 1 | I75: =MIN(MAX(TREND(I66:I67,B66:B67,B75),0),1) -> 0 | J75: =MIN(MAX(TREND(J66:J67,B66:B67,B75),0),1) -> 0 | K75: =MAX(TREND(K66:K67,B66:B67,B75),0) -> 0 | L75: =MAX(TREND(L66:L67,B66:B67,B75),0) -> 0 | M75: =IFERROR(IF(INDEX(HwyTransitModelGroup,A60,1)=Hwy,C75*E75/G75,K75/G75),0) -> 0 | N75: =IFERROR(IF(INDEX(HwyTransitModelGroup,A60,1)=Hwy,D75*F75/H75,L75/H75),0) -> 0 | O75: =TREND(O66:O67,$B66:$B67,$B75) -> 1 | P75: =IF(INDEX(HwyTransitModelGroup,A60,1)=Hwy,G75*M75*(I75*ValTimeTruck+(1-I75)*ValTimeAuto)-O75*N75*(J75*ValTimeTruck+(1-J75)*ValTimeAuto),G75*IF(INDEX(NoTransit20,A60)=TRUE,INDEX(DivIndTrips,A60,4)/IF(INDEX(DivIndTrips,A60,3)=0,1,INDEX(DivIndTrips,A60,3)),M75)*ValTimeAuto-O75*N75*ValTimeAuto)*(1+TTUprater)^($B75-YearCurrent) -> 0 | Q75: 0 | R75: 0 | T75: =TREND(T66:T67,$B66:$B67,$B75) -> 0 | V75: 2032 | W75: 329335.5347 | X75: 0
B76: 2032 | C76: =MAX(TREND(C66:C67,B66:B67,B76),0) -> 0 | D76: =MAX(TREND(D66:D67,B66:B67,B76),0) -> 0 | E76: =MAX(TREND(E66:E67,B66:B67,B76),0) -> 0 | F76: =MAX(TREND(F66:F67,B66:B67,B76),0) -> 0 | G76: =MAX(TREND(G66:G67,$B66:$B67,$B76),0) -> 1 | H76: =MAX(TREND(H66:H67,$B66:$B67,$B76),0) -> 1 | I76: =MIN(MAX(TREND(I66:I67,B66:B67,B76),0),1) -> 0 | J76: =MIN(MAX(TREND(J66:J67,B66:B67,B76),0),1) -> 0 | K76: =MAX(TREND(K66:K67,B66:B67,B76),0) -> 0 | L76: =MAX(TREND(L66:L67,B66:B67,B76),0) -> 0 | M76: =IFERROR(IF(INDEX(HwyTransitModelGroup,A60,1)=Hwy,C76*E76/G76,K76/G76),0) -> 0 | N76: =IFERROR(IF(INDEX(HwyTransitModelGroup,A60,1)=Hwy,D76*F76/H76,L76/H76),0) -> 0 | O76: =TREND(O66:O67,$B66:$B67,$B76) -> 1 | P76: =IF(INDEX(HwyTransitModelGroup,A60,1)=Hwy,G76*M76*(I76*ValTimeTruck+(1-I76)*ValTimeAuto)-O76*N76*(J76*ValTimeTruck+(1-J76)*ValTimeAuto),G76*IF(INDEX(NoTransit20,A60)=TRUE,INDEX(DivIndTrips,A60,4)/IF(INDEX(DivIndTrips,A60,3)=0,1,INDEX(DivIndTrips,A60,3)),M76)*ValTimeAuto-O76*N76*ValTimeAuto)*(1+TTUprater)^($B76-YearCurrent) -> 0 | Q76: 0 | R76: 0 | T76: =TREND(T66:T67,$B66:$B67,$B76) -> 0 | V76: 2033 | W76: 349901.2518 | X76: 0
B77: 2033 | C77: =MAX(TREND(C66:C67,B66:B67,B77),0) -> 0 | D77: =MAX(TREND(D66:D67,B66:B67,B77),0) -> 0 | E77: =MAX(TREND(E66:E67,B66:B67,B77),0) -> 0 | F77: =MAX(TREND(F66:F67,B66:B67,B77),0) -> 0 | G77: =MAX(TREND(G66:G67,$B66:$B67,$B77),0) -> 1 | H77: =MAX(TREND(H66:H67,$B66:$B67,$B77),0) -> 1 | I77: =MIN(MAX(TREND(I66:I67,B66:B67,B77),0),1) -> 0 | J77: =MIN(MAX(TREND(J66:J67,B66:B67,B77),0),1) -> 0 | K77: =MAX(TREND(K66:K67,B66:B67,B77),0) -> 0 | L77: =MAX(TREND(L66:L67,B66:B67,B77),0) -> 0 | M77: =IFERROR(IF(INDEX(HwyTransitModelGroup,A60,1)=Hwy,C77*E77/G77,K77/G77),0) -> 0 | N77: =IFERROR(IF(INDEX(HwyTransitModelGroup,A60,1)=Hwy,D77*F77/H77,L77/H77),0) -> 0 | O77: =TREND(O66:O67,$B66:$B67,$B77) -> 1 | P77: =IF(INDEX(HwyTransitModelGroup,A60,1)=Hwy,G77*M77*(I77*ValTimeTruck+(1-I77)*ValTimeAuto)-O77*N77*(J77*ValTimeTruck+(1-J77)*ValTimeAuto),G77*IF(INDEX(NoTransit20,A60)=TRUE,INDEX(DivIndTrips,A60,4)/IF(INDEX(DivIndTrips,A60,3)=0,1,INDEX(DivIndTrips,A60,3)),M77)*ValTimeAuto-O77*N77*ValTimeAuto)*(1+TTUprater)^($B77-YearCurrent) -> 0 | Q77: 0 | R77: 0 | T77: =TREND(T66:T67,$B66:$B67,$B77) -> 0 | V77: 2034 | W77: 370466.9688 | X77: 0
B78: 2034 | C78: =MAX(TREND(C66:C67,B66:B67,B78),0) -> 0 | D78: =MAX(TREND(D66:D67,B66:B67,B78),0) -> 0 | E78: =MAX(TREND(E66:E67,B66:B67,B78),0) -> 0 | F78: =MAX(TREND(F66:F67,B66:B67,B78),0) -> 0 | G78: =MAX(TREND(G66:G67,$B66:$B67,$B78),0) -> 1 | H78: =MAX(TREND(H66:H67,$B66:$B67,$B78),0) -> 1 | I78: =MIN(MAX(TREND(I66:I67,B66:B67,B78),0),1) -> 0 | J78: =MIN(MAX(TREND(J66:J67,B66:B67,B78),0),1) -> 0 | K78: =MAX(TREND(K66:K67,B66:B67,B78),0) -> 0 | L78: =MAX(TREND(L66:L67,B66:B67,B78),0) -> 0 | M78: =IFERROR(IF(INDEX(HwyTransitModelGroup,A60,1)=Hwy,C78*E78/G78,K78/G78),0) -> 0 | N78: =IFERROR(IF(INDEX(HwyTransitModelGroup,A60,1)=Hwy,D78*F78/H78,L78/H78),0) -> 0 | O78: =TREND(O66:O67,$B66:$B67,$B78) -> 1 | P78: =IF(INDEX(HwyTransitModelGroup,A60,1)=Hwy,G78*M78*(I78*ValTimeTruck+(1-I78)*ValTimeAuto)-O78*N78*(J78*ValTimeTruck+(1-J78)*ValTimeAuto),G78*IF(INDEX(NoTransit20,A60)=TRUE,INDEX(DivIndTrips,A60,4)/IF(INDEX(DivIndTrips,A60,3)=0,1,INDEX(DivIndTrips,A60,3)),M78)*ValTimeAuto-O78*N78*ValTimeAuto)*(1+TTUprater)^($B78-YearCurrent) -> 0 | Q78: 0 | R78: 0 | T78: =TREND(T66:T67,$B66:$B67,$B78) -> 0 | V78: 2035 | W78: 391032.6858 | X78: 0
B79: 2035 | C79: =MAX(TREND(C66:C67,B66:B67,B79),0) -> 0 | D79: =MAX(TREND(D66:D67,B66:B67,B79),0) -> 0 | E79: =MAX(TREND(E66:E67,B66:B67,B79),0) -> 0 | F79: =MAX(TREND(F66:F67,B66:B67,B79),0) -> 0 | G79: =MAX(TREND(G66:G67,$B66:$B67,$B79),0) -> 1 | H79: =MAX(TREND(H66:H67,$B66:$B67,$B79),0) -> 1 | I79: =MIN(MAX(TREND(I66:I67,B66:B67,B79),0),1) -> 0 | J79: =MIN(MAX(TREND(J66:J67,B66:B67,B79),0),1) -> 0 | K79: =MAX(TREND(K66:K67,B66:B67,B79),0) -> 0 | L79: =MAX(TREND(L66:L67,B66:B67,B79),0) -> 0 | M79: =IFERROR(IF(INDEX(HwyTransitModelGroup,A60,1)=Hwy,C79*E79/G79,K79/G79),0) -> 0 | N79: =IFERROR(IF(INDEX(HwyTransitModelGroup,A60,1)=Hwy,D79*F79/H79,L79/H79),0) -> 0 | O79: =TREND(O66:O67,$B66:$B67,$B79) -> 1 | P79: =IF(INDEX(HwyTransitModelGroup,A60,1)=Hwy,G79*M79*(I79*ValTimeTruck+(1-I79)*ValTimeAuto)-O79*N79*(J79*ValTimeTruck+(1-J79)*ValTimeAuto),G79*IF(INDEX(NoTransit20,A60)=TRUE,INDEX(DivIndTrips,A60,4)/IF(INDEX(DivIndTrips,A60,3)=0,1,INDEX(DivIndTrips,A60,3)),M79)*ValTimeAuto-O79*N79*ValTimeAuto)*(1+TTUprater)^($B79-YearCurrent) -> 0 | Q79: 0 | R79: 0 | T79: =TREND(T66:T67,$B66:$B67,$B79) -> 0 | V79: 2036 | W79: 411598.4029 | X79: 0
B80: 2036 | C80: =MAX(TREND(C66:C67,B66:B67,B80),0) -> 0 | D80: =MAX(TREND(D66:D67,B66:B67,B80),0) -> 0 | E80: =MAX(TREND(E66:E67,B66:B67,B80),0) -> 0 | F80: =MAX(TREND(F66:F67,B66:B67,B80),0) -> 0 | G80: =MAX(TREND(G66:G67,$B66:$B67,$B80),0) -> 1 | H80: =MAX(TREND(H66:H67,$B66:$B67,$B80),0) -> 1 | I80: =MIN(MAX(TREND(I66:I67,B66:B67,B80),0),1) -> 0 | J80: =MIN(MAX(TREND(J66:J67,B66:B67,B80),0),1) -> 0 | K80: =MAX(TREND(K66:K67,B66:B67,B80),0) -> 0 | L80: =MAX(TREND(L66:L67,B66:B67,B80),0) -> 0 | M80: =IFERROR(IF(INDEX(HwyTransitModelGroup,A60,1)=Hwy,C80*E80/G80,K80/G80),0) -> 0 | N80: =IFERROR(IF(INDEX(HwyTransitModelGroup,A60,1)=Hwy,D80*F80/H80,L80/H80),0) -> 0 | O80: =TREND(O66:O67,$B66:$B67,$B80) -> 1 | P80: =IF(INDEX(HwyTransitModelGroup,A60,1)=Hwy,G80*M80*(I80*ValTimeTruck+(1-I80)*ValTimeAuto)-O80*N80*(J80*ValTimeTruck+(1-J80)*ValTimeAuto),G80*IF(INDEX(NoTransit20,A60)=TRUE,INDEX(DivIndTrips,A60,4)/IF(INDEX(DivIndTrips,A60,3)=0,1,INDEX(DivIndTrips,A60,3)),M80)*ValTimeAuto-O80*N80*ValTimeAuto)*(1+TTUprater)^($B80-YearCurrent) -> 0 | Q80: 0 | R80: 0 | T80: =TREND(T66:T67,$B66:$B67,$B80) -> 0 | V80: 2037 | W80: 432164.1199 | X80: 0
B81: 2037 | C81: =MAX(TREND(C66:C67,B66:B67,B81),0) -> 0 | D81: =MAX(TREND(D66:D67,B66:B67,B81),0) -> 0 | E81: =MAX(TREND(E66:E67,B66:B67,B81),0) -> 0 | F81: =MAX(TREND(F66:F67,B66:B67,B81),0) -> 0 | G81: =MAX(TREND(G66:G67,$B66:$B67,$B81),0) -> 1 | H81: =MAX(TREND(H66:H67,$B66:$B67,$B81),0) -> 1 | I81: =MIN(MAX(TREND(I66:I67,B66:B67,B81),0),1) -> 0 | J81: =MIN(MAX(TREND(J66:J67,B66:B67,B81),0),1) -> 0 | K81: =MAX(TREND(K66:K67,B66:B67,B81),0) -> 0 | L81: =MAX(TREND(L66:L67,B66:B67,B81),0) -> 0 | M81: =IFERROR(IF(INDEX(HwyTransitModelGroup,A60,1)=Hwy,C81*E81/G81,K81/G81),0) -> 0 | N81: =IFERROR(IF(INDEX(HwyTransitModelGroup,A60,1)=Hwy,D81*F81/H81,L81/H81),0) -> 0 | O81: =TREND(O66:O67,$B66:$B67,$B81) -> 1 | P81: =IF(INDEX(HwyTransitModelGroup,A60,1)=Hwy,G81*M81*(I81*ValTimeTruck+(1-I81)*ValTimeAuto)-O81*N81*(J81*ValTimeTruck+(1-J81)*ValTimeAuto),G81*IF(INDEX(NoTransit20,A60)=TRUE,INDEX(DivIndTrips,A60,4)/IF(INDEX(DivIndTrips,A60,3)=0,1,INDEX(DivIndTrips,A60,3)),M81)*ValTimeAuto-O81*N81*ValTimeAuto)*(1+TTUprater)^($B81-YearCurrent) -> 0 | Q81: 0 | R81: 0 | T81: =TREND(T66:T67,$B66:$B67,$B81) -> 0 | V81: 2038 | W81: 452729.8369 | X81: 0
B82: 2038 | C82: =MAX(TREND(C66:C67,B66:B67,B82),0) -> 0 | D82: =MAX(TREND(D66:D67,B66:B67,B82),0) -> 0 | E82: =MAX(TREND(E66:E67,B66:B67,B82),0) -> 0 | F82: =MAX(TREND(F66:F67,B66:B67,B82),0) -> 0 | G82: =MAX(TREND(G66:G67,$B66:$B67,$B82),0) -> 1 | H82: =MAX(TREND(H66:H67,$B66:$B67,$B82),0) -> 1 | I82: =MIN(MAX(TREND(I66:I67,B66:B67,B82),0),1) -> 0 | J82: =MIN(MAX(TREND(J66:J67,B66:B67,B82),0),1) -> 0 | K82: =MAX(TREND(K66:K67,B66:B67,B82),0) -> 0 | L82: =MAX(TREND(L66:L67,B66:B67,B82),0) -> 0 | M82: =IFERROR(IF(INDEX(HwyTransitModelGroup,A60,1)=Hwy,C82*E82/G82,K82/G82),0) -> 0 | N82: =IFERROR(IF(INDEX(HwyTransitModelGroup,A60,1)=Hwy,D82*F82/H82,L82/H82),0) -> 0 | O82: =TREND(O66:O67,$B66:$B67,$B82) -> 1 | P82: =IF(INDEX(HwyTransitModelGroup,A60,1)=Hwy,G82*M82*(I82*ValTimeTruck+(1-I82)*ValTimeAuto)-O82*N82*(J82*ValTimeTruck+(1-J82)*ValTimeAuto),G82*IF(INDEX(NoTransit20,A60)=TRUE,INDEX(DivIndTrips,A60,4)/IF(INDEX(DivIndTrips,A60,3)=0,1,INDEX(DivIndTrips,A60,3)),M82)*ValTimeAuto-O82*N82*ValTimeAuto)*(1+TTUprater)^($B82-YearCurrent) -> 0 | Q82: 0 | R82: 0 | T82: =TREND(T66:T67,$B66:$B67,$B82) -> 0 | V82: 2039 | W82: 473295.554 | X82: 0
B83: 2039 | C83: =MAX(TREND(C66:C67,B66:B67,B83),0) -> 0 | D83: =MAX(TREND(D66:D67,B66:B67,B83),0) -> 0 | E83: =MAX(TREND(E66:E67,B66:B67,B83),0) -> 0 | F83: =MAX(TREND(F66:F67,B66:B67,B83),0) -> 0 | G83: =MAX(TREND(G66:G67,$B66:$B67,$B83),0) -> 1 | H83: =MAX(TREND(H66:H67,$B66:$B67,$B83),0) -> 1 | I83: =MIN(MAX(TREND(I66:I67,B66:B67,B83),0),1) -> 0 | J83: =MIN(MAX(TREND(J66:J67,B66:B67,B83),0),1) -> 0 | K83: =MAX(TREND(K66:K67,B66:B67,B83),0) -> 0 | L83: =MAX(TREND(L66:L67,B66:B67,B83),0) -> 0 | M83: =IFERROR(IF(INDEX(HwyTransitModelGroup,A60,1)=Hwy,C83*E83/G83,K83/G83),0) -> 0 | N83: =IFERROR(IF(INDEX(HwyTransitModelGroup,A60,1)=Hwy,D83*F83/H83,L83/H83),0) -> 0 | O83: =TREND(O66:O67,$B66:$B67,$B83) -> 1 | P83: =IF(INDEX(HwyTransitModelGroup,A60,1)=Hwy,G83*M83*(I83*ValTimeTruck+(1-I83)*ValTimeAuto)-O83*N83*(J83*ValTimeTruck+(1-J83)*ValTimeAuto),G83*IF(INDEX(NoTransit20,A60)=TRUE,INDEX(DivIndTrips,A60,4)/IF(INDEX(DivIndTrips,A60,3)=0,1,INDEX(DivIndTrips,A60,3)),M83)*ValTimeAuto-O83*N83*ValTimeAuto)*(1+TTUprater)^($B83-YearCurrent) -> 0 | Q83: 0 | R83: 0 | T83: =TREND(T66:T67,$B66:$B67,$B83) -> 0 | V83: 2040 | W83: 493861.271 | X83: 0
B84: 2040 | C84: =MAX(TREND(C66:C67,B66:B67,B84),0) -> 0 | D84: =MAX(TREND(D66:D67,B66:B67,B84),0) -> 0 | E84: =MAX(TREND(E66:E67,B66:B67,B84),0) -> 0 | F84: =MAX(TREND(F66:F67,B66:B67,B84),0) -> 0 | G84: =MAX(TREND(G66:G67,$B66:$B67,$B84),0) -> 1 | H84: =MAX(TREND(H66:H67,$B66:$B67,$B84),0) -> 1 | I84: =MIN(MAX(TREND(I66:I67,B66:B67,B84),0),1) -> 0 | J84: =MIN(MAX(TREND(J66:J67,B66:B67,B84),0),1) -> 0 | K84: =MAX(TREND(K66:K67,B66:B67,B84),0) -> 0 | L84: =MAX(TREND(L66:L67,B66:B67,B84),0) -> 0 | M84: =IFERROR(IF(INDEX(HwyTransitModelGroup,A60,1)=Hwy,C84*E84/G84,K84/G84),0) -> 0 | N84: =IFERROR(IF(INDEX(HwyTransitModelGroup,A60,1)=Hwy,D84*F84/H84,L84/H84),0) -> 0 | O84: =TREND(O66:O67,$B66:$B67,$B84) -> 1 | P84: =IF(INDEX(HwyTransitModelGroup,A60,1)=Hwy,G84*M84*(I84*ValTimeTruck+(1-I84)*ValTimeAuto)-O84*N84*(J84*ValTimeTruck+(1-J84)*ValTimeAuto),G84*IF(INDEX(NoTransit20,A60)=TRUE,INDEX(DivIndTrips,A60,4)/IF(INDEX(DivIndTrips,A60,3)=0,1,INDEX(DivIndTrips,A60,3)),M84)*ValTimeAuto-O84*N84*ValTimeAuto)*(1+TTUprater)^($B84-YearCurrent) -> 0 | Q84: 0 | R84: 0 | T84: =TREND(T66:T67,$B66:$B67,$B84) -> 0 | V84: 2041 | W84: 514426.988 | X84: 0
B85: 2041 | C85: =MAX(TREND(C66:C67,B66:B67,B85),0) -> 0 | D85: =MAX(TREND(D66:D67,B66:B67,B85),0) -> 0 | E85: =MAX(TREND(E66:E67,B66:B67,B85),0) -> 0 | F85: =MAX(TREND(F66:F67,B66:B67,B85),0) -> 0 | G85: =MAX(TREND(G66:G67,$B66:$B67,$B85),0) -> 1 | H85: =MAX(TREND(H66:H67,$B66:$B67,$B85),0) -> 1 | I85: =MIN(MAX(TREND(I66:I67,B66:B67,B85),0),1) -> 0 | J85: =MIN(MAX(TREND(J66:J67,B66:B67,B85),0),1) -> 0 | K85: =MAX(TREND(K66:K67,B66:B67,B85),0) -> 0 | L85: =MAX(TREND(L66:L67,B66:B67,B85),0) -> 0 | M85: =IFERROR(IF(INDEX(HwyTransitModelGroup,A60,1)=Hwy,C85*E85/G85,K85/G85),0) -> 0 | N85: =IFERROR(IF(INDEX(HwyTransitModelGroup,A60,1)=Hwy,D85*F85/H85,L85/H85),0) -> 0 | O85: =TREND(O66:O67,$B66:$B67,$B85) -> 1 | P85: =IF(INDEX(HwyTransitModelGroup,A60,1)=Hwy,G85*M85*(I85*ValTimeTruck+(1-I85)*ValTimeAuto)-O85*N85*(J85*ValTimeTruck+(1-J85)*ValTimeAuto),G85*IF(INDEX(NoTransit20,A60)=TRUE,INDEX(DivIndTrips,A60,4)/IF(INDEX(DivIndTrips,A60,3)=0,1,INDEX(DivIndTrips,A60,3)),M85)*ValTimeAuto-O85*N85*ValTimeAuto)*(1+TTUprater)^($B85-YearCurrent) -> 0 | Q85: 0 | R85: 0 | T85: =TREND(T66:T67,$B66:$B67,$B85) -> 0 | V85: 2042 | W85: 534992.705 | X85: 0
B86: 2042 | C86: =MAX(TREND(C66:C67,B66:B67,B86),0) -> 0 | D86: =MAX(TREND(D66:D67,B66:B67,B86),0) -> 0 | E86: =MAX(TREND(E66:E67,B66:B67,B86),0) -> 0 | F86: =MAX(TREND(F66:F67,B66:B67,B86),0) -> 0 | G86: =MAX(TREND(G66:G67,$B66:$B67,$B86),0) -> 1 | H86: =MAX(TREND(H66:H67,$B66:$B67,$B86),0) -> 1 | I86: =MIN(MAX(TREND(I66:I67,B66:B67,B86),0),1) -> 0 | J86: =MIN(MAX(TREND(J66:J67,B66:B67,B86),0),1) -> 0 | K86: =MAX(TREND(K66:K67,B66:B67,B86),0) -> 0 | L86: =MAX(TREND(L66:L67,B66:B67,B86),0) -> 0 | M86: =IFERROR(IF(INDEX(HwyTransitModelGroup,A60,1)=Hwy,C86*E86/G86,K86/G86),0) -> 0 | N86: =IFERROR(IF(INDEX(HwyTransitModelGroup,A60,1)=Hwy,D86*F86/H86,L86/H86),0) -> 0 | O86: =TREND(O66:O67,$B66:$B67,$B86) -> 1 | P86: =IF(INDEX(HwyTransitModelGroup,A60,1)=Hwy,G86*M86*(I86*ValTimeTruck+(1-I86)*ValTimeAuto)-O86*N86*(J86*ValTimeTruck+(1-J86)*ValTimeAuto),G86*IF(INDEX(NoTransit20,A60)=TRUE,INDEX(DivIndTrips,A60,4)/IF(INDEX(DivIndTrips,A60,3)=0,1,INDEX(DivIndTrips,A60,3)),M86)*ValTimeAuto-O86*N86*ValTimeAuto)*(1+TTUprater)^($B86-YearCurrent) -> 0 | Q86: 0 | R86: 0 | T86: =TREND(T66:T67,$B66:$B67,$B86) -> 0 | V86: 2043 | W86: 555558.4221 | X86: 0
B87: 2043 | C87: =MAX(TREND(C66:C67,B66:B67,B87),0) -> 0 | D87: =MAX(TREND(D66:D67,B66:B67,B87),0) -> 0 | E87: =MAX(TREND(E66:E67,B66:B67,B87),0) -> 0 | F87: =MAX(TREND(F66:F67,B66:B67,B87),0) -> 0 | G87: =MAX(TREND(G66:G67,$B66:$B67,$B87),0) -> 1 | H87: =MAX(TREND(H66:H67,$B66:$B67,$B87),0) -> 1 | I87: =MIN(MAX(TREND(I66:I67,B66:B67,B87),0),1) -> 0 | J87: =MIN(MAX(TREND(J66:J67,B66:B67,B87),0),1) -> 0 | K87: =MAX(TREND(K66:K67,B66:B67,B87),0) -> 0 | L87: =MAX(TREND(L66:L67,B66:B67,B87),0) -> 0 | M87: =IFERROR(IF(INDEX(HwyTransitModelGroup,A60,1)=Hwy,C87*E87/G87,K87/G87),0) -> 0 | N87: =IFERROR(IF(INDEX(HwyTransitModelGroup,A60,1)=Hwy,D87*F87/H87,L87/H87),0) -> 0 | O87: =TREND(O66:O67,$B66:$B67,$B87) -> 1 | P87: =IF(INDEX(HwyTransitModelGroup,A60,1)=Hwy,G87*M87*(I87*ValTimeTruck+(1-I87)*ValTimeAuto)-O87*N87*(J87*ValTimeTruck+(1-J87)*ValTimeAuto),G87*IF(INDEX(NoTransit20,A60)=TRUE,INDEX(DivIndTrips,A60,4)/IF(INDEX(DivIndTrips,A60,3)=0,1,INDEX(DivIndTrips,A60,3)),M87)*ValTimeAuto-O87*N87*ValTimeAuto)*(1+TTUprater)^($B87-YearCurrent) -> 0 | Q87: 0 | R87: 0 | T87: =TREND(T66:T67,$B66:$B67,$B87) -> 0 | V87: 2044 | W87: 576124.1391 | X87: 0
B88: 2044 | C88: =MAX(TREND(C66:C67,B66:B67,B88),0) -> 0 | D88: =MAX(TREND(D66:D67,B66:B67,B88),0) -> 0 | E88: =MAX(TREND(E66:E67,B66:B67,B88),0) -> 0 | F88: =MAX(TREND(F66:F67,B66:B67,B88),0) -> 0 | G88: =MAX(TREND(G66:G67,$B66:$B67,$B88),0) -> 1 | H88: =MAX(TREND(H66:H67,$B66:$B67,$B88),0) -> 1 | I88: =MIN(MAX(TREND(I66:I67,B66:B67,B88),0),1) -> 0 | J88: =MIN(MAX(TREND(J66:J67,B66:B67,B88),0),1) -> 0 | K88: =MAX(TREND(K66:K67,B66:B67,B88),0) -> 0 | L88: =MAX(TREND(L66:L67,B66:B67,B88),0) -> 0 | M88: =IFERROR(IF(INDEX(HwyTransitModelGroup,A60,1)=Hwy,C88*E88/G88,K88/G88),0) -> 0 | N88: =IFERROR(IF(INDEX(HwyTransitModelGroup,A60,1)=Hwy,D88*F88/H88,L88/H88),0) -> 0 | O88: =TREND(O66:O67,$B66:$B67,$B88) -> 1 | P88: =IF(INDEX(HwyTransitModelGroup,A60,1)=Hwy,G88*M88*(I88*ValTimeTruck+(1-I88)*ValTimeAuto)-O88*N88*(J88*ValTimeTruck+(1-J88)*ValTimeAuto),G88*IF(INDEX(NoTransit20,A60)=TRUE,INDEX(DivIndTrips,A60,4)/IF(INDEX(DivIndTrips,A60,3)=0,1,INDEX(DivIndTrips,A60,3)),M88)*ValTimeAuto-O88*N88*ValTimeAuto)*(1+TTUprater)^($B88-YearCurrent) -> 0 | Q88: 0 | R88: 0 | T88: =TREND(T66:T67,$B66:$B67,$B88) -> 0 | V88: 2045 | W88: 596689.8561 | X88: 0
B89: 2045 | C89: =MAX(TREND(C66:C67,B66:B67,B89),0) -> 0 | D89: =MAX(TREND(D66:D67,B66:B67,B89),0) -> 0 | E89: =MAX(TREND(E66:E67,B66:B67,B89),0) -> 0 | F89: =MAX(TREND(F66:F67,B66:B67,B89),0) -> 0 | G89: =MAX(TREND(G66:G67,$B66:$B67,$B89),0) -> 1 | H89: =MAX(TREND(H66:H67,$B66:$B67,$B89),0) -> 1 | I89: =MIN(MAX(TREND(I66:I67,B66:B67,B89),0),1) -> 0 | J89: =MIN(MAX(TREND(J66:J67,B66:B67,B89),0),1) -> 0 | K89: =MAX(TREND(K66:K67,B66:B67,B89),0) -> 0 | L89: =MAX(TREND(L66:L67,B66:B67,B89),0) -> 0 | M89: =IFERROR(IF(INDEX(HwyTransitModelGroup,A60,1)=Hwy,C89*E89/G89,K89/G89),0) -> 0 | N89: =IFERROR(IF(INDEX(HwyTransitModelGroup,A60,1)=Hwy,D89*F89/H89,L89/H89),0) -> 0 | O89: =TREND(O66:O67,$B66:$B67,$B89) -> 1 | P89: =IF(INDEX(HwyTransitModelGroup,A60,1)=Hwy,G89*M89*(I89*ValTimeTruck+(1-I89)*ValTimeAuto)-O89*N89*(J89*ValTimeTruck+(1-J89)*ValTimeAuto),G89*IF(INDEX(NoTransit20,A60)=TRUE,INDEX(DivIndTrips,A60,4)/IF(INDEX(DivIndTrips,A60,3)=0,1,INDEX(DivIndTrips,A60,3)),M89)*ValTimeAuto-O89*N89*ValTimeAuto)*(1+TTUprater)^($B89-YearCurrent) -> 0 | Q89: 0 | R89: 0 | T89: =TREND(T66:T67,$B66:$B67,$B89) -> 0 | V89: 2046 | W89: 617255.5732 | X89: 0
B90: 2046 | C90: =MAX(TREND(C66:C67,B66:B67,B90),0) -> 0 | D90: =MAX(TREND(D66:D67,B66:B67,B90),0) -> 0 | E90: =MAX(TREND(E66:E67,B66:B67,B90),0) -> 0 | F90: =MAX(TREND(F66:F67,B66:B67,B90),0) -> 0 | G90: =MAX(TREND(G66:G67,$B66:$B67,$B90),0) -> 1 | H90: =MAX(TREND(H66:H67,$B66:$B67,$B90),0) -> 1 | I90: =MIN(MAX(TREND(I66:I67,B66:B67,B90),0),1) -> 0 | J90: =MIN(MAX(TREND(J66:J67,B66:B67,B90),0),1) -> 0 | K90: =MAX(TREND(K66:K67,B66:B67,B90),0) -> 0 | L90: =MAX(TREND(L66:L67,B66:B67,B90),0) -> 0 | M90: =IFERROR(IF(INDEX(HwyTransitModelGroup,A60,1)=Hwy,C90*E90/G90,K90/G90),0) -> 0 | N90: =IFERROR(IF(INDEX(HwyTransitModelGroup,A60,1)=Hwy,D90*F90/H90,L90/H90),0) -> 0 | O90: =TREND(O66:O67,$B66:$B67,$B90) -> 1 | P90: =IF(INDEX(HwyTransitModelGroup,A60,1)=Hwy,G90*M90*(I90*ValTimeTruck+(1-I90)*ValTimeAuto)-O90*N90*(J90*ValTimeTruck+(1-J90)*ValTimeAuto),G90*IF(INDEX(NoTransit20,A60)=TRUE,INDEX(DivIndTrips,A60,4)/IF(INDEX(DivIndTrips,A60,3)=0,1,INDEX(DivIndTrips,A60,3)),M90)*ValTimeAuto-O90*N90*ValTimeAuto)*(1+TTUprater)^($B90-YearCurrent) -> 0 | Q90: 0 | R90: 0 | T90: =TREND(T66:T67,$B66:$B67,$B90) -> 0 | V90: 2047 | W90: 637821.2902 | X90: 0
B91: 2047 | C91: =MAX(TREND(C66:C67,B66:B67,B91),0) -> 0 | D91: =MAX(TREND(D66:D67,B66:B67,B91),0) -> 0 | E91: =MAX(TREND(E66:E67,B66:B67,B91),0) -> 0 | F91: =MAX(TREND(F66:F67,B66:B67,B91),0) -> 0 | G91: =MAX(TREND(G66:G67,$B66:$B67,$B91),0) -> 1 | H91: =MAX(TREND(H66:H67,$B66:$B67,$B91),0) -> 1 | I91: =MIN(MAX(TREND(I66:I67,B66:B67,B91),0),1) -> 0 | J91: =MIN(MAX(TREND(J66:J67,B66:B67,B91),0),1) -> 0 | K91: =MAX(TREND(K66:K67,B66:B67,B91),0) -> 0 | L91: =MAX(TREND(L66:L67,B66:B67,B91),0) -> 0 | M91: =IFERROR(IF(INDEX(HwyTransitModelGroup,A60,1)=Hwy,C91*E91/G91,K91/G91),0) -> 0 | N91: =IFERROR(IF(INDEX(HwyTransitModelGroup,A60,1)=Hwy,D91*F91/H91,L91/H91),0) -> 0 | O91: =TREND(O66:O67,$B66:$B67,$B91) -> 1 | P91: =IF(INDEX(HwyTransitModelGroup,A60,1)=Hwy,G91*M91*(I91*ValTimeTruck+(1-I91)*ValTimeAuto)-O91*N91*(J91*ValTimeTruck+(1-J91)*ValTimeAuto),G91*IF(INDEX(NoTransit20,A60)=TRUE,INDEX(DivIndTrips,A60,4)/IF(INDEX(DivIndTrips,A60,3)=0,1,INDEX(DivIndTrips,A60,3)),M91)*ValTimeAuto-O91*N91*ValTimeAuto)*(1+TTUprater)^($B91-YearCurrent) -> 0 | Q91: 0 | R91: 0 | T91: =TREND(T66:T67,$B66:$B67,$B91) -> 0 | V91: 2048 | W91: 658387.0072 | X91: 0
B92: 2048 | C92: =MAX(TREND(C66:C67,B66:B67,B92),0) -> 0 | D92: =MAX(TREND(D66:D67,B66:B67,B92),0) -> 0 | E92: =MAX(TREND(E66:E67,B66:B67,B92),0) -> 0 | F92: =MAX(TREND(F66:F67,B66:B67,B92),0) -> 0 | G92: =MAX(TREND(G66:G67,$B66:$B67,$B92),0) -> 1 | H92: =MAX(TREND(H66:H67,$B66:$B67,$B92),0) -> 1 | I92: =MIN(MAX(TREND(I66:I67,B66:B67,B92),0),1) -> 0 | J92: =MIN(MAX(TREND(J66:J67,B66:B67,B92),0),1) -> 0 | K92: =MAX(TREND(K66:K67,B66:B67,B92),0) -> 0 | L92: =MAX(TREND(L66:L67,B66:B67,B92),0) -> 0 | M92: =IFERROR(IF(INDEX(HwyTransitModelGroup,A60,1)=Hwy,C92*E92/G92,K92/G92),0) -> 0 | N92: =IFERROR(IF(INDEX(HwyTransitModelGroup,A60,1)=Hwy,D92*F92/H92,L92/H92),0) -> 0 | O92: =TREND(O66:O67,$B66:$B67,$B92) -> 1 | P92: =IF(INDEX(HwyTransitModelGroup,A60,1)=Hwy,G92*M92*(I92*ValTimeTruck+(1-I92)*ValTimeAuto)-O92*N92*(J92*ValTimeTruck+(1-J92)*ValTimeAuto),G92*IF(INDEX(NoTransit20,A60)=TRUE,INDEX(DivIndTrips,A60,4)/IF(INDEX(DivIndTrips,A60,3)=0,1,INDEX(DivIndTrips,A60,3)),M92)*ValTimeAuto-O92*N92*ValTimeAuto)*(1+TTUprater)^($B92-YearCurrent) -> 0 | Q92: 0 | R92: 0 | T92: =TREND(T66:T67,$B66:$B67,$B92) -> 0 | V92: 2049 | W92: 678952.7243 | X92: 0
B93: 2049 | C93: =MAX(TREND(C66:C67,B66:B67,B93),0) -> 0 | D93: =MAX(TREND(D66:D67,B66:B67,B93),0) -> 0 | E93: =MAX(TREND(E66:E67,B66:B67,B93),0) -> 0 | F93: =MAX(TREND(F66:F67,B66:B67,B93),0) -> 0 | G93: =MAX(TREND(G66:G67,$B66:$B67,$B93),0) -> 1 | H93: =MAX(TREND(H66:H67,$B66:$B67,$B93),0) -> 1 | I93: =MIN(MAX(TREND(I66:I67,B66:B67,B93),0),1) -> 0 | J93: =MIN(MAX(TREND(J66:J67,B66:B67,B93),0),1) -> 0 | K93: =MAX(TREND(K66:K67,B66:B67,B93),0) -> 0 | L93: =MAX(TREND(L66:L67,B66:B67,B93),0) -> 0 | M93: =IFERROR(IF(INDEX(HwyTransitModelGroup,A60,1)=Hwy,C93*E93/G93,K93/G93),0) -> 0 | N93: =IFERROR(IF(INDEX(HwyTransitModelGroup,A60,1)=Hwy,D93*F93/H93,L93/H93),0) -> 0 | O93: =TREND(O66:O67,$B66:$B67,$B93) -> 1 | P93: =IF(INDEX(HwyTransitModelGroup,A60,1)=Hwy,G93*M93*(I93*ValTimeTruck+(1-I93)*ValTimeAuto)-O93*N93*(J93*ValTimeTruck+(1-J93)*ValTimeAuto),G93*IF(INDEX(NoTransit20,A60)=TRUE,INDEX(DivIndTrips,A60,4)/IF(INDEX(DivIndTrips,A60,3)=0,1,INDEX(DivIndTrips,A60,3)),M93)*ValTimeAuto-O93*N93*ValTimeAuto)*(1+TTUprater)^($B93-YearCurrent) -> 0 | Q93: 0 | R93: 0 | T93: =TREND(T66:T67,$B66:$B67,$B93) -> 0 | V93: 2050 | W93: 699518.4413 | X93: 0
B94: 2050 | C94: =MAX(TREND(C66:C67,B66:B67,B94),0) -> 0 | D94: =MAX(TREND(D66:D67,B66:B67,B94),0) -> 0 | E94: =MAX(TREND(E66:E67,B66:B67,B94),0) -> 0 | F94: =MAX(TREND(F66:F67,B66:B67,B94),0) -> 0 | G94: =MAX(TREND(G66:G67,$B66:$B67,$B94),0) -> 1 | H94: =MAX(TREND(H66:H67,$B66:$B67,$B94),0) -> 1 | I94: =MIN(MAX(TREND(I66:I67,B66:B67,B94),0),1) -> 0 | J94: =MIN(MAX(TREND(J66:J67,B66:B67,B94),0),1) -> 0 | K94: =MAX(TREND(K66:K67,B66:B67,B94),0) -> 0 | L94: =MAX(TREND(L66:L67,B66:B67,B94),0) -> 0 | M94: =IFERROR(IF(INDEX(HwyTransitModelGroup,A60,1)=Hwy,C94*E94/G94,K94/G94),0) -> 0 | N94: =IFERROR(IF(INDEX(HwyTransitModelGroup,A60,1)=Hwy,D94*F94/H94,L94/H94),0) -> 0 | O94: =TREND(O66:O67,$B66:$B67,$B94) -> 1 | P94: =IF(INDEX(HwyTransitModelGroup,A60,1)=Hwy,G94*M94*(I94*ValTimeTruck+(1-I94)*ValTimeAuto)-O94*N94*(J94*ValTimeTruck+(1-J94)*ValTimeAuto),G94*IF(INDEX(NoTransit20,A60)=TRUE,INDEX(DivIndTrips,A60,4)/IF(INDEX(DivIndTrips,A60,3)=0,1,INDEX(DivIndTrips,A60,3)),M94)*ValTimeAuto-O94*N94*ValTimeAuto)*(1+TTUprater)^($B94-YearCurrent) -> 0 | Q94: 0 | R94: 0 | T94: =TREND(T66:T67,$B66:$B67,$B94) -> 0 | V94: 2051 | W94: 720084.1583 | X94: 0
B95: 2051 | C95: =MAX(TREND(C66:C67,B66:B67,B95),0) -> 0 | D95: =MAX(TREND(D66:D67,B66:B67,B95),0) -> 0 | E95: =MAX(TREND(E66:E67,B66:B67,B95),0) -> 0 | F95: =MAX(TREND(F66:F67,B66:B67,B95),0) -> 0 | G95: =MAX(TREND(G66:G67,$B66:$B67,$B95),0) -> 1 | H95: =MAX(TREND(H66:H67,$B66:$B67,$B95),0) -> 1 | I95: =MIN(MAX(TREND(I66:I67,B66:B67,B95),0),1) -> 0 | J95: =MIN(MAX(TREND(J66:J67,B66:B67,B95),0),1) -> 0 | K95: =MAX(TREND(K66:K67,B66:B67,B95),0) -> 0 | L95: =MAX(TREND(L66:L67,B66:B67,B95),0) -> 0 | M95: =IFERROR(IF(INDEX(HwyTransitModelGroup,A60,1)=Hwy,C95*E95/G95,K95/G95),0) -> 0 | N95: =IFERROR(IF(INDEX(HwyTransitModelGroup,A60,1)=Hwy,D95*F95/H95,L95/H95),0) -> 0 | O95: =TREND(O66:O67,$B66:$B67,$B95) -> 1 | P95: =IF(INDEX(HwyTransitModelGroup,A60,1)=Hwy,G95*M95*(I95*ValTimeTruck+(1-I95)*ValTimeAuto)-O95*N95*(J95*ValTimeTruck+(1-J95)*ValTimeAuto),G95*IF(INDEX(NoTransit20,A60)=TRUE,INDEX(DivIndTrips,A60,4)/IF(INDEX(DivIndTrips,A60,3)=0,1,INDEX(DivIndTrips,A60,3)),M95)*ValTimeAuto-O95*N95*ValTimeAuto)*(1+TTUprater)^($B95-YearCurrent) -> 0 | Q95: 0 | R95: 0 | T95: =TREND(T66:T67,$B66:$B67,$B95) -> 0 | V95: 2052 | W95: 740649.8753 | X95: 0
B96: 2052 | C96: =MAX(TREND(C66:C67,B66:B67,B96),0) -> 0 | D96: =MAX(TREND(D66:D67,B66:B67,B96),0) -> 0 | E96: =MAX(TREND(E66:E67,B66:B67,B96),0) -> 0 | F96: =MAX(TREND(F66:F67,B66:B67,B96),0) -> 0 | G96: =MAX(TREND(G66:G67,$B66:$B67,$B96),0) -> 1 | H96: =MAX(TREND(H66:H67,$B66:$B67,$B96),0) -> 1 | I96: =MIN(MAX(TREND(I66:I67,B66:B67,B96),0),1) -> 0 | J96: =MIN(MAX(TREND(J66:J67,B66:B67,B96),0),1) -> 0 | K96: =MAX(TREND(K66:K67,B66:B67,B96),0) -> 0 | L96: =MAX(TREND(L66:L67,B66:B67,B96),0) -> 0 | M96: =IFERROR(IF(INDEX(HwyTransitModelGroup,A60,1)=Hwy,C96*E96/G96,K96/G96),0) -> 0 | N96: =IFERROR(IF(INDEX(HwyTransitModelGroup,A60,1)=Hwy,D96*F96/H96,L96/H96),0) -> 0 | O96: =TREND(O66:O67,$B66:$B67,$B96) -> 1 | P96: =IF(INDEX(HwyTransitModelGroup,A60,1)=Hwy,G96*M96*(I96*ValTimeTruck+(1-I96)*ValTimeAuto)-O96*N96*(J96*ValTimeTruck+(1-J96)*ValTimeAuto),G96*IF(INDEX(NoTransit20,A60)=TRUE,INDEX(DivIndTrips,A60,4)/IF(INDEX(DivIndTrips,A60,3)=0,1,INDEX(DivIndTrips,A60,3)),M96)*ValTimeAuto-O96*N96*ValTimeAuto)*(1+TTUprater)^($B96-YearCurrent) -> 0 | Q96: 0 | R96: 0 | T96: =TREND(T66:T67,$B66:$B67,$B96) -> 0 | V96: 2053 | W96: 761215.5924 | X96: 0
B97: 2053 | C97: =MAX(TREND(C66:C67,B66:B67,B97),0) -> 0 | D97: =MAX(TREND(D66:D67,B66:B67,B97),0) -> 0 | E97: =MAX(TREND(E66:E67,B66:B67,B97),0) -> 0 | F97: =MAX(TREND(F66:F67,B66:B67,B97),0) -> 0 | G97: =MAX(TREND(G66:G67,$B66:$B67,$B97),0) -> 1 | H97: =MAX(TREND(H66:H67,$B66:$B67,$B97),0) -> 1 | I97: =MIN(MAX(TREND(I66:I67,B66:B67,B97),0),1) -> 0 | J97: =MIN(MAX(TREND(J66:J67,B66:B67,B97),0),1) -> 0 | K97: =MAX(TREND(K66:K67,B66:B67,B97),0) -> 0 | L97: =MAX(TREND(L66:L67,B66:B67,B97),0) -> 0 | M97: =IFERROR(IF(INDEX(HwyTransitModelGroup,A60,1)=Hwy,C97*E97/G97,K97/G97),0) -> 0 | N97: =IFERROR(IF(INDEX(HwyTransitModelGroup,A60,1)=Hwy,D97*F97/H97,L97/H97),0) -> 0 | O97: =TREND(O66:O67,$B66:$B67,$B97) -> 1 | P97: =IF(INDEX(HwyTransitModelGroup,A60,1)=Hwy,G97*M97*(I97*ValTimeTruck+(1-I97)*ValTimeAuto)-O97*N97*(J97*ValTimeTruck+(1-J97)*ValTimeAuto),G97*IF(INDEX(NoTransit20,A60)=TRUE,INDEX(DivIndTrips,A60,4)/IF(INDEX(DivIndTrips,A60,3)=0,1,INDEX(DivIndTrips,A60,3)),M97)*ValTimeAuto-O97*N97*ValTimeAuto)*(1+TTUprater)^($B97-YearCurrent) -> 0 | Q97: 0 | R97: 0 | T97: =TREND(T66:T67,$B66:$B67,$B97) -> 0 | V97: 2054 | W97: 781781.3094 | X97: 0
B98: 2054 | C98: =MAX(TREND(C66:C67,B66:B67,B98),0) -> 0 | D98: =MAX(TREND(D66:D67,B66:B67,B98),0) -> 0 | E98: =MAX(TREND(E66:E67,B66:B67,B98),0) -> 0 | F98: =MAX(TREND(F66:F67,B66:B67,B98),0) -> 0 | G98: =MAX(TREND(G66:G67,$B66:$B67,$B98),0) -> 1 | H98: =MAX(TREND(H66:H67,$B66:$B67,$B98),0) -> 1 | I98: =MIN(MAX(TREND(I66:I67,B66:B67,B98),0),1) -> 0 | J98: =MIN(MAX(TREND(J66:J67,B66:B67,B98),0),1) -> 0 | K98: =MAX(TREND(K66:K67,B66:B67,B98),0) -> 0 | L98: =MAX(TREND(L66:L67,B66:B67,B98),0) -> 0 | M98: =IFERROR(IF(INDEX(HwyTransitModelGroup,A60,1)=Hwy,C98*E98/G98,K98/G98),0) -> 0 | N98: =IFERROR(IF(INDEX(HwyTransitModelGroup,A60,1)=Hwy,D98*F98/H98,L98/H98),0) -> 0 | O98: =TREND(O66:O67,$B66:$B67,$B98) -> 1 | P98: =IF(INDEX(HwyTransitModelGroup,A60,1)=Hwy,G98*M98*(I98*ValTimeTruck+(1-I98)*ValTimeAuto)-O98*N98*(J98*ValTimeTruck+(1-J98)*ValTimeAuto),G98*IF(INDEX(NoTransit20,A60)=TRUE,INDEX(DivIndTrips,A60,4)/IF(INDEX(DivIndTrips,A60,3)=0,1,INDEX(DivIndTrips,A60,3)),M98)*ValTimeAuto-O98*N98*ValTimeAuto)*(1+TTUprater)^($B98-YearCurrent) -> 0 | Q98: 0 | R98: 0 | T98: =TREND(T66:T67,$B66:$B67,$B98) -> 0
V99: Total | W99: =SUM(W68:W97) -> 14507352.37 | X99: =SUM(X68:X97) -> 0
B100: Total | R100: =SUM(R69:R98) -> 0 | T100: =SUM(T69:T98) -> 0
V101: =IF(Induced="Y","","* Induced Travel Not Counted") -> 

Sheet Consumer Surplus
B1: Consumer Surplus Benefits
B3: This sheet calculates consumer benefits associated with induced demand.
B5: Formulas: | S5: Present Value = Future Value (in Constant Dollars)
T6: ( 1 + Real Discount Rate) ^ Year
B7: Avg. Travel Time = Total VHT x AVO / Total Person Trips | F7: for hwy | H7: Adj. Person Trips = Total Person Trips - Induced Demand
B8: hrs / person vehicle-hrs / yr | D8: people / veh | E8: trips / yr | H8: trips / yr | I8: trips / yr | J8: trips / yr
B10: Avg. Travel Time = Total PHT / Total Person Trips | F10: for transit | H10: CS Benefit = Diff. in Travel Time x Avg. Value of Time x Diff. in Adj. Person Trips x 0.5
B11: hrs / person passenger-hrs / yr | D11: trips / yr | H11: dollars / year | I11: hrs / trip | J11: dollars / hr | K11: trips / yr
B15: A | C15: CONSUMER SURPLUS BENEFIT (AGGREGATE) | AE15: B | AF15: SUMMARY OF INDUCED DEMAND BENEFITS
C16: Each block of calculations is one mode. Data inputs are aggregated by sum or weighted average. Average vehicle occupancy and percent trucks data averages are weighted by hours, out-of-pocket cost averages are weighted by trips.
A18: 1 | B18: =PARAMETERS!$J$9 -> Bus
C20: TOTAL VHT | E20: AVERAGE VEH OCC | G20: =IF(B18=Hwy,"TOTAL VEHICLE TRIPS","TOTAL PERSON TRIPS") -> TOTAL PERSON TRIPS | I20: PERCENT TRUCKS | K20: TOTAL PHT | M20: AVERAGE TRAVEL TIME | O20: OUT OF POCKET COST | Q20: =IF(B18=Hwy,"TOTAL VEHICLE TRIPS","TOTAL PERSON TRIPS") -> TOTAL PERSON TRIPS | R20: CONSUMER SURPLUS BENEFIT | AF20: 1 | AG20: 2 | AH20: 3 | AI20: 4 | AK20: Present
C21: (veh-hours/yr) | E21: (persons/vehicle) | G21: (trips/yr) | I21: (%) | K21: (per-hours/yr) | M21: (hours/trip) | O21: ($/trip) | Q21: (trips/yr) | R21: ($/yr) | AF21: =OFFSET($B1,MATCH(AF$20,$A:$A)-1,0) -> Bus | AG21: =OFFSET($B1,MATCH(AG$20,$A:$A)-1,0) -> Pass Train | AH21: =OFFSET($B1,MATCH(AH$20,$A:$A)-1,0) -> Light Rail | AI21: =OFFSET($B1,MATCH(AI$20,$A:$A)-1,0) -> Highway | AK21: Value of
B22: Year | Q22: Adjusted (no induced) | R22: New | S22: Constant | T22: Present | AE22: Year | AK22: Induced | AM22: Constant
C23: No Build | D23: Build | E23: No Build | F23: Build | G23: No Build | H23: Build | I23: No Build | J23: Build | K23: No Build | L23: Build | M23: No Build | N23: Build | O23: No Build | P23: Build | Q23: Build | R23: (Induced) | S23: Dollars | T23: Value | AK23: Demand | AM23: Dollars
B24: =YearFirst -> 2020 | C24: =SUMIF(INDEX(HwyTransitModelGroup,,1),B18,INDEX(ModelData1NB,,3))*AnnualFactor -> 0 | D24: =SUMIF(INDEX(HwyTransitModelGroup,,1),B18,INDEX(ModelData1B,,3))*AnnualFactor -> 0 | G24: =SUMIF(INDEX(HwyTransitModelGroup,,1),B18,INDEX(ModelData1NB,,1))*AnnualFactor -> 0 | H24: =SUMIF(INDEX(HwyTransitModelGroup,,1),B18,INDEX(ModelData1B,,1))*AnnualFactor -> 0 | K24: =SUMIF(INDEX(HwyTransitModelGroup,,1),B18,INDEX(ModelData1NB,,5))*AnnualFactor -> 0 | L24: =SUMIF(INDEX(HwyTransitModelGroup,,1),B18,INDEX(ModelData1B,,5))*AnnualFactor -> 0 | M24: =IFERROR(IF(B18=Hwy,C24*E24/G24,K24/G24),0) -> 0 | N24: =IFERROR(IF(B18=Hwy,D24*F24/H24,L24/H24),0) -> 0 | O24: =IF(E24=0,0,SUMPRODUCT(--(INDEX(HwyTransitModelGroup,,1)=B18),INDEX(ModelData1NB,,6),INDEX(ModelData1NB,,1))/IF(SUMPRODUCT(--(INDEX(HwyTransitModelGroup,,1)=B18),INDEX(ModelData1NB,,1))=0,1,SUMPRODUCT(--(INDEX(HwyTransitModelGroup,,1)=B18),INDEX(ModelData1NB,,1)))) -> 0 | P24: =IF(F24=0,0,SUMPRODUCT(--(INDEX(HwyTransitModelGroup,,1)=B18),INDEX(ModelData1B,,6),INDEX(ModelData1B,,1))/IF(SUMPRODUCT(--(INDEX(HwyTransitModelGroup,,1)=B18),INDEX(ModelData1B,,1))=0,1,SUMPRODUCT(--(INDEX(HwyTransitModelGroup,,1)=B18),INDEX(ModelData1B,,1)))) -> 0 | Q24: =IFERROR($H24-SUMIF('Consumer Surplus'!$C$197:$C$200,B18,'Consumer Surplus'!$G$197:$G$200),0) -> 0 | R24: =IF(Induced="N",0,(IF(B18=Hwy,M24*(I24*ValTimeTruck+(1-I24)*ValTimeAuto)-N24*(J24*ValTimeTruck+(1-J24)*ValTimeAuto),(IF(INDEX($P$197:$X$200,MATCH(B18,$O$197:$O$200,0),7)>0,INDEX($P$197:$X$200,MATCH(B18,$O$197:$O$200,0),7)/IF(INDEX($P$197:$X$200,MATCH(B18,$O$197:$O$200,0),6)=0,1,INDEX($P$197:$X$200,MATCH(B18,$O$197:$O$200,0),6)),M24)-N24)*ValTimeAuto)+O24-P24)*(H24-Q24)*0.5*(1+TTUprater)^($B24-YearCurrent)) -> 0 | S24: =SUM(R24:R24) -> 0 | T24: =S24/(1+DiscRate)^(B24-YearCurrent) -> 0 | AE24: =YearOpen -> 2025 | AF24: =OFFSET($T9,MATCH(AF$20,$A:$A),0) -> 0 | AG24: 0 | AH24: 0 | AI24: 200977.42 | AK24: =IF(Induced<>"N",SUM(AF24:AI24),0) -> 200977.42 | AM24: =$AK24*(1+DiscRate)^($AE24-YearCurrent) -> 281881.2283
B25: =YearLast -> 2054 | C25: =SUMIF(INDEX(HwyTransitModelGroup,,1),B18,INDEX(ModelData20NB,,3))*AnnualFactor -> 0 | D25: =SUMIF(INDEX(HwyTransitModelGroup,,1),B18,INDEX(ModelData20B,,3))*AnnualFactor -> 0 | G25: =SUMIF(INDEX(HwyTransitModelGroup,,1),B18,INDEX(ModelData20NB,,1))*AnnualFactor -> 0 | H25: =SUMIF(INDEX(HwyTransitModelGroup,,1),B18,INDEX(ModelData20B,,1))*AnnualFactor -> 0 | K25: =SUMIF(INDEX(HwyTransitModelGroup,,1),B18,INDEX(ModelData20NB,,5))*AnnualFactor -> 0 | L25: =SUMIF(INDEX(HwyTransitModelGroup,,1),B18,INDEX(ModelData20B,,5))*AnnualFactor -> 0 | M25: =IFERROR(IF(B18=Hwy,C25*E25/G25,K25/G25),0) -> 0 | N25: =IFERROR(IF(B18=Hwy,D25*F25/H25,L25/H25),0) -> 0 | O25: =IF(E25=0,0,SUMPRODUCT(--(INDEX(HwyTransitModelGroup,,1)=B18),INDEX(ModelData20NB,,6),INDEX(ModelData20NB,,1))/IF(SUMPRODUCT(--(INDEX(HwyTransitModelGroup,,1)=B18),INDEX(ModelData20NB,,1))=0,1,SUMPRODUCT(--(INDEX(HwyTransitModelGroup,,1)=B18),INDEX(ModelData20NB,,1)))) -> 0 | P25: =IF(F25=0,0,SUMPRODUCT(--(INDEX(HwyTransitModelGroup,,1)=B18),INDEX(ModelData20B,,6),INDEX(ModelData20B,,1))/IF(SUMPRODUCT(--(INDEX(HwyTransitModelGroup,,1)=B18),INDEX(ModelData20B,,1))=0,1,SUMPRODUCT(--(INDEX(HwyTransitModelGroup,,1)=B18),INDEX(ModelData20B,,1)))) -> 0 | Q25: =IFERROR($H25-SUMIF('Consumer Surplus'!$C$197:$C$200,B18,'Consumer Surplus'!$K$197:$K$200),0) -> 0 | R25: =IF(Induced="N",0,(IF(B18=Hwy,M25*(I25*ValTimeTruck+(1-I25)*ValTimeAuto)-N25*(J25*ValTimeTruck+(1-J25)*ValTimeAuto),(IF(INDEX($P$197:$X$200,MATCH(B18,$O$197:$O$200,0),9)>0,INDEX($P$197:$X$200,MATCH(B18,$O$197:$O$200,0),9)/IF(INDEX($P$197:$X$200,MATCH(B18,$O$197:$O$200,0),9)=0,1,INDEX($P$197:$X$200,MATCH(B18,$O$197:$O$200,0),8)),M25)-N25)*ValTimeAuto)+O25-P25)*(H25-Q25)*0.5*(1+TTUprater)^($B25-YearCurrent)) -> 0 | S25: =SUM(R25:R25) -> 0 | T25: =S25/(1+DiscRate)^(B25-YearCurrent) -> 0 | AE25: =AE24+1 -> 2026 | AF25: 0 | AG25: 0 | AH25: 0 | AI25: 212400.3435 | AK25: 212400.3435 | AM25: 318755.6422
AE26: 2027 | AF26: 0 | AG26: 0 | AH26: 0 | AI26: 221464.4384 | AK26: 221464.4384 | AM26: 355623.4929
B27: =YearOpen -> 2025 | C27: =MAX(TREND(C24:C25,B24:B25,B27),0) -> 0 | D27: =MAX(TREND(D24:D25,B24:B25,B27),0) -> 0 | G27: =MAX(TREND(G24:G25,$B24:$B25,$B27),0) -> 0 | H27: =MAX(TREND(H24:H25,$B24:$B25,$B27),0) -> 0 | K27: =MAX(TREND(K24:K25,B24:B25,B27),0) -> 0 | L27: =MAX(TREND(L24:L25,B24:B25,B27),0) -> 0 | M27: =IFERROR(IF(B18=Hwy,C27*E27/G27,K27/G27),0) -> 0 | N27: =IFERROR(IF(B18=Hwy,D27*F27/H27,L27/H27),0) -> 0 | O27: =MAX(TREND(O24:O25,$B24:$B25,$B27),0) -> 0 | P27: =MAX(TREND(P24:P25,$B24:$B25,$B27),0) -> 0 | Q27: =TREND(Q24:Q25,$B24:$B25,$B27) -> 0 | R27: =IF(Induced="N",0,(IF(B18=Hwy,M27*(I27*ValTimeTruck+(1-I27)*ValTimeAuto)-N27*(J27*ValTimeTruck+(1-J27)*ValTimeAuto),(IF(INDEX($P$197:$X$200,MATCH(B18,$O$197:$O$200,0),7)>0,INDEX($P$197:$X$200,MATCH(B18,$O$197:$O$200,0),7)/IF(INDEX($P$197:$X$200,MATCH(B18,$O$197:$O$200,0),6)=0,1,INDEX($P$197:$X$200,MATCH(B18,$O$197:$O$200,0),6)),M27)-N27)*ValTimeAuto)+O27-P27)*(H27-Q27)*0.5*(1+TTUprater)^($B27-YearCurrent)) -> 0 | S27: =SUM(R27:R27) -> 0 | T27: =S27/(1+DiscRate)^(B27-YearCurrent) -> 0 | AE27: 2028 | AF27: 0 | AG27: 0 | AH27: 0 | AI27: 228430.6923 | AK27: 228430.6923 | AM27: 392486.4586
B28: =B27+1 -> 2026 | C28: =MAX(TREND(C24:C25,B24:B25,B28),0) -> 0 | D28: =MAX(TREND(D24:D25,B24:B25,B28),0) -> 0 | G28: =MAX(TREND(G24:G25,$B24:$B25,$B28),0) -> 0 | H28: =MAX(TREND(H24:H25,$B24:$B25,$B28),0) -> 0 | K28: =MAX(TREND(K24:K25,B24:B25,B28),0) -> 0 | L28: =MAX(TREND(L24:L25,B24:B25,B28),0) -> 0 | M28: =IFERROR(IF(B18=Hwy,C28*E28/G28,K28/G28),0) -> 0 | N28: =IFERROR(IF(B18=Hwy,D28*F28/H28,L28/H28),0) -> 0 | O28: =MAX(TREND(O24:O25,$B24:$B25,$B28),0) -> 0 | P28: =MAX(TREND(P24:P25,$B24:$B25,$B28),0) -> 0 | Q28: =TREND(Q24:Q25,$B24:$B25,$B28) -> 0 | R28: =IF(Induced="N",0,(IF(B18=Hwy,M28*(I28*ValTimeTruck+(1-I28)*ValTimeAuto)-N28*(J28*ValTimeTruck+(1-J28)*ValTimeAuto),(IF(INDEX($P$197:$X$200,MATCH(B18,$O$197:$O$200,0),7)>0,INDEX($P$197:$X$200,MATCH(B18,$O$197:$O$200,0),7)/IF(INDEX($P$197:$X$200,MATCH(B18,$O$197:$O$200,0),6)=0,1,INDEX($P$197:$X$200,MATCH(B18,$O$197:$O$200,0),6)),M28)-N28)*ValTimeAuto)+O28-P28)*(H28-Q28)*0.5*(1+TTUprater)^($B28-YearCurrent)) -> 0 | S28: 0 | T28: 0 | AE28: 2029 | AF28: 0 | AG28: 0 | AH28: 0 | AI28: 233535.6083 | AK28: 233535.6083 | AM28: 429345.6905
B29: =B28+1 -> 2027 | C29: =MAX(TREND(C24:C25,B24:B25,B29),0) -> 0 | D29: =MAX(TREND(D24:D25,B24:B25,B29),0) -> 0 | G29: =MAX(TREND(G24:G25,$B24:$B25,$B29),0) -> 0 | H29: =MAX(TREND(H24:H25,$B24:$B25,$B29),0) -> 0 | K29: =MAX(TREND(K24:K25,B24:B25,B29),0) -> 0 | L29: =MAX(TREND(L24:L25,B24:B25,B29),0) -> 0 | M29: =IFERROR(IF(B18=Hwy,C29*E29/G29,K29/G29),0) -> 0 | N29: =IFERROR(IF(B18=Hwy,D29*F29/H29,L29/H29),0) -> 0 | O29: =MAX(TREND(O24:O25,$B24:$B25,$B29),0) -> 0 | P29: =MAX(TREND(P24:P25,$B24:$B25,$B29),0) -> 0 | Q29: =TREND(Q24:Q25,$B24:$B25,$B29) -> 0 | R29: =IF(Induced="N",0,(IF(B18=Hwy,M29*(I29*ValTimeTruck+(1-I29)*ValTimeAuto)-N29*(J29*ValTimeTruck+(1-J29)*ValTimeAuto),(IF(INDEX($P$197:$X$200,MATCH(B18,$O$197:$O$200,0),7)>0,INDEX($P$197:$X$200,MATCH(B18,$O$197:$O$200,0),7)/IF(INDEX($P$197:$X$200,MATCH(B18,$O$197:$O$200,0),6)=0,1,INDEX($P$197:$X$200,MATCH(B18,$O$197:$O$200,0),6)),M29)-N29)*ValTimeAuto)+O29-P29)*(H29-Q29)*0.5*(1+TTUprater)^($B29-YearCurrent)) -> 0 | S29: 0 | T29: 0 | AE29: 2030 | AF29: 0 | AG29: 0 | AH29: 0 | AI29: 236993.4589 | AK29: 236993.4589 | AM29: 466202.0043
B30: 2028 | C30: =MAX(TREND(C24:C25,B24:B25,B30),0) -> 0 | D30: =MAX(TREND(D24:D25,B24:B25,B30),0) -> 0 | G30: =MAX(TREND(G24:G25,$B24:$B25,$B30),0) -> 0 | H30: =MAX(TREND(H24:H25,$B24:$B25,$B30),0) -> 0 | K30: =MAX(TREND(K24:K25,B24:B25,B30),0) -> 0 | L30: =MAX(TREND(L24:L25,B24:B25,B30),0) -> 0 | M30: =IFERROR(IF(B18=Hwy,C30*E30/G30,K30/G30),0) -> 0 | N30: =IFERROR(IF(B18=Hwy,D30*F30/H30,L30/H30),0) -> 0 | O30: =MAX(TREND(O24:O25,$B24:$B25,$B30),0) -> 0 | P30: =MAX(TREND(P24:P25,$B24:$B25,$B30),0) -> 0 | Q30: =TREND(Q24:Q25,$B24:$B25,$B30) -> 0 | R30: =IF(Induced="N",0,(IF(B18=Hwy,M30*(I30*ValTimeTruck+(1-I30)*ValTimeAuto)-N30*(J30*ValTimeTruck+(1-J30)*ValTimeAuto),(IF(INDEX($P$197:$X$200,MATCH(B18,$O$197:$O$200,0),7)>0,INDEX($P$197:$X$200,MATCH(B18,$O$197:$O$200,0),7)/IF(INDEX($P$197:$X$200,MATCH(B18,$O$197:$O$200,0),6)=0,1,INDEX($P$197:$X$200,MATCH(B18,$O$197:$O$200,0),6)),M30)-N30)*ValTimeAuto)+O30-P30)*(H30-Q30)*0.5*(1+TTUprater)^($B30-YearCurrent)) -> 0 | S30: 0 | T30: 0 | AE30: 2031 | AF30: 0 | AG30: 0 | AH30: 0 | AI30: 238998.279 | AK30: 238998.279 | AM30: 503055.9942
B31: 2029 | C31: =MAX(TREND(C24:C25,B24:B25,B31),0) -> 0 | D31: =MAX(TREND(D24:D25,B24:B25,B31),0) -> 0 | G31: =MAX(TREND(G24:G25,$B24:$B25,$B31),0) -> 0 | H31: =MAX(TREND(H24:H25,$B24:$B25,$B31),0) -> 0 | K31: =MAX(TREND(K24:K25,B24:B25,B31),0) -> 0 | L31: =MAX(TREND(L24:L25,B24:B25,B31),0) -> 0 | M31: =IFERROR(IF(B18=Hwy,C31*E31/G31,K31/G31),0) -> 0 | N31: =IFERROR(IF(B18=Hwy,D31*F31/H31,L31/H31),0) -> 0 | O31: =MAX(TREND(O24:O25,$B24:$B25,$B31),0) -> 0 | P31: =MAX(TREND(P24:P25,$B24:$B25,$B31),0) -> 0 | Q31: =TREND(Q24:Q25,$B24:$B25,$B31) -> 0 | R31: =IF(Induced="N",0,(IF(B18=Hwy,M31*(I31*ValTimeTruck+(1-I31)*ValTimeAuto)-N31*(J31*ValTimeTruck+(1-J31)*ValTimeAuto),(IF(INDEX($P$197:$X$200,MATCH(B18,$O$197:$O$200,0),7)>0,INDEX($P$197:$X$200,MATCH(B18,$O$197:$O$200,0),7)/IF(INDEX($P$197:$X$200,MATCH(B18,$O$197:$O$200,0),6)=0,1,INDEX($P$197:$X$200,MATCH(B18,$O$197:$O$200,0),6)),M31)-N31)*ValTimeAuto)+O31-P31)*(H31-Q31)*0.5*(1+TTUprater)^($B31-YearCurrent)) -> 0 | S31: 0 | T31: 0 | AE31: 2032 | AF31: 0 | AG31: 0 | AH31: 0 | AI31: 239725.6549 | AK31: 239725.6549 | AM31: 539908.1035
B32: 2030 | C32: =MAX(TREND(C24:C25,B24:B25,B32),0) -> 0 | D32: =MAX(TREND(D24:D25,B24:B25,B32),0) -> 0 | G32: =MAX(TREND(G24:G25,$B24:$B25,$B32),0) -> 0 | H32: =MAX(TREND(H24:H25,$B24:$B25,$B32),0) -> 0 | K32: =MAX(TREND(K24:K25,B24:B25,B32),0) -> 0 | L32: =MAX(TREND(L24:L25,B24:B25,B32),0) -> 0 | M32: =IFERROR(IF(B18=Hwy,C32*E32/G32,K32/G32),0) -> 0 | N32: =IFERROR(IF(B18=Hwy,D32*F32/H32,L32/H32),0) -> 0 | O32: =MAX(TREND(O24:O25,$B24:$B25,$B32),0) -> 0 | P32: =MAX(TREND(P24:P25,$B24:$B25,$B32),0) -> 0 | Q32: =TREND(Q24:Q25,$B24:$B25,$B32) -> 0 | R32: =IF(Induced="N",0,(IF(B18=Hwy,M32*(I32*ValTimeTruck+(1-I32)*ValTimeAuto)-N32*(J32*ValTimeTruck+(1-J32)*ValTimeAuto),(IF(INDEX($P$197:$X$200,MATCH(B18,$O$197:$O$200,0),7)>0,INDEX($P$197:$X$200,MATCH(B18,$O$197:$O$200,0),7)/IF(INDEX($P$197:$X$200,MATCH(B18,$O$197:$O$200,0),6)=0,1,INDEX($P$197:$X$200,MATCH(B18,$O$197:$O$200,0),6)),M32)-N32)*ValTimeAuto)+O32-P32)*(H32-Q32)*0.5*(1+TTUprater)^($B32-YearCurrent)) -> 0 | S32: 0 | T32: 0 | AE32: 2033 | AF32: 0 | AG32: 0 | AH32: 0 | AI32: 239334.3428 | AK32: 239334.3428 | AM32: 576758.6694
B33: 2031 | C33: =MAX(TREND(C24:C25,B24:B25,B33),0) -> 0 | D33: =MAX(TREND(D24:D25,B24:B25,B33),0) -> 0 | G33: =MAX(TREND(G24:G25,$B24:$B25,$B33),0) -> 0 | H33: =MAX(TREND(H24:H25,$B24:$B25,$B33),0) -> 0 | K33: =MAX(TREND(K24:K25,B24:B25,B33),0) -> 0 | L33: =MAX(TREND(L24:L25,B24:B25,B33),0) -> 0 | M33: =IFERROR(IF(B18=Hwy,C33*E33/G33,K33/G33),0) -> 0 | N33: =IFERROR(IF(B18=Hwy,D33*F33/H33,L33/H33),0) -> 0 | O33: =MAX(TREND(O24:O25,$B24:$B25,$B33),0) -> 0 | P33: =MAX(TREND(P24:P25,$B24:$B25,$B33),0) -> 0 | Q33: =TREND(Q24:Q25,$B24:$B25,$B33) -> 0 | R33: =IF(Induced="N",0,(IF(B18=Hwy,M33*(I33*ValTimeTruck+(1-I33)*ValTimeAuto)-N33*(J33*ValTimeTruck+(1-J33)*ValTimeAuto),(IF(INDEX($P$197:$X$200,MATCH(B18,$O$197:$O$200,0),7)>0,INDEX($P$197:$X$200,MATCH(B18,$O$197:$O$200,0),7)/IF(INDEX($P$197:$X$200,MATCH(B18,$O$197:$O$200,0),6)=0,1,INDEX($P$197:$X$200,MATCH(B18,$O$197:$O$200,0),6)),M33)-N33)*ValTimeAuto)+O33-P33)*(H33-Q33)*0.5*(1+TTUprater)^($B33-YearCurrent)) -> 0 | S33: 0 | T33: 0 | AE33: 2034 | AF33: 0 | AG33: 0 | AH33: 0 | AI33: 237967.7434 | AK33: 237967.7434 | AM33: 613607.953
B34: 2032 | C34: =MAX(TREND(C24:C25,B24:B25,B34),0) -> 0 | D34: =MAX(TREND(D24:D25,B24:B25,B34),0) -> 0 | G34: =MAX(TREND(G24:G25,$B24:$B25,$B34),0) -> 0 | H34: =MAX(TREND(H24:H25,$B24:$B25,$B34),0) -> 0 | K34: =MAX(TREND(K24:K25,B24:B25,B34),0) -> 0 | L34: =MAX(TREND(L24:L25,B24:B25,B34),0) -> 0 | M34: =IFERROR(IF(B18=Hwy,C34*E34/G34,K34/G34),0) -> 0 | N34: =IFERROR(IF(B18=Hwy,D34*F34/H34,L34/H34),0) -> 0 | O34: =MAX(TREND(O24:O25,$B24:$B25,$B34),0) -> 0 | P34: =MAX(TREND(P24:P25,$B24:$B25,$B34),0) -> 0 | Q34: =TREND(Q24:Q25,$B24:$B25,$B34) -> 0 | R34: =IF(Induced="N",0,(IF(B18=Hwy,M34*(I34*ValTimeTruck+(1-I34)*ValTimeAuto)-N34*(J34*ValTimeTruck+(1-J34)*ValTimeAuto),(IF(INDEX($P$197:$X$200,MATCH(B18,$O$197:$O$200,0),7)>0,INDEX($P$197:$X$200,MATCH(B18,$O$197:$O$200,0),7)/IF(INDEX($P$197:$X$200,MATCH(B18,$O$197:$O$200,0),6)=0,1,INDEX($P$197:$X$200,MATCH(B18,$O$197:$O$200,0),6)),M34)-N34)*ValTimeAuto)+O34-P34)*(H34-Q34)*0.5*(1+TTUprater)^($B34-YearCurrent)) -> 0 | S34: 0 | T34: 0 | AE34: 2035 | AF34: 0 | AG34: 0 | AH34: 0 | AI34: 235755.246 | AK34: 235755.246 | AM34: 650456.1596
B35: 2033 | C35: =MAX(TREND(C24:C25,B24:B25,B35),0) -> 0 | D35: =MAX(TREND(D24:D25,B24:B25,B35),0) -> 0 | G35: =MAX(TREND(G24:G25,$B24:$B25,$B35),0) -> 0 | H35: =MAX(TREND(H24:H25,$B24:$B25,$B35),0) -> 0 | K35: =MAX(TREND(K24:K25,B24:B25,B35),0) -> 0 | L35: =MAX(TREND(L24:L25,B24:B25,B35),0) -> 0 | M35: =IFERROR(IF(B18=Hwy,C35*E35/G35,K35/G35),0) -> 0 | N35: =IFERROR(IF(B18=Hwy,D35*F35/H35,L35/H35),0) -> 0 | O35: =MAX(TREND(O24:O25,$B24:$B25,$B35),0) -> 0 | P35: =MAX(TREND(P24:P25,$B24:$B25,$B35),0) -> 0 | Q35: =TREND(Q24:Q25,$B24:$B25,$B35) -> 0 | R35: =IF(Induced="N",0,(IF(B18=Hwy,M35*(I35*ValTimeTruck+(1-I35)*ValTimeAuto)-N35*(J35*ValTimeTruck+(1-J35)*ValTimeAuto),(IF(INDEX($P$197:$X$200,MATCH(B18,$O$197:$O$200,0),7)>0,INDEX($P$197:$X$200,MATCH(B18,$O$197:$O$200,0),7)/IF(INDEX($P$197:$X$200,MATCH(B18,$O$197:$O$200,0),6)=0,1,INDEX($P$197:$X$200,MATCH(B18,$O$197:$O$200,0),6)),M35)-N35)*ValTimeAuto)+O35-P35)*(H35-Q35)*0.5*(1+TTUprater)^($B35-YearCurrent)) -> 0 | S35: 0 | T35: 0 | AE35: 2036 | AF35: 0 | AG35: 0 | AH35: 0 | AI35: 232813.4587 | AK35: 232813.4587 | AM35: 687303.453
B36: 2034 | C36: =MAX(TREND(C24:C25,B24:B25,B36),0) -> 0 | D36: =MAX(TREND(D24:D25,B24:B25,B36),0) -> 0 | G36: =MAX(TREND(G24:G25,$B24:$B25,$B36),0) -> 0 | H36: =MAX(TREND(H24:H25,$B24:$B25,$B36),0) -> 0 | K36: =MAX(TREND(K24:K25,B24:B25,B36),0) -> 0 | L36: =MAX(TREND(L24:L25,B24:B25,B36),0) -> 0 | M36: =IFERROR(IF(B18=Hwy,C36*E36/G36,K36/G36),0) -> 0 | N36: =IFERROR(IF(B18=Hwy,D36*F36/H36,L36/H36),0) -> 0 | O36: =MAX(TREND(O24:O25,$B24:$B25,$B36),0) -> 0 | P36: =MAX(TREND(P24:P25,$B24:$B25,$B36),0) -> 0 | Q36: =TREND(Q24:Q25,$B24:$B25,$B36) -> 0 | R36: =IF(Induced="N",0,(IF(B18=Hwy,M36*(I36*ValTimeTruck+(1-I36)*ValTimeAuto)-N36*(J36*ValTimeTruck+(1-J36)*ValTimeAuto),(IF(INDEX($P$197:$X$200,MATCH(B18,$O$197:$O$200,0),7)>0,INDEX($P$197:$X$200,MATCH(B18,$O$197:$O$200,0),7)/IF(INDEX($P$197:$X$200,MATCH(B18,$O$197:$O$200,0),6)=0,1,INDEX($P$197:$X$200,MATCH(B18,$O$197:$O$200,0),6)),M36)-N36)*ValTimeAuto)+O36-P36)*(H36-Q36)*0.5*(1+TTUprater)^($B36-YearCurrent)) -> 0 | S36: 0 | T36: 0 | AE36: 2037 | AF36: 0 | AG36: 0 | AH36: 0 | AI36: 229247.3339 | AK36: 229247.3339 | AM36: 724149.9655
B37: 2035 | C37: =MAX(TREND(C24:C25,B24:B25,B37),0) -> 0 | D37: =MAX(TREND(D24:D25,B24:B25,B37),0) -> 0 | G37: =MAX(TREND(G24:G25,$B24:$B25,$B37),0) -> 0 | H37: =MAX(TREND(H24:H25,$B24:$B25,$B37),0) -> 0 | K37: =MAX(TREND(K24:K25,B24:B25,B37),0) -> 0 | L37: =MAX(TREND(L24:L25,B24:B25,B37),0) -> 0 | M37: =IFERROR(IF(B18=Hwy,C37*E37/G37,K37/G37),0) -> 0 | N37: =IFERROR(IF(B18=Hwy,D37*F37/H37,L37/H37),0) -> 0 | O37: =MAX(TREND(O24:O25,$B24:$B25,$B37),0) -> 0 | P37: =MAX(TREND(P24:P25,$B24:$B25,$B37),0) -> 0 | Q37: =TREND(Q24:Q25,$B24:$B25,$B37) -> 0 | R37: =IF(Induced="N",0,(IF(B18=Hwy,M37*(I37*ValTimeTruck+(1-I37)*ValTimeAuto)-N37*(J37*ValTimeTruck+(1-J37)*ValTimeAuto),(IF(INDEX($P$197:$X$200,MATCH(B18,$O$197:$O$200,0),7)>0,INDEX($P$197:$X$200,MATCH(B18,$O$197:$O$200,0),7)/IF(INDEX($P$197:$X$200,MATCH(B18,$O$197:$O$200,0),6)=0,1,INDEX($P$197:$X$200,MATCH(B18,$O$197:$O$200,0),6)),M37)-N37)*ValTimeAuto)+O37-P37)*(H37-Q37)*0.5*(1+TTUprater)^($B37-YearCurrent)) -> 0 | S37: 0 | T37: 0 | AE37: 2038 | AF37: 0 | AG37: 0 | AH37: 0 | AI37: 225151.1991 | AK37: 225151.1991 | AM37: 760995.8047
B38: 2036 | C38: =MAX(TREND(C24:C25,B24:B25,B38),0) -> 0 | D38: =MAX(TREND(D24:D25,B24:B25,B38),0) -> 0 | G38: =MAX(TREND(G24:G25,$B24:$B25,$B38),0) -> 0 | H38: =MAX(TREND(H24:H25,$B24:$B25,$B38),0) -> 0 | K38: =MAX(TREND(K24:K25,B24:B25,B38),0) -> 0 | L38: =MAX(TREND(L24:L25,B24:B25,B38),0) -> 0 | M38: =IFERROR(IF(B18=Hwy,C38*E38/G38,K38/G38),0) -> 0 | N38: =IFERROR(IF(B18=Hwy,D38*F38/H38,L38/H38),0) -> 0 | O38: =MAX(TREND(O24:O25,$B24:$B25,$B38),0) -> 0 | P38: =MAX(TREND(P24:P25,$B24:$B25,$B38),0) -> 0 | Q38: =TREND(Q24:Q25,$B24:$B25,$B38) -> 0 | R38: =IF(Induced="N",0,(IF(B18=Hwy,M38*(I38*ValTimeTruck+(1-I38)*ValTimeAuto)-N38*(J38*ValTimeTruck+(1-J38)*ValTimeAuto),(IF(INDEX($P$197:$X$200,MATCH(B18,$O$197:$O$200,0),7)>0,INDEX($P$197:$X$200,MATCH(B18,$O$197:$O$200,0),7)/IF(INDEX($P$197:$X$200,MATCH(B18,$O$197:$O$200,0),6)=0,1,INDEX($P$197:$X$200,MATCH(B18,$O$197:$O$200,0),6)),M38)-N38)*ValTimeAuto)+O38-P38)*(H38-Q38)*0.5*(1+TTUprater)^($B38-YearCurrent)) -> 0 | S38: 0 | T38: 0 | AE38: 2039 | AF38: 0 | AG38: 0 | AH38: 0 | AI38: 220609.7014 | AK38: 220609.7014 | AM38: 797841.0596
B39: 2037 | C39: =MAX(TREND(C24:C25,B24:B25,B39),0) -> 0 | D39: =MAX(TREND(D24:D25,B24:B25,B39),0) -> 0 | G39: =MAX(TREND(G24:G25,$B24:$B25,$B39),0) -> 0 | H39: =MAX(TREND(H24:H25,$B24:$B25,$B39),0) -> 0 | K39: =MAX(TREND(K24:K25,B24:B25,B39),0) -> 0 | L39: =MAX(TREND(L24:L25,B24:B25,B39),0) -> 0 | M39: =IFERROR(IF(B18=Hwy,C39*E39/G39,K39/G39),0) -> 0 | N39: =IFERROR(IF(B18=Hwy,D39*F39/H39,L39/H39),0) -> 0 | O39: =MAX(TREND(O24:O25,$B24:$B25,$B39),0) -> 0 | P39: =MAX(TREND(P24:P25,$B24:$B25,$B39),0) -> 0 | Q39: =TREND(Q24:Q25,$B24:$B25,$B39) -> 0 | R39: =IF(Induced="N",0,(IF(B18=Hwy,M39*(I39*ValTimeTruck+(1-I39)*ValTimeAuto)-N39*(J39*ValTimeTruck+(1-J39)*ValTimeAuto),(IF(INDEX($P$197:$X$200,MATCH(B18,$O$197:$O$200,0),7)>0,INDEX($P$197:$X$200,MATCH(B18,$O$197:$O$200,0),7)/IF(INDEX($P$197:$X$200,MATCH(B18,$O$197:$O$200,0),6)=0,1,INDEX($P$197:$X$200,MATCH(B18,$O$197:$O$200,0),6)),M39)-N39)*ValTimeAuto)+O39-P39)*(H39-Q39)*0.5*(1+TTUprater)^($B39-YearCurrent)) -> 0 | S39: 0 | T39: 0 | AE39: 2040 | AF39: 0 | AG39: 0 | AH39: 0 | AI39: 215698.6731 | AK39: 215698.6731 | AM39: 834685.8039
B40: 2038 | C40: =MAX(TREND(C24:C25,B24:B25,B40),0) -> 0 | D40: =MAX(TREND(D24:D25,B24:B25,B40),0) -> 0 | G40: =MAX(TREND(G24:G25,$B24:$B25,$B40),0) -> 0 | H40: =MAX(TREND(H24:H25,$B24:$B25,$B40),0) -> 0 | K40: =MAX(TREND(K24:K25,B24:B25,B40),0) -> 0 | L40: =MAX(TREND(L24:L25,B24:B25,B40),0) -> 0 | M40: =IFERROR(IF(B18=Hwy,C40*E40/G40,K40/G40),0) -> 0 | N40: =IFERROR(IF(B18=Hwy,D40*F40/H40,L40/H40),0) -> 0 | O40: =MAX(TREND(O24:O25,$B24:$B25,$B40),0) -> 0 | P40: =MAX(TREND(P24:P25,$B24:$B25,$B40),0) -> 0 | Q40: =TREND(Q24:Q25,$B24:$B25,$B40) -> 0 | R40: =IF(Induced="N",0,(IF(B18=Hwy,M40*(I40*ValTimeTruck+(1-I40)*ValTimeAuto)-N40*(J40*ValTimeTruck+(1-J40)*ValTimeAuto),(IF(INDEX($P$197:$X$200,MATCH(B18,$O$197:$O$200,0),7)>0,INDEX($P$197:$X$200,MATCH(B18,$O$197:$O$200,0),7)/IF(INDEX($P$197:$X$200,MATCH(B18,$O$197:$O$200,0),6)=0,1,INDEX($P$197:$X$200,MATCH(B18,$O$197:$O$200,0),6)),M40)-N40)*ValTimeAuto)+O40-P40)*(H40-Q40)*0.5*(1+TTUprater)^($B40-YearCurrent)) -> 0 | S40: 0 | T40: 0 | AE40: 2041 | AF40: 0 | AG40: 0 | AH40: 0 | AI40: 210485.9246 | AK40: 210485.9246 | AM40: 871530.0998
B41: 2039 | C41: =MAX(TREND(C24:C25,B24:B25,B41),0) -> 0 | D41: =MAX(TREND(D24:D25,B24:B25,B41),0) -> 0 | G41: =MAX(TREND(G24:G25,$B24:$B25,$B41),0) -> 0 | H41: =MAX(TREND(H24:H25,$B24:$B25,$B41),0) -> 0 | K41: =MAX(TREND(K24:K25,B24:B25,B41),0) -> 0 | L41: =MAX(TREND(L24:L25,B24:B25,B41),0) -> 0 | M41: =IFERROR(IF(B18=Hwy,C41*E41/G41,K41/G41),0) -> 0 | N41: =IFERROR(IF(B18=Hwy,D41*F41/H41,L41/H41),0) -> 0 | O41: =MAX(TREND(O24:O25,$B24:$B25,$B41),0) -> 0 | P41: =MAX(TREND(P24:P25,$B24:$B25,$B41),0) -> 0 | Q41: =TREND(Q24:Q25,$B24:$B25,$B41) -> 0 | R41: =IF(Induced="N",0,(IF(B18=Hwy,M41*(I41*ValTimeTruck+(1-I41)*ValTimeAuto)-N41*(J41*ValTimeTruck+(1-J41)*ValTimeAuto),(IF(INDEX($P$197:$X$200,MATCH(B18,$O$197:$O$200,0),7)>0,INDEX($P$197:$X$200,MATCH(B18,$O$197:$O$200,0),7)/IF(INDEX($P$197:$X$200,MATCH(B18,$O$197:$O$200,0),6)=0,1,INDEX($P$197:$X$200,MATCH(B18,$O$197:$O$200,0),6)),M41)-N41)*ValTimeAuto)+O41-P41)*(H41-Q41)*0.5*(1+TTUprater)^($B41-YearCurrent)) -> 0 | S41: 0 | T41: 0 | AE41: 2042 | AF41: 0 | AG41: 0 | AH41: 0 | AI41: 205031.9706 | AK41: 205031.9706 | AM41: 908373.9994
B42: 2040 | C42: =MAX(TREND(C24:C25,B24:B25,B42),0) -> 0 | D42: =MAX(TREND(D24:D25,B24:B25,B42),0) -> 0 | G42: =MAX(TREND(G24:G25,$B24:$B25,$B42),0) -> 0 | H42: =MAX(TREND(H24:H25,$B24:$B25,$B42),0) -> 0 | K42: =MAX(TREND(K24:K25,B24:B25,B42),0) -> 0 | L42: =MAX(TREND(L24:L25,B24:B25,B42),0) -> 0 | M42: =IFERROR(IF(B18=Hwy,C42*E42/G42,K42/G42),0) -> 0 | N42: =IFERROR(IF(B18=Hwy,D42*F42/H42,L42/H42),0) -> 0 | O42: =MAX(TREND(O24:O25,$B24:$B25,$B42),0) -> 0 | P42: =MAX(TREND(P24:P25,$B24:$B25,$B42),0) -> 0 | Q42: =TREND(Q24:Q25,$B24:$B25,$B42) -> 0 | R42: =IF(Induced="N",0,(IF(B18=Hwy,M42*(I42*ValTimeTruck+(1-I42)*ValTimeAuto)-N42*(J42*ValTimeTruck+(1-J42)*ValTimeAuto),(IF(INDEX($P$197:$X$200,MATCH(B18,$O$197:$O$200,0),7)>0,INDEX($P$197:$X$200,MATCH(B18,$O$197:$O$200,0),7)/IF(INDEX($P$197:$X$200,MATCH(B18,$O$197:$O$200,0),6)=0,1,INDEX($P$197:$X$200,MATCH(B18,$O$197:$O$200,0),6)),M42)-N42)*ValTimeAuto)+O42-P42)*(H42-Q42)*0.5*(1+TTUprater)^($B42-YearCurrent)) -> 0 | S42: 0 | T42: 0 | AE42: 2043 | AF42: 0 | AG42: 0 | AH42: 0 | AI42: 199390.6957 | AK42: 199390.6957 | AM42: 945217.5471
B43: 2041 | C43: =MAX(TREND(C24:C25,B24:B25,B43),0) -> 0 | D43: =MAX(TREND(D24:D25,B24:B25,B43),0) -> 0 | G43: =MAX(TREND(G24:G25,$B24:$B25,$B43),0) -> 0 | H43: =MAX(TREND(H24:H25,$B24:$B25,$B43),0) -> 0 | K43: =MAX(TREND(K24:K25,B24:B25,B43),0) -> 0 | L43: =MAX(TREND(L24:L25,B24:B25,B43),0) -> 0 | M43: =IFERROR(IF(B18=Hwy,C43*E43/G43,K43/G43),0) -> 0 | N43: =IFERROR(IF(B18=Hwy,D43*F43/H43,L43/H43),0) -> 0 | O43: =MAX(TREND(O24:O25,$B24:$B25,$B43),0) -> 0 | P43: =MAX(TREND(P24:P25,$B24:$B25,$B43),0) -> 0 | Q43: =TREND(Q24:Q25,$B24:$B25,$B43) -> 0 | R43: =IF(Induced="N",0,(IF(B18=Hwy,M43*(I43*ValTimeTruck+(1-I43)*ValTimeAuto)-N43*(J43*ValTimeTruck+(1-J43)*ValTimeAuto),(IF(INDEX($P$197:$X$200,MATCH(B18,$O$197:$O$200,0),7)>0,INDEX($P$197:$X$200,MATCH(B18,$O$197:$O$200,0),7)/IF(INDEX($P$197:$X$200,MATCH(B18,$O$197:$O$200,0),6)=0,1,INDEX($P$197:$X$200,MATCH(B18,$O$197:$O$200,0),6)),M43)-N43)*ValTimeAuto)+O43-P43)*(H43-Q43)*0.5*(1+TTUprater)^($B43-YearCurrent)) -> 0 | S43: 0 | T43: 0 | AE43: 2044 | AF43: 0 | AG43: 0 | AH43: 0 | AI43: 193609.9636 | AK43: 193609.9636 | AM43: 982060.7812
B44: 2042 | C44: =MAX(TREND(C24:C25,B24:B25,B44),0) -> 0 | D44: =MAX(TREND(D24:D25,B24:B25,B44),0) -> 0 | G44: =MAX(TREND(G24:G25,$B24:$B25,$B44),0) -> 0 | H44: =MAX(TREND(H24:H25,$B24:$B25,$B44),0) -> 0 | K44: =MAX(TREND(K24:K25,B24:B25,B44),0) -> 0 | L44: =MAX(TREND(L24:L25,B24:B25,B44),0) -> 0 | M44: =IFERROR(IF(B18=Hwy,C44*E44/G44,K44/G44),0) -> 0 | N44: =IFERROR(IF(B18=Hwy,D44*F44/H44,L44/H44),0) -> 0 | O44: =MAX(TREND(O24:O25,$B24:$B25,$B44),0) -> 0 | P44: =MAX(TREND(P24:P25,$B24:$B25,$B44),0) -> 0 | Q44: =TREND(Q24:Q25,$B24:$B25,$B44) -> 0 | R44: =IF(Induced="N",0,(IF(B18=Hwy,M44*(I44*ValTimeTruck+(1-I44)*ValTimeAuto)-N44*(J44*ValTimeTruck+(1-J44)*ValTimeAuto),(IF(INDEX($P$197:$X$200,MATCH(B18,$O$197:$O$200,0),7)>0,INDEX($P$197:$X$200,MATCH(B18,$O$197:$O$200,0),7)/IF(INDEX($P$197:$X$200,MATCH(B18,$O$197:$O$200,0),6)=0,1,INDEX($P$197:$X$200,MATCH(B18,$O$197:$O$200,0),6)),M44)-N44)*ValTimeAuto)+O44-P44)*(H44-Q44)*0.5*(1+TTUprater)^($B44-YearCurrent)) -> 0 | S44: 0 | T44: 0 | AE44: 2045 | AF44: 0 | AG44: 0 | AH44: 0 | AI44: 187732.175 | AK44: 187732.175 | AM44: 1018903.734
B45: 2043 | C45: =MAX(TREND(C24:C25,B24:B25,B45),0) -> 0 | D45: =MAX(TREND(D24:D25,B24:B25,B45),0) -> 0 | G45: =MAX(TREND(G24:G25,$B24:$B25,$B45),0) -> 0 | H45: =MAX(TREND(H24:H25,$B24:$B25,$B45),0) -> 0 | K45: =MAX(TREND(K24:K25,B24:B25,B45),0) -> 0 | L45: =MAX(TREND(L24:L25,B24:B25,B45),0) -> 0 | M45: =IFERROR(IF(B18=Hwy,C45*E45/G45,K45/G45),0) -> 0 | N45: =IFERROR(IF(B18=Hwy,D45*F45/H45,L45/H45),0) -> 0 | O45: =MAX(TREND(O24:O25,$B24:$B25,$B45),0) -> 0 | P45: =MAX(TREND(P24:P25,$B24:$B25,$B45),0) -> 0 | Q45: =TREND(Q24:Q25,$B24:$B25,$B45) -> 0 | R45: =IF(Induced="N",0,(IF(B18=Hwy,M45*(I45*ValTimeTruck+(1-I45)*ValTimeAuto)-N45*(J45*ValTimeTruck+(1-J45)*ValTimeAuto),(IF(INDEX($P$197:$X$200,MATCH(B18,$O$197:$O$200,0),7)>0,INDEX($P$197:$X$200,MATCH(B18,$O$197:$O$200,0),7)/IF(INDEX($P$197:$X$200,MATCH(B18,$O$197:$O$200,0),6)=0,1,INDEX($P$197:$X$200,MATCH(B18,$O$197:$O$200,0),6)),M45)-N45)*ValTimeAuto)+O45-P45)*(H45-Q45)*0.5*(1+TTUprater)^($B45-YearCurrent)) -> 0 | S45: 0 | T45: 0 | AE45: 2046 | AF45: 0 | AG45: 0 | AH45: 0 | AI45: 181794.7778 | AK45: 181794.7778 | AM45: 1055746.435
B46: 2044 | C46: =MAX(TREND(C24:C25,B24:B25,B46),0) -> 0 | D46: =MAX(TREND(D24:D25,B24:B25,B46),0) -> 0 | G46: =MAX(TREND(G24:G25,$B24:$B25,$B46),0) -> 0 | H46: =MAX(TREND(H24:H25,$B24:$B25,$B46),0) -> 0 | K46: =MAX(TREND(K24:K25,B24:B25,B46),0) -> 0 | L46: =MAX(TREND(L24:L25,B24:B25,B46),0) -> 0 | M46: =IFERROR(IF(B18=Hwy,C46*E46/G46,K46/G46),0) -> 0 | N46: =IFERROR(IF(B18=Hwy,D46*F46/H46,L46/H46),0) -> 0 | O46: =MAX(TREND(O24:O25,$B24:$B25,$B46),0) -> 0 | P46: =MAX(TREND(P24:P25,$B24:$B25,$B46),0) -> 0 | Q46: =TREND(Q24:Q25,$B24:$B25,$B46) -> 0 | R46: =IF(Induced="N",0,(IF(B18=Hwy,M46*(I46*ValTimeTruck+(1-I46)*ValTimeAuto)-N46*(J46*ValTimeTruck+(1-J46)*ValTimeAuto),(IF(INDEX($P$197:$X$200,MATCH(B18,$O$197:$O$200,0),7)>0,INDEX($P$197:$X$200,MATCH(B18,$O$197:$O$200,0),7)/IF(INDEX($P$197:$X$200,MATCH(B18,$O$197:$O$200,0),6)=0,1,INDEX($P$197:$X$200,MATCH(B18,$O$197:$O$200,0),6)),M46)-N46)*ValTimeAuto)+O46-P46)*(H46-Q46)*0.5*(1+TTUprater)^($B46-YearCurrent)) -> 0 | S46: 0 | T46: 0 | AE46: 2047 | AF46: 0 | AG46: 0 | AH46: 0 | AI46: 175830.7342 | AK46: 175830.7342 | AM46: 1092588.907
B47: 2045 | C47: =MAX(TREND(C24:C25,B24:B25,B47),0) -> 0 | D47: =MAX(TREND(D24:D25,B24:B25,B47),0) -> 0 | G47: =MAX(TREND(G24:G25,$B24:$B25,$B47),0) -> 0 | H47: =MAX(TREND(H24:H25,$B24:$B25,$B47),0) -> 0 | K47: =MAX(TREND(K24:K25,B24:B25,B47),0) -> 0 | L47: =MAX(TREND(L24:L25,B24:B25,B47),0) -> 0 | M47: =IFERROR(IF(B18=Hwy,C47*E47/G47,K47/G47),0) -> 0 | N47: =IFERROR(IF(B18=Hwy,D47*F47/H47,L47/H47),0) -> 0 | O47: =MAX(TREND(O24:O25,$B24:$B25,$B47),0) -> 0 | P47: =MAX(TREND(P24:P25,$B24:$B25,$B47),0) -> 0 | Q47: =TREND(Q24:Q25,$B24:$B25,$B47) -> 0 | R47: =IF(Induced="N",0,(IF(B18=Hwy,M47*(I47*ValTimeTruck+(1-I47)*ValTimeAuto)-N47*(J47*ValTimeTruck+(1-J47)*ValTimeAuto),(IF(INDEX($P$197:$X$200,MATCH(B18,$O$197:$O$200,0),7)>0,INDEX($P$197:$X$200,MATCH(B18,$O$197:$O$200,0),7)/IF(INDEX($P$197:$X$200,MATCH(B18,$O$197:$O$200,0),6)=0,1,INDEX($P$197:$X$200,MATCH(B18,$O$197:$O$200,0),6)),M47)-N47)*ValTimeAuto)+O47-P47)*(H47-Q47)*0.5*(1+TTUprater)^($B47-YearCurrent)) -> 0 | S47: 0 | T47: 0 | AE47: 2048 | AF47: 0 | AG47: 0 | AH47: 0 | AI47: 169868.9473 | AK47: 169868.9473 | AM47: 1129431.173
B48: 2046 | C48: =MAX(TREND(C24:C25,B24:B25,B48),0) -> 0 | D48: =MAX(TREND(D24:D25,B24:B25,B48),0) -> 0 | G48: =MAX(TREND(G24:G25,$B24:$B25,$B48),0) -> 0 | H48: =MAX(TREND(H24:H25,$B24:$B25,$B48),0) -> 0 | K48: =MAX(TREND(K24:K25,B24:B25,B48),0) -> 0 | L48: =MAX(TREND(L24:L25,B24:B25,B48),0) -> 0 | M48: =IFERROR(IF(B18=Hwy,C48*E48/G48,K48/G48),0) -> 0 | N48: =IFERROR(IF(B18=Hwy,D48*F48/H48,L48/H48),0) -> 0 | O48: =MAX(TREND(O24:O25,$B24:$B25,$B48),0) -> 0 | P48: =MAX(TREND(P24:P25,$B24:$B25,$B48),0) -> 0 | Q48: =TREND(Q24:Q25,$B24:$B25,$B48) -> 0 | R48: =IF(Induced="N",0,(IF(B18=Hwy,M48*(I48*ValTimeTruck+(1-I48)*ValTimeAuto)-N48*(J48*ValTimeTruck+(1-J48)*ValTimeAuto),(IF(INDEX($P$197:$X$200,MATCH(B18,$O$197:$O$200,0),7)>0,INDEX($P$197:$X$200,MATCH(B18,$O$197:$O$200,0),7)/IF(INDEX($P$197:$X$200,MATCH(B18,$O$197:$O$200,0),6)=0,1,INDEX($P$197:$X$200,MATCH(B18,$O$197:$O$200,0),6)),M48)-N48)*ValTimeAuto)+O48-P48)*(H48-Q48)*0.5*(1+TTUprater)^($B48-YearCurrent)) -> 0 | S48: 0 | T48: 0 | AE48: 2049 | AF48: 0 | AG48: 0 | AH48: 0 | AI48: 163934.6518 | AK48: 163934.6518 | AM48: 1166273.252
B49: 2047 | C49: =MAX(TREND(C24:C25,B24:B25,B49),0) -> 0 | D49: =MAX(TREND(D24:D25,B24:B25,B49),0) -> 0 | G49: =MAX(TREND(G24:G25,$B24:$B25,$B49),0) -> 0 | H49: =MAX(TREND(H24:H25,$B24:$B25,$B49),0) -> 0 | K49: =MAX(TREND(K24:K25,B24:B25,B49),0) -> 0 | L49: =MAX(TREND(L24:L25,B24:B25,B49),0) -> 0 | M49: =IFERROR(IF(B18=Hwy,C49*E49/G49,K49/G49),0) -> 0 | N49: =IFERROR(IF(B18=Hwy,D49*F49/H49,L49/H49),0) -> 0 | O49: =MAX(TREND(O24:O25,$B24:$B25,$B49),0) -> 0 | P49: =MAX(TREND(P24:P25,$B24:$B25,$B49),0) -> 0 | Q49: =TREND(Q24:Q25,$B24:$B25,$B49) -> 0 | R49: =IF(Induced="N",0,(IF(B18=Hwy,M49*(I49*ValTimeTruck+(1-I49)*ValTimeAuto)-N49*(J49*ValTimeTruck+(1-J49)*ValTimeAuto),(IF(INDEX($P$197:$X$200,MATCH(B18,$O$197:$O$200,0),7)>0,INDEX($P$197:$X$200,MATCH(B18,$O$197:$O$200,0),7)/IF(INDEX($P$197:$X$200,MATCH(B18,$O$197:$O$200,0),6)=0,1,INDEX($P$197:$X$200,MATCH(B18,$O$197:$O$200,0),6)),M49)-N49)*ValTimeAuto)+O49-P49)*(H49-Q49)*0.5*(1+TTUprater)^($B49-YearCurrent)) -> 0 | S49: 0 | T49: 0 | AE49: 2050 | AF49: 0 | AG49: 0 | AH49: 0 | AI49: 158049.7702 | AK49: 158049.7702 | AM49: 1203115.16
B50: 2048 | C50: =MAX(TREND(C24:C25,B24:B25,B50),0) -> 0 | D50: =MAX(TREND(D24:D25,B24:B25,B50),0) -> 0 | G50: =MAX(TREND(G24:G25,$B24:$B25,$B50),0) -> 0 | H50: =MAX(TREND(H24:H25,$B24:$B25,$B50),0) -> 0 | K50: =MAX(TREND(K24:K25,B24:B25,B50),0) -> 0 | L50: =MAX(TREND(L24:L25,B24:B25,B50),0) -> 0 | M50: =IFERROR(IF(B18=Hwy,C50*E50/G50,K50/G50),0) -> 0 | N50: =IFERROR(IF(B18=Hwy,D50*F50/H50,L50/H50),0) -> 0 | O50: =MAX(TREND(O24:O25,$B24:$B25,$B50),0) -> 0 | P50: =MAX(TREND(P24:P25,$B24:$B25,$B50),0) -> 0 | Q50: =TREND(Q24:Q25,$B24:$B25,$B50) -> 0 | R50: =IF(Induced="N",0,(IF(B18=Hwy,M50*(I50*ValTimeTruck+(1-I50)*ValTimeAuto)-N50*(J50*ValTimeTruck+(1-J50)*ValTimeAuto),(IF(INDEX($P$197:$X$200,MATCH(B18,$O$197:$O$200,0),7)>0,INDEX($P$197:$X$200,MATCH(B18,$O$197:$O$200,0),7)/IF(INDEX($P$197:$X$200,MATCH(B18,$O$197:$O$200,0),6)=0,1,INDEX($P$197:$X$200,MATCH(B18,$O$197:$O$200,0),6)),M50)-N50)*ValTimeAuto)+O50-P50)*(H50-Q50)*0.5*(1+TTUprater)^($B50-YearCurrent)) -> 0 | S50: 0 | T50: 0 | AE50: 2051 | AF50: 0 | AG50: 0 | AH50: 0 | AI50: 152233.2382 | AK50: 152233.2382 | AM50: 1239956.912
B51: 2049 | C51: =MAX(TREND(C24:C25,B24:B25,B51),0) -> 0 | D51: =MAX(TREND(D24:D25,B24:B25,B51),0) -> 0 | G51: =MAX(TREND(G24:G25,$B24:$B25,$B51),0) -> 0 | H51: =MAX(TREND(H24:H25,$B24:$B25,$B51),0) -> 0 | K51: =MAX(TREND(K24:K25,B24:B25,B51),0) -> 0 | L51: =MAX(TREND(L24:L25,B24:B25,B51),0) -> 0 | M51: =IFERROR(IF(B18=Hwy,C51*E51/G51,K51/G51),0) -> 0 | N51: =IFERROR(IF(B18=Hwy,D51*F51/H51,L51/H51),0) -> 0 | O51: =MAX(TREND(O24:O25,$B24:$B25,$B51),0) -> 0 | P51: =MAX(TREND(P24:P25,$B24:$B25,$B51),0) -> 0 | Q51: =TREND(Q24:Q25,$B24:$B25,$B51) -> 0 | R51: =IF(Induced="N",0,(IF(B18=Hwy,M51*(I51*ValTimeTruck+(1-I51)*ValTimeAuto)-N51*(J51*ValTimeTruck+(1-J51)*ValTimeAuto),(IF(INDEX($P$197:$X$200,MATCH(B18,$O$197:$O$200,0),7)>0,INDEX($P$197:$X$200,MATCH(B18,$O$197:$O$200,0),7)/IF(INDEX($P$197:$X$200,MATCH(B18,$O$197:$O$200,0),6)=0,1,INDEX($P$197:$X$200,MATCH(B18,$O$197:$O$200,0),6)),M51)-N51)*ValTimeAuto)+O51-P51)*(H51-Q51)*0.5*(1+TTUprater)^($B51-YearCurrent)) -> 0 | S51: 0 | T51: 0 | AE51: 2052 | AF51: 0 | AG51: 0 | AH51: 0 | AI51: 146501.3021 | AK51: 146501.3021 | AM51: 1276798.52
B52: 2050 | C52: =MAX(TREND(C24:C25,B24:B25,B52),0) -> 0 | D52: =MAX(TREND(D24:D25,B24:B25,B52),0) -> 0 | G52: =MAX(TREND(G24:G25,$B24:$B25,$B52),0) -> 0 | H52: =MAX(TREND(H24:H25,$B24:$B25,$B52),0) -> 0 | K52: =MAX(TREND(K24:K25,B24:B25,B52),0) -> 0 | L52: =MAX(TREND(L24:L25,B24:B25,B52),0) -> 0 | M52: =IFERROR(IF(B18=Hwy,C52*E52/G52,K52/G52),0) -> 0 | N52: =IFERROR(IF(B18=Hwy,D52*F52/H52,L52/H52),0) -> 0 | O52: =MAX(TREND(O24:O25,$B24:$B25,$B52),0) -> 0 | P52: =MAX(TREND(P24:P25,$B24:$B25,$B52),0) -> 0 | Q52: =TREND(Q24:Q25,$B24:$B25,$B52) -> 0 | R52: =IF(Induced="N",0,(IF(B18=Hwy,M52*(I52*ValTimeTruck+(1-I52)*ValTimeAuto)-N52*(J52*ValTimeTruck+(1-J52)*ValTimeAuto),(IF(INDEX($P$197:$X$200,MATCH(B18,$O$197:$O$200,0),7)>0,INDEX($P$197:$X$200,MATCH(B18,$O$197:$O$200,0),7)/IF(INDEX($P$197:$X$200,MATCH(B18,$O$197:$O$200,0),6)=0,1,INDEX($P$197:$X$200,MATCH(B18,$O$197:$O$200,0),6)),M52)-N52)*ValTimeAuto)+O52-P52)*(H52-Q52)*0.5*(1+TTUprater)^($B52-YearCurrent)) -> 0 | S52: 0 | T52: 0 | AE52: 2053 | AF52: 0 | AG52: 0 | AH52: 0 | AI52: 140867.7896 | AK52: 140867.7896 | AM52: 1313639.998
B53: 2051 | C53: =MAX(TREND(C24:C25,B24:B25,B53),0) -> 0 | D53: =MAX(TREND(D24:D25,B24:B25,B53),0) -> 0 | G53: =MAX(TREND(G24:G25,$B24:$B25,$B53),0) -> 0 | H53: =MAX(TREND(H24:H25,$B24:$B25,$B53),0) -> 0 | K53: =MAX(TREND(K24:K25,B24:B25,B53),0) -> 0 | L53: =MAX(TREND(L24:L25,B24:B25,B53),0) -> 0 | M53: =IFERROR(IF(B18=Hwy,C53*E53/G53,K53/G53),0) -> 0 | N53: =IFERROR(IF(B18=Hwy,D53*F53/H53,L53/H53),0) -> 0 | O53: =MAX(TREND(O24:O25,$B24:$B25,$B53),0) -> 0 | P53: =MAX(TREND(P24:P25,$B24:$B25,$B53),0) -> 0 | Q53: =TREND(Q24:Q25,$B24:$B25,$B53) -> 0 | R53: =IF(Induced="N",0,(IF(B18=Hwy,M53*(I53*ValTimeTruck+(1-I53)*ValTimeAuto)-N53*(J53*ValTimeTruck+(1-J53)*ValTimeAuto),(IF(INDEX($P$197:$X$200,MATCH(B18,$O$197:$O$200,0),7)>0,INDEX($P$197:$X$200,MATCH(B18,$O$197:$O$200,0),7)/IF(INDEX($P$197:$X$200,MATCH(B18,$O$197:$O$200,0),6)=0,1,INDEX($P$197:$X$200,MATCH(B18,$O$197:$O$200,0),6)),M53)-N53)*ValTimeAuto)+O53-P53)*(H53-Q53)*0.5*(1+TTUprater)^($B53-YearCurrent)) -> 0 | S53: 0 | T53: 0 | AE53: 2054 | AF53: 0 | AG53: 0 | AH53: 0 | AI53: 135344.3564 | AK53: 135344.3564 | AM53: 1350481.355
B54: 2052 | C54: =MAX(TREND(C24:C25,B24:B25,B54),0) -> 0 | D54: =MAX(TREND(D24:D25,B24:B25,B54),0) -> 0 | G54: =MAX(TREND(G24:G25,$B24:$B25,$B54),0) -> 0 | H54: =MAX(TREND(H24:H25,$B24:$B25,$B54),0) -> 0 | K54: =MAX(TREND(K24:K25,B24:B25,B54),0) -> 0 | L54: =MAX(TREND(L24:L25,B24:B25,B54),0) -> 0 | M54: =IFERROR(IF(B18=Hwy,C54*E54/G54,K54/G54),0) -> 0 | N54: =IFERROR(IF(B18=Hwy,D54*F54/H54,L54/H54),0) -> 0 | O54: =MAX(TREND(O24:O25,$B24:$B25,$B54),0) -> 0 | P54: =MAX(TREND(P24:P25,$B24:$B25,$B54),0) -> 0 | Q54: =TREND(Q24:Q25,$B24:$B25,$B54) -> 0 | R54: =IF(Induced="N",0,(IF(B18=Hwy,M54*(I54*ValTimeTruck+(1-I54)*ValTimeAuto)-N54*(J54*ValTimeTruck+(1-J54)*ValTimeAuto),(IF(INDEX($P$197:$X$200,MATCH(B18,$O$197:$O$200,0),7)>0,INDEX($P$197:$X$200,MATCH(B18,$O$197:$O$200,0),7)/IF(INDEX($P$197:$X$200,MATCH(B18,$O$197:$O$200,0),6)=0,1,INDEX($P$197:$X$200,MATCH(B18,$O$197:$O$200,0),6)),M54)-N54)*ValTimeAuto)+O54-P54)*(H54-Q54)*0.5*(1+TTUprater)^($B54-YearCurrent)) -> 0 | S54: 0 | T54: 0
B55: 2053 | C55: =MAX(TREND(C24:C25,B24:B25,B55),0) -> 0 | D55: =MAX(TREND(D24:D25,B24:B25,B55),0) -> 0 | G55: =MAX(TREND(G24:G25,$B24:$B25,$B55),0) -> 0 | H55: =MAX(TREND(H24:H25,$B24:$B25,$B55),0) -> 0 | K55: =MAX(TREND(K24:K25,B24:B25,B55),0) -> 0 | L55: =MAX(TREND(L24:L25,B24:B25,B55),0) -> 0 | M55: =IFERROR(IF(B18=Hwy,C55*E55/G55,K55/G55),0) -> 0 | N55: =IFERROR(IF(B18=Hwy,D55*F55/H55,L55/H55),0) -> 0 | O55: =MAX(TREND(O24:O25,$B24:$B25,$B55),0) -> 0 | P55: =MAX(TREND(P24:P25,$B24:$B25,$B55),0) -> 0 | Q55: =TREND(Q24:Q25,$B24:$B25,$B55) -> 0 | R55: =IF(Induced="N",0,(IF(B18=Hwy,M55*(I55*ValTimeTruck+(1-I55)*ValTimeAuto)-N55*(J55*ValTimeTruck+(1-J55)*ValTimeAuto),(IF(INDEX($P$197:$X$200,MATCH(B18,$O$197:$O$200,0),7)>0,INDEX($P$197:$X$200,MATCH(B18,$O$197:$O$200,0),7)/IF(INDEX($P$197:$X$200,MATCH(B18,$O$197:$O$200,0),6)=0,1,INDEX($P$197:$X$200,MATCH(B18,$O$197:$O$200,0),6)),M55)-N55)*ValTimeAuto)+O55-P55)*(H55-Q55)*0.5*(1+TTUprater)^($B55-YearCurrent)) -> 0 | S55: 0 | T55: 0 | AE55: Total | AF55: =SUM(AF24:AF53) -> 0 | AG55: =SUM(AG24:AG53) -> 0 | AH55: =SUM(AH24:AH53) -> 0 | AI55: =SUM(AI24:AI53) -> 6069779.891 | AK55: =SUM(AK24:AK53) -> 6069779.891 | AM55: =SUM(AM24:AM53) -> 24487175.36
B56: 2054 | C56: =MAX(TREND(C24:C25,B24:B25,B56),0) -> 0 | D56: =MAX(TREND(D24:D25,B24:B25,B56),0) -> 0 | G56: =MAX(TREND(G24:G25,$B24:$B25,$B56),0) -> 0 | H56: =MAX(TREND(H24:H25,$B24:$B25,$B56),0) -> 0 | K56: =MAX(TREND(K24:K25,B24:B25,B56),0) -> 0 | L56: =MAX(TREND(L24:L25,B24:B25,B56),0) -> 0 | M56: =IFERROR(IF(B18=Hwy,C56*E56/G56,K56/G56),0) -> 0 | N56: =IFERROR(IF(B18=Hwy,D56*F56/H56,L56/H56),0) -> 0 | O56: =MAX(TREND(O24:O25,$B24:$B25,$B56),0) -> 0 | P56: =MAX(TREND(P24:P25,$B24:$B25,$B56),0) -> 0 | Q56: =TREND(Q24:Q25,$B24:$B25,$B56) -> 0 | R56: =IF(Induced="N",0,(IF(B18=Hwy,M56*(I56*ValTimeTruck+(1-I56)*ValTimeAuto)-N56*(J56*ValTimeTruck+(1-J56)*ValTimeAuto),(IF(INDEX($P$197:$X$200,MATCH(B18,$O$197:$O$200,0),7)>0,INDEX($P$197:$X$200,MATCH(B18,$O$197:$O$200,0),7)/IF(INDEX($P$197:$X$200,MATCH(B18,$O$197:$O$200,0),6)=0,1,INDEX($P$197:$X$200,MATCH(B18,$O$197:$O$200,0),6)),M56)-N56)*ValTimeAuto)+O56-P56)*(H56-Q56)*0.5*(1+TTUprater)^($B56-YearCurrent)) -> 0 | S56: 0 | T56: 0
AE57: =IF(Induced="Y","","* Induced Travel Not Counted") -> 
B58: Total | T58: =SUM(T27:T56) -> 0
A61: 2 | B61: =PARAMETERS!$J$10 -> Pass Train
C63: TOTAL VHT | E63: AVERAGE VEH OCC | G63: =IF(B61=Hwy,"TOTAL VEHICLE TRIPS","TOTAL PERSON TRIPS") -> TOTAL PERSON TRIPS | I63: PERCENT TRUCKS | K63: TOTAL PHT | M63: AVERAGE TRAVEL TIME | O63: OUT OF POCKET COST | Q63: =IF(B61=Hwy,"TOTAL VEHICLE TRIPS","TOTAL PERSON TRIPS") -> TOTAL PERSON TRIPS | R63: CONSUMER SURPLUS BENEFIT
C64: (veh-hours/yr) | E64: (persons/vehicle) | G64: (trips/yr) | I64: (%) | K64: (per-hours/yr) | M64: (hours/trip) | O64: ($/trip) | Q64: (trips/yr) | R64: ($/yr)
B65: Year | Q65: Adjusted (no induced) | R65: New | S65: Constant | T65: Present
C66: No Build | D66: Build | E66: No Build | F66: Build | G66: No Build | H66: Build | I66: No Build | J66: Build | K66: No Build | L66: Build | M66: No Build | N66: Build | O66: No Build | P66: Build | Q66: Build | R66: (Induced) | S66: Dollars | T66: Value
B67: =YearFirst -> 2020 | C67: =SUMIF(INDEX(HwyTransitModelGroup,,1),B61,INDEX(ModelData1NB,,3))*AnnualFactor -> 0 | D67: =SUMIF(INDEX(HwyTransitModelGroup,,1),B61,INDEX(ModelData1B,,3))*AnnualFactor -> 0 | G67: =SUMIF(INDEX(HwyTransitModelGroup,,1),B61,INDEX(ModelData1NB,,1))*AnnualFactor -> 0 | H67: =SUMIF(INDEX(HwyTransitModelGroup,,1),B61,INDEX(ModelData1B,,1))*AnnualFactor -> 0 | K67: =SUMIF(INDEX(HwyTransitModelGroup,,1),B61,INDEX(ModelData1NB,,5))*AnnualFactor -> 0 | L67: =SUMIF(INDEX(HwyTransitModelGroup,,1),B61,INDEX(ModelData1B,,5))*AnnualFactor -> 0 | M67: =IFERROR(IF(B61=Hwy,C67*E67/G67,K67/G67),0) -> 0 | N67: =IFERROR(IF(B61=Hwy,D67*F67/H67,L67/H67),0) -> 0 | O67: =IF(E67=0,0,SUMPRODUCT(--(INDEX(HwyTransitModelGroup,,1)=B61),INDEX(ModelData1NB,,6),INDEX(ModelData1NB,,1))/IF(SUMPRODUCT(--(INDEX(HwyTransitModelGroup,,1)=B61),INDEX(ModelData1NB,,1))=0,1,SUMPRODUCT(--(INDEX(HwyTransitModelGroup,,1)=B61),INDEX(ModelData1NB,,1)))) -> 0 | P67: =IF(F67=0,0,SUMPRODUCT(--(INDEX(HwyTransitModelGroup,,1)=B61),INDEX(ModelData1B,,6),INDEX(ModelData1B,,1))/IF(SUMPRODUCT(--(INDEX(HwyTransitModelGroup,,1)=B61),INDEX(ModelData1B,,1))=0,1,SUMPRODUCT(--(INDEX(HwyTransitModelGroup,,1)=B61),INDEX(ModelData1B,,1)))) -> 0 | Q67: =IFERROR($H67-SUMIF('Consumer Surplus'!$C$197:$C$200,B61,'Consumer Surplus'!$G$197:$G$200),0) -> 0 | R67: =IF(Induced="N",0,(IF(B61=Hwy,M67*(I67*ValTimeTruck+(1-I67)*ValTimeAuto)-N67*(J67*ValTimeTruck+(1-J67)*ValTimeAuto),(IF(INDEX($P$197:$X$200,MATCH(B61,$O$197:$O$200,0),7)>0,INDEX($P$197:$X$200,MATCH(B61,$O$197:$O$200,0),7)/IF(INDEX($P$197:$X$200,MATCH(B61,$O$197:$O$200,0),6)=0,1,INDEX($P$197:$X$200,MATCH(B61,$O$197:$O$200,0),6)),M67)-N67)*ValTimeAuto)+O67-P67)*(H67-Q67)*0.5*(1+TTUprater)^($B67-YearCurrent)) -> 0 | S67: =SUM(R67:R67) -> 0 | T67: =S67/(1+DiscRate)^(B67-YearCurrent) -> 0
B68: =YearLast -> 2054 | C68: =SUMIF(INDEX(HwyTransitModelGroup,,1),B61,INDEX(ModelData20NB,,3))*AnnualFactor -> 0 | D68: =SUMIF(INDEX(HwyTransitModelGroup,,1),B61,INDEX(ModelData20B,,3))*AnnualFactor -> 0 | G68: =SUMIF(INDEX(HwyTransitModelGroup,,1),B61,INDEX(ModelData20NB,,1))*AnnualFactor -> 0 | H68: =SUMIF(INDEX(HwyTransitModelGroup,,1),B61,INDEX(ModelData20B,,1))*AnnualFactor -> 0 | K68: =SUMIF(INDEX(HwyTransitModelGroup,,1),B61,INDEX(ModelData20NB,,5))*AnnualFactor -> 0 | L68: =SUMIF(INDEX(HwyTransitModelGroup,,1),B61,INDEX(ModelData20B,,5))*AnnualFactor -> 0 | M68: =IFERROR(IF(B61=Hwy,C68*E68/G68,K68/G68),0) -> 0 | N68: =IFERROR(IF(B61=Hwy,D68*F68/H68,L68/H68),0) -> 0 | O68: =IF(E68=0,0,SUMPRODUCT(--(INDEX(HwyTransitModelGroup,,1)=B61),INDEX(ModelData20NB,,6),INDEX(ModelData20NB,,1))/IF(SUMPRODUCT(--(INDEX(HwyTransitModelGroup,,1)=B61),INDEX(ModelData20NB,,1))=0,1,SUMPRODUCT(--(INDEX(HwyTransitModelGroup,,1)=B61),INDEX(ModelData20NB,,1)))) -> 0 | P68: =IF(F68=0,0,SUMPRODUCT(--(INDEX(HwyTransitModelGroup,,1)=B61),INDEX(ModelData20B,,6),INDEX(ModelData20B,,1))/IF(SUMPRODUCT(--(INDEX(HwyTransitModelGroup,,1)=B61),INDEX(ModelData20B,,1))=0,1,SUMPRODUCT(--(INDEX(HwyTransitModelGroup,,1)=B61),INDEX(ModelData20B,,1)))) -> 0 | Q68: =IFERROR($H68-SUMIF('Consumer Surplus'!$C$197:$C$200,B61,'Consumer Surplus'!$K$197:$K$200),0) -> 0 | R68: =IF(Induced="N",0,(IF(B61=Hwy,M68*(I68*ValTimeTruck+(1-I68)*ValTimeAuto)-N68*(J68*ValTimeTruck+(1-J68)*ValTimeAuto),(IF(INDEX($P$197:$X$200,MATCH(B61,$O$197:$O$200,0),9)>0,INDEX($P$197:$X$200,MATCH(B61,$O$197:$O$200,0),9)/IF(INDEX($P$197:$X$200,MATCH(B61,$O$197:$O$200,0),9)=0,1,INDEX($P$197:$X$200,MATCH(B61,$O$197:$O$200,0),8)),M68)-N68)*ValTimeAuto)+O68-P68)*(H68-Q68)*0.5*(1+TTUprater)^($B68-YearCurrent)) -> 0 | S68: =SUM(R68:R68) -> 0 | T68: =S68/(1+DiscRate)^(B68-YearCurrent) -> 0
B70: =YearOpen -> 2025 | C70: =MAX(TREND(C67:C68,B67:B68,B70),0) -> 0 | D70: =MAX(TREND(D67:D68,B67:B68,B70),0) -> 0 | G70: =MAX(TREND(G67:G68,$B67:$B68,$B70),0) -> 0 | H70: =MAX(TREND(H67:H68,$B67:$B68,$B70),0) -> 0 | K70: =MAX(TREND(K67:K68,B67:B68,B70),0) -> 0 | L70: =MAX(TREND(L67:L68,B67:B68,B70),0) -> 0 | M70: =IFERROR(IF(B61=Hwy,C70*E70/G70,K70/G70),0) -> 0 | N70: =IFERROR(IF(B61=Hwy,D70*F70/H70,L70/H70),0) -> 0 | O70: =MAX(TREND(O67:O68,$B67:$B68,$B70),0) -> 0 | P70: =MAX(TREND(P67:P68,$B67:$B68,$B70),0) -> 0 | Q70: =TREND(Q67:Q68,$B67:$B68,$B70) -> 0 | R70: =IF(Induced="N",0,(IF(B61=Hwy,M70*(I70*ValTimeTruck+(1-I70)*ValTimeAuto)-N70*(J70*ValTimeTruck+(1-J70)*ValTimeAuto),(IF(INDEX($P$197:$X$200,MATCH(B61,$O$197:$O$200,0),7)>0,INDEX($P$197:$X$200,MATCH(B61,$O$197:$O$200,0),7)/IF(INDEX($P$197:$X$200,MATCH(B61,$O$197:$O$200,0),6)=0,1,INDEX($P$197:$X$200,MATCH(B61,$O$197:$O$200,0),6)),M70)-N70)*ValTimeAuto)+O70-P70)*(H70-Q70)*0.5*(1+TTUprater)^($B70-YearCurrent)) -> 0 | S70: =SUM(R70:R70) -> 0 | T70: =S70/(1+DiscRate)^(B70-YearCurrent) -> 0
B71: =B70+1 -> 2026 | C71: =MAX(TREND(C67:C68,B67:B68,B71),0) -> 0 | D71: =MAX(TREND(D67:D68,B67:B68,B71),0) -> 0 | G71: =MAX(TREND(G67:G68,$B67:$B68,$B71),0) -> 0 | H71: =MAX(TREND(H67:H68,$B67:$B68,$B71),0) -> 0 | K71: =MAX(TREND(K67:K68,B67:B68,B71),0) -> 0 | L71: =MAX(TREND(L67:L68,B67:B68,B71),0) -> 0 | M71: =IFERROR(IF(B61=Hwy,C71*E71/G71,K71/G71),0) -> 0 | N71: =IFERROR(IF(B61=Hwy,D71*F71/H71,L71/H71),0) -> 0 | O71: =MAX(TREND(O67:O68,$B67:$B68,$B71),0) -> 0 | P71: =MAX(TREND(P67:P68,$B67:$B68,$B71),0) -> 0 | Q71: =TREND(Q67:Q68,$B67:$B68,$B71) -> 0 | R71: =IF(Induced="N",0,(IF(B61=Hwy,M71*(I71*ValTimeTruck+(1-I71)*ValTimeAuto)-N71*(J71*ValTimeTruck+(1-J71)*ValTimeAuto),(IF(INDEX($P$197:$X$200,MATCH(B61,$O$197:$O$200,0),7)>0,INDEX($P$197:$X$200,MATCH(B61,$O$197:$O$200,0),7)/IF(INDEX($P$197:$X$200,MATCH(B61,$O$197:$O$200,0),6)=0,1,INDEX($P$197:$X$200,MATCH(B61,$O$197:$O$200,0),6)),M71)-N71)*ValTimeAuto)+O71-P71)*(H71-Q71)*0.5*(1+TTUprater)^($B71-YearCurrent)) -> 0 | S71: 0 | T71: 0
B72: =B71+1 -> 2027 | C72: =MAX(TREND(C67:C68,B67:B68,B72),0) -> 0 | D72: =MAX(TREND(D67:D68,B67:B68,B72),0) -> 0 | G72: =MAX(TREND(G67:G68,$B67:$B68,$B72),0) -> 0 | H72: =MAX(TREND(H67:H68,$B67:$B68,$B72),0) -> 0 | K72: =MAX(TREND(K67:K68,B67:B68,B72),0) -> 0 | L72: =MAX(TREND(L67:L68,B67:B68,B72),0) -> 0 | M72: =IFERROR(IF(B61=Hwy,C72*E72/G72,K72/G72),0) -> 0 | N72: =IFERROR(IF(B61=Hwy,D72*F72/H72,L72/H72),0) -> 0 | O72: =MAX(TREND(O67:O68,$B67:$B68,$B72),0) -> 0 | P72: =MAX(TREND(P67:P68,$B67:$B68,$B72),0) -> 0 | Q72: =TREND(Q67:Q68,$B67:$B68,$B72) -> 0 | R72: =IF(Induced="N",0,(IF(B61=Hwy,M72*(I72*ValTimeTruck+(1-I72)*ValTimeAuto)-N72*(J72*ValTimeTruck+(1-J72)*ValTimeAuto),(IF(INDEX($P$197:$X$200,MATCH(B61,$O$197:$O$200,0),7)>0,INDEX($P$197:$X$200,MATCH(B61,$O$197:$O$200,0),7)/IF(INDEX($P$197:$X$200,MATCH(B61,$O$197:$O$200,0),6)=0,1,INDEX($P$197:$X$200,MATCH(B61,$O$197:$O$200,0),6)),M72)-N72)*ValTimeAuto)+O72-P72)*(H72-Q72)*0.5*(1+TTUprater)^($B72-YearCurrent)) -> 0 | S72: 0 | T72: 0
B73: 2028 | C73: =MAX(TREND(C67:C68,B67:B68,B73),0) -> 0 | D73: =MAX(TREND(D67:D68,B67:B68,B73),0) -> 0 | G73: =MAX(TREND(G67:G68,$B67:$B68,$B73),0) -> 0 | H73: =MAX(TREND(H67:H68,$B67:$B68,$B73),0) -> 0 | K73: =MAX(TREND(K67:K68,B67:B68,B73),0) -> 0 | L73: =MAX(TREND(L67:L68,B67:B68,B73),0) -> 0 | M73: =IFERROR(IF(B61=Hwy,C73*E73/G73,K73/G73),0) -> 0 | N73: =IFERROR(IF(B61=Hwy,D73*F73/H73,L73/H73),0) -> 0 | O73: =MAX(TREND(O67:O68,$B67:$B68,$B73),0) -> 0 | P73: =MAX(TREND(P67:P68,$B67:$B68,$B73),0) -> 0 | Q73: =TREND(Q67:Q68,$B67:$B68,$B73) -> 0 | R73: =IF(Induced="N",0,(IF(B61=Hwy,M73*(I73*ValTimeTruck+(1-I73)*ValTimeAuto)-N73*(J73*ValTimeTruck+(1-J73)*ValTimeAuto),(IF(INDEX($P$197:$X$200,MATCH(B61,$O$197:$O$200,0),7)>0,INDEX($P$197:$X$200,MATCH(B61,$O$197:$O$200,0),7)/IF(INDEX($P$197:$X$200,MATCH(B61,$O$197:$O$200,0),6)=0,1,INDEX($P$197:$X$200,MATCH(B61,$O$197:$O$200,0),6)),M73)-N73)*ValTimeAuto)+O73-P73)*(H73-Q73)*0.5*(1+TTUprater)^($B73-YearCurrent)) -> 0 | S73: 0 | T73: 0
B74: 2029 | C74: =MAX(TREND(C67:C68,B67:B68,B74),0) -> 0 | D74: =MAX(TREND(D67:D68,B67:B68,B74),0) -> 0 | G74: =MAX(TREND(G67:G68,$B67:$B68,$B74),0) -> 0 | H74: =MAX(TREND(H67:H68,$B67:$B68,$B74),0) -> 0 | K74: =MAX(TREND(K67:K68,B67:B68,B74),0) -> 0 | L74: =MAX(TREND(L67:L68,B67:B68,B74),0) -> 0 | M74: =IFERROR(IF(B61=Hwy,C74*E74/G74,K74/G74),0) -> 0 | N74: =IFERROR(IF(B61=Hwy,D74*F74/H74,L74/H74),0) -> 0 | O74: =MAX(TREND(O67:O68,$B67:$B68,$B74),0) -> 0 | P74: =MAX(TREND(P67:P68,$B67:$B68,$B74),0) -> 0 | Q74: =TREND(Q67:Q68,$B67:$B68,$B74) -> 0 | R74: =IF(Induced="N",0,(IF(B61=Hwy,M74*(I74*ValTimeTruck+(1-I74)*ValTimeAuto)-N74*(J74*ValTimeTruck+(1-J74)*ValTimeAuto),(IF(INDEX($P$197:$X$200,MATCH(B61,$O$197:$O$200,0),7)>0,INDEX($P$197:$X$200,MATCH(B61,$O$197:$O$200,0),7)/IF(INDEX($P$197:$X$200,MATCH(B61,$O$197:$O$200,0),6)=0,1,INDEX($P$197:$X$200,MATCH(B61,$O$197:$O$200,0),6)),M74)-N74)*ValTimeAuto)+O74-P74)*(H74-Q74)*0.5*(1+TTUprater)^($B74-YearCurrent)) -> 0 | S74: 0 | T74: 0
B75: 2030 | C75: =MAX(TREND(C67:C68,B67:B68,B75),0) -> 0 | D75: =MAX(TREND(D67:D68,B67:B68,B75),0) -> 0 | G75: =MAX(TREND(G67:G68,$B67:$B68,$B75),0) -> 0 | H75: =MAX(TREND(H67:H68,$B67:$B68,$B75),0) -> 0 | K75: =MAX(TREND(K67:K68,B67:B68,B75),0) -> 0 | L75: =MAX(TREND(L67:L68,B67:B68,B75),0) -> 0 | M75: =IFERROR(IF(B61=Hwy,C75*E75/G75,K75/G75),0) -> 0 | N75: =IFERROR(IF(B61=Hwy,D75*F75/H75,L75/H75),0) -> 0 | O75: =MAX(TREND(O67:O68,$B67:$B68,$B75),0) -> 0 | P75: =MAX(TREND(P67:P68,$B67:$B68,$B75),0) -> 0 | Q75: =TREND(Q67:Q68,$B67:$B68,$B75) -> 0 | R75: =IF(Induced="N",0,(IF(B61=Hwy,M75*(I75*ValTimeTruck+(1-I75)*ValTimeAuto)-N75*(J75*ValTimeTruck+(1-J75)*ValTimeAuto),(IF(INDEX($P$197:$X$200,MATCH(B61,$O$197:$O$200,0),7)>0,INDEX($P$197:$X$200,MATCH(B61,$O$197:$O$200,0),7)/IF(INDEX($P$197:$X$200,MATCH(B61,$O$197:$O$200,0),6)=0,1,INDEX($P$197:$X$200,MATCH(B61,$O$197:$O$200,0),6)),M75)-N75)*ValTimeAuto)+O75-P75)*(H75-Q75)*0.5*(1+TTUprater)^($B75-YearCurrent)) -> 0 | S75: 0 | T75: 0
B76: 2031 | C76: =MAX(TREND(C67:C68,B67:B68,B76),0) -> 0 | D76: =MAX(TREND(D67:D68,B67:B68,B76),0) -> 0 | G76: =MAX(TREND(G67:G68,$B67:$B68,$B76),0) -> 0 | H76: =MAX(TREND(H67:H68,$B67:$B68,$B76),0) -> 0 | K76: =MAX(TREND(K67:K68,B67:B68,B76),0) -> 0 | L76: =MAX(TREND(L67:L68,B67:B68,B76),0) -> 0 | M76: =IFERROR(IF(B61=Hwy,C76*E76/G76,K76/G76),0) -> 0 | N76: =IFERROR(IF(B61=Hwy,D76*F76/H76,L76/H76),0) -> 0 | O76: =MAX(TREND(O67:O68,$B67:$B68,$B76),0) -> 0 | P76: =MAX(TREND(P67:P68,$B67:$B68,$B76),0) -> 0 | Q76: =TREND(Q67:Q68,$B67:$B68,$B76) -> 0 | R76: =IF(Induced="N",0,(IF(B61=Hwy,M76*(I76*ValTimeTruck+(1-I76)*ValTimeAuto)-N76*(J76*ValTimeTruck+(1-J76)*ValTimeAuto),(IF(INDEX($P$197:$X$200,MATCH(B61,$O$197:$O$200,0),7)>0,INDEX($P$197:$X$200,MATCH(B61,$O$197:$O$200,0),7)/IF(INDEX($P$197:$X$200,MATCH(B61,$O$197:$O$200,0),6)=0,1,INDEX($P$197:$X$200,MATCH(B61,$O$197:$O$200,0),6)),M76)-N76)*ValTimeAuto)+O76-P76)*(H76-Q76)*0.5*(1+TTUprater)^($B76-YearCurrent)) -> 0 | S76: 0 | T76: 0
B77: 2032 | C77: =MAX(TREND(C67:C68,B67:B68,B77),0) -> 0 | D77: =MAX(TREND(D67:D68,B67:B68,B77),0) -> 0 | G77: =MAX(TREND(G67:G68,$B67:$B68,$B77),0) -> 0 | H77: =MAX(TREND(H67:H68,$B67:$B68,$B77),0) -> 0 | K77: =MAX(TREND(K67:K68,B67:B68,B77),0) -> 0 | L77: =MAX(TREND(L67:L68,B67:B68,B77),0) -> 0 | M77: =IFERROR(IF(B61=Hwy,C77*E77/G77,K77/G77),0) -> 0 | N77: =IFERROR(IF(B61=Hwy,D77*F77/H77,L77/H77),0) -> 0 | O77: =MAX(TREND(O67:O68,$B67:$B68,$B77),0) -> 0 | P77: =MAX(TREND(P67:P68,$B67:$B68,$B77),0) -> 0 | Q77: =TREND(Q67:Q68,$B67:$B68,$B77) -> 0 | R77: =IF(Induced="N",0,(IF(B61=Hwy,M77*(I77*ValTimeTruck+(1-I77)*ValTimeAuto)-N77*(J77*ValTimeTruck+(1-J77)*ValTimeAuto),(IF(INDEX($P$197:$X$200,MATCH(B61,$O$197:$O$200,0),7)>0,INDEX($P$197:$X$200,MATCH(B61,$O$197:$O$200,0),7)/IF(INDEX($P$197:$X$200,MATCH(B61,$O$197:$O$200,0),6)=0,1,INDEX($P$197:$X$200,MATCH(B61,$O$197:$O$200,0),6)),M77)-N77)*ValTimeAuto)+O77-P77)*(H77-Q77)*0.5*(1+TTUprater)^($B77-YearCurrent)) -> 0 | S77: 0 | T77: 0
B78: 2033 | C78: =MAX(TREND(C67:C68,B67:B68,B78),0) -> 0 | D78: =MAX(TREND(D67:D68,B67:B68,B78),0) -> 0 | G78: =MAX(TREND(G67:G68,$B67:$B68,$B78),0) -> 0 | H78: =MAX(TREND(H67:H68,$B67:$B68,$B78),0) -> 0 | K78: =MAX(TREND(K67:K68,B67:B68,B78),0) -> 0 | L78: =MAX(TREND(L67:L68,B67:B68,B78),0) -> 0 | M78: =IFERROR(IF(B61=Hwy,C78*E78/G78,K78/G78),0) -> 0 | N78: =IFERROR(IF(B61=Hwy,D78*F78/H78,L78/H78),0) -> 0 | O78: =MAX(TREND(O67:O68,$B67:$B68,$B78),0) -> 0 | P78: =MAX(TREND(P67:P68,$B67:$B68,$B78),0) -> 0 | Q78: =TREND(Q67:Q68,$B67:$B68,$B78) -> 0 | R78: =IF(Induced="N",0,(IF(B61=Hwy,M78*(I78*ValTimeTruck+(1-I78)*ValTimeAuto)-N78*(J78*ValTimeTruck+(1-J78)*ValTimeAuto),(IF(INDEX($P$197:$X$200,MATCH(B61,$O$197:$O$200,0),7)>0,INDEX($P$197:$X$200,MATCH(B61,$O$197:$O$200,0),7)/IF(INDEX($P$197:$X$200,MATCH(B61,$O$197:$O$200,0),6)=0,1,INDEX($P$197:$X$200,MATCH(B61,$O$197:$O$200,0),6)),M78)-N78)*ValTimeAuto)+O78-P78)*(H78-Q78)*0.5*(1+TTUprater)^($B78-YearCurrent)) -> 0 | S78: 0 | T78: 0
B79: 2034 | C79: =MAX(TREND(C67:C68,B67:B68,B79),0) -> 0 | D79: =MAX(TREND(D67:D68,B67:B68,B79),0) -> 0 | G79: =MAX(TREND(G67:G68,$B67:$B68,$B79),0) -> 0 | H79: =MAX(TREND(H67:H68,$B67:$B68,$B79),0) -> 0 | K79: =MAX(TREND(K67:K68,B67:B68,B79),0) -> 0 | L79: =MAX(TREND(L67:L68,B67:B68,B79),0) -> 0 | M79: =IFERROR(IF(B61=Hwy,C79*E79/G79,K79/G79),0) -> 0 | N79: =IFERROR(IF(B61=Hwy,D79*F79/H79,L79/H79),0) -> 0 | O79: =MAX(TREND(O67:O68,$B67:$B68,$B79),0) -> 0 | P79: =MAX(TREND(P67:P68,$B67:$B68,$B79),0) -> 0 | Q79: =TREND(Q67:Q68,$B67:$B68,$B79) -> 0 | R79: =IF(Induced="N",0,(IF(B61=Hwy,M79*(I79*ValTimeTruck+(1-I79)*ValTimeAuto)-N79*(J79*ValTimeTruck+(1-J79)*ValTimeAuto),(IF(INDEX($P$197:$X$200,MATCH(B61,$O$197:$O$200,0),7)>0,INDEX($P$197:$X$200,MATCH(B61,$O$197:$O$200,0),7)/IF(INDEX($P$197:$X$200,MATCH(B61,$O$197:$O$200,0),6)=0,1,INDEX($P$197:$X$200,MATCH(B61,$O$197:$O$200,0),6)),M79)-N79)*ValTimeAuto)+O79-P79)*(H79-Q79)*0.5*(1+TTUprater)^($B79-YearCurrent)) -> 0 | S79: 0 | T79: 0
B80: 2035 | C80: =MAX(TREND(C67:C68,B67:B68,B80),0) -> 0 | D80: =MAX(TREND(D67:D68,B67:B68,B80),0) -> 0 | G80: =MAX(TREND(G67:G68,$B67:$B68,$B80),0) -> 0 | H80: =MAX(TREND(H67:H68,$B67:$B68,$B80),0) -> 0 | K80: =MAX(TREND(K67:K68,B67:B68,B80),0) -> 0 | L80: =MAX(TREND(L67:L68,B67:B68,B80),0) -> 0 | M80: =IFERROR(IF(B61=Hwy,C80*E80/G80,K80/G80),0) -> 0 | N80: =IFERROR(IF(B61=Hwy,D80*F80/H80,L80/H80),0) -> 0 | O80: =MAX(TREND(O67:O68,$B67:$B68,$B80),0) -> 0 | P80: =MAX(TREND(P67:P68,$B67:$B68,$B80),0) -> 0 | Q80: =TREND(Q67:Q68,$B67:$B68,$B80) -> 0 | R80: =IF(Induced="N",0,(IF(B61=Hwy,M80*(I80*ValTimeTruck+(1-I80)*ValTimeAuto)-N80*(J80*ValTimeTruck+(1-J80)*ValTimeAuto),(IF(INDEX($P$197:$X$200,MATCH(B61,$O$197:$O$200,0),7)>0,INDEX($P$197:$X$200,MATCH(B61,$O$197:$O$200,0),7)/IF(INDEX($P$197:$X$200,MATCH(B61,$O$197:$O$200,0),6)=0,1,INDEX($P$197:$X$200,MATCH(B61,$O$197:$O$200,0),6)),M80)-N80)*ValTimeAuto)+O80-P80)*(H80-Q80)*0.5*(1+TTUprater)^($B80-YearCurrent)) -> 0 | S80: 0 | T80: 0
B81: 2036 | C81: =MAX(TREND(C67:C68,B67:B68,B81),0) -> 0 | D81: =MAX(TREND(D67:D68,B67:B68,B81),0) -> 0 | G81: =MAX(TREND(G67:G68,$B67:$B68,$B81),0) -> 0 | H81: =MAX(TREND(H67:H68,$B67:$B68,$B81),0) -> 0 | K81: =MAX(TREND(K67:K68,B67:B68,B81),0) -> 0 | L81: =MAX(TREND(L67:L68,B67:B68,B81),0) -> 0 | M81: =IFERROR(IF(B61=Hwy,C81*E81/G81,K81/G81),0) -> 0 | N81: =IFERROR(IF(B61=Hwy,D81*F81/H81,L81/H81),0) -> 0 | O81: =MAX(TREND(O67:O68,$B67:$B68,$B81),0) -> 0 | P81: =MAX(TREND(P67:P68,$B67:$B68,$B81),0) -> 0 | Q81: =TREND(Q67:Q68,$B67:$B68,$B81) -> 0 | R81: =IF(Induced="N",0,(IF(B61=Hwy,M81*(I81*ValTimeTruck+(1-I81)*ValTimeAuto)-N81*(J81*ValTimeTruck+(1-J81)*ValTimeAuto),(IF(INDEX($P$197:$X$200,MATCH(B61,$O$197:$O$200,0),7)>0,INDEX($P$197:$X$200,MATCH(B61,$O$197:$O$200,0),7)/IF(INDEX($P$197:$X$200,MATCH(B61,$O$197:$O$200,0),6)=0,1,INDEX($P$197:$X$200,MATCH(B61,$O$197:$O$200,0),6)),M81)-N81)*ValTimeAuto)+O81-P81)*(H81-Q81)*0.5*(1+TTUprater)^($B81-YearCurrent)) -> 0 | S81: 0 | T81: 0
B82: 2037 | C82: =MAX(TREND(C67:C68,B67:B68,B82),0) -> 0 | D82: =MAX(TREND(D67:D68,B67:B68,B82),0) -> 0 | G82: =MAX(TREND(G67:G68,$B67:$B68,$B82),0) -> 0 | H82: =MAX(TREND(H67:H68,$B67:$B68,$B82),0) -> 0 | K82: =MAX(TREND(K67:K68,B67:B68,B82),0) -> 0 | L82: =MAX(TREND(L67:L68,B67:B68,B82),0) -> 0 | M82: =IFERROR(IF(B61=Hwy,C82*E82/G82,K82/G82),0) -> 0 | N82: =IFERROR(IF(B61=Hwy,D82*F82/H82,L82/H82),0) -> 0 | O82: =MAX(TREND(O67:O68,$B67:$B68,$B82),0) -> 0 | P82: =MAX(TREND(P67:P68,$B67:$B68,$B82),0) -> 0 | Q82: =TREND(Q67:Q68,$B67:$B68,$B82) -> 0 | R82: =IF(Induced="N",0,(IF(B61=Hwy,M82*(I82*ValTimeTruck+(1-I82)*ValTimeAuto)-N82*(J82*ValTimeTruck+(1-J82)*ValTimeAuto),(IF(INDEX($P$197:$X$200,MATCH(B61,$O$197:$O$200,0),7)>0,INDEX($P$197:$X$200,MATCH(B61,$O$197:$O$200,0),7)/IF(INDEX($P$197:$X$200,MATCH(B61,$O$197:$O$200,0),6)=0,1,INDEX($P$197:$X$200,MATCH(B61,$O$197:$O$200,0),6)),M82)-N82)*ValTimeAuto)+O82-P82)*(H82-Q82)*0.5*(1+TTUprater)^($B82-YearCurrent)) -> 0 | S82: 0 | T82: 0
B83: 2038 | C83: =MAX(TREND(C67:C68,B67:B68,B83),0) -> 0 | D83: =MAX(TREND(D67:D68,B67:B68,B83),0) -> 0 | G83: =MAX(TREND(G67:G68,$B67:$B68,$B83),0) -> 0 | H83: =MAX(TREND(H67:H68,$B67:$B68,$B83),0) -> 0 | K83: =MAX(TREND(K67:K68,B67:B68,B83),0) -> 0 | L83: =MAX(TREND(L67:L68,B67:B68,B83),0) -> 0 | M83: =IFERROR(IF(B61=Hwy,C83*E83/G83,K83/G83),0) -> 0 | N83: =IFERROR(IF(B61=Hwy,D83*F83/H83,L83/H83),0) -> 0 | O83: =MAX(TREND(O67:O68,$B67:$B68,$B83),0) -> 0 | P83: =MAX(TREND(P67:P68,$B67:$B68,$B83),0) -> 0 | Q83: =TREND(Q67:Q68,$B67:$B68,$B83) -> 0 | R83: =IF(Induced="N",0,(IF(B61=Hwy,M83*(I83*ValTimeTruck+(1-I83)*ValTimeAuto)-N83*(J83*ValTimeTruck+(1-J83)*ValTimeAuto),(IF(INDEX($P$197:$X$200,MATCH(B61,$O$197:$O$200,0),7)>0,INDEX($P$197:$X$200,MATCH(B61,$O$197:$O$200,0),7)/IF(INDEX($P$197:$X$200,MATCH(B61,$O$197:$O$200,0),6)=0,1,INDEX($P$197:$X$200,MATCH(B61,$O$197:$O$200,0),6)),M83)-N83)*ValTimeAuto)+O83-P83)*(H83-Q83)*0.5*(1+TTUprater)^($B83-YearCurrent)) -> 0 | S83: 0 | T83: 0
B84: 2039 | C84: =MAX(TREND(C67:C68,B67:B68,B84),0) -> 0 | D84: =MAX(TREND(D67:D68,B67:B68,B84),0) -> 0 | G84: =MAX(TREND(G67:G68,$B67:$B68,$B84),0) -> 0 | H84: =MAX(TREND(H67:H68,$B67:$B68,$B84),0) -> 0 | K84: =MAX(TREND(K67:K68,B67:B68,B84),0) -> 0 | L84: =MAX(TREND(L67:L68,B67:B68,B84),0) -> 0 | M84: =IFERROR(IF(B61=Hwy,C84*E84/G84,K84/G84),0) -> 0 | N84: =IFERROR(IF(B61=Hwy,D84*F84/H84,L84/H84),0) -> 0 | O84: =MAX(TREND(O67:O68,$B67:$B68,$B84),0) -> 0 | P84: =MAX(TREND(P67:P68,$B67:$B68,$B84),0) -> 0 | Q84: =TREND(Q67:Q68,$B67:$B68,$B84) -> 0 | R84: =IF(Induced="N",0,(IF(B61=Hwy,M84*(I84*ValTimeTruck+(1-I84)*ValTimeAuto)-N84*(J84*ValTimeTruck+(1-J84)*ValTimeAuto),(IF(INDEX($P$197:$X$200,MATCH(B61,$O$197:$O$200,0),7)>0,INDEX($P$197:$X$200,MATCH(B61,$O$197:$O$200,0),7)/IF(INDEX($P$197:$X$200,MATCH(B61,$O$197:$O$200,0),6)=0,1,INDEX($P$197:$X$200,MATCH(B61,$O$197:$O$200,0),6)),M84)-N84)*ValTimeAuto)+O84-P84)*(H84-Q84)*0.5*(1+TTUprater)^($B84-YearCurrent)) -> 0 | S84: 0 | T84: 0
B85: 2040 | C85: =MAX(TREND(C67:C68,B67:B68,B85),0) -> 0 | D85: =MAX(TREND(D67:D68,B67:B68,B85),0) -> 0 | G85: =MAX(TREND(G67:G68,$B67:$B68,$B85),0) -> 0 | H85: =MAX(TREND(H67:H68,$B67:$B68,$B85),0) -> 0 | K85: =MAX(TREND(K67:K68,B67:B68,B85),0) -> 0 | L85: =MAX(TREND(L67:L68,B67:B68,B85),0) -> 0 | M85: =IFERROR(IF(B61=Hwy,C85*E85/G85,K85/G85),0) -> 0 | N85: =IFERROR(IF(B61=Hwy,D85*F85/H85,L85/H85),0) -> 0 | O85: =MAX(TREND(O67:O68,$B67:$B68,$B85),0) -> 0 | P85: =MAX(TREND(P67:P68,$B67:$B68,$B85),0) -> 0 | Q85: =TREND(Q67:Q68,$B67:$B68,$B85) -> 0 | R85: =IF(Induced="N",0,(IF(B61=Hwy,M85*(I85*ValTimeTruck+(1-I85)*ValTimeAuto)-N85*(J85*ValTimeTruck+(1-J85)*ValTimeAuto),(IF(INDEX($P$197:$X$200,MATCH(B61,$O$197:$O$200,0),7)>0,INDEX($P$197:$X$200,MATCH(B61,$O$197:$O$200,0),7)/IF(INDEX($P$197:$X$200,MATCH(B61,$O$197:$O$200,0),6)=0,1,INDEX($P$197:$X$200,MATCH(B61,$O$197:$O$200,0),6)),M85)-N85)*ValTimeAuto)+O85-P85)*(H85-Q85)*0.5*(1+TTUprater)^($B85-YearCurrent)) -> 0 | S85: 0 | T85: 0
B86: 2041 | C86: =MAX(TREND(C67:C68,B67:B68,B86),0) -> 0 | D86: =MAX(TREND(D67:D68,B67:B68,B86),0) -> 0 | G86: =MAX(TREND(G67:G68,$B67:$B68,$B86),0) -> 0 | H86: =MAX(TREND(H67:H68,$B67:$B68,$B86),0) -> 0 | K86: =MAX(TREND(K67:K68,B67:B68,B86),0) -> 0 | L86: =MAX(TREND(L67:L68,B67:B68,B86),0) -> 0 | M86: =IFERROR(IF(B61=Hwy,C86*E86/G86,K86/G86),0) -> 0 | N86: =IFERROR(IF(B61=Hwy,D86*F86/H86,L86/H86),0) -> 0 | O86: =MAX(TREND(O67:O68,$B67:$B68,$B86),0) -> 0 | P86: =MAX(TREND(P67:P68,$B67:$B68,$B86),0) -> 0 | Q86: =TREND(Q67:Q68,$B67:$B68,$B86) -> 0 | R86: =IF(Induced="N",0,(IF(B61=Hwy,M86*(I86*ValTimeTruck+(1-I86)*ValTimeAuto)-N86*(J86*ValTimeTruck+(1-J86)*ValTimeAuto),(IF(INDEX($P$197:$X$200,MATCH(B61,$O$197:$O$200,0),7)>0,INDEX($P$197:$X$200,MATCH(B61,$O$197:$O$200,0),7)/IF(INDEX($P$197:$X$200,MATCH(B61,$O$197:$O$200,0),6)=0,1,INDEX($P$197:$X$200,MATCH(B61,$O$197:$O$200,0),6)),M86)-N86)*ValTimeAuto)+O86-P86)*(H86-Q86)*0.5*(1+TTUprater)^($B86-YearCurrent)) -> 0 | S86: 0 | T86: 0
B87: 2042 | C87: =MAX(TREND(C67:C68,B67:B68,B87),0) -> 0 | D87: =MAX(TREND(D67:D68,B67:B68,B87),0) -> 0 | G87: =MAX(TREND(G67:G68,$B67:$B68,$B87),0) -> 0 | H87: =MAX(TREND(H67:H68,$B67:$B68,$B87),0) -> 0 | K87: =MAX(TREND(K67:K68,B67:B68,B87),0) -> 0 | L87: =MAX(TREND(L67:L68,B67:B68,B87),0) -> 0 | M87: =IFERROR(IF(B61=Hwy,C87*E87/G87,K87/G87),0) -> 0 | N87: =IFERROR(IF(B61=Hwy,D87*F87/H87,L87/H87),0) -> 0 | O87: =MAX(TREND(O67:O68,$B67:$B68,$B87),0) -> 0 | P87: =MAX(TREND(P67:P68,$B67:$B68,$B87),0) -> 0 | Q87: =TREND(Q67:Q68,$B67:$B68,$B87) -> 0 | R87: =IF(Induced="N",0,(IF(B61=Hwy,M87*(I87*ValTimeTruck+(1-I87)*ValTimeAuto)-N87*(J87*ValTimeTruck+(1-J87)*ValTimeAuto),(IF(INDEX($P$197:$X$200,MATCH(B61,$O$197:$O$200,0),7)>0,INDEX($P$197:$X$200,MATCH(B61,$O$197:$O$200,0),7)/IF(INDEX($P$197:$X$200,MATCH(B61,$O$197:$O$200,0),6)=0,1,INDEX($P$197:$X$200,MATCH(B61,$O$197:$O$200,0),6)),M87)-N87)*ValTimeAuto)+O87-P87)*(H87-Q87)*0.5*(1+TTUprater)^($B87-YearCurrent)) -> 0 | S87: 0 | T87: 0
B88: 2043 | C88: =MAX(TREND(C67:C68,B67:B68,B88),0) -> 0 | D88: =MAX(TREND(D67:D68,B67:B68,B88),0) -> 0 | G88: =MAX(TREND(G67:G68,$B67:$B68,$B88),0) -> 0 | H88: =MAX(TREND(H67:H68,$B67:$B68,$B88),0) -> 0 | K88: =MAX(TREND(K67:K68,B67:B68,B88),0) -> 0 | L88: =MAX(TREND(L67:L68,B67:B68,B88),0) -> 0 | M88: =IFERROR(IF(B61=Hwy,C88*E88/G88,K88/G88),0) -> 0 | N88: =IFERROR(IF(B61=Hwy,D88*F88/H88,L88/H88),0) -> 0 | O88: =MAX(TREND(O67:O68,$B67:$B68,$B88),0) -> 0 | P88: =MAX(TREND(P67:P68,$B67:$B68,$B88),0) -> 0 | Q88: =TREND(Q67:Q68,$B67:$B68,$B88) -> 0 | R88: =IF(Induced="N",0,(IF(B61=Hwy,M88*(I88*ValTimeTruck+(1-I88)*ValTimeAuto)-N88*(J88*ValTimeTruck+(1-J88)*ValTimeAuto),(IF(INDEX($P$197:$X$200,MATCH(B61,$O$197:$O$200,0),7)>0,INDEX($P$197:$X$200,MATCH(B61,$O$197:$O$200,0),7)/IF(INDEX($P$197:$X$200,MATCH(B61,$O$197:$O$200,0),6)=0,1,INDEX($P$197:$X$200,MATCH(B61,$O$197:$O$200,0),6)),M88)-N88)*ValTimeAuto)+O88-P88)*(H88-Q88)*0.5*(1+TTUprater)^($B88-YearCurrent)) -> 0 | S88: 0 | T88: 0
B89: 2044 | C89: =MAX(TREND(C67:C68,B67:B68,B89),0) -> 0 | D89: =MAX(TREND(D67:D68,B67:B68,B89),0) -> 0 | G89: =MAX(TREND(G67:G68,$B67:$B68,$B89),0) -> 0 | H89: =MAX(TREND(H67:H68,$B67:$B68,$B89),0) -> 0 | K89: =MAX(TREND(K67:K68,B67:B68,B89),0) -> 0 | L89: =MAX(TREND(L67:L68,B67:B68,B89),0) -> 0 | M89: =IFERROR(IF(B61=Hwy,C89*E89/G89,K89/G89),0) -> 0 | N89: =IFERROR(IF(B61=Hwy,D89*F89/H89,L89/H89),0) -> 0 | O89: =MAX(TREND(O67:O68,$B67:$B68,$B89),0) -> 0 | P89: =MAX(TREND(P67:P68,$B67:$B68,$B89),0) -> 0 | Q89: =TREND(Q67:Q68,$B67:$B68,$B89) -> 0 | R89: =IF(Induced="N",0,(IF(B61=Hwy,M89*(I89*ValTimeTruck+(1-I89)*ValTimeAuto)-N89*(J89*ValTimeTruck+(1-J89)*ValTimeAuto),(IF(INDEX($P$197:$X$200,MATCH(B61,$O$197:$O$200,0),7)>0,INDEX($P$197:$X$200,MATCH(B61,$O$197:$O$200,0),7)/IF(INDEX($P$197:$X$200,MATCH(B61,$O$197:$O$200,0),6)=0,1,INDEX($P$197:$X$200,MATCH(B61,$O$197:$O$200,0),6)),M89)-N89)*ValTimeAuto)+O89-P89)*(H89-Q89)*0.5*(1+TTUprater)^($B89-YearCurrent)) -> 0 | S89: 0 | T89: 0
B90: 2045 | C90: =MAX(TREND(C67:C68,B67:B68,B90),0) -> 0 | D90: =MAX(TREND(D67:D68,B67:B68,B90),0) -> 0 | G90: =MAX(TREND(G67:G68,$B67:$B68,$B90),0) -> 0 | H90: =MAX(TREND(H67:H68,$B67:$B68,$B90),0) -> 0 | K90: =MAX(TREND(K67:K68,B67:B68,B90),0) -> 0 | L90: =MAX(TREND(L67:L68,B67:B68,B90),0) -> 0 | M90: =IFERROR(IF(B61=Hwy,C90*E90/G90,K90/G90),0) -> 0 | N90: =IFERROR(IF(B61=Hwy,D90*F90/H90,L90/H90),0) -> 0 | O90: =MAX(TREND(O67:O68,$B67:$B68,$B90),0) -> 0 | P90: =MAX(TREND(P67:P68,$B67:$B68,$B90),0) -> 0 | Q90: =TREND(Q67:Q68,$B67:$B68,$B90) -> 0 | R90: =IF(Induced="N",0,(IF(B61=Hwy,M90*(I90*ValTimeTruck+(1-I90)*ValTimeAuto)-N90*(J90*ValTimeTruck+(1-J90)*ValTimeAuto),(IF(INDEX($P$197:$X$200,MATCH(B61,$O$197:$O$200,0),7)>0,INDEX($P$197:$X$200,MATCH(B61,$O$197:$O$200,0),7)/IF(INDEX($P$197:$X$200,MATCH(B61,$O$197:$O$200,0),6)=0,1,INDEX($P$197:$X$200,MATCH(B61,$O$197:$O$200,0),6)),M90)-N90)*ValTimeAuto)+O90-P90)*(H90-Q90)*0.5*(1+TTUprater)^($B90-YearCurrent)) -> 0 | S90: 0 | T90: 0
B91: 2046 | C91: =MAX(TREND(C67:C68,B67:B68,B91),0) -> 0 | D91: =MAX(TREND(D67:D68,B67:B68,B91),0) -> 0 | G91: =MAX(TREND(G67:G68,$B67:$B68,$B91),0) -> 0 | H91: =MAX(TREND(H67:H68,$B67:$B68,$B91),0) -> 0 | K91: =MAX(TREND(K67:K68,B67:B68,B91),0) -> 0 | L91: =MAX(TREND(L67:L68,B67:B68,B91),0) -> 0 | M91: =IFERROR(IF(B61=Hwy,C91*E91/G91,K91/G91),0) -> 0 | N91: =IFERROR(IF(B61=Hwy,D91*F91/H91,L91/H91),0) -> 0 | O91: =MAX(TREND(O67:O68,$B67:$B68,$B91),0) -> 0 | P91: =MAX(TREND(P67:P68,$B67:$B68,$B91),0) -> 0 | Q91: =TREND(Q67:Q68,$B67:$B68,$B91) -> 0 | R91: =IF(Induced="N",0,(IF(B61=Hwy,M91*(I91*ValTimeTruck+(1-I91)*ValTimeAuto)-N91*(J91*ValTimeTruck+(1-J91)*ValTimeAuto),(IF(INDEX($P$197:$X$200,MATCH(B61,$O$197:$O$200,0),7)>0,INDEX($P$197:$X$200,MATCH(B61,$O$197:$O$200,0),7)/IF(INDEX($P$197:$X$200,MATCH(B61,$O$197:$O$200,0),6)=0,1,INDEX($P$197:$X$200,MATCH(B61,$O$197:$O$200,0),6)),M91)-N91)*ValTimeAuto)+O91-P91)*(H91-Q91)*0.5*(1+TTUprater)^($B91-YearCurrent)) -> 0 | S91: 0 | T91: 0
B92: 2047 | C92: =MAX(TREND(C67:C68,B67:B68,B92),0) -> 0 | D92: =MAX(TREND(D67:D68,B67:B68,B92),0) -> 0 | G92: =MAX(TREND(G67:G68,$B67:$B68,$B92),0) -> 0 | H92: =MAX(TREND(H67:H68,$B67:$B68,$B92),0) -> 0 | K92: =MAX(TREND(K67:K68,B67:B68,B92),0) -> 0 | L92: =MAX(TREND(L67:L68,B67:B68,B92),0) -> 0 | M92: =IFERROR(IF(B61=Hwy,C92*E92/G92,K92/G92),0) -> 0 | N92: =IFERROR(IF(B61=Hwy,D92*F92/H92,L92/H92),0) -> 0 | O92: =MAX(TREND(O67:O68,$B67:$B68,$B92),0) -> 0 | P92: =MAX(TREND(P67:P68,$B67:$B68,$B92),0) -> 0 | Q92: =TREND(Q67:Q68,$B67:$B68,$B92) -> 0 | R92: =IF(Induced="N",0,(IF(B61=Hwy,M92*(I92*ValTimeTruck+(1-I92)*ValTimeAuto)-N92*(J92*ValTimeTruck+(1-J92)*ValTimeAuto),(IF(INDEX($P$197:$X$200,MATCH(B61,$O$197:$O$200,0),7)>0,INDEX($P$197:$X$200,MATCH(B61,$O$197:$O$200,0),7)/IF(INDEX($P$197:$X$200,MATCH(B61,$O$197:$O$200,0),6)=0,1,INDEX($P$197:$X$200,MATCH(B61,$O$197:$O$200,0),6)),M92)-N92)*ValTimeAuto)+O92-P92)*(H92-Q92)*0.5*(1+TTUprater)^($B92-YearCurrent)) -> 0 | S92: 0 | T92: 0
B93: 2048 | C93: =MAX(TREND(C67:C68,B67:B68,B93),0) -> 0 | D93: =MAX(TREND(D67:D68,B67:B68,B93),0) -> 0 | G93: =MAX(TREND(G67:G68,$B67:$B68,$B93),0) -> 0 | H93: =MAX(TREND(H67:H68,$B67:$B68,$B93),0) -> 0 | K93: =MAX(TREND(K67:K68,B67:B68,B93),0) -> 0 | L93: =MAX(TREND(L67:L68,B67:B68,B93),0) -> 0 | M93: =IFERROR(IF(B61=Hwy,C93*E93/G93,K93/G93),0) -> 0 | N93: =IFERROR(IF(B61=Hwy,D93*F93/H93,L93/H93),0) -> 0 | O93: =MAX(TREND(O67:O68,$B67:$B68,$B93),0) -> 0 | P93: =MAX(TREND(P67:P68,$B67:$B68,$B93),0) -> 0 | Q93: =TREND(Q67:Q68,$B67:$B68,$B93) -> 0 | R93: =IF(Induced="N",0,(IF(B61=Hwy,M93*(I93*ValTimeTruck+(1-I93)*ValTimeAuto)-N93*(J93*ValTimeTruck+(1-J93)*ValTimeAuto),(IF(INDEX($P$197:$X$200,MATCH(B61,$O$197:$O$200,0),7)>0,INDEX($P$197:$X$200,MATCH(B61,$O$197:$O$200,0),7)/IF(INDEX($P$197:$X$200,MATCH(B61,$O$197:$O$200,0),6)=0,1,INDEX($P$197:$X$200,MATCH(B61,$O$197:$O$200,0),6)),M93)-N93)*ValTimeAuto)+O93-P93)*(H93-Q93)*0.5*(1+TTUprater)^($B93-YearCurrent)) -> 0 | S93: 0 | T93: 0
B94: 2049 | C94: =MAX(TREND(C67:C68,B67:B68,B94),0) -> 0 | D94: =MAX(TREND(D67:D68,B67:B68,B94),0) -> 0 | G94: =MAX(TREND(G67:G68,$B67:$B68,$B94),0) -> 0 | H94: =MAX(TREND(H67:H68,$B67:$B68,$B94),0) -> 0 | K94: =MAX(TREND(K67:K68,B67:B68,B94),0) -> 0 | L94: =MAX(TREND(L67:L68,B67:B68,B94),0) -> 0 | M94: =IFERROR(IF(B61=Hwy,C94*E94/G94,K94/G94),0) -> 0 | N94: =IFERROR(IF(B61=Hwy,D94*F94/H94,L94/H94),0) -> 0 | O94: =MAX(TREND(O67:O68,$B67:$B68,$B94),0) -> 0 | P94: =MAX(TREND(P67:P68,$B67:$B68,$B94),0) -> 0 | Q94: =TREND(Q67:Q68,$B67:$B68,$B94) -> 0 | R94: =IF(Induced="N",0,(IF(B61=Hwy,M94*(I94*ValTimeTruck+(1-I94)*ValTimeAuto)-N94*(J94*ValTimeTruck+(1-J94)*ValTimeAuto),(IF(INDEX($P$197:$X$200,MATCH(B61,$O$197:$O$200,0),7)>0,INDEX($P$197:$X$200,MATCH(B61,$O$197:$O$200,0),7)/IF(INDEX($P$197:$X$200,MATCH(B61,$O$197:$O$200,0),6)=0,1,INDEX($P$197:$X$200,MATCH(B61,$O$197:$O$200,0),6)),M94)-N94)*ValTimeAuto)+O94-P94)*(H94-Q94)*0.5*(1+TTUprater)^($B94-YearCurrent)) -> 0 | S94: 0 | T94: 0
B95: 2050 | C95: =MAX(TREND(C67:C68,B67:B68,B95),0) -> 0 | D95: =MAX(TREND(D67:D68,B67:B68,B95),0) -> 0 | G95: =MAX(TREND(G67:G68,$B67:$B68,$B95),0) -> 0 | H95: =MAX(TREND(H67:H68,$B67:$B68,$B95),0) -> 0 | K95: =MAX(TREND(K67:K68,B67:B68,B95),0) -> 0 | L95: =MAX(TREND(L67:L68,B67:B68,B95),0) -> 0 | M95: =IFERROR(IF(B61=Hwy,C95*E95/G95,K95/G95),0) -> 0 | N95: =IFERROR(IF(B61=Hwy,D95*F95/H95,L95/H95),0) -> 0 | O95: =MAX(TREND(O67:O68,$B67:$B68,$B95),0) -> 0 | P95: =MAX(TREND(P67:P68,$B67:$B68,$B95),0) -> 0 | Q95: =TREND(Q67:Q68,$B67:$B68,$B95) -> 0 | R95: =IF(Induced="N",0,(IF(B61=Hwy,M95*(I95*ValTimeTruck+(1-I95)*ValTimeAuto)-N95*(J95*ValTimeTruck+(1-J95)*ValTimeAuto),(IF(INDEX($P$197:$X$200,MATCH(B61,$O$197:$O$200,0),7)>0,INDEX($P$197:$X$200,MATCH(B61,$O$197:$O$200,0),7)/IF(INDEX($P$197:$X$200,MATCH(B61,$O$197:$O$200,0),6)=0,1,INDEX($P$197:$X$200,MATCH(B61,$O$197:$O$200,0),6)),M95)-N95)*ValTimeAuto)+O95-P95)*(H95-Q95)*0.5*(1+TTUprater)^($B95-YearCurrent)) -> 0 | S95: 0 | T95: 0
B96: 2051 | C96: =MAX(TREND(C67:C68,B67:B68,B96),0) -> 0 | D96: =MAX(TREND(D67:D68,B67:B68,B96),0) -> 0 | G96: =MAX(TREND(G67:G68,$B67:$B68,$B96),0) -> 0 | H96: =MAX(TREND(H67:H68,$B67:$B68,$B96),0) -> 0 | K96: =MAX(TREND(K67:K68,B67:B68,B96),0) -> 0 | L96: =MAX(TREND(L67:L68,B67:B68,B96),0) -> 0 | M96: =IFERROR(IF(B61=Hwy,C96*E96/G96,K96/G96),0) -> 0 | N96: =IFERROR(IF(B61=Hwy,D96*F96/H96,L96/H96),0) -> 0 | O96: =MAX(TREND(O67:O68,$B67:$B68,$B96),0) -> 0 | P96: =MAX(TREND(P67:P68,$B67:$B68,$B96),0) -> 0 | Q96: =TREND(Q67:Q68,$B67:$B68,$B96) -> 0 | R96: =IF(Induced="N",0,(IF(B61=Hwy,M96*(I96*ValTimeTruck+(1-I96)*ValTimeAuto)-N96*(J96*ValTimeTruck+(1-J96)*ValTimeAuto),(IF(INDEX($P$197:$X$200,MATCH(B61,$O$197:$O$200,0),7)>0,INDEX($P$197:$X$200,MATCH(B61,$O$197:$O$200,0),7)/IF(INDEX($P$197:$X$200,MATCH(B61,$O$197:$O$200,0),6)=0,1,INDEX($P$197:$X$200,MATCH(B61,$O$197:$O$200,0),6)),M96)-N96)*ValTimeAuto)+O96-P96)*(H96-Q96)*0.5*(1+TTUprater)^($B96-YearCurrent)) -> 0 | S96: 0 | T96: 0
B97: 2052 | C97: =MAX(TREND(C67:C68,B67:B68,B97),0) -> 0 | D97: =MAX(TREND(D67:D68,B67:B68,B97),0) -> 0 | G97: =MAX(TREND(G67:G68,$B67:$B68,$B97),0) -> 0 | H97: =MAX(TREND(H67:H68,$B67:$B68,$B97),0) -> 0 | K97: =MAX(TREND(K67:K68,B67:B68,B97),0) -> 0 | L97: =MAX(TREND(L67:L68,B67:B68,B97),0) -> 0 | M97: =IFERROR(IF(B61=Hwy,C97*E97/G97,K97/G97),0) -> 0 | N97: =IFERROR(IF(B61=Hwy,D97*F97/H97,L97/H97),0) -> 0 | O97: =MAX(TREND(O67:O68,$B67:$B68,$B97),0) -> 0 | P97: =MAX(TREND(P67:P68,$B67:$B68,$B97),0) -> 0 | Q97: =TREND(Q67:Q68,$B67:$B68,$B97) -> 0 | R97: =IF(Induced="N",0,(IF(B61=Hwy,M97*(I97*ValTimeTruck+(1-I97)*ValTimeAuto)-N97*(J97*ValTimeTruck+(1-J97)*ValTimeAuto),(IF(INDEX($P$197:$X$200,MATCH(B61,$O$197:$O$200,0),7)>0,INDEX($P$197:$X$200,MATCH(B61,$O$197:$O$200,0),7)/IF(INDEX($P$197:$X$200,MATCH(B61,$O$197:$O$200,0),6)=0,1,INDEX($P$197:$X$200,MATCH(B61,$O$197:$O$200,0),6)),M97)-N97)*ValTimeAuto)+O97-P97)*(H97-Q97)*0.5*(1+TTUprater)^($B97-YearCurrent)) -> 0 | S97: 0 | T97: 0
B98: 2053 | C98: =MAX(TREND(C67:C68,B67:B68,B98),0) -> 0 | D98: =MAX(TREND(D67:D68,B67:B68,B98),0) -> 0 | G98: =MAX(TREND(G67:G68,$B67:$B68,$B98),0) -> 0 | H98: =MAX(TREND(H67:H68,$B67:$B68,$B98),0) -> 0 | K98: =MAX(TREND(K67:K68,B67:B68,B98),0) -> 0 | L98: =MAX(TREND(L67:L68,B67:B68,B98),0) -> 0 | M98: =IFERROR(IF(B61=Hwy,C98*E98/G98,K98/G98),0) -> 0 | N98: =IFERROR(IF(B61=Hwy,D98*F98/H98,L98/H98),0) -> 0 | O98: =MAX(TREND(O67:O68,$B67:$B68,$B98),0) -> 0 | P98: =MAX(TREND(P67:P68,$B67:$B68,$B98),0) -> 0 | Q98: =TREND(Q67:Q68,$B67:$B68,$B98) -> 0 | R98: =IF(Induced="N",0,(IF(B61=Hwy,M98*(I98*ValTimeTruck+(1-I98)*ValTimeAuto)-N98*(J98*ValTimeTruck+(1-J98)*ValTimeAuto),(IF(INDEX($P$197:$X$200,MATCH(B61,$O$197:$O$200,0),7)>0,INDEX($P$197:$X$200,MATCH(B61,$O$197:$O$200,0),7)/IF(INDEX($P$197:$X$200,MATCH(B61,$O$197:$O$200,0),6)=0,1,INDEX($P$197:$X$200,MATCH(B61,$O$197:$O$200,0),6)),M98)-N98)*ValTimeAuto)+O98-P98)*(H98-Q98)*0.5*(1+TTUprater)^($B98-YearCurrent)) -> 0 | S98: 0 | T98: 0
B99: 2054 | C99: =MAX(TREND(C67:C68,B67:B68,B99),0) -> 0 | D99: =MAX(TREND(D67:D68,B67:B68,B99),0) -> 0 | G99: =MAX(TREND(G67:G68,$B67:$B68,$B99),0) -> 0 | H99: =MAX(TREND(H67:H68,$B67:$B68,$B99),0) -> 0 | K99: =MAX(TREND(K67:K68,B67:B68,B99),0) -> 0 | L99: =MAX(TREND(L67:L68,B67:B68,B99),0) -> 0 | M99: =IFERROR(IF(B61=Hwy,C99*E99/G99,K99/G99),0) -> 0 | N99: =IFERROR(IF(B61=Hwy,D99*F99/H99,L99/H99),0) -> 0 | O99: =MAX(TREND(O67:O68,$B67:$B68,$B99),0) -> 0 | P99: =MAX(TREND(P67:P68,$B67:$B68,$B99),0) -> 0 | Q99: =TREND(Q67:Q68,$B67:$B68,$B99) -> 0 | R99: =IF(Induced="N",0,(IF(B61=Hwy,M99*(I99*ValTimeTruck+(1-I99)*ValTimeAuto)-N99*(J99*ValTimeTruck+(1-J99)*ValTimeAuto),(IF(INDEX($P$197:$X$200,MATCH(B61,$O$197:$O$200,0),7)>0,INDEX($P$197:$X$200,MATCH(B61,$O$197:$O$200,0),7)/IF(INDEX($P$197:$X$200,MATCH(B61,$O$197:$O$200,0),6)=0,1,INDEX($P$197:$X$200,MATCH(B61,$O$197:$O$200,0),6)),M99)-N99)*ValTimeAuto)+O99-P99)*(H99-Q99)*0.5*(1+TTUprater)^($B99-YearCurrent)) -> 0 | S99: 0 | T99: 0
B101: Total | T101: =SUM(T70:T99) -> 0
A104: 3 | B104: =PARAMETERS!$J$11 -> Light Rail
C106: TOTAL VHT | E106: AVERAGE VEH OCC | G106: =IF(B104=Hwy,"TOTAL VEHICLE TRIPS","TOTAL PERSON TRIPS") -> TOTAL PERSON TRIPS | I106: PERCENT TRUCKS | K106: TOTAL PHT | M106: AVERAGE TRAVEL TIME | O106: OUT OF POCKET COST | Q106: =IF(B104=Hwy,"TOTAL VEHICLE TRIPS","TOTAL PERSON TRIPS") -> TOTAL PERSON TRIPS | R106: CONSUMER SURPLUS BENEFIT
C107: (veh-hours/yr) | E107: (persons/vehicle) | G107: (trips/yr) | I107: (%) | K107: (per-hours/yr) | M107: (hours/trip) | O107: ($/trip) | Q107: (trips/yr) | R107: ($/yr)
B108: Year | Q108: Adjusted (no induced) | R108: New | S108: Constant | T108: Present
C109: No Build | D109: Build | E109: No Build | F109: Build | G109: No Build | H109: Build | I109: No Build | J109: Build | K109: No Build | L109: Build | M109: No Build | N109: Build | O109: No Build | P109: Build | Q109: Build | R109: (Induced) | S109: Dollars | T109: Value
B110: =YearFirst -> 2020 | C110: =SUMIF(INDEX(HwyTransitModelGroup,,1),B104,INDEX(ModelData1NB,,3))*AnnualFactor -> 0 | D110: =SUMIF(INDEX(HwyTransitModelGroup,,1),B104,INDEX(ModelData1B,,3))*AnnualFactor -> 0 | G110: =SUMIF(INDEX(HwyTransitModelGroup,,1),B104,INDEX(ModelData1NB,,1))*AnnualFactor -> 0 | H110: =SUMIF(INDEX(HwyTransitModelGroup,,1),B104,INDEX(ModelData1B,,1))*AnnualFactor -> 0 | K110: =SUMIF(INDEX(HwyTransitModelGroup,,1),B104,INDEX(ModelData1NB,,5))*AnnualFactor -> 0 | L110: =SUMIF(INDEX(HwyTransitModelGroup,,1),B104,INDEX(ModelData1B,,5))*AnnualFactor -> 0 | M110: =IFERROR(IF(B104=Hwy,C110*E110/G110,K110/G110),0) -> 0 | N110: =IFERROR(IF(B104=Hwy,D110*F110/H110,L110/H110),0) -> 0 | O110: =IF(E110=0,0,SUMPRODUCT(--(INDEX(HwyTransitModelGroup,,1)=B104),INDEX(ModelData1NB,,6),INDEX(ModelData1NB,,1))/IF(SUMPRODUCT(--(INDEX(HwyTransitModelGroup,,1)=B104),INDEX(ModelData1NB,,1))=0,1,SUMPRODUCT(--(INDEX(HwyTransitModelGroup,,1)=B104),INDEX(ModelData1NB,,1)))) -> 0 | P110: =IF(F110=0,0,SUMPRODUCT(--(INDEX(HwyTransitModelGroup,,1)=B104),INDEX(ModelData1B,,6),INDEX(ModelData1B,,1))/IF(SUMPRODUCT(--(INDEX(HwyTransitModelGroup,,1)=B104),INDEX(ModelData1B,,1))=0,1,SUMPRODUCT(--(INDEX(HwyTransitModelGroup,,1)=B104),INDEX(ModelData1B,,1)))) -> 0 | Q110: =IFERROR($H110-SUMIF('Consumer Surplus'!$C$197:$C$200,B104,'Consumer Surplus'!$G$197:$G$200),0) -> 0 | R110: =IF(Induced="N",0,(IF(B104=Hwy,M110*(I110*ValTimeTruck+(1-I110)*ValTimeAuto)-N110*(J110*ValTimeTruck+(1-J110)*ValTimeAuto),(IF(INDEX($P$197:$X$200,MATCH(B104,$O$197:$O$200,0),7)>0,INDEX($P$197:$X$200,MATCH(B104,$O$197:$O$200,0),7)/IF(INDEX($P$197:$X$200,MATCH(B104,$O$197:$O$200,0),6)=0,1,INDEX($P$197:$X$200,MATCH(B104,$O$197:$O$200,0),6)),M110)-N110)*ValTimeAuto)+O110-P110)*(H110-Q110)*0.5*(1+TTUprater)^($B110-YearCurrent)) -> 0 | S110: =SUM(R110:R110) -> 0 | T110: =S110/(1+DiscRate)^(B110-YearCurrent) -> 0
B111: =YearLast -> 2054 | C111: =SUMIF(INDEX(HwyTransitModelGroup,,1),B104,INDEX(ModelData20NB,,3))*AnnualFactor -> 0 | D111: =SUMIF(INDEX(HwyTransitModelGroup,,1),B104,INDEX(ModelData20B,,3))*AnnualFactor -> 0 | G111: =SUMIF(INDEX(HwyTransitModelGroup,,1),B104,INDEX(ModelData20NB,,1))*AnnualFactor -> 0 | H111: =SUMIF(INDEX(HwyTransitModelGroup,,1),B104,INDEX(ModelData20B,,1))*AnnualFactor -> 0 | K111: =SUMIF(INDEX(HwyTransitModelGroup,,1),B104,INDEX(ModelData20NB,,5))*AnnualFactor -> 0 | L111: =SUMIF(INDEX(HwyTransitModelGroup,,1),B104,INDEX(ModelData20B,,5))*AnnualFactor -> 0 | M111: =IFERROR(IF(B104=Hwy,C111*E111/G111,K111/G111),0) -> 0 | N111: =IFERROR(IF(B104=Hwy,D111*F111/H111,L111/H111),0) -> 0 | O111: =IF(E111=0,0,SUMPRODUCT(--(INDEX(HwyTransitModelGroup,,1)=B104),INDEX(ModelData20NB,,6),INDEX(ModelData20NB,,1))/IF(SUMPRODUCT(--(INDEX(HwyTransitModelGroup,,1)=B104),INDEX(ModelData20NB,,1))=0,1,SUMPRODUCT(--(INDEX(HwyTransitModelGroup,,1)=B104),INDEX(ModelData20NB,,1)))) -> 0 | P111: =IF(F111=0,0,SUMPRODUCT(--(INDEX(HwyTransitModelGroup,,1)=B104),INDEX(ModelData20B,,6),INDEX(ModelData20B,,1))/IF(SUMPRODUCT(--(INDEX(HwyTransitModelGroup,,1)=B104),INDEX(ModelData20B,,1))=0,1,SUMPRODUCT(--(INDEX(HwyTransitModelGroup,,1)=B104),INDEX(ModelData20B,,1)))) -> 0 | Q111: =IFERROR($H111-SUMIF('Consumer Surplus'!$C$197:$C$200,B104,'Consumer Surplus'!$K$197:$K$200),0) -> 0 | R111: =IF(Induced="N",0,(IF(B104=Hwy,M111*(I111*ValTimeTruck+(1-I111)*ValTimeAuto)-N111*(J111*ValTimeTruck+(1-J111)*ValTimeAuto),(IF(INDEX($P$197:$X$200,MATCH(B104,$O$197:$O$200,0),9)>0,INDEX($P$197:$X$200,MATCH(B104,$O$197:$O$200,0),9)/IF(INDEX($P$197:$X$200,MATCH(B104,$O$197:$O$200,0),9)=0,1,INDEX($P$197:$X$200,MATCH(B104,$O$197:$O$200,0),8)),M111)-N111)*ValTimeAuto)+O111-P111)*(H111-Q111)*0.5*(1+TTUprater)^($B111-YearCurrent)) -> 0 | S111: =SUM(R111:R111) -> 0 | T111: =S111/(1+DiscRate)^(B111-YearCurrent) -> 0
B113: =YearOpen -> 2025 | C113: =MAX(TREND(C110:C111,B110:B111,B113),0) -> 0 | D113: =MAX(TREND(D110:D111,B110:B111,B113),0) -> 0 | G113: =MAX(TREND(G110:G111,$B110:$B111,$B113),0) -> 0 | H113: =MAX(TREND(H110:H111,$B110:$B111,$B113),0) -> 0 | K113: =MAX(TREND(K110:K111,B110:B111,B113),0) -> 0 | L113: =MAX(TREND(L110:L111,B110:B111,B113),0) -> 0 | M113: =IFERROR(IF(B104=Hwy,C113*E113/G113,K113/G113),0) -> 0 | N113: =IFERROR(IF(B104=Hwy,D113*F113/H113,L113/H113),0) -> 0 | O113: =MAX(TREND(O110:O111,$B110:$B111,$B113),0) -> 0 | P113: =MAX(TREND(P110:P111,$B110:$B111,$B113),0) -> 0 | Q113: =TREND(Q110:Q111,$B110:$B111,$B113) -> 0 | R113: =IF(Induced="N",0,(IF(B104=Hwy,M113*(I113*ValTimeTruck+(1-I113)*ValTimeAuto)-N113*(J113*ValTimeTruck+(1-J113)*ValTimeAuto),(IF(INDEX($P$197:$X$200,MATCH(B104,$O$197:$O$200,0),7)>0,INDEX($P$197:$X$200,MATCH(B104,$O$197:$O$200,0),7)/IF(INDEX($P$197:$X$200,MATCH(B104,$O$197:$O$200,0),6)=0,1,INDEX($P$197:$X$200,MATCH(B104,$O$197:$O$200,0),6)),M113)-N113)*ValTimeAuto)+O113-P113)*(H113-Q113)*0.5*(1+TTUprater)^($B113-YearCurrent)) -> 0 | S113: =SUM(R113:R113) -> 0 | T113: =S113/(1+DiscRate)^(B113-YearCurrent) -> 0
B114: =B113+1 -> 2026 | C114: =MAX(TREND(C110:C111,B110:B111,B114),0) -> 0 | D114: =MAX(TREND(D110:D111,B110:B111,B114),0) -> 0 | G114: =MAX(TREND(G110:G111,$B110:$B111,$B114),0) -> 0 | H114: =MAX(TREND(H110:H111,$B110:$B111,$B114),0) -> 0 | K114: =MAX(TREND(K110:K111,B110:B111,B114),0) -> 0 | L114: =MAX(TREND(L110:L111,B110:B111,B114),0) -> 0 | M114: =IFERROR(IF(B104=Hwy,C114*E114/G114,K114/G114),0) -> 0 | N114: =IFERROR(IF(B104=Hwy,D114*F114/H114,L114/H114),0) -> 0 | O114: =MAX(TREND(O110:O111,$B110:$B111,$B114),0) -> 0 | P114: =MAX(TREND(P110:P111,$B110:$B111,$B114),0) -> 0 | Q114: =TREND(Q110:Q111,$B110:$B111,$B114) -> 0 | R114: =IF(Induced="N",0,(IF(B104=Hwy,M114*(I114*ValTimeTruck+(1-I114)*ValTimeAuto)-N114*(J114*ValTimeTruck+(1-J114)*ValTimeAuto),(IF(INDEX($P$197:$X$200,MATCH(B104,$O$197:$O$200,0),7)>0,INDEX($P$197:$X$200,MATCH(B104,$O$197:$O$200,0),7)/IF(INDEX($P$197:$X$200,MATCH(B104,$O$197:$O$200,0),6)=0,1,INDEX($P$197:$X$200,MATCH(B104,$O$197:$O$200,0),6)),M114)-N114)*ValTimeAuto)+O114-P114)*(H114-Q114)*0.5*(1+TTUprater)^($B114-YearCurrent)) -> 0 | S114: 0 | T114: 0
B115: =B114+1 -> 2027 | C115: =MAX(TREND(C110:C111,B110:B111,B115),0) -> 0 | D115: =MAX(TREND(D110:D111,B110:B111,B115),0) -> 0 | G115: =MAX(TREND(G110:G111,$B110:$B111,$B115),0) -> 0 | H115: =MAX(TREND(H110:H111,$B110:$B111,$B115),0) -> 0 | K115: =MAX(TREND(K110:K111,B110:B111,B115),0) -> 0 | L115: =MAX(TREND(L110:L111,B110:B111,B115),0) -> 0 | M115: =IFERROR(IF(B104=Hwy,C115*E115/G115,K115/G115),0) -> 0 | N115: =IFERROR(IF(B104=Hwy,D115*F115/H115,L115/H115),0) -> 0 | O115: =MAX(TREND(O110:O111,$B110:$B111,$B115),0) -> 0 | P115: =MAX(TREND(P110:P111,$B110:$B111,$B115),0) -> 0 | Q115: =TREND(Q110:Q111,$B110:$B111,$B115) -> 0 | R115: =IF(Induced="N",0,(IF(B104=Hwy,M115*(I115*ValTimeTruck+(1-I115)*ValTimeAuto)-N115*(J115*ValTimeTruck+(1-J115)*ValTimeAuto),(IF(INDEX($P$197:$X$200,MATCH(B104,$O$197:$O$200,0),7)>0,INDEX($P$197:$X$200,MATCH(B104,$O$197:$O$200,0),7)/IF(INDEX($P$197:$X$200,MATCH(B104,$O$197:$O$200,0),6)=0,1,INDEX($P$197:$X$200,MATCH(B104,$O$197:$O$200,0),6)),M115)-N115)*ValTimeAuto)+O115-P115)*(H115-Q115)*0.5*(1+TTUprater)^($B115-YearCurrent)) -> 0 | S115: 0 | T115: 0
B116: 2028 | C116: =MAX(TREND(C110:C111,B110:B111,B116),0) -> 0 | D116: =MAX(TREND(D110:D111,B110:B111,B116),0) -> 0 | G116: =MAX(TREND(G110:G111,$B110:$B111,$B116),0) -> 0 | H116: =MAX(TREND(H110:H111,$B110:$B111,$B116),0) -> 0 | K116: =MAX(TREND(K110:K111,B110:B111,B116),0) -> 0 | L116: =MAX(TREND(L110:L111,B110:B111,B116),0) -> 0 | M116: =IFERROR(IF(B104=Hwy,C116*E116/G116,K116/G116),0) -> 0 | N116: =IFERROR(IF(B104=Hwy,D116*F116/H116,L116/H116),0) -> 0 | O116: =MAX(TREND(O110:O111,$B110:$B111,$B116),0) -> 0 | P116: =MAX(TREND(P110:P111,$B110:$B111,$B116),0) -> 0 | Q116: =TREND(Q110:Q111,$B110:$B111,$B116) -> 0 | R116: =IF(Induced="N",0,(IF(B104=Hwy,M116*(I116*ValTimeTruck+(1-I116)*ValTimeAuto)-N116*(J116*ValTimeTruck+(1-J116)*ValTimeAuto),(IF(INDEX($P$197:$X$200,MATCH(B104,$O$197:$O$200,0),7)>0,INDEX($P$197:$X$200,MATCH(B104,$O$197:$O$200,0),7)/IF(INDEX($P$197:$X$200,MATCH(B104,$O$197:$O$200,0),6)=0,1,INDEX($P$197:$X$200,MATCH(B104,$O$197:$O$200,0),6)),M116)-N116)*ValTimeAuto)+O116-P116)*(H116-Q116)*0.5*(1+TTUprater)^($B116-YearCurrent)) -> 0 | S116: 0 | T116: 0
B117: 2029 | C117: =MAX(TREND(C110:C111,B110:B111,B117),0) -> 0 | D117: =MAX(TREND(D110:D111,B110:B111,B117),0) -> 0 | G117: =MAX(TREND(G110:G111,$B110:$B111,$B117),0) -> 0 | H117: =MAX(TREND(H110:H111,$B110:$B111,$B117),0) -> 0 | K117: =MAX(TREND(K110:K111,B110:B111,B117),0) -> 0 | L117: =MAX(TREND(L110:L111,B110:B111,B117),0) -> 0 | M117: =IFERROR(IF(B104=Hwy,C117*E117/G117,K117/G117),0) -> 0 | N117: =IFERROR(IF(B104=Hwy,D117*F117/H117,L117/H117),0) -> 0 | O117: =MAX(TREND(O110:O111,$B110:$B111,$B117),0) -> 0 | P117: =MAX(TREND(P110:P111,$B110:$B111,$B117),0) -> 0 | Q117: =TREND(Q110:Q111,$B110:$B111,$B117) -> 0 | R117: =IF(Induced="N",0,(IF(B104=Hwy,M117*(I117*ValTimeTruck+(1-I117)*ValTimeAuto)-N117*(J117*ValTimeTruck+(1-J117)*ValTimeAuto),(IF(INDEX($P$197:$X$200,MATCH(B104,$O$197:$O$200,0),7)>0,INDEX($P$197:$X$200,MATCH(B104,$O$197:$O$200,0),7)/IF(INDEX($P$197:$X$200,MATCH(B104,$O$197:$O$200,0),6)=0,1,INDEX($P$197:$X$200,MATCH(B104,$O$197:$O$200,0),6)),M117)-N117)*ValTimeAuto)+O117-P117)*(H117-Q117)*0.5*(1+TTUprater)^($B117-YearCurrent)) -> 0 | S117: 0 | T117: 0
B118: 2030 | C118: =MAX(TREND(C110:C111,B110:B111,B118),0) -> 0 | D118: =MAX(TREND(D110:D111,B110:B111,B118),0) -> 0 | G118: =MAX(TREND(G110:G111,$B110:$B111,$B118),0) -> 0 | H118: =MAX(TREND(H110:H111,$B110:$B111,$B118),0) -> 0 | K118: =MAX(TREND(K110:K111,B110:B111,B118),0) -> 0 | L118: =MAX(TREND(L110:L111,B110:B111,B118),0) -> 0 | M118: =IFERROR(IF(B104=Hwy,C118*E118/G118,K118/G118),0) -> 0 | N118: =IFERROR(IF(B104=Hwy,D118*F118/H118,L118/H118),0) -> 0 | O118: =MAX(TREND(O110:O111,$B110:$B111,$B118),0) -> 0 | P118: =MAX(TREND(P110:P111,$B110:$B111,$B118),0) -> 0 | Q118: =TREND(Q110:Q111,$B110:$B111,$B118) -> 0 | R118: =IF(Induced="N",0,(IF(B104=Hwy,M118*(I118*ValTimeTruck+(1-I118)*ValTimeAuto)-N118*(J118*ValTimeTruck+(1-J118)*ValTimeAuto),(IF(INDEX($P$197:$X$200,MATCH(B104,$O$197:$O$200,0),7)>0,INDEX($P$197:$X$200,MATCH(B104,$O$197:$O$200,0),7)/IF(INDEX($P$197:$X$200,MATCH(B104,$O$197:$O$200,0),6)=0,1,INDEX($P$197:$X$200,MATCH(B104,$O$197:$O$200,0),6)),M118)-N118)*ValTimeAuto)+O118-P118)*(H118-Q118)*0.5*(1+TTUprater)^($B118-YearCurrent)) -> 0 | S118: 0 | T118: 0
B119: 2031 | C119: =MAX(TREND(C110:C111,B110:B111,B119),0) -> 0 | D119: =MAX(TREND(D110:D111,B110:B111,B119),0) -> 0 | G119: =MAX(TREND(G110:G111,$B110:$B111,$B119),0) -> 0 | H119: =MAX(TREND(H110:H111,$B110:$B111,$B119),0) -> 0 | K119: =MAX(TREND(K110:K111,B110:B111,B119),0) -> 0 | L119: =MAX(TREND(L110:L111,B110:B111,B119),0) -> 0 | M119: =IFERROR(IF(B104=Hwy,C119*E119/G119,K119/G119),0) -> 0 | N119: =IFERROR(IF(B104=Hwy,D119*F119/H119,L119/H119),0) -> 0 | O119: =MAX(TREND(O110:O111,$B110:$B111,$B119),0) -> 0 | P119: =MAX(TREND(P110:P111,$B110:$B111,$B119),0) -> 0 | Q119: =TREND(Q110:Q111,$B110:$B111,$B119) -> 0 | R119: =IF(Induced="N",0,(IF(B104=Hwy,M119*(I119*ValTimeTruck+(1-I119)*ValTimeAuto)-N119*(J119*ValTimeTruck+(1-J119)*ValTimeAuto),(IF(INDEX($P$197:$X$200,MATCH(B104,$O$197:$O$200,0),7)>0,INDEX($P$197:$X$200,MATCH(B104,$O$197:$O$200,0),7)/IF(INDEX($P$197:$X$200,MATCH(B104,$O$197:$O$200,0),6)=0,1,INDEX($P$197:$X$200,MATCH(B104,$O$197:$O$200,0),6)),M119)-N119)*ValTimeAuto)+O119-P119)*(H119-Q119)*0.5*(1+TTUprater)^($B119-YearCurrent)) -> 0 | S119: 0 | T119: 0
B120: 2032 | C120: =MAX(TREND(C110:C111,B110:B111,B120),0) -> 0 | D120: =MAX(TREND(D110:D111,B110:B111,B120),0) -> 0 | G120: =MAX(TREND(G110:G111,$B110:$B111,$B120),0) -> 0 | H120: =MAX(TREND(H110:H111,$B110:$B111,$B120),0) -> 0 | K120: =MAX(TREND(K110:K111,B110:B111,B120),0) -> 0 | L120: =MAX(TREND(L110:L111,B110:B111,B120),0) -> 0 | M120: =IFERROR(IF(B104=Hwy,C120*E120/G120,K120/G120),0) -> 0 | N120: =IFERROR(IF(B104=Hwy,D120*F120/H120,L120/H120),0) -> 0 | O120: =MAX(TREND(O110:O111,$B110:$B111,$B120),0) -> 0 | P120: =MAX(TREND(P110:P111,$B110:$B111,$B120),0) -> 0 | Q120: =TREND(Q110:Q111,$B110:$B111,$B120) -> 0 | R120: =IF(Induced="N",0,(IF(B104=Hwy,M120*(I120*ValTimeTruck+(1-I120)*ValTimeAuto)-N120*(J120*ValTimeTruck+(1-J120)*ValTimeAuto),(IF(INDEX($P$197:$X$200,MATCH(B104,$O$197:$O$200,0),7)>0,INDEX($P$197:$X$200,MATCH(B104,$O$197:$O$200,0),7)/IF(INDEX($P$197:$X$200,MATCH(B104,$O$197:$O$200,0),6)=0,1,INDEX($P$197:$X$200,MATCH(B104,$O$197:$O$200,0),6)),M120)-N120)*ValTimeAuto)+O120-P120)*(H120-Q120)*0.5*(1+TTUprater)^($B120-YearCurrent)) -> 0 | S120: 0 | T120: 0
B121: 2033 | C121: =MAX(TREND(C110:C111,B110:B111,B121),0) -> 0 | D121: =MAX(TREND(D110:D111,B110:B111,B121),0) -> 0 | G121: =MAX(TREND(G110:G111,$B110:$B111,$B121),0) -> 0 | H121: =MAX(TREND(H110:H111,$B110:$B111,$B121),0) -> 0 | K121: =MAX(TREND(K110:K111,B110:B111,B121),0) -> 0 | L121: =MAX(TREND(L110:L111,B110:B111,B121),0) -> 0 | M121: =IFERROR(IF(B104=Hwy,C121*E121/G121,K121/G121),0) -> 0 | N121: =IFERROR(IF(B104=Hwy,D121*F121/H121,L121/H121),0) -> 0 | O121: =MAX(TREND(O110:O111,$B110:$B111,$B121),0) -> 0 | P121: =MAX(TREND(P110:P111,$B110:$B111,$B121),0) -> 0 | Q121: =TREND(Q110:Q111,$B110:$B111,$B121) -> 0 | R121: =IF(Induced="N",0,(IF(B104=Hwy,M121*(I121*ValTimeTruck+(1-I121)*ValTimeAuto)-N121*(J121*ValTimeTruck+(1-J121)*ValTimeAuto),(IF(INDEX($P$197:$X$200,MATCH(B104,$O$197:$O$200,0),7)>0,INDEX($P$197:$X$200,MATCH(B104,$O$197:$O$200,0),7)/IF(INDEX($P$197:$X$200,MATCH(B104,$O$197:$O$200,0),6)=0,1,INDEX($P$197:$X$200,MATCH(B104,$O$197:$O$200,0),6)),M121)-N121)*ValTimeAuto)+O121-P121)*(H121-Q121)*0.5*(1+TTUprater)^($B121-YearCurrent)) -> 0 | S121: 0 | T121: 0
B122: 2034 | C122: =MAX(TREND(C110:C111,B110:B111,B122),0) -> 0 | D122: =MAX(TREND(D110:D111,B110:B111,B122),0) -> 0 | G122: =MAX(TREND(G110:G111,$B110:$B111,$B122),0) -> 0 | H122: =MAX(TREND(H110:H111,$B110:$B111,$B122),0) -> 0 | K122: =MAX(TREND(K110:K111,B110:B111,B122),0) -> 0 | L122: =MAX(TREND(L110:L111,B110:B111,B122),0) -> 0 | M122: =IFERROR(IF(B104=Hwy,C122*E122/G122,K122/G122),0) -> 0 | N122: =IFERROR(IF(B104=Hwy,D122*F122/H122,L122/H122),0) -> 0 | O122: =MAX(TREND(O110:O111,$B110:$B111,$B122),0) -> 0 | P122: =MAX(TREND(P110:P111,$B110:$B111,$B122),0) -> 0 | Q122: =TREND(Q110:Q111,$B110:$B111,$B122) -> 0 | R122: =IF(Induced="N",0,(IF(B104=Hwy,M122*(I122*ValTimeTruck+(1-I122)*ValTimeAuto)-N122*(J122*ValTimeTruck+(1-J122)*ValTimeAuto),(IF(INDEX($P$197:$X$200,MATCH(B104,$O$197:$O$200,0),7)>0,INDEX($P$197:$X$200,MATCH(B104,$O$197:$O$200,0),7)/IF(INDEX($P$197:$X$200,MATCH(B104,$O$197:$O$200,0),6)=0,1,INDEX($P$197:$X$200,MATCH(B104,$O$197:$O$200,0),6)),M122)-N122)*ValTimeAuto)+O122-P122)*(H122-Q122)*0.5*(1+TTUprater)^($B122-YearCurrent)) -> 0 | S122: 0 | T122: 0
B123: 2035 | C123: =MAX(TREND(C110:C111,B110:B111,B123),0) -> 0 | D123: =MAX(TREND(D110:D111,B110:B111,B123),0) -> 0 | G123: =MAX(TREND(G110:G111,$B110:$B111,$B123),0) -> 0 | H123: =MAX(TREND(H110:H111,$B110:$B111,$B123),0) -> 0 | K123: =MAX(TREND(K110:K111,B110:B111,B123),0) -> 0 | L123: =MAX(TREND(L110:L111,B110:B111,B123),0) -> 0 | M123: =IFERROR(IF(B104=Hwy,C123*E123/G123,K123/G123),0) -> 0 | N123: =IFERROR(IF(B104=Hwy,D123*F123/H123,L123/H123),0) -> 0 | O123: =MAX(TREND(O110:O111,$B110:$B111,$B123),0) -> 0 | P123: =MAX(TREND(P110:P111,$B110:$B111,$B123),0) -> 0 | Q123: =TREND(Q110:Q111,$B110:$B111,$B123) -> 0 | R123: =IF(Induced="N",0,(IF(B104=Hwy,M123*(I123*ValTimeTruck+(1-I123)*ValTimeAuto)-N123*(J123*ValTimeTruck+(1-J123)*ValTimeAuto),(IF(INDEX($P$197:$X$200,MATCH(B104,$O$197:$O$200,0),7)>0,INDEX($P$197:$X$200,MATCH(B104,$O$197:$O$200,0),7)/IF(INDEX($P$197:$X$200,MATCH(B104,$O$197:$O$200,0),6)=0,1,INDEX($P$197:$X$200,MATCH(B104,$O$197:$O$200,0),6)),M123)-N123)*ValTimeAuto)+O123-P123)*(H123-Q123)*0.5*(1+TTUprater)^($B123-YearCurrent)) -> 0 | S123: 0 | T123: 0
B124: 2036 | C124: =MAX(TREND(C110:C111,B110:B111,B124),0) -> 0 | D124: =MAX(TREND(D110:D111,B110:B111,B124),0) -> 0 | G124: =MAX(TREND(G110:G111,$B110:$B111,$B124),0) -> 0 | H124: =MAX(TREND(H110:H111,$B110:$B111,$B124),0) -> 0 | K124: =MAX(TREND(K110:K111,B110:B111,B124),0) -> 0 | L124: =MAX(TREND(L110:L111,B110:B111,B124),0) -> 0 | M124: =IFERROR(IF(B104=Hwy,C124*E124/G124,K124/G124),0) -> 0 | N124: =IFERROR(IF(B104=Hwy,D124*F124/H124,L124/H124),0) -> 0 | O124: =MAX(TREND(O110:O111,$B110:$B111,$B124),0) -> 0 | P124: =MAX(TREND(P110:P111,$B110:$B111,$B124),0) -> 0 | Q124: =TREND(Q110:Q111,$B110:$B111,$B124) -> 0 | R124: =IF(Induced="N",0,(IF(B104=Hwy,M124*(I124*ValTimeTruck+(1-I124)*ValTimeAuto)-N124*(J124*ValTimeTruck+(1-J124)*ValTimeAuto),(IF(INDEX($P$197:$X$200,MATCH(B104,$O$197:$O$200,0),7)>0,INDEX($P$197:$X$200,MATCH(B104,$O$197:$O$200,0),7)/IF(INDEX($P$197:$X$200,MATCH(B104,$O$197:$O$200,0),6)=0,1,INDEX($P$197:$X$200,MATCH(B104,$O$197:$O$200,0),6)),M124)-N124)*ValTimeAuto)+O124-P124)*(H124-Q124)*0.5*(1+TTUprater)^($B124-YearCurrent)) -> 0 | S124: 0 | T124: 0
B125: 2037 | C125: =MAX(TREND(C110:C111,B110:B111,B125),0) -> 0 | D125: =MAX(TREND(D110:D111,B110:B111,B125),0) -> 0 | G125: =MAX(TREND(G110:G111,$B110:$B111,$B125),0) -> 0 | H125: =MAX(TREND(H110:H111,$B110:$B111,$B125),0) -> 0 | K125: =MAX(TREND(K110:K111,B110:B111,B125),0) -> 0 | L125: =MAX(TREND(L110:L111,B110:B111,B125),0) -> 0 | M125: =IFERROR(IF(B104=Hwy,C125*E125/G125,K125/G125),0) -> 0 | N125: =IFERROR(IF(B104=Hwy,D125*F125/H125,L125/H125),0) -> 0 | O125: =MAX(TREND(O110:O111,$B110:$B111,$B125),0) -> 0 | P125: =MAX(TREND(P110:P111,$B110:$B111,$B125),0) -> 0 | Q125: =TREND(Q110:Q111,$B110:$B111,$B125) -> 0 | R125: =IF(Induced="N",0,(IF(B104=Hwy,M125*(I125*ValTimeTruck+(1-I125)*ValTimeAuto)-N125*(J125*ValTimeTruck+(1-J125)*ValTimeAuto),(IF(INDEX($P$197:$X$200,MATCH(B104,$O$197:$O$200,0),7)>0,INDEX($P$197:$X$200,MATCH(B104,$O$197:$O$200,0),7)/IF(INDEX($P$197:$X$200,MATCH(B104,$O$197:$O$200,0),6)=0,1,INDEX($P$197:$X$200,MATCH(B104,$O$197:$O$200,0),6)),M125)-N125)*ValTimeAuto)+O125-P125)*(H125-Q125)*0.5*(1+TTUprater)^($B125-YearCurrent)) -> 0 | S125: 0 | T125: 0
B126: 2038 | C126: =MAX(TREND(C110:C111,B110:B111,B126),0) -> 0 | D126: =MAX(TREND(D110:D111,B110:B111,B126),0) -> 0 | G126: =MAX(TREND(G110:G111,$B110:$B111,$B126),0) -> 0 | H126: =MAX(TREND(H110:H111,$B110:$B111,$B126),0) -> 0 | K126: =MAX(TREND(K110:K111,B110:B111,B126),0) -> 0 | L126: =MAX(TREND(L110:L111,B110:B111,B126),0) -> 0 | M126: =IFERROR(IF(B104=Hwy,C126*E126/G126,K126/G126),0) -> 0 | N126: =IFERROR(IF(B104=Hwy,D126*F126/H126,L126/H126),0) -> 0 | O126: =MAX(TREND(O110:O111,$B110:$B111,$B126),0) -> 0 | P126: =MAX(TREND(P110:P111,$B110:$B111,$B126),0) -> 0 | Q126: =TREND(Q110:Q111,$B110:$B111,$B126) -> 0 | R126: =IF(Induced="N",0,(IF(B104=Hwy,M126*(I126*ValTimeTruck+(1-I126)*ValTimeAuto)-N126*(J126*ValTimeTruck+(1-J126)*ValTimeAuto),(IF(INDEX($P$197:$X$200,MATCH(B104,$O$197:$O$200,0),7)>0,INDEX($P$197:$X$200,MATCH(B104,$O$197:$O$200,0),7)/IF(INDEX($P$197:$X$200,MATCH(B104,$O$197:$O$200,0),6)=0,1,INDEX($P$197:$X$200,MATCH(B104,$O$197:$O$200,0),6)),M126)-N126)*ValTimeAuto)+O126-P126)*(H126-Q126)*0.5*(1+TTUprater)^($B126-YearCurrent)) -> 0 | S126: 0 | T126: 0
B127: 2039 | C127: =MAX(TREND(C110:C111,B110:B111,B127),0) -> 0 | D127: =MAX(TREND(D110:D111,B110:B111,B127),0) -> 0 | G127: =MAX(TREND(G110:G111,$B110:$B111,$B127),0) -> 0 | H127: =MAX(TREND(H110:H111,$B110:$B111,$B127),0) -> 0 | K127: =MAX(TREND(K110:K111,B110:B111,B127),0) -> 0 | L127: =MAX(TREND(L110:L111,B110:B111,B127),0) -> 0 | M127: =IFERROR(IF(B104=Hwy,C127*E127/G127,K127/G127),0) -> 0 | N127: =IFERROR(IF(B104=Hwy,D127*F127/H127,L127/H127),0) -> 0 | O127: =MAX(TREND(O110:O111,$B110:$B111,$B127),0) -> 0 | P127: =MAX(TREND(P110:P111,$B110:$B111,$B127),0) -> 0 | Q127: =TREND(Q110:Q111,$B110:$B111,$B127) -> 0 | R127: =IF(Induced="N",0,(IF(B104=Hwy,M127*(I127*ValTimeTruck+(1-I127)*ValTimeAuto)-N127*(J127*ValTimeTruck+(1-J127)*ValTimeAuto),(IF(INDEX($P$197:$X$200,MATCH(B104,$O$197:$O$200,0),7)>0,INDEX($P$197:$X$200,MATCH(B104,$O$197:$O$200,0),7)/IF(INDEX($P$197:$X$200,MATCH(B104,$O$197:$O$200,0),6)=0,1,INDEX($P$197:$X$200,MATCH(B104,$O$197:$O$200,0),6)),M127)-N127)*ValTimeAuto)+O127-P127)*(H127-Q127)*0.5*(1+TTUprater)^($B127-YearCurrent)) -> 0 | S127: 0 | T127: 0
B128: 2040 | C128: =MAX(TREND(C110:C111,B110:B111,B128),0) -> 0 | D128: =MAX(TREND(D110:D111,B110:B111,B128),0) -> 0 | G128: =MAX(TREND(G110:G111,$B110:$B111,$B128),0) -> 0 | H128: =MAX(TREND(H110:H111,$B110:$B111,$B128),0) -> 0 | K128: =MAX(TREND(K110:K111,B110:B111,B128),0) -> 0 | L128: =MAX(TREND(L110:L111,B110:B111,B128),0) -> 0 | M128: =IFERROR(IF(B104=Hwy,C128*E128/G128,K128/G128),0) -> 0 | N128: =IFERROR(IF(B104=Hwy,D128*F128/H128,L128/H128),0) -> 0 | O128: =MAX(TREND(O110:O111,$B110:$B111,$B128),0) -> 0 | P128: =MAX(TREND(P110:P111,$B110:$B111,$B128),0) -> 0 | Q128: =TREND(Q110:Q111,$B110:$B111,$B128) -> 0 | R128: =IF(Induced="N",0,(IF(B104=Hwy,M128*(I128*ValTimeTruck+(1-I128)*ValTimeAuto)-N128*(J128*ValTimeTruck+(1-J128)*ValTimeAuto),(IF(INDEX($P$197:$X$200,MATCH(B104,$O$197:$O$200,0),7)>0,INDEX($P$197:$X$200,MATCH(B104,$O$197:$O$200,0),7)/IF(INDEX($P$197:$X$200,MATCH(B104,$O$197:$O$200,0),6)=0,1,INDEX($P$197:$X$200,MATCH(B104,$O$197:$O$200,0),6)),M128)-N128)*ValTimeAuto)+O128-P128)*(H128-Q128)*0.5*(1+TTUprater)^($B128-YearCurrent)) -> 0 | S128: 0 | T128: 0
B129: 2041 | C129: =MAX(TREND(C110:C111,B110:B111,B129),0) -> 0 | D129: =MAX(TREND(D110:D111,B110:B111,B129),0) -> 0 | G129: =MAX(TREND(G110:G111,$B110:$B111,$B129),0) -> 0 | H129: =MAX(TREND(H110:H111,$B110:$B111,$B129),0) -> 0 | K129: =MAX(TREND(K110:K111,B110:B111,B129),0) -> 0 | L129: =MAX(TREND(L110:L111,B110:B111,B129),0) -> 0 | M129: =IFERROR(IF(B104=Hwy,C129*E129/G129,K129/G129),0) -> 0 | N129: =IFERROR(IF(B104=Hwy,D129*F129/H129,L129/H129),0) -> 0 | O129: =MAX(TREND(O110:O111,$B110:$B111,$B129),0) -> 0 | P129: =MAX(TREND(P110:P111,$B110:$B111,$B129),0) -> 0 | Q129: =TREND(Q110:Q111,$B110:$B111,$B129) -> 0 | R129: =IF(Induced="N",0,(IF(B104=Hwy,M129*(I129*ValTimeTruck+(1-I129)*ValTimeAuto)-N129*(J129*ValTimeTruck+(1-J129)*ValTimeAuto),(IF(INDEX($P$197:$X$200,MATCH(B104,$O$197:$O$200,0),7)>0,INDEX($P$197:$X$200,MATCH(B104,$O$197:$O$200,0),7)/IF(INDEX($P$197:$X$200,MATCH(B104,$O$197:$O$200,0),6)=0,1,INDEX($P$197:$X$200,MATCH(B104,$O$197:$O$200,0),6)),M129)-N129)*ValTimeAuto)+O129-P129)*(H129-Q129)*0.5*(1+TTUprater)^($B129-YearCurrent)) -> 0 | S129: 0 | T129: 0
B130: 2042 | C130: =MAX(TREND(C110:C111,B110:B111,B130),0) -> 0 | D130: =MAX(TREND(D110:D111,B110:B111,B130),0) -> 0 | G130: =MAX(TREND(G110:G111,$B110:$B111,$B130),0) -> 0 | H130: =MAX(TREND(H110:H111,$B110:$B111,$B130),0) -> 0 | K130: =MAX(TREND(K110:K111,B110:B111,B130),0) -> 0 | L130: =MAX(TREND(L110:L111,B110:B111,B130),0) -> 0 | M130: =IFERROR(IF(B104=Hwy,C130*E130/G130,K130/G130),0) -> 0 | N130: =IFERROR(IF(B104=Hwy,D130*F130/H130,L130/H130),0) -> 0 | O130: =MAX(TREND(O110:O111,$B110:$B111,$B130),0) -> 0 | P130: =MAX(TREND(P110:P111,$B110:$B111,$B130),0) -> 0 | Q130: =TREND(Q110:Q111,$B110:$B111,$B130) -> 0 | R130: =IF(Induced="N",0,(IF(B104=Hwy,M130*(I130*ValTimeTruck+(1-I130)*ValTimeAuto)-N130*(J130*ValTimeTruck+(1-J130)*ValTimeAuto),(IF(INDEX($P$197:$X$200,MATCH(B104,$O$197:$O$200,0),7)>0,INDEX($P$197:$X$200,MATCH(B104,$O$197:$O$200,0),7)/IF(INDEX($P$197:$X$200,MATCH(B104,$O$197:$O$200,0),6)=0,1,INDEX($P$197:$X$200,MATCH(B104,$O$197:$O$200,0),6)),M130)-N130)*ValTimeAuto)+O130-P130)*(H130-Q130)*0.5*(1+TTUprater)^($B130-YearCurrent)) -> 0 | S130: 0 | T130: 0
B131: 2043 | C131: =MAX(TREND(C110:C111,B110:B111,B131),0) -> 0 | D131: =MAX(TREND(D110:D111,B110:B111,B131),0) -> 0 | G131: =MAX(TREND(G110:G111,$B110:$B111,$B131),0) -> 0 | H131: =MAX(TREND(H110:H111,$B110:$B111,$B131),0) -> 0 | K131: =MAX(TREND(K110:K111,B110:B111,B131),0) -> 0 | L131: =MAX(TREND(L110:L111,B110:B111,B131),0) -> 0 | M131: =IFERROR(IF(B104=Hwy,C131*E131/G131,K131/G131),0) -> 0 | N131: =IFERROR(IF(B104=Hwy,D131*F131/H131,L131/H131),0) -> 0 | O131: =MAX(TREND(O110:O111,$B110:$B111,$B131),0) -> 0 | P131: =MAX(TREND(P110:P111,$B110:$B111,$B131),0) -> 0 | Q131: =TREND(Q110:Q111,$B110:$B111,$B131) -> 0 | R131: =IF(Induced="N",0,(IF(B104=Hwy,M131*(I131*ValTimeTruck+(1-I131)*ValTimeAuto)-N131*(J131*ValTimeTruck+(1-J131)*ValTimeAuto),(IF(INDEX($P$197:$X$200,MATCH(B104,$O$197:$O$200,0),7)>0,INDEX($P$197:$X$200,MATCH(B104,$O$197:$O$200,0),7)/IF(INDEX($P$197:$X$200,MATCH(B104,$O$197:$O$200,0),6)=0,1,INDEX($P$197:$X$200,MATCH(B104,$O$197:$O$200,0),6)),M131)-N131)*ValTimeAuto)+O131-P131)*(H131-Q131)*0.5*(1+TTUprater)^($B131-YearCurrent)) -> 0 | S131: 0 | T131: 0
B132: 2044 | C132: =MAX(TREND(C110:C111,B110:B111,B132),0) -> 0 | D132: =MAX(TREND(D110:D111,B110:B111,B132),0) -> 0 | G132: =MAX(TREND(G110:G111,$B110:$B111,$B132),0) -> 0 | H132: =MAX(TREND(H110:H111,$B110:$B111,$B132),0) -> 0 | K132: =MAX(TREND(K110:K111,B110:B111,B132),0) -> 0 | L132: =MAX(TREND(L110:L111,B110:B111,B132),0) -> 0 | M132: =IFERROR(IF(B104=Hwy,C132*E132/G132,K132/G132),0) -> 0 | N132: =IFERROR(IF(B104=Hwy,D132*F132/H132,L132/H132),0) -> 0 | O132: =MAX(TREND(O110:O111,$B110:$B111,$B132),0) -> 0 | P132: =MAX(TREND(P110:P111,$B110:$B111,$B132),0) -> 0 | Q132: =TREND(Q110:Q111,$B110:$B111,$B132) -> 0 | R132: =IF(Induced="N",0,(IF(B104=Hwy,M132*(I132*ValTimeTruck+(1-I132)*ValTimeAuto)-N132*(J132*ValTimeTruck+(1-J132)*ValTimeAuto),(IF(INDEX($P$197:$X$200,MATCH(B104,$O$197:$O$200,0),7)>0,INDEX($P$197:$X$200,MATCH(B104,$O$197:$O$200,0),7)/IF(INDEX($P$197:$X$200,MATCH(B104,$O$197:$O$200,0),6)=0,1,INDEX($P$197:$X$200,MATCH(B104,$O$197:$O$200,0),6)),M132)-N132)*ValTimeAuto)+O132-P132)*(H132-Q132)*0.5*(1+TTUprater)^($B132-YearCurrent)) -> 0 | S132: 0 | T132: 0
B133: 2045 | C133: =MAX(TREND(C110:C111,B110:B111,B133),0) -> 0 | D133: =MAX(TREND(D110:D111,B110:B111,B133),0) -> 0 | G133: =MAX(TREND(G110:G111,$B110:$B111,$B133),0) -> 0 | H133: =MAX(TREND(H110:H111,$B110:$B111,$B133),0) -> 0 | K133: =MAX(TREND(K110:K111,B110:B111,B133),0) -> 0 | L133: =MAX(TREND(L110:L111,B110:B111,B133),0) -> 0 | M133: =IFERROR(IF(B104=Hwy,C133*E133/G133,K133/G133),0) -> 0 | N133: =IFERROR(IF(B104=Hwy,D133*F133/H133,L133/H133),0) -> 0 | O133: =MAX(TREND(O110:O111,$B110:$B111,$B133),0) -> 0 | P133: =MAX(TREND(P110:P111,$B110:$B111,$B133),0) -> 0 | Q133: =TREND(Q110:Q111,$B110:$B111,$B133) -> 0 | R133: =IF(Induced="N",0,(IF(B104=Hwy,M133*(I133*ValTimeTruck+(1-I133)*ValTimeAuto)-N133*(J133*ValTimeTruck+(1-J133)*ValTimeAuto),(IF(INDEX($P$197:$X$200,MATCH(B104,$O$197:$O$200,0),7)>0,INDEX($P$197:$X$200,MATCH(B104,$O$197:$O$200,0),7)/IF(INDEX($P$197:$X$200,MATCH(B104,$O$197:$O$200,0),6)=0,1,INDEX($P$197:$X$200,MATCH(B104,$O$197:$O$200,0),6)),M133)-N133)*ValTimeAuto)+O133-P133)*(H133-Q133)*0.5*(1+TTUprater)^($B133-YearCurrent)) -> 0 | S133: 0 | T133: 0
B134: 2046 | C134: =MAX(TREND(C110:C111,B110:B111,B134),0) -> 0 | D134: =MAX(TREND(D110:D111,B110:B111,B134),0) -> 0 | G134: =MAX(TREND(G110:G111,$B110:$B111,$B134),0) -> 0 | H134: =MAX(TREND(H110:H111,$B110:$B111,$B134),0) -> 0 | K134: =MAX(TREND(K110:K111,B110:B111,B134),0) -> 0 | L134: =MAX(TREND(L110:L111,B110:B111,B134),0) -> 0 | M134: =IFERROR(IF(B104=Hwy,C134*E134/G134,K134/G134),0) -> 0 | N134: =IFERROR(IF(B104=Hwy,D134*F134/H134,L134/H134),0) -> 0 | O134: =MAX(TREND(O110:O111,$B110:$B111,$B134),0) -> 0 | P134: =MAX(TREND(P110:P111,$B110:$B111,$B134),0) -> 0 | Q134: =TREND(Q110:Q111,$B110:$B111,$B134) -> 0 | R134: =IF(Induced="N",0,(IF(B104=Hwy,M134*(I134*ValTimeTruck+(1-I134)*ValTimeAuto)-N134*(J134*ValTimeTruck+(1-J134)*ValTimeAuto),(IF(INDEX($P$197:$X$200,MATCH(B104,$O$197:$O$200,0),7)>0,INDEX($P$197:$X$200,MATCH(B104,$O$197:$O$200,0),7)/IF(INDEX($P$197:$X$200,MATCH(B104,$O$197:$O$200,0),6)=0,1,INDEX($P$197:$X$200,MATCH(B104,$O$197:$O$200,0),6)),M134)-N134)*ValTimeAuto)+O134-P134)*(H134-Q134)*0.5*(1+TTUprater)^($B134-YearCurrent)) -> 0 | S134: 0 | T134: 0
B135: 2047 | C135: =MAX(TREND(C110:C111,B110:B111,B135),0) -> 0 | D135: =MAX(TREND(D110:D111,B110:B111,B135),0) -> 0 | G135: =MAX(TREND(G110:G111,$B110:$B111,$B135),0) -> 0 | H135: =MAX(TREND(H110:H111,$B110:$B111,$B135),0) -> 0 | K135: =MAX(TREND(K110:K111,B110:B111,B135),0) -> 0 | L135: =MAX(TREND(L110:L111,B110:B111,B135),0) -> 0 | M135: =IFERROR(IF(B104=Hwy,C135*E135/G135,K135/G135),0) -> 0 | N135: =IFERROR(IF(B104=Hwy,D135*F135/H135,L135/H135),0) -> 0 | O135: =MAX(TREND(O110:O111,$B110:$B111,$B135),0) -> 0 | P135: =MAX(TREND(P110:P111,$B110:$B111,$B135),0) -> 0 | Q135: =TREND(Q110:Q111,$B110:$B111,$B135) -> 0 | R135: =IF(Induced="N",0,(IF(B104=Hwy,M135*(I135*ValTimeTruck+(1-I135)*ValTimeAuto)-N135*(J135*ValTimeTruck+(1-J135)*ValTimeAuto),(IF(INDEX($P$197:$X$200,MATCH(B104,$O$197:$O$200,0),7)>0,INDEX($P$197:$X$200,MATCH(B104,$O$197:$O$200,0),7)/IF(INDEX($P$197:$X$200,MATCH(B104,$O$197:$O$200,0),6)=0,1,INDEX($P$197:$X$200,MATCH(B104,$O$197:$O$200,0),6)),M135)-N135)*ValTimeAuto)+O135-P135)*(H135-Q135)*0.5*(1+TTUprater)^($B135-YearCurrent)) -> 0 | S135: 0 | T135: 0
B136: 2048 | C136: =MAX(TREND(C110:C111,B110:B111,B136),0) -> 0 | D136: =MAX(TREND(D110:D111,B110:B111,B136),0) -> 0 | G136: =MAX(TREND(G110:G111,$B110:$B111,$B136),0) -> 0 | H136: =MAX(TREND(H110:H111,$B110:$B111,$B136),0) -> 0 | K136: =MAX(TREND(K110:K111,B110:B111,B136),0) -> 0 | L136: =MAX(TREND(L110:L111,B110:B111,B136),0) -> 0 | M136: =IFERROR(IF(B104=Hwy,C136*E136/G136,K136/G136),0) -> 0 | N136: =IFERROR(IF(B104=Hwy,D136*F136/H136,L136/H136),0) -> 0 | O136: =MAX(TREND(O110:O111,$B110:$B111,$B136),0) -> 0 | P136: =MAX(TREND(P110:P111,$B110:$B111,$B136),0) -> 0 | Q136: =TREND(Q110:Q111,$B110:$B111,$B136) -> 0 | R136: =IF(Induced="N",0,(IF(B104=Hwy,M136*(I136*ValTimeTruck+(1-I136)*ValTimeAuto)-N136*(J136*ValTimeTruck+(1-J136)*ValTimeAuto),(IF(INDEX($P$197:$X$200,MATCH(B104,$O$197:$O$200,0),7)>0,INDEX($P$197:$X$200,MATCH(B104,$O$197:$O$200,0),7)/IF(INDEX($P$197:$X$200,MATCH(B104,$O$197:$O$200,0),6)=0,1,INDEX($P$197:$X$200,MATCH(B104,$O$197:$O$200,0),6)),M136)-N136)*ValTimeAuto)+O136-P136)*(H136-Q136)*0.5*(1+TTUprater)^($B136-YearCurrent)) -> 0 | S136: 0 | T136: 0
B137: 2049 | C137: =MAX(TREND(C110:C111,B110:B111,B137),0) -> 0 | D137: =MAX(TREND(D110:D111,B110:B111,B137),0) -> 0 | G137: =MAX(TREND(G110:G111,$B110:$B111,$B137),0) -> 0 | H137: =MAX(TREND(H110:H111,$B110:$B111,$B137),0) -> 0 | K137: =MAX(TREND(K110:K111,B110:B111,B137),0) -> 0 | L137: =MAX(TREND(L110:L111,B110:B111,B137),0) -> 0 | M137: =IFERROR(IF(B104=Hwy,C137*E137/G137,K137/G137),0) -> 0 | N137: =IFERROR(IF(B104=Hwy,D137*F137/H137,L137/H137),0) -> 0 | O137: =MAX(TREND(O110:O111,$B110:$B111,$B137),0) -> 0 | P137: =MAX(TREND(P110:P111,$B110:$B111,$B137),0) -> 0 | Q137: =TREND(Q110:Q111,$B110:$B111,$B137) -> 0 | R137: =IF(Induced="N",0,(IF(B104=Hwy,M137*(I137*ValTimeTruck+(1-I137)*ValTimeAuto)-N137*(J137*ValTimeTruck+(1-J137)*ValTimeAuto),(IF(INDEX($P$197:$X$200,MATCH(B104,$O$197:$O$200,0),7)>0,INDEX($P$197:$X$200,MATCH(B104,$O$197:$O$200,0),7)/IF(INDEX($P$197:$X$200,MATCH(B104,$O$197:$O$200,0),6)=0,1,INDEX($P$197:$X$200,MATCH(B104,$O$197:$O$200,0),6)),M137)-N137)*ValTimeAuto)+O137-P137)*(H137-Q137)*0.5*(1+TTUprater)^($B137-YearCurrent)) -> 0 | S137: 0 | T137: 0
B138: 2050 | C138: =MAX(TREND(C110:C111,B110:B111,B138),0) -> 0 | D138: =MAX(TREND(D110:D111,B110:B111,B138),0) -> 0 | G138: =MAX(TREND(G110:G111,$B110:$B111,$B138),0) -> 0 | H138: =MAX(TREND(H110:H111,$B110:$B111,$B138),0) -> 0 | K138: =MAX(TREND(K110:K111,B110:B111,B138),0) -> 0 | L138: =MAX(TREND(L110:L111,B110:B111,B138),0) -> 0 | M138: =IFERROR(IF(B104=Hwy,C138*E138/G138,K138/G138),0) -> 0 | N138: =IFERROR(IF(B104=Hwy,D138*F138/H138,L138/H138),0) -> 0 | O138: =MAX(TREND(O110:O111,$B110:$B111,$B138),0) -> 0 | P138: =MAX(TREND(P110:P111,$B110:$B111,$B138),0) -> 0 | Q138: =TREND(Q110:Q111,$B110:$B111,$B138) -> 0 | R138: =IF(Induced="N",0,(IF(B104=Hwy,M138*(I138*ValTimeTruck+(1-I138)*ValTimeAuto)-N138*(J138*ValTimeTruck+(1-J138)*ValTimeAuto),(IF(INDEX($P$197:$X$200,MATCH(B104,$O$197:$O$200,0),7)>0,INDEX($P$197:$X$200,MATCH(B104,$O$197:$O$200,0),7)/IF(INDEX($P$197:$X$200,MATCH(B104,$O$197:$O$200,0),6)=0,1,INDEX($P$197:$X$200,MATCH(B104,$O$197:$O$200,0),6)),M138)-N138)*ValTimeAuto)+O138-P138)*(H138-Q138)*0.5*(1+TTUprater)^($B138-YearCurrent)) -> 0 | S138: 0 | T138: 0
B139: 2051 | C139: =MAX(TREND(C110:C111,B110:B111,B139),0) -> 0 | D139: =MAX(TREND(D110:D111,B110:B111,B139),0) -> 0 | G139: =MAX(TREND(G110:G111,$B110:$B111,$B139),0) -> 0 | H139: =MAX(TREND(H110:H111,$B110:$B111,$B139),0) -> 0 | K139: =MAX(TREND(K110:K111,B110:B111,B139),0) -> 0 | L139: =MAX(TREND(L110:L111,B110:B111,B139),0) -> 0 | M139: =IFERROR(IF(B104=Hwy,C139*E139/G139,K139/G139),0) -> 0 | N139: =IFERROR(IF(B104=Hwy,D139*F139/H139,L139/H139),0) -> 0 | O139: =MAX(TREND(O110:O111,$B110:$B111,$B139),0) -> 0 | P139: =MAX(TREND(P110:P111,$B110:$B111,$B139),0) -> 0 | Q139: =TREND(Q110:Q111,$B110:$B111,$B139) -> 0 | R139: =IF(Induced="N",0,(IF(B104=Hwy,M139*(I139*ValTimeTruck+(1-I139)*ValTimeAuto)-N139*(J139*ValTimeTruck+(1-J139)*ValTimeAuto),(IF(INDEX($P$197:$X$200,MATCH(B104,$O$197:$O$200,0),7)>0,INDEX($P$197:$X$200,MATCH(B104,$O$197:$O$200,0),7)/IF(INDEX($P$197:$X$200,MATCH(B104,$O$197:$O$200,0),6)=0,1,INDEX($P$197:$X$200,MATCH(B104,$O$197:$O$200,0),6)),M139)-N139)*ValTimeAuto)+O139-P139)*(H139-Q139)*0.5*(1+TTUprater)^($B139-YearCurrent)) -> 0 | S139: 0 | T139: 0
B140: 2052 | C140: =MAX(TREND(C110:C111,B110:B111,B140),0) -> 0 | D140: =MAX(TREND(D110:D111,B110:B111,B140),0) -> 0 | G140: =MAX(TREND(G110:G111,$B110:$B111,$B140),0) -> 0 | H140: =MAX(TREND(H110:H111,$B110:$B111,$B140),0) -> 0 | K140: =MAX(TREND(K110:K111,B110:B111,B140),0) -> 0 | L140: =MAX(TREND(L110:L111,B110:B111,B140),0) -> 0 | M140: =IFERROR(IF(B104=Hwy,C140*E140/G140,K140/G140),0) -> 0 | N140: =IFERROR(IF(B104=Hwy,D140*F140/H140,L140/H140),0) -> 0 | O140: =MAX(TREND(O110:O111,$B110:$B111,$B140),0) -> 0 | P140: =MAX(TREND(P110:P111,$B110:$B111,$B140),0) -> 0 | Q140: =TREND(Q110:Q111,$B110:$B111,$B140) -> 0 | R140: =IF(Induced="N",0,(IF(B104=Hwy,M140*(I140*ValTimeTruck+(1-I140)*ValTimeAuto)-N140*(J140*ValTimeTruck+(1-J140)*ValTimeAuto),(IF(INDEX($P$197:$X$200,MATCH(B104,$O$197:$O$200,0),7)>0,INDEX($P$197:$X$200,MATCH(B104,$O$197:$O$200,0),7)/IF(INDEX($P$197:$X$200,MATCH(B104,$O$197:$O$200,0),6)=0,1,INDEX($P$197:$X$200,MATCH(B104,$O$197:$O$200,0),6)),M140)-N140)*ValTimeAuto)+O140-P140)*(H140-Q140)*0.5*(1+TTUprater)^($B140-YearCurrent)) -> 0 | S140: 0 | T140: 0
B141: 2053 | C141: =MAX(TREND(C110:C111,B110:B111,B141),0) -> 0 | D141: =MAX(TREND(D110:D111,B110:B111,B141),0) -> 0 | G141: =MAX(TREND(G110:G111,$B110:$B111,$B141),0) -> 0 | H141: =MAX(TREND(H110:H111,$B110:$B111,$B141),0) -> 0 | K141: =MAX(TREND(K110:K111,B110:B111,B141),0) -> 0 | L141: =MAX(TREND(L110:L111,B110:B111,B141),0) -> 0 | M141: =IFERROR(IF(B104=Hwy,C141*E141/G141,K141/G141),0) -> 0 | N141: =IFERROR(IF(B104=Hwy,D141*F141/H141,L141/H141),0) -> 0 | O141: =MAX(TREND(O110:O111,$B110:$B111,$B141),0) -> 0 | P141: =MAX(TREND(P110:P111,$B110:$B111,$B141),0) -> 0 | Q141: =TREND(Q110:Q111,$B110:$B111,$B141) -> 0 | R141: =IF(Induced="N",0,(IF(B104=Hwy,M141*(I141*ValTimeTruck+(1-I141)*ValTimeAuto)-N141*(J141*ValTimeTruck+(1-J141)*ValTimeAuto),(IF(INDEX($P$197:$X$200,MATCH(B104,$O$197:$O$200,0),7)>0,INDEX($P$197:$X$200,MATCH(B104,$O$197:$O$200,0),7)/IF(INDEX($P$197:$X$200,MATCH(B104,$O$197:$O$200,0),6)=0,1,INDEX($P$197:$X$200,MATCH(B104,$O$197:$O$200,0),6)),M141)-N141)*ValTimeAuto)+O141-P141)*(H141-Q141)*0.5*(1+TTUprater)^($B141-YearCurrent)) -> 0 | S141: 0 | T141: 0
B142: 2054 | C142: =MAX(TREND(C110:C111,B110:B111,B142),0) -> 0 | D142: =MAX(TREND(D110:D111,B110:B111,B142),0) -> 0 | G142: =MAX(TREND(G110:G111,$B110:$B111,$B142),0) -> 0 | H142: =MAX(TREND(H110:H111,$B110:$B111,$B142),0) -> 0 | K142: =MAX(TREND(K110:K111,B110:B111,B142),0) -> 0 | L142: =MAX(TREND(L110:L111,B110:B111,B142),0) -> 0 | M142: =IFERROR(IF(B104=Hwy,C142*E142/G142,K142/G142),0) -> 0 | N142: =IFERROR(IF(B104=Hwy,D142*F142/H142,L142/H142),0) -> 0 | O142: =MAX(TREND(O110:O111,$B110:$B111,$B142),0) -> 0 | P142: =MAX(TREND(P110:P111,$B110:$B111,$B142),0) -> 0 | Q142: =TREND(Q110:Q111,$B110:$B111,$B142) -> 0 | R142: =IF(Induced="N",0,(IF(B104=Hwy,M142*(I142*ValTimeTruck+(1-I142)*ValTimeAuto)-N142*(J142*ValTimeTruck+(1-J142)*ValTimeAuto),(IF(INDEX($P$197:$X$200,MATCH(B104,$O$197:$O$200,0),7)>0,INDEX($P$197:$X$200,MATCH(B104,$O$197:$O$200,0),7)/IF(INDEX($P$197:$X$200,MATCH(B104,$O$197:$O$200,0),6)=0,1,INDEX($P$197:$X$200,MATCH(B104,$O$197:$O$200,0),6)),M142)-N142)*ValTimeAuto)+O142-P142)*(H142-Q142)*0.5*(1+TTUprater)^($B142-YearCurrent)) -> 0 | S142: 0 | T142: 0
B144: Total | T144: =SUM(T113:T142) -> 0
A147: 4 | B147: =PARAMETERS!$J$12 -> Highway
C149: TOTAL VHT | E149: AVERAGE VEH OCC | G149: =IF(B147=Hwy,"TOTAL VEHICLE TRIPS","TOTAL PERSON TRIPS") -> TOTAL VEHICLE TRIPS | I149: PERCENT TRUCKS | K149: TOTAL PHT | M149: AVERAGE TRAVEL TIME | O149: OUT OF POCKET COST | Q149: =IF(B147=Hwy,"TOTAL VEHICLE TRIPS","TOTAL PERSON TRIPS") -> TOTAL VEHICLE TRIPS | R149: CONSUMER SURPLUS BENEFIT
C150: (veh-hours/yr) | E150: (persons/vehicle) | G150: (trips/yr) | I150: (%) | K150: (per-hours/yr) | M150: (hours/trip) | O150: ($/trip) | Q150: (trips/yr) | R150: ($/yr)
B151: Year | Q151: Adjusted (no induced) | R151: New | S151: Constant | T151: Present
C152: No Build | D152: Build | E152: No Build | F152: Build | G152: No Build | H152: Build | I152: No Build | J152: Build | K152: No Build | L152: Build | M152: No Build | N152: Build | O152: No Build | P152: Build | Q152: Build | R152: (Induced) | S152: Dollars | T152: Value
B153: =YearFirst -> 2020 | C153: =SUMIF(INDEX(HwyTransitModelGroup,,1),B147,INDEX(ModelData1NB,,3))*AnnualFactor -> 76650 | D153: =SUMIF(INDEX(HwyTransitModelGroup,,1),B147,INDEX(ModelData1B,,3))*AnnualFactor -> 22995 | E153: =IFERROR(IF(B147=Hwy,SUMPRODUCT(--(INDEX(HwyTransitModelGroup,,1)=B147),INDEX(ModelData1NB,,8),INDEX(ModelData1NB,,3))/SUMPRODUCT(--(INDEX(HwyTransitModelGroup,,1)=B147),INDEX(ModelData1NB,,3)),0),0) -> 1.48 | F153: =IFERROR(IF(B147=Hwy,SUMPRODUCT(--(INDEX(HwyTransitModelGroup,,1)=B147),INDEX(ModelData1B,,8),INDEX(ModelData1B,,3))/SUMPRODUCT(--(INDEX(HwyTransitModelGroup,,1)=B147),INDEX(ModelData1B,,3)),0),0) -> 1.48 | G153: =SUMIF(INDEX(HwyTransitModelGroup,,1),B147,INDEX(ModelData1NB,,1))*AnnualFactor -> 704450 | H153: =SUMIF(INDEX(HwyTransitModelGroup,,1),B147,INDEX(ModelData1B,,1))*AnnualFactor -> 775990 | I153: =IFERROR(IF(B147=Hwy,SUMPRODUCT(--(INDEX(HwyTransitModelGroup,,1)=B147),INDEX(ModelData1NB,,9),INDEX(ModelData1NB,,3))/SUMPRODUCT(--(INDEX(HwyTransitModelGroup,,1)=B147),INDEX(ModelData1NB,,3)),0),0) -> 0.38 | J153: =IFERROR(IF(B147=Hwy,SUMPRODUCT(--(INDEX(HwyTransitModelGroup,,1)=B147),INDEX(ModelData1B,,9),INDEX(ModelData1B,,3))/SUMPRODUCT(--(INDEX(HwyTransitModelGroup,,1)=B147),INDEX(ModelData1B,,3)),0),0) -> 0.38 | K153: =SUMIF(INDEX(HwyTransitModelGroup,,1),B147,INDEX(ModelData1NB,,5))*AnnualFactor -> 0 | L153: =SUMIF(INDEX(HwyTransitModelGroup,,1),B147,INDEX(ModelData1B,,5))*AnnualFactor -> 0 | M153: =IFERROR(IF(B147=Hwy,C153*E153/G153,K153/G153),0) -> 0.1610362694 | N153: =IFERROR(IF(B147=Hwy,D153*F153/H153,L153/H153),0) -> 0.04385700847 | O153: =IFERROR(IF(E153=0,0,SUMPRODUCT(--(INDEX(HwyTransitModelGroup,,1)=B147),INDEX(ModelData1NB,,6),INDEX(ModelData1NB,,1))/IF(SUMPRODUCT(--(INDEX(HwyTransitModelGroup,,1)=B147),INDEX(ModelData1NB,,1))=0,1,SUMPRODUCT(--(INDEX(HwyTransitModelGroup,,1)=B147),INDEX(ModelData1NB,,1)))),0) -> 0 | P153: =IFERROR(IF(F153=0,0,SUMPRODUCT(--(INDEX(HwyTransitModelGroup,,1)=B147),INDEX(ModelData1B,,6),INDEX(ModelData1B,,1))/IF(SUMPRODUCT(--(INDEX(HwyTransitModelGroup,,1)=B147),INDEX(ModelData1B,,1))=0,1,SUMPRODUCT(--(INDEX(HwyTransitModelGroup,,1)=B147),INDEX(ModelData1B,,1)))),0) -> 0 | Q153: =IFERROR($H153-SUMIF('Consumer Surplus'!$C$197:$C$200,B147,'Consumer Surplus'!$G$197:$G$200),0) -> 704450 | R153: =IF(Induced="N",0,(IF(B147=Hwy,M153*(I153*ValTimeTruck+(1-I153)*ValTimeAuto)-N153*(J153*ValTimeTruck+(1-J153)*ValTimeAuto),(IF(INDEX($P$197:$X$200,MATCH(B147,$O$197:$O$200,0),7)>0,INDEX($P$197:$X$200,MATCH(B147,$O$197:$O$200,0),7)/IF(INDEX($P$197:$X$200,MATCH(B147,$O$197:$O$200,0),6)=0,1,INDEX($P$197:$X$200,MATCH(B147,$O$197:$O$200,0),6)),M153)-N153)*ValTimeAuto)+O153-P153)*(H153-Q153)*0.5*(1+TTUprater)^($B153-YearCurrent)) -> 97226.08421 | S153: =SUM(R153:R153) -> 97226.08421 | T153: =S153/(1+DiscRate)^(B153-YearCurrent) -> 97226.08421
B154: =YearLast -> 2054 | C154: =SUMIF(INDEX(HwyTransitModelGroup,,1),B147,INDEX(ModelData20NB,,3))*AnnualFactor -> 739490 | D154: =SUMIF(INDEX(HwyTransitModelGroup,,1),B147,INDEX(ModelData20B,,3))*AnnualFactor -> 242725 | E154: =IFERROR(IF(B147=Hwy,SUMPRODUCT(--(INDEX(HwyTransitModelGroup,,1)=B147),INDEX(ModelData20NB,,8),INDEX(ModelData20NB,,3))/SUMPRODUCT(--(INDEX(HwyTransitModelGroup,,1)=B147),INDEX(ModelData20NB,,3)),0),0) -> 1.48 | F154: =IFERROR(IF(B147=Hwy,SUMPRODUCT(--(INDEX(HwyTransitModelGroup,,1)=B147),INDEX(ModelData20B,,8),INDEX(ModelData20B,,3))/SUMPRODUCT(--(INDEX(HwyTransitModelGroup,,1)=B147),INDEX(ModelData20B,,3)),0),0) -> 1.48 | G154: =SUMIF(INDEX(HwyTransitModelGroup,,1),B147,INDEX(ModelData20NB,,1))*AnnualFactor -> 6785715 | H154: =SUMIF(INDEX(HwyTransitModelGroup,,1),B147,INDEX(ModelData20B,,1))*AnnualFactor -> 7796400 | I154: =IFERROR(IF(B147=Hwy,SUMPRODUCT(--(INDEX(HwyTransitModelGroup,,1)=B147),INDEX(ModelData20NB,,9),INDEX(ModelData20NB,,3))/SUMPRODUCT(--(INDEX(HwyTransitModelGroup,,1)=B147),INDEX(ModelData20NB,,3)),0),0) -> 0.38 | J154: =IFERROR(IF(B147=Hwy,SUMPRODUCT(--(INDEX(HwyTransitModelGroup,,1)=B147),INDEX(ModelData20B,,9),INDEX(ModelData20B,,3))/SUMPRODUCT(--(INDEX(HwyTransitModelGroup,,1)=B147),INDEX(ModelData20B,,3)),0),0) -> 0.38 | K154: =SUMIF(INDEX(HwyTransitModelGroup,,1),B147,INDEX(ModelData20NB,,5))*AnnualFactor -> 0 | L154: =SUMIF(INDEX(HwyTransitModelGroup,,1),B147,INDEX(ModelData20B,,5))*AnnualFactor -> 0 | M154: =IFERROR(IF(B147=Hwy,C154*E154/G154,K154/G154),0) -> 0.1612866441 | N154: =IFERROR(IF(B147=Hwy,D154*F154/H154,L154/H154),0) -> 0.04607677903 | O154: =IFERROR(IF(E154=0,0,SUMPRODUCT(--(INDEX(HwyTransitModelGroup,,1)=B147),INDEX(ModelData20NB,,6),INDEX(ModelData20NB,,1))/IF(SUMPRODUCT(--(INDEX(HwyTransitModelGroup,,1)=B147),INDEX(ModelData20NB,,1))=0,1,SUMPRODUCT(--(INDEX(HwyTransitModelGroup,,1)=B147),INDEX(ModelData20NB,,1)))),0) -> 0 | P154: =IFERROR(IF(F154=0,0,SUMPRODUCT(--(INDEX(HwyTransitModelGroup,,1)=B147),INDEX(ModelData20B,,6),INDEX(ModelData20B,,1))/IF(SUMPRODUCT(--(INDEX(HwyTransitModelGroup,,1)=B147),INDEX(ModelData20B,,1))=0,1,SUMPRODUCT(--(INDEX(HwyTransitModelGroup,,1)=B147),INDEX(ModelData20B,,1)))),0) -> 0 | Q154: =IFERROR($H154-SUMIF('Consumer Surplus'!$C$197:$C$200,B147,'Consumer Surplus'!$K$197:$K$200),0) -> 6785715 | R154: =IF(Induced="N",0,(IF(B147=Hwy,M154*(I154*ValTimeTruck+(1-I154)*ValTimeAuto)-N154*(J154*ValTimeTruck+(1-J154)*ValTimeAuto),(IF(INDEX($P$197:$X$200,MATCH(B147,$O$197:$O$200,0),9)>0,INDEX($P$197:$X$200,MATCH(B147,$O$197:$O$200,0),9)/IF(INDEX($P$197:$X$200,MATCH(B147,$O$197:$O$200,0),9)=0,1,INDEX($P$197:$X$200,MATCH(B147,$O$197:$O$200,0),8)),M154)-N154)*ValTimeAuto)+O154-P154)*(H154-Q154)*0.5*(1+TTUprater)^($B154-YearCurrent)) -> 1350481.355 | S154: =SUM(R154:R154) -> 1350481.355 | T154: =S154/(1+DiscRate)^(B154-YearCurrent) -> 135344.3564
B156: =YearOpen -> 2025 | C156: =MAX(TREND(C153:C154,B153:B154,B156),0) -> 174126.4706 | D156: =MAX(TREND(D153:D154,B153:B154,B156),0) -> 55308.23529 | E156: =MAX(TREND(E153:E154,B153:B154,B156),0) -> 1.48 | F156: =MAX(TREND(F153:F154,B153:B154,B156),0) -> 1.48 | G156: =MAX(TREND(G153:G154,$B153:$B154,$B156),0) -> 1598753.676 | H156: =MAX(TREND(H153:H154,$B153:$B154,$B156),0) -> 1808403.235 | I156: =MIN(MAX(TREND(I153:I154,B153:B154,B156),0),1) -> 0.38 | J156: =MIN(MAX(TREND(J153:J154,B153:B154,B156),0),1) -> 0.38 | K156: =MAX(TREND(K153:K154,B153:B154,B156),0) -> 0 | L156: =MAX(TREND(L153:L154,B153:B154,B156),0) -> 0 | M156: =IFERROR(IF(B147=Hwy,C156*E156/G156,K156/G156),0) -> 0.1611925466 | N156: =IFERROR(IF(B147=Hwy,D156*F156/H156,L156/H156),0) -> 0.04526434516 | O156: =MAX(TREND(O153:O154,$B153:$B154,$B156),0) -> 0 | P156: =MAX(TREND(P153:P154,$B153:$B154,$B156),0) -> 0 | Q156: =TREND(Q153:Q154,$B153:$B154,$B156) -> 1598753.676 | R156: =IF(Induced="N",0,(IF(B147=Hwy,M156*(I156*ValTimeTruck+(1-I156)*ValTimeAuto)-N156*(J156*ValTimeTruck+(1-J156)*ValTimeAuto),(IF(INDEX($P$197:$X$200,MATCH(B147,$O$197:$O$200,0),7)>0,INDEX($P$197:$X$200,MATCH(B147,$O$197:$O$200,0),7)/IF(INDEX($P$197:$X$200,MATCH(B147,$O$197:$O$200,0),6)=0,1,INDEX($P$197:$X$200,MATCH(B147,$O$197:$O$200,0),6)),M156)-N156)*ValTimeAuto)+O156-P156)*(H156-Q156)*0.5*(1+TTUprater)^($B156-YearCurrent)) -> 281881.2283 | S156: =SUM(R156:R156) -> 281881.2283 | T156: =S156/(1+DiscRate)^(B156-YearCurrent) -> 200977.42
B157: =B156+1 -> 2026 | C157: =MAX(TREND(C153:C154,B153:B154,B157),0) -> 193621.7647 | D157: =MAX(TREND(D153:D154,B153:B154,B157),0) -> 61770.88235 | E157: =MAX(TREND(E153:E154,B153:B154,B157),0) -> 1.48 | F157: =MAX(TREND(F153:F154,B153:B154,B157),0) -> 1.48 | G157: =MAX(TREND(G153:G154,$B153:$B154,$B157),0) -> 1777614.412 | H157: =MAX(TREND(H153:H154,$B153:$B154,$B157),0) -> 2014885.882 | I157: =MIN(MAX(TREND(I153:I154,B153:B154,B157),0),1) -> 0.38 | J157: =MIN(MAX(TREND(J153:J154,B153:B154,B157),0),1) -> 0.38 | K157: =MAX(TREND(K153:K154,B153:B154,B157),0) -> 0 | L157: =MAX(TREND(L153:L154,B153:B154,B157),0) -> 0 | M157: =IFERROR(IF(B147=Hwy,C157*E157/G157,K157/G157),0) -> 0.1612049328 | N157: =IFERROR(IF(B147=Hwy,D157*F157/H157,L157/H157),0) -> 0.04537274626 | O157: =MAX(TREND(O153:O154,$B153:$B154,$B157),0) -> 0 | P157: =MAX(TREND(P153:P154,$B153:$B154,$B157),0) -> 0 | Q157: =TREND(Q153:Q154,$B153:$B154,$B157) -> 1777614.412 | R157: =IF(Induced="N",0,(IF(B147=Hwy,M157*(I157*ValTimeTruck+(1-I157)*ValTimeAuto)-N157*(J157*ValTimeTruck+(1-J157)*ValTimeAuto),(IF(INDEX($P$197:$X$200,MATCH(B147,$O$197:$O$200,0),7)>0,INDEX($P$197:$X$200,MATCH(B147,$O$197:$O$200,0),7)/IF(INDEX($P$197:$X$200,MATCH(B147,$O$197:$O$200,0),6)=0,1,INDEX($P$197:$X$200,MATCH(B147,$O$197:$O$200,0),6)),M157)-N157)*ValTimeAuto)+O157-P157)*(H157-Q157)*0.5*(1+TTUprater)^($B157-YearCurrent)) -> 318755.6422 | S157: 318755.6422 | T157: 212400.3435
B158: =B157+1 -> 2027 | C158: =MAX(TREND(C153:C154,B153:B154,B158),0) -> 213117.0588 | D158: =MAX(TREND(D153:D154,B153:B154,B158),0) -> 68233.52941 | E158: =MAX(TREND(E153:E154,B153:B154,B158),0) -> 1.48 | F158: =MAX(TREND(F153:F154,B153:B154,B158),0) -> 1.48 | G158: =MAX(TREND(G153:G154,$B153:$B154,$B158),0) -> 1956475.147 | H158: =MAX(TREND(H153:H154,$B153:$B154,$B158),0) -> 2221368.529 | I158: =MIN(MAX(TREND(I153:I154,B153:B154,B158),0),1) -> 0.38 | J158: =MIN(MAX(TREND(J153:J154,B153:B154,B158),0),1) -> 0.38 | K158: =MAX(TREND(K153:K154,B153:B154,B158),0) -> 0 | L158: =MAX(TREND(L153:L154,B153:B154,B158),0) -> 0 | M158: =IFERROR(IF(B147=Hwy,C158*E158/G158,K158/G158),0) -> 0.1612150543 | N158: =IFERROR(IF(B147=Hwy,D158*F158/H158,L158/H158),0) -> 0.04546099496 | O158: =MAX(TREND(O153:O154,$B153:$B154,$B158),0) -> 0 | P158: =MAX(TREND(P153:P154,$B153:$B154,$B158),0) -> 0 | Q158: =TREND(Q153:Q154,$B153:$B154,$B158) -> 1956475.147 | R158: =IF(Induced="N",0,(IF(B147=Hwy,M158*(I158*ValTimeTruck+(1-I158)*ValTimeAuto)-N158*(J158*ValTimeTruck+(1-J158)*ValTimeAuto),(IF(INDEX($P$197:$X$200,MATCH(B147,$O$197:$O$200,0),7)>0,INDEX($P$197:$X$200,MATCH(B147,$O$197:$O$200,0),7)/IF(INDEX($P$197:$X$200,MATCH(B147,$O$197:$O$200,0),6)=0,1,INDEX($P$197:$X$200,MATCH(B147,$O$197:$O$200,0),6)),M158)-N158)*ValTimeAuto)+O158-P158)*(H158-Q158)*0.5*(1+TTUprater)^($B158-YearCurrent)) -> 355623.4929 | S158: 355623.4929 | T158: 221464.4384
B159: 2028 | C159: =MAX(TREND(C153:C154,B153:B154,B159),0) -> 232612.3529 | D159: =MAX(TREND(D153:D154,B153:B154,B159),0) -> 74696.17647 | E159: =MAX(TREND(E153:E154,B153:B154,B159),0) -> 1.48 | F159: =MAX(TREND(F153:F154,B153:B154,B159),0) -> 1.48 | G159: =MAX(TREND(G153:G154,$B153:$B154,$B159),0) -> 2135335.882 | H159: =MAX(TREND(H153:H154,$B153:$B154,$B159),0) -> 2427851.176 | I159: =MIN(MAX(TREND(I153:I154,B153:B154,B159),0),1) -> 0.38 | J159: =MIN(MAX(TREND(J153:J154,B153:B154,B159),0),1) -> 0.38 | K159: =MAX(TREND(K153:K154,B153:B154,B159),0) -> 0 | L159: =MAX(TREND(L153:L154,B153:B154,B159),0) -> 0 | M159: =IFERROR(IF(B147=Hwy,C159*E159/G159,K159/G159),0) -> 0.1612234802 | N159: =IFERROR(IF(B147=Hwy,D159*F159/H159,L159/H159),0) -> 0.04553423301 | O159: =MAX(TREND(O153:O154,$B153:$B154,$B159),0) -> 0 | P159: =MAX(TREND(P153:P154,$B153:$B154,$B159),0) -> 0 | Q159: =TREND(Q153:Q154,$B153:$B154,$B159) -> 2135335.882 | R159: =IF(Induced="N",0,(IF(B147=Hwy,M159*(I159*ValTimeTruck+(1-I159)*ValTimeAuto)-N159*(J159*ValTimeTruck+(1-J159)*ValTimeAuto),(IF(INDEX($P$197:$X$200,MATCH(B147,$O$197:$O$200,0),7)>0,INDEX($P$197:$X$200,MATCH(B147,$O$197:$O$200,0),7)/IF(INDEX($P$197:$X$200,MATCH(B147,$O$197:$O$200,0),6)=0,1,INDEX($P$197:$X$200,MATCH(B147,$O$197:$O$200,0),6)),M159)-N159)*ValTimeAuto)+O159-P159)*(H159-Q159)*0.5*(1+TTUprater)^($B159-YearCurrent)) -> 392486.4586 | S159: 392486.4586 | T159: 228430.6923
B160: 2029 | C160: =MAX(TREND(C153:C154,B153:B154,B160),0) -> 252107.6471 | D160: =MAX(TREND(D153:D154,B153:B154,B160),0) -> 81158.82353 | E160: =MAX(TREND(E153:E154,B153:B154,B160),0) -> 1.48 | F160: =MAX(TREND(F153:F154,B153:B154,B160),0) -> 1.48 | G160: =MAX(TREND(G153:G154,$B153:$B154,$B160),0) -> 2314196.618 | H160: =MAX(TREND(H153:H154,$B153:$B154,$B160),0) -> 2634333.824 | I160: =MIN(MAX(TREND(I153:I154,B153:B154,B160),0),1) -> 0.38 | J160: =MIN(MAX(TREND(J153:J154,B153:B154,B160),0),1) -> 0.38 | K160: =MAX(TREND(K153:K154,B153:B154,B160),0) -> 0 | L160: =MAX(TREND(L153:L154,B153:B154,B160),0) -> 0 | M160: =IFERROR(IF(B147=Hwy,C160*E160/G160,K160/G160),0) -> 0.1612306037 | N160: =IFERROR(IF(B147=Hwy,D160*F160/H160,L160/H160),0) -> 0.04559599006 | O160: =MAX(TREND(O153:O154,$B153:$B154,$B160),0) -> 0 | P160: =MAX(TREND(P153:P154,$B153:$B154,$B160),0) -> 0 | Q160: =TREND(Q153:Q154,$B153:$B154,$B160) -> 2314196.618 | R160: =IF(Induced="N",0,(IF(B147=Hwy,M160*(I160*ValTimeTruck+(1-I160)*ValTimeAuto)-N160*(J160*ValTimeTruck+(1-J160)*ValTimeAuto),(IF(INDEX($P$197:$X$200,MATCH(B147,$O$197:$O$200,0),7)>0,INDEX($P$197:$X$200,MATCH(B147,$O$197:$O$200,0),7)/IF(INDEX($P$197:$X$200,MATCH(B147,$O$197:$O$200,0),6)=0,1,INDEX($P$197:$X$200,MATCH(B147,$O$197:$O$200,0),6)),M160)-N160)*ValTimeAuto)+O160-P160)*(H160-Q160)*0.5*(1+TTUprater)^($B160-YearCurrent)) -> 429345.6905 | S160: 429345.6905 | T160: 233535.6083
B161: 2030 | C161: =MAX(TREND(C153:C154,B153:B154,B161),0) -> 271602.9412 | D161: =MAX(TREND(D153:D154,B153:B154,B161),0) -> 87621.47059 | E161: =MAX(TREND(E153:E154,B153:B154,B161),0) -> 1.48 | F161: =MAX(TREND(F153:F154,B153:B154,B161),0) -> 1.48 | G161: =MAX(TREND(G153:G154,$B153:$B154,$B161),0) -> 2493057.353 | H161: =MAX(TREND(H153:H154,$B153:$B154,$B161),0) -> 2840816.471 | I161: =MIN(MAX(TREND(I153:I154,B153:B154,B161),0),1) -> 0.38 | J161: =MIN(MAX(TREND(J153:J154,B153:B154,B161),0),1) -> 0.38 | K161: =MAX(TREND(K153:K154,B153:B154,B161),0) -> 0 | L161: =MAX(TREND(L153:L154,B153:B154,B161),0) -> 0 | M161: =IFERROR(IF(B147=Hwy,C161*E161/G161,K161/G161),0) -> 0.161236705 | N161: =IFERROR(IF(B147=Hwy,D161*F161/H161,L161/H161),0) -> 0.04564876957 | O161: =MAX(TREND(O153:O154,$B153:$B154,$B161),0) -> 0 | P161: =MAX(TREND(P153:P154,$B153:$B154,$B161),0) -> 0 | Q161: =TREND(Q153:Q154,$B153:$B154,$B161) -> 2493057.353 | R161: =IF(Induced="N",0,(IF(B147=Hwy,M161*(I161*ValTimeTruck+(1-I161)*ValTimeAuto)-N161*(J161*ValTimeTruck+(1-J161)*ValTimeAuto),(IF(INDEX($P$197:$X$200,MATCH(B147,$O$197:$O$200,0),7)>0,INDEX($P$197:$X$200,MATCH(B147,$O$197:$O$200,0),7)/IF(INDEX($P$197:$X$200,MATCH(B147,$O$197:$O$200,0),6)=0,1,INDEX($P$197:$X$200,MATCH(B147,$O$197:$O$200,0),6)),M161)-N161)*ValTimeAuto)+O161-P161)*(H161-Q161)*0.5*(1+TTUprater)^($B161-YearCurrent)) -> 466202.0043 | S161: 466202.0043 | T161: 236993.4589
B162: 2031 | C162: =MAX(TREND(C153:C154,B153:B154,B162),0) -> 291098.2353 | D162: =MAX(TREND(D153:D154,B153:B154,B162),0) -> 94084.11765 | E162: =MAX(TREND(E153:E154,B153:B154,B162),0) -> 1.48 | F162: =MAX(TREND(F153:F154,B153:B154,B162),0) -> 1.48 | G162: =MAX(TREND(G153:G154,$B153:$B154,$B162),0) -> 2671918.088 | H162: =MAX(TREND(H153:H154,$B153:$B154,$B162),0) -> 3047299.118 | I162: =MIN(MAX(TREND(I153:I154,B153:B154,B162),0),1) -> 0.38 | J162: =MIN(MAX(TREND(J153:J154,B153:B154,B162),0),1) -> 0.38 | K162: =MAX(TREND(K153:K154,B153:B154,B162),0) -> 0 | L162: =MAX(TREND(L153:L154,B153:B154,B162),0) -> 0 | M162: =IFERROR(IF(B147=Hwy,C162*E162/G162,K162/G162),0) -> 0.1612419895 | N162: =IFERROR(IF(B147=Hwy,D162*F162/H162,L162/H162),0) -> 0.04569439649 | O162: =MAX(TREND(O153:O154,$B153:$B154,$B162),0) -> 0 | P162: =MAX(TREND(P153:P154,$B153:$B154,$B162),0) -> 0 | Q162: =TREND(Q153:Q154,$B153:$B154,$B162) -> 2671918.088 | R162: =IF(Induced="N",0,(IF(B147=Hwy,M162*(I162*ValTimeTruck+(1-I162)*ValTimeAuto)-N162*(J162*ValTimeTruck+(1-J162)*ValTimeAuto),(IF(INDEX($P$197:$X$200,MATCH(B147,$O$197:$O$200,0),7)>0,INDEX($P$197:$X$200,MATCH(B147,$O$197:$O$200,0),7)/IF(INDEX($P$197:$X$200,MATCH(B147,$O$197:$O$200,0),6)=0,1,INDEX($P$197:$X$200,MATCH(B147,$O$197:$O$200,0),6)),M162)-N162)*ValTimeAuto)+O162-P162)*(H162-Q162)*0.5*(1+TTUprater)^($B162-YearCurrent)) -> 503055.9942 | S162: 503055.9942 | T162: 238998.279
B163: 2032 | C163: =MAX(TREND(C153:C154,B153:B154,B163),0) -> 310593.5294 | D163: =MAX(TREND(D153:D154,B153:B154,B163),0) -> 100546.7647 | E163: =MAX(TREND(E153:E154,B153:B154,B163),0) -> 1.48 | F163: =MAX(TREND(F153:F154,B153:B154,B163),0) -> 1.48 | G163: =MAX(TREND(G153:G154,$B153:$B154,$B163),0) -> 2850778.824 | H163: =MAX(TREND(H153:H154,$B153:$B154,$B163),0) -> 3253781.765 | I163: =MIN(MAX(TREND(I153:I154,B153:B154,B163),0),1) -> 0.38 | J163: =MIN(MAX(TREND(J153:J154,B153:B154,B163),0),1) -> 0.38 | K163: =MAX(TREND(K153:K154,B153:B154,B163),0) -> 0 | L163: =MAX(TREND(L153:L154,B153:B154,B163),0) -> 0 | M163: =IFERROR(IF(B147=Hwy,C163*E163/G163,K163/G163),0) -> 0.1612466108 | N163: =IFERROR(IF(B147=Hwy,D163*F163/H163,L163/H163),0) -> 0.04573423251 | O163: =MAX(TREND(O153:O154,$B153:$B154,$B163),0) -> 0 | P163: =MAX(TREND(P153:P154,$B153:$B154,$B163),0) -> 0 | Q163: =TREND(Q153:Q154,$B153:$B154,$B163) -> 2850778.824 | R163: =IF(Induced="N",0,(IF(B147=Hwy,M163*(I163*ValTimeTruck+(1-I163)*ValTimeAuto)-N163*(J163*ValTimeTruck+(1-J163)*ValTimeAuto),(IF(INDEX($P$197:$X$200,MATCH(B147,$O$197:$O$200,0),7)>0,INDEX($P$197:$X$200,MATCH(B147,$O$197:$O$200,0),7)/IF(INDEX($P$197:$X$200,MATCH(B147,$O$197:$O$200,0),6)=0,1,INDEX($P$197:$X$200,MATCH(B147,$O$197:$O$200,0),6)),M163)-N163)*ValTimeAuto)+O163-P163)*(H163-Q163)*0.5*(1+TTUprater)^($B163-YearCurrent)) -> 539908.1035 | S163: 539908.1035 | T163: 239725.6549
B164: 2033 | C164: =MAX(TREND(C153:C154,B153:B154,B164),0) -> 330088.8235 | D164: =MAX(TREND(D153:D154,B153:B154,B164),0) -> 107009.4118 | E164: =MAX(TREND(E153:E154,B153:B154,B164),0) -> 1.48 | F164: =MAX(TREND(F153:F154,B153:B154,B164),0) -> 1.48 | G164: =MAX(TREND(G153:G154,$B153:$B154,$B164),0) -> 3029639.559 | H164: =MAX(TREND(H153:H154,$B153:$B154,$B164),0) -> 3460264.412 | I164: =MIN(MAX(TREND(I153:I154,B153:B154,B164),0),1) -> 0.38 | J164: =MIN(MAX(TREND(J153:J154,B153:B154,B164),0),1) -> 0.38 | K164: =MAX(TREND(K153:K154,B153:B154,B164),0) -> 0 | L164: =MAX(TREND(L153:L154,B153:B154,B164),0) -> 0 | M164: =IFERROR(IF(B147=Hwy,C164*E164/G164,K164/G164),0) -> 0.1612506865 | N164: =IFERROR(IF(B147=Hwy,D164*F164/H164,L164/H164),0) -> 0.0457693143 | O164: =MAX(TREND(O153:O154,$B153:$B154,$B164),0) -> 0 | P164: =MAX(TREND(P153:P154,$B153:$B154,$B164),0) -> 0 | Q164: =TREND(Q153:Q154,$B153:$B154,$B164) -> 3029639.559 | R164: =IF(Induced="N",0,(IF(B147=Hwy,M164*(I164*ValTimeTruck+(1-I164)*ValTimeAuto)-N164*(J164*ValTimeTruck+(1-J164)*ValTimeAuto),(IF(INDEX($P$197:$X$200,MATCH(B147,$O$197:$O$200,0),7)>0,INDEX($P$197:$X$200,MATCH(B147,$O$197:$O$200,0),7)/IF(INDEX($P$197:$X$200,MATCH(B147,$O$197:$O$200,0),6)=0,1,INDEX($P$197:$X$200,MATCH(B147,$O$197:$O$200,0),6)),M164)-N164)*ValTimeAuto)+O164-P164)*(H164-Q164)*0.5*(1+TTUprater)^($B164-YearCurrent)) -> 576758.6694 | S164: 576758.6694 | T164: 239334.3428
B165: 2034 | C165: =MAX(TREND(C153:C154,B153:B154,B165),0) -> 349584.1176 | D165: =MAX(TREND(D153:D154,B153:B154,B165),0) -> 113472.0588 | E165: =MAX(TREND(E153:E154,B153:B154,B165),0) -> 1.48 | F165: =MAX(TREND(F153:F154,B153:B154,B165),0) -> 1.48 | G165: =MAX(TREND(G153:G154,$B153:$B154,$B165),0) -> 3208500.294 | H165: =MAX(TREND(H153:H154,$B153:$B154,$B165),0) -> 3666747.059 | I165: =MIN(MAX(TREND(I153:I154,B153:B154,B165),0),1) -> 0.38 | J165: =MIN(MAX(TREND(J153:J154,B153:B154,B165),0),1) -> 0.38 | K165: =MAX(TREND(K153:K154,B153:B154,B165),0) -> 0 | L165: =MAX(TREND(L153:L154,B153:B154,B165),0) -> 0 | M165: =IFERROR(IF(B147=Hwy,C165*E165/G165,K165/G165),0) -> 0.1612543078 | N165: =IFERROR(IF(B147=Hwy,D165*F165/H165,L165/H165),0) -> 0.04580044502 | O165: =MAX(TREND(O153:O154,$B153:$B154,$B165),0) -> 0 | P165: =MAX(TREND(P153:P154,$B153:$B154,$B165),0) -> 0 | Q165: =TREND(Q153:Q154,$B153:$B154,$B165) -> 3208500.294 | R165: =IF(Induced="N",0,(IF(B147=Hwy,M165*(I165*ValTimeTruck+(1-I165)*ValTimeAuto)-N165*(J165*ValTimeTruck+(1-J165)*ValTimeAuto),(IF(INDEX($P$197:$X$200,MATCH(B147,$O$197:$O$200,0),7)>0,INDEX($P$197:$X$200,MATCH(B147,$O$197:$O$200,0),7)/IF(INDEX($P$197:$X$200,MATCH(B147,$O$197:$O$200,0),6)=0,1,INDEX($P$197:$X$200,MATCH(B147,$O$197:$O$200,0),6)),M165)-N165)*ValTimeAuto)+O165-P165)*(H165-Q165)*0.5*(1+TTUprater)^($B165-YearCurrent)) -> 613607.953 | S165: 613607.953 | T165: 237967.7434
B166: 2035 | C166: =MAX(TREND(C153:C154,B153:B154,B166),0) -> 369079.4118 | D166: =MAX(TREND(D153:D154,B153:B154,B166),0) -> 119934.7059 | E166: =MAX(TREND(E153:E154,B153:B154,B166),0) -> 1.48 | F166: =MAX(TREND(F153:F154,B153:B154,B166),0) -> 1.48 | G166: =MAX(TREND(G153:G154,$B153:$B154,$B166),0) -> 3387361.029 | H166: =MAX(TREND(H153:H154,$B153:$B154,$B166),0) -> 3873229.706 | I166: =MIN(MAX(TREND(I153:I154,B153:B154,B166),0),1) -> 0.38 | J166: =MIN(MAX(TREND(J153:J154,B153:B154,B166),0),1) -> 0.38 | K166: =MAX(TREND(K153:K154,B153:B154,B166),0) -> 0 | L166: =MAX(TREND(L153:L154,B153:B154,B166),0) -> 0 | M166: =IFERROR(IF(B147=Hwy,C166*E166/G166,K166/G166),0) -> 0.1612575467 | N166: =IFERROR(IF(B147=Hwy,D166*F166/H166,L166/H166),0) -> 0.04582825657 | O166: =MAX(TREND(O153:O154,$B153:$B154,$B166),0) -> 0 | P166: =MAX(TREND(P153:P154,$B153:$B154,$B166),0) -> 0 | Q166: =TREND(Q153:Q154,$B153:$B154,$B166) -> 3387361.029 | R166: =IF(Induced="N",0,(IF(B147=Hwy,M166*(I166*ValTimeTruck+(1-I166)*ValTimeAuto)-N166*(J166*ValTimeTruck+(1-J166)*ValTimeAuto),(IF(INDEX($P$197:$X$200,MATCH(B147,$O$197:$O$200,0),7)>0,INDEX($P$197:$X$200,MATCH(B147,$O$197:$O$200,0),7)/IF(INDEX($P$197:$X$200,MATCH(B147,$O$197:$O$200,0),6)=0,1,INDEX($P$197:$X$200,MATCH(B147,$O$197:$O$200,0),6)),M166)-N166)*ValTimeAuto)+O166-P166)*(H166-Q166)*0.5*(1+TTUprater)^($B166-YearCurrent)) -> 650456.1596 | S166: 650456.1596 | T166: 235755.246
B167: 2036 | C167: =MAX(TREND(C153:C154,B153:B154,B167),0) -> 388574.7059 | D167: =MAX(TREND(D153:D154,B153:B154,B167),0) -> 126397.3529 | E167: =MAX(TREND(E153:E154,B153:B154,B167),0) -> 1.48 | F167: =MAX(TREND(F153:F154,B153:B154,B167),0) -> 1.48 | G167: =MAX(TREND(G153:G154,$B153:$B154,$B167),0) -> 3566221.765 | H167: =MAX(TREND(H153:H154,$B153:$B154,$B167),0) -> 4079712.353 | I167: =MIN(MAX(TREND(I153:I154,B153:B154,B167),0),1) -> 0.38 | J167: =MIN(MAX(TREND(J153:J154,B153:B154,B167),0),1) -> 0.38 | K167: =MAX(TREND(K153:K154,B153:B154,B167),0) -> 0 | L167: =MAX(TREND(L153:L154,B153:B154,B167),0) -> 0 | M167: =IFERROR(IF(B147=Hwy,C167*E167/G167,K167/G167),0) -> 0.1612604607 | N167: =IFERROR(IF(B147=Hwy,D167*F167/H167,L167/H167),0) -> 0.04585325292 | O167: =MAX(TREND(O153:O154,$B153:$B154,$B167),0) -> 0 | P167: =MAX(TREND(P153:P154,$B153:$B154,$B167),0) -> 0 | Q167: =TREND(Q153:Q154,$B153:$B154,$B167) -> 3566221.765 | R167: =IF(Induced="N",0,(IF(B147=Hwy,M167*(I167*ValTimeTruck+(1-I167)*ValTimeAuto)-N167*(J167*ValTimeTruck+(1-J167)*ValTimeAuto),(IF(INDEX($P$197:$X$200,MATCH(B147,$O$197:$O$200,0),7)>0,INDEX($P$197:$X$200,MATCH(B147,$O$197:$O$200,0),7)/IF(INDEX($P$197:$X$200,MATCH(B147,$O$197:$O$200,0),6)=0,1,INDEX($P$197:$X$200,MATCH(B147,$O$197:$O$200,0),6)),M167)-N167)*ValTimeAuto)+O167-P167)*(H167-Q167)*0.5*(1+TTUprater)^($B167-YearCurrent)) -> 687303.453 | S167: 687303.453 | T167: 232813.4587
B168: 2037 | C168: =MAX(TREND(C153:C154,B153:B154,B168),0) -> 408070 | D168: =MAX(TREND(D153:D154,B153:B154,B168),0) -> 132860 | E168: =MAX(TREND(E153:E154,B153:B154,B168),0) -> 1.48 | F168: =MAX(TREND(F153:F154,B153:B154,B168),0) -> 1.48 | G168: =MAX(TREND(G153:G154,$B153:$B154,$B168),0) -> 3745082.5 | H168: =MAX(TREND(H153:H154,$B153:$B154,$B168),0) -> 4286195 | I168: =MIN(MAX(TREND(I153:I154,B153:B154,B168),0),1) -> 0.38 | J168: =MIN(MAX(TREND(J153:J154,B153:B154,B168),0),1) -> 0.38 | K168: =MAX(TREND(K153:K154,B153:B154,B168),0) -> 0 | L168: =MAX(TREND(L153:L154,B153:B154,B168),0) -> 0 | M168: =IFERROR(IF(B147=Hwy,C168*E168/G168,K168/G168),0) -> 0.1612630963 | N168: =IFERROR(IF(B147=Hwy,D168*F168/H168,L168/H168),0) -> 0.04587584093 | O168: =MAX(TREND(O153:O154,$B153:$B154,$B168),0) -> 0 | P168: =MAX(TREND(P153:P154,$B153:$B154,$B168),0) -> 0 | Q168: =TREND(Q153:Q154,$B153:$B154,$B168) -> 3745082.5 | R168: =IF(Induced="N",0,(IF(B147=Hwy,M168*(I168*ValTimeTruck+(1-I168)*ValTimeAuto)-N168*(J168*ValTimeTruck+(1-J168)*ValTimeAuto),(IF(INDEX($P$197:$X$200,MATCH(B147,$O$197:$O$200,0),7)>0,INDEX($P$197:$X$200,MATCH(B147,$O$197:$O$200,0),7)/IF(INDEX($P$197:$X$200,MATCH(B147,$O$197:$O$200,0),6)=0,1,INDEX($P$197:$X$200,MATCH(B147,$O$197:$O$200,0),6)),M168)-N168)*ValTimeAuto)+O168-P168)*(H168-Q168)*0.5*(1+TTUprater)^($B168-YearCurrent)) -> 724149.9655 | S168: 724149.9655 | T168: 229247.3339
B169: 2038 | C169: =MAX(TREND(C153:C154,B153:B154,B169),0) -> 427565.2941 | D169: =MAX(TREND(D153:D154,B153:B154,B169),0) -> 139322.6471 | E169: =MAX(TREND(E153:E154,B153:B154,B169),0) -> 1.48 | F169: =MAX(TREND(F153:F154,B153:B154,B169),0) -> 1.48 | G169: =MAX(TREND(G153:G154,$B153:$B154,$B169),0) -> 3923943.235 | H169: =MAX(TREND(H153:H154,$B153:$B154,$B169),0) -> 4492677.647 | I169: =MIN(MAX(TREND(I153:I154,B153:B154,B169),0),1) -> 0.38 | J169: =MIN(MAX(TREND(J153:J154,B153:B154,B169),0),1) -> 0.38 | K169: =MAX(TREND(K153:K154,B153:B154,B169),0) -> 0 | L169: =MAX(TREND(L153:L154,B153:B154,B169),0) -> 0 | M169: =IFERROR(IF(B147=Hwy,C169*E169/G169,K169/G169),0) -> 0.1612654917 | N169: =IFERROR(IF(B147=Hwy,D169*F169/H169,L169/H169),0) -> 0.04589635265 | O169: =MAX(TREND(O153:O154,$B153:$B154,$B169),0) -> 0 | P169: =MAX(TREND(P153:P154,$B153:$B154,$B169),0) -> 0 | Q169: =TREND(Q153:Q154,$B153:$B154,$B169) -> 3923943.235 | R169: =IF(Induced="N",0,(IF(B147=Hwy,M169*(I169*ValTimeTruck+(1-I169)*ValTimeAuto)-N169*(J169*ValTimeTruck+(1-J169)*ValTimeAuto),(IF(INDEX($P$197:$X$200,MATCH(B147,$O$197:$O$200,0),7)>0,INDEX($P$197:$X$200,MATCH(B147,$O$197:$O$200,0),7)/IF(INDEX($P$197:$X$200,MATCH(B147,$O$197:$O$200,0),6)=0,1,INDEX($P$197:$X$200,MATCH(B147,$O$197:$O$200,0),6)),M169)-N169)*ValTimeAuto)+O169-P169)*(H169-Q169)*0.5*(1+TTUprater)^($B169-YearCurrent)) -> 760995.8047 | S169: 760995.8047 | T169: 225151.1991
B170: 2039 | C170: =MAX(TREND(C153:C154,B153:B154,B170),0) -> 447060.5882 | D170: =MAX(TREND(D153:D154,B153:B154,B170),0) -> 145785.2941 | E170: =MAX(TREND(E153:E154,B153:B154,B170),0) -> 1.48 | F170: =MAX(TREND(F153:F154,B153:B154,B170),0) -> 1.48 | G170: =MAX(TREND(G153:G154,$B153:$B154,$B170),0) -> 4102803.971 | H170: =MAX(TREND(H153:H154,$B153:$B154,$B170),0) -> 4699160.294 | I170: =MIN(MAX(TREND(I153:I154,B153:B154,B170),0),1) -> 0.38 | J170: =MIN(MAX(TREND(J153:J154,B153:B154,B170),0),1) -> 0.38 | K170: =MAX(TREND(K153:K154,B153:B154,B170),0) -> 0 | L170: =MAX(TREND(L153:L154,B153:B154,B170),0) -> 0 | M170: =IFERROR(IF(B147=Hwy,C170*E170/G170,K170/G170),0) -> 0.1612676782 | N170: =IFERROR(IF(B147=Hwy,D170*F170/H170,L170/H170),0) -> 0.0459150618 | O170: =MAX(TREND(O153:O154,$B153:$B154,$B170),0) -> 0 | P170: =MAX(TREND(P153:P154,$B153:$B154,$B170),0) -> 0 | Q170: =TREND(Q153:Q154,$B153:$B154,$B170) -> 4102803.971 | R170: =IF(Induced="N",0,(IF(B147=Hwy,M170*(I170*ValTimeTruck+(1-I170)*ValTimeAuto)-N170*(J170*ValTimeTruck+(1-J170)*ValTimeAuto),(IF(INDEX($P$197:$X$200,MATCH(B147,$O$197:$O$200,0),7)>0,INDEX($P$197:$X$200,MATCH(B147,$O$197:$O$200,0),7)/IF(INDEX($P$197:$X$200,MATCH(B147,$O$197:$O$200,0),6)=0,1,INDEX($P$197:$X$200,MATCH(B147,$O$197:$O$200,0),6)),M170)-N170)*ValTimeAuto)+O170-P170)*(H170-Q170)*0.5*(1+TTUprater)^($B170-YearCurrent)) -> 797841.0596 | S170: 797841.0596 | T170: 220609.7014
B171: 2040 | C171: =MAX(TREND(C153:C154,B153:B154,B171),0) -> 466555.8824 | D171: =MAX(TREND(D153:D154,B153:B154,B171),0) -> 152247.9412 | E171: =MAX(TREND(E153:E154,B153:B154,B171),0) -> 1.48 | F171: =MAX(TREND(F153:F154,B153:B154,B171),0) -> 1.48 | G171: =MAX(TREND(G153:G154,$B153:$B154,$B171),0) -> 4281664.706 | H171: =MAX(TREND(H153:H154,$B153:$B154,$B171),0) -> 4905642.941 | I171: =MIN(MAX(TREND(I153:I154,B153:B154,B171),0),1) -> 0.38 | J171: =MIN(MAX(TREND(J153:J154,B153:B154,B171),0),1) -> 0.38 | K171: =MAX(TREND(K153:K154,B153:B154,B171),0) -> 0 | L171: =MAX(TREND(L153:L154,B153:B154,B171),0) -> 0 | M171: =IFERROR(IF(B147=Hwy,C171*E171/G171,K171/G171),0) -> 0.1612696821 | N171: =IFERROR(IF(B147=Hwy,D171*F171/H171,L171/H171),0) -> 0.04593219597 | O171: =MAX(TREND(O153:O154,$B153:$B154,$B171),0) -> 0 | P171: =MAX(TREND(P153:P154,$B153:$B154,$B171),0) -> 0 | Q171: =TREND(Q153:Q154,$B153:$B154,$B171) -> 4281664.706 | R171: =IF(Induced="N",0,(IF(B147=Hwy,M171*(I171*ValTimeTruck+(1-I171)*ValTimeAuto)-N171*(J171*ValTimeTruck+(1-J171)*ValTimeAuto),(IF(INDEX($P$197:$X$200,MATCH(B147,$O$197:$O$200,0),7)>0,INDEX($P$197:$X$200,MATCH(B147,$O$197:$O$200,0),7)/IF(INDEX($P$197:$X$200,MATCH(B147,$O$197:$O$200,0),6)=0,1,INDEX($P$197:$X$200,MATCH(B147,$O$197:$O$200,0),6)),M171)-N171)*ValTimeAuto)+O171-P171)*(H171-Q171)*0.5*(1+TTUprater)^($B171-YearCurrent)) -> 834685.8039 | S171: 834685.8039 | T171: 215698.6731
B172: 2041 | C172: =MAX(TREND(C153:C154,B153:B154,B172),0) -> 486051.1765 | D172: =MAX(TREND(D153:D154,B153:B154,B172),0) -> 158710.5882 | E172: =MAX(TREND(E153:E154,B153:B154,B172),0) -> 1.48 | F172: =MAX(TREND(F153:F154,B153:B154,B172),0) -> 1.48 | G172: =MAX(TREND(G153:G154,$B153:$B154,$B172),0) -> 4460525.441 | H172: =MAX(TREND(H153:H154,$B153:$B154,$B172),0) -> 5112125.588 | I172: =MIN(MAX(TREND(I153:I154,B153:B154,B172),0),1) -> 0.38 | J172: =MIN(MAX(TREND(J153:J154,B153:B154,B172),0),1) -> 0.38 | K172: =MAX(TREND(K153:K154,B153:B154,B172),0) -> 0 | L172: =MAX(TREND(L153:L154,B153:B154,B172),0) -> 0 | M172: =IFERROR(IF(B147=Hwy,C172*E172/G172,K172/G172),0) -> 0.1612715252 | N172: =IFERROR(IF(B147=Hwy,D172*F172/H172,L172/H172),0) -> 0.04594794602 | O172: =MAX(TREND(O153:O154,$B153:$B154,$B172),0) -> 0 | P172: =MAX(TREND(P153:P154,$B153:$B154,$B172),0) -> 0 | Q172: =TREND(Q153:Q154,$B153:$B154,$B172) -> 4460525.441 | R172: =IF(Induced="N",0,(IF(B147=Hwy,M172*(I172*ValTimeTruck+(1-I172)*ValTimeAuto)-N172*(J172*ValTimeTruck+(1-J172)*ValTimeAuto),(IF(INDEX($P$197:$X$200,MATCH(B147,$O$197:$O$200,0),7)>0,INDEX($P$197:$X$200,MATCH(B147,$O$197:$O$200,0),7)/IF(INDEX($P$197:$X$200,MATCH(B147,$O$197:$O$200,0),6)=0,1,INDEX($P$197:$X$200,MATCH(B147,$O$197:$O$200,0),6)),M172)-N172)*ValTimeAuto)+O172-P172)*(H172-Q172)*0.5*(1+TTUprater)^($B172-YearCurrent)) -> 871530.0998 | S172: 871530.0998 | T172: 210485.9246
B173: 2042 | C173: =MAX(TREND(C153:C154,B153:B154,B173),0) -> 505546.4706 | D173: =MAX(TREND(D153:D154,B153:B154,B173),0) -> 165173.2353 | E173: =MAX(TREND(E153:E154,B153:B154,B173),0) -> 1.48 | F173: =MAX(TREND(F153:F154,B153:B154,B173),0) -> 1.48 | G173: =MAX(TREND(G153:G154,$B153:$B154,$B173),0) -> 4639386.176 | H173: =MAX(TREND(H153:H154,$B153:$B154,$B173),0) -> 5318608.235 | I173: =MIN(MAX(TREND(I153:I154,B153:B154,B173),0),1) -> 0.38 | J173: =MIN(MAX(TREND(J153:J154,B153:B154,B173),0),1) -> 0.38 | K173: =MAX(TREND(K153:K154,B153:B154,B173),0) -> 0 | L173: =MAX(TREND(L153:L154,B153:B154,B173),0) -> 0 | M173: =IFERROR(IF(B147=Hwy,C173*E173/G173,K173/G173),0) -> 0.1612732262 | N173: =IFERROR(IF(B147=Hwy,D173*F173/H173,L173/H173),0) -> 0.04596247315 | O173: =MAX(TREND(O153:O154,$B153:$B154,$B173),0) -> 0 | P173: =MAX(TREND(P153:P154,$B153:$B154,$B173),0) -> 0 | Q173: =TREND(Q153:Q154,$B153:$B154,$B173) -> 4639386.176 | R173: =IF(Induced="N",0,(IF(B147=Hwy,M173*(I173*ValTimeTruck+(1-I173)*ValTimeAuto)-N173*(J173*ValTimeTruck+(1-J173)*ValTimeAuto),(IF(INDEX($P$197:$X$200,MATCH(B147,$O$197:$O$200,0),7)>0,INDEX($P$197:$X$200,MATCH(B147,$O$197:$O$200,0),7)/IF(INDEX($P$197:$X$200,MATCH(B147,$O$197:$O$200,0),6)=0,1,INDEX($P$197:$X$200,MATCH(B147,$O$197:$O$200,0),6)),M173)-N173)*ValTimeAuto)+O173-P173)*(H173-Q173)*0.5*(1+TTUprater)^($B173-YearCurrent)) -> 908373.9994 | S173: 908373.9994 | T173: 205031.9706
B174: 2043 | C174: =MAX(TREND(C153:C154,B153:B154,B174),0) -> 525041.7647 | D174: =MAX(TREND(D153:D154,B153:B154,B174),0) -> 171635.8824 | E174: =MAX(TREND(E153:E154,B153:B154,B174),0) -> 1.48 | F174: =MAX(TREND(F153:F154,B153:B154,B174),0) -> 1.48 | G174: =MAX(TREND(G153:G154,$B153:$B154,$B174),0) -> 4818246.912 | H174: =MAX(TREND(H153:H154,$B153:$B154,$B174),0) -> 5525090.882 | I174: =MIN(MAX(TREND(I153:I154,B153:B154,B174),0),1) -> 0.38 | J174: =MIN(MAX(TREND(J153:J154,B153:B154,B174),0),1) -> 0.38 | K174: =MAX(TREND(K153:K154,B153:B154,B174),0) -> 0 | L174: =MAX(TREND(L153:L154,B153:B154,B174),0) -> 0 | M174: =IFERROR(IF(B147=Hwy,C174*E174/G174,K174/G174),0) -> 0.161274801 | N174: =IFERROR(IF(B147=Hwy,D174*F174/H174,L174/H174),0) -> 0.04597591448 | O174: =MAX(TREND(O153:O154,$B153:$B154,$B174),0) -> 0 | P174: =MAX(TREND(P153:P154,$B153:$B154,$B174),0) -> 0 | Q174: =TREND(Q153:Q154,$B153:$B154,$B174) -> 4818246.912 | R174: =IF(Induced="N",0,(IF(B147=Hwy,M174*(I174*ValTimeTruck+(1-I174)*ValTimeAuto)-N174*(J174*ValTimeTruck+(1-J174)*ValTimeAuto),(IF(INDEX($P$197:$X$200,MATCH(B147,$O$197:$O$200,0),7)>0,INDEX($P$197:$X$200,MATCH(B147,$O$197:$O$200,0),7)/IF(INDEX($P$197:$X$200,MATCH(B147,$O$197:$O$200,0),6)=0,1,INDEX($P$197:$X$200,MATCH(B147,$O$197:$O$200,0),6)),M174)-N174)*ValTimeAuto)+O174-P174)*(H174-Q174)*0.5*(1+TTUprater)^($B174-YearCurrent)) -> 945217.5471 | S174: 945217.5471 | T174: 199390.6957
B175: 2044 | C175: =MAX(TREND(C153:C154,B153:B154,B175),0) -> 544537.0588 | D175: =MAX(TREND(D153:D154,B153:B154,B175),0) -> 178098.5294 | E175: =MAX(TREND(E153:E154,B153:B154,B175),0) -> 1.48 | F175: =MAX(TREND(F153:F154,B153:B154,B175),0) -> 1.48 | G175: =MAX(TREND(G153:G154,$B153:$B154,$B175),0) -> 4997107.647 | H175: =MAX(TREND(H153:H154,$B153:$B154,$B175),0) -> 5731573.529 | I175: =MIN(MAX(TREND(I153:I154,B153:B154,B175),0),1) -> 0.38 | J175: =MIN(MAX(TREND(J153:J154,B153:B154,B175),0),1) -> 0.38 | K175: =MAX(TREND(K153:K154,B153:B154,B175),0) -> 0 | L175: =MAX(TREND(L153:L154,B153:B154,B175),0) -> 0 | M175: =IFERROR(IF(B147=Hwy,C175*E175/G175,K175/G175),0) -> 0.161276263 | N175: =IFERROR(IF(B147=Hwy,D175*F175/H175,L175/H175),0) -> 0.04598838734 | O175: =MAX(TREND(O153:O154,$B153:$B154,$B175),0) -> 0 | P175: =MAX(TREND(P153:P154,$B153:$B154,$B175),0) -> 0 | Q175: =TREND(Q153:Q154,$B153:$B154,$B175) -> 4997107.647 | R175: =IF(Induced="N",0,(IF(B147=Hwy,M175*(I175*ValTimeTruck+(1-I175)*ValTimeAuto)-N175*(J175*ValTimeTruck+(1-J175)*ValTimeAuto),(IF(INDEX($P$197:$X$200,MATCH(B147,$O$197:$O$200,0),7)>0,INDEX($P$197:$X$200,MATCH(B147,$O$197:$O$200,0),7)/IF(INDEX($P$197:$X$200,MATCH(B147,$O$197:$O$200,0),6)=0,1,INDEX($P$197:$X$200,MATCH(B147,$O$197:$O$200,0),6)),M175)-N175)*ValTimeAuto)+O175-P175)*(H175-Q175)*0.5*(1+TTUprater)^($B175-YearCurrent)) -> 982060.7812 | S175: 982060.7812 | T175: 193609.9636
B176: 2045 | C176: =MAX(TREND(C153:C154,B153:B154,B176),0) -> 564032.3529 | D176: =MAX(TREND(D153:D154,B153:B154,B176),0) -> 184561.1765 | E176: =MAX(TREND(E153:E154,B153:B154,B176),0) -> 1.48 | F176: =MAX(TREND(F153:F154,B153:B154,B176),0) -> 1.48 | G176: =MAX(TREND(G153:G154,$B153:$B154,$B176),0) -> 5175968.382 | H176: =MAX(TREND(H153:H154,$B153:$B154,$B176),0) -> 5938056.176 | I176: =MIN(MAX(TREND(I153:I154,B153:B154,B176),0),1) -> 0.38 | J176: =MIN(MAX(TREND(J153:J154,B153:B154,B176),0),1) -> 0.38 | K176: =MAX(TREND(K153:K154,B153:B154,B176),0) -> 0 | L176: =MAX(TREND(L153:L154,B153:B154,B176),0) -> 0 | M176: =IFERROR(IF(B147=Hwy,C176*E176/G176,K176/G176),0) -> 0.161277624 | N176: =IFERROR(IF(B147=Hwy,D176*F176/H176,L176/H176),0) -> 0.04599999277 | O176: =MAX(TREND(O153:O154,$B153:$B154,$B176),0) -> 0 | P176: =MAX(TREND(P153:P154,$B153:$B154,$B176),0) -> 0 | Q176: =TREND(Q153:Q154,$B153:$B154,$B176) -> 5175968.382 | R176: =IF(Induced="N",0,(IF(B147=Hwy,M176*(I176*ValTimeTruck+(1-I176)*ValTimeAuto)-N176*(J176*ValTimeTruck+(1-J176)*ValTimeAuto),(IF(INDEX($P$197:$X$200,MATCH(B147,$O$197:$O$200,0),7)>0,INDEX($P$197:$X$200,MATCH(B147,$O$197:$O$200,0),7)/IF(INDEX($P$197:$X$200,MATCH(B147,$O$197:$O$200,0),6)=0,1,INDEX($P$197:$X$200,MATCH(B147,$O$197:$O$200,0),6)),M176)-N176)*ValTimeAuto)+O176-P176)*(H176-Q176)*0.5*(1+TTUprater)^($B176-YearCurrent)) -> 1018903.734 | S176: 1018903.734 | T176: 187732.175
B177: 2046 | C177: =MAX(TREND(C153:C154,B153:B154,B177),0) -> 583527.6471 | D177: =MAX(TREND(D153:D154,B153:B154,B177),0) -> 191023.8235 | E177: =MAX(TREND(E153:E154,B153:B154,B177),0) -> 1.48 | F177: =MAX(TREND(F153:F154,B153:B154,B177),0) -> 1.48 | G177: =MAX(TREND(G153:G154,$B153:$B154,$B177),0) -> 5354829.118 | H177: =MAX(TREND(H153:H154,$B153:$B154,$B177),0) -> 6144538.824 | I177: =MIN(MAX(TREND(I153:I154,B153:B154,B177),0),1) -> 0.38 | J177: =MIN(MAX(TREND(J153:J154,B153:B154,B177),0),1) -> 0.38 | K177: =MAX(TREND(K153:K154,B153:B154,B177),0) -> 0 | L177: =MAX(TREND(L153:L154,B153:B154,B177),0) -> 0 | M177: =IFERROR(IF(B147=Hwy,C177*E177/G177,K177/G177),0) -> 0.161278894 | N177: =IFERROR(IF(B147=Hwy,D177*F177/H177,L177/H177),0) -> 0.04601081821 | O177: =MAX(TREND(O153:O154,$B153:$B154,$B177),0) -> 0 | P177: =MAX(TREND(P153:P154,$B153:$B154,$B177),0) -> 0 | Q177: =TREND(Q153:Q154,$B153:$B154,$B177) -> 5354829.118 | R177: =IF(Induced="N",0,(IF(B147=Hwy,M177*(I177*ValTimeTruck+(1-I177)*ValTimeAuto)-N177*(J177*ValTimeTruck+(1-J177)*ValTimeAuto),(IF(INDEX($P$197:$X$200,MATCH(B147,$O$197:$O$200,0),7)>0,INDEX($P$197:$X$200,MATCH(B147,$O$197:$O$200,0),7)/IF(INDEX($P$197:$X$200,MATCH(B147,$O$197:$O$200,0),6)=0,1,INDEX($P$197:$X$200,MATCH(B147,$O$197:$O$200,0),6)),M177)-N177)*ValTimeAuto)+O177-P177)*(H177-Q177)*0.5*(1+TTUprater)^($B177-YearCurrent)) -> 1055746.435 | S177: 1055746.435 | T177: 181794.7778
B178: 2047 | C178: =MAX(TREND(C153:C154,B153:B154,B178),0) -> 603022.9412 | D178: =MAX(TREND(D153:D154,B153:B154,B178),0) -> 197486.4706 | E178: =MAX(TREND(E153:E154,B153:B154,B178),0) -> 1.48 | F178: =MAX(TREND(F153:F154,B153:B154,B178),0) -> 1.48 | G178: =MAX(TREND(G153:G154,$B153:$B154,$B178),0) -> 5533689.853 | H178: =MAX(TREND(H153:H154,$B153:$B154,$B178),0) -> 6351021.471 | I178: =MIN(MAX(TREND(I153:I154,B153:B154,B178),0),1) -> 0.38 | J178: =MIN(MAX(TREND(J153:J154,B153:B154,B178),0),1) -> 0.38 | K178: =MAX(TREND(K153:K154,B153:B154,B178),0) -> 0 | L178: =MAX(TREND(L153:L154,B153:B154,B178),0) -> 0 | M178: =IFERROR(IF(B147=Hwy,C178*E178/G178,K178/G178),0) -> 0.1612800819 | N178: =IFERROR(IF(B147=Hwy,D178*F178/H178,L178/H178),0) -> 0.04602093975 | O178: =MAX(TREND(O153:O154,$B153:$B154,$B178),0) -> 0 | P178: =MAX(TREND(P153:P154,$B153:$B154,$B178),0) -> 0 | Q178: =TREND(Q153:Q154,$B153:$B154,$B178) -> 5533689.853 | R178: =IF(Induced="N",0,(IF(B147=Hwy,M178*(I178*ValTimeTruck+(1-I178)*ValTimeAuto)-N178*(J178*ValTimeTruck+(1-J178)*ValTimeAuto),(IF(INDEX($P$197:$X$200,MATCH(B147,$O$197:$O$200,0),7)>0,INDEX($P$197:$X$200,MATCH(B147,$O$197:$O$200,0),7)/IF(INDEX($P$197:$X$200,MATCH(B147,$O$197:$O$200,0),6)=0,1,INDEX($P$197:$X$200,MATCH(B147,$O$197:$O$200,0),6)),M178)-N178)*ValTimeAuto)+O178-P178)*(H178-Q178)*0.5*(1+TTUprater)^($B178-YearCurrent)) -> 1092588.907 | S178: 1092588.907 | T178: 175830.7342
B179: 2048 | C179: =MAX(TREND(C153:C154,B153:B154,B179),0) -> 622518.2353 | D179: =MAX(TREND(D153:D154,B153:B154,B179),0) -> 203949.1176 | E179: =MAX(TREND(E153:E154,B153:B154,B179),0) -> 1.48 | F179: =MAX(TREND(F153:F154,B153:B154,B179),0) -> 1.48 | G179: =MAX(TREND(G153:G154,$B153:$B154,$B179),0) -> 5712550.588 | H179: =MAX(TREND(H153:H154,$B153:$B154,$B179),0) -> 6557504.118 | I179: =MIN(MAX(TREND(I153:I154,B153:B154,B179),0),1) -> 0.38 | J179: =MIN(MAX(TREND(J153:J154,B153:B154,B179),0),1) -> 0.38 | K179: =MAX(TREND(K153:K154,B153:B154,B179),0) -> 0 | L179: =MAX(TREND(L153:L154,B153:B154,B179),0) -> 0 | M179: =IFERROR(IF(B147=Hwy,C179*E179/G179,K179/G179),0) -> 0.1612811955 | N179: =IFERROR(IF(B147=Hwy,D179*F179/H179,L179/H179),0) -> 0.04603042388 | O179: =MAX(TREND(O153:O154,$B153:$B154,$B179),0) -> 0 | P179: =MAX(TREND(P153:P154,$B153:$B154,$B179),0) -> 0 | Q179: =TREND(Q153:Q154,$B153:$B154,$B179) -> 5712550.588 | R179: =IF(Induced="N",0,(IF(B147=Hwy,M179*(I179*ValTimeTruck+(1-I179)*ValTimeAuto)-N179*(J179*ValTimeTruck+(1-J179)*ValTimeAuto),(IF(INDEX($P$197:$X$200,MATCH(B147,$O$197:$O$200,0),7)>0,INDEX($P$197:$X$200,MATCH(B147,$O$197:$O$200,0),7)/IF(INDEX($P$197:$X$200,MATCH(B147,$O$197:$O$200,0),6)=0,1,INDEX($P$197:$X$200,MATCH(B147,$O$197:$O$200,0),6)),M179)-N179)*ValTimeAuto)+O179-P179)*(H179-Q179)*0.5*(1+TTUprater)^($B179-YearCurrent)) -> 1129431.173 | S179: 1129431.173 | T179: 169868.9473
B180: 2049 | C180: =MAX(TREND(C153:C154,B153:B154,B180),0) -> 642013.5294 | D180: =MAX(TREND(D153:D154,B153:B154,B180),0) -> 210411.7647 | E180: =MAX(TREND(E153:E154,B153:B154,B180),0) -> 1.48 | F180: =MAX(TREND(F153:F154,B153:B154,B180),0) -> 1.48 | G180: =MAX(TREND(G153:G154,$B153:$B154,$B180),0) -> 5891411.324 | H180: =MAX(TREND(H153:H154,$B153:$B154,$B180),0) -> 6763986.765 | I180: =MIN(MAX(TREND(I153:I154,B153:B154,B180),0),1) -> 0.38 | J180: =MIN(MAX(TREND(J153:J154,B153:B154,B180),0),1) -> 0.38 | K180: =MAX(TREND(K153:K154,B153:B154,B180),0) -> 0 | L180: =MAX(TREND(L153:L154,B153:B154,B180),0) -> 0 | M180: =IFERROR(IF(B147=Hwy,C180*E180/G180,K180/G180),0) -> 0.1612822414 | N180: =IFERROR(IF(B147=Hwy,D180*F180/H180,L180/H180),0) -> 0.04603932896 | O180: =MAX(TREND(O153:O154,$B153:$B154,$B180),0) -> 0 | P180: =MAX(TREND(P153:P154,$B153:$B154,$B180),0) -> 0 | Q180: =TREND(Q153:Q154,$B153:$B154,$B180) -> 5891411.324 | R180: =IF(Induced="N",0,(IF(B147=Hwy,M180*(I180*ValTimeTruck+(1-I180)*ValTimeAuto)-N180*(J180*ValTimeTruck+(1-J180)*ValTimeAuto),(IF(INDEX($P$197:$X$200,MATCH(B147,$O$197:$O$200,0),7)>0,INDEX($P$197:$X$200,MATCH(B147,$O$197:$O$200,0),7)/IF(INDEX($P$197:$X$200,MATCH(B147,$O$197:$O$200,0),6)=0,1,INDEX($P$197:$X$200,MATCH(B147,$O$197:$O$200,0),6)),M180)-N180)*ValTimeAuto)+O180-P180)*(H180-Q180)*0.5*(1+TTUprater)^($B180-YearCurrent)) -> 1166273.252 | S180: 1166273.252 | T180: 163934.6518
B181: 2050 | C181: =MAX(TREND(C153:C154,B153:B154,B181),0) -> 661508.8235 | D181: =MAX(TREND(D153:D154,B153:B154,B181),0) -> 216874.4118 | E181: =MAX(TREND(E153:E154,B153:B154,B181),0) -> 1.48 | F181: =MAX(TREND(F153:F154,B153:B154,B181),0) -> 1.48 | G181: =MAX(TREND(G153:G154,$B153:$B154,$B181),0) -> 6070272.059 | H181: =MAX(TREND(H153:H154,$B153:$B154,$B181),0) -> 6970469.412 | I181: =MIN(MAX(TREND(I153:I154,B153:B154,B181),0),1) -> 0.38 | J181: =MIN(MAX(TREND(J153:J154,B153:B154,B181),0),1) -> 0.38 | K181: =MAX(TREND(K153:K154,B153:B154,B181),0) -> 0 | L181: =MAX(TREND(L153:L154,B153:B154,B181),0) -> 0 | M181: =IFERROR(IF(B147=Hwy,C181*E181/G181,K181/G181),0) -> 0.1612832257 | N181: =IFERROR(IF(B147=Hwy,D181*F181/H181,L181/H181),0) -> 0.04604770647 | O181: =MAX(TREND(O153:O154,$B153:$B154,$B181),0) -> 0 | P181: =MAX(TREND(P153:P154,$B153:$B154,$B181),0) -> 0 | Q181: =TREND(Q153:Q154,$B153:$B154,$B181) -> 6070272.059 | R181: =IF(Induced="N",0,(IF(B147=Hwy,M181*(I181*ValTimeTruck+(1-I181)*ValTimeAuto)-N181*(J181*ValTimeTruck+(1-J181)*ValTimeAuto),(IF(INDEX($P$197:$X$200,MATCH(B147,$O$197:$O$200,0),7)>0,INDEX($P$197:$X$200,MATCH(B147,$O$197:$O$200,0),7)/IF(INDEX($P$197:$X$200,MATCH(B147,$O$197:$O$200,0),6)=0,1,INDEX($P$197:$X$200,MATCH(B147,$O$197:$O$200,0),6)),M181)-N181)*ValTimeAuto)+O181-P181)*(H181-Q181)*0.5*(1+TTUprater)^($B181-YearCurrent)) -> 1203115.16 | S181: 1203115.16 | T181: 158049.7702
B182: 2051 | C182: =MAX(TREND(C153:C154,B153:B154,B182),0) -> 681004.1176 | D182: =MAX(TREND(D153:D154,B153:B154,B182),0) -> 223337.0588 | E182: =MAX(TREND(E153:E154,B153:B154,B182),0) -> 1.48 | F182: =MAX(TREND(F153:F154,B153:B154,B182),0) -> 1.48 | G182: =MAX(TREND(G153:G154,$B153:$B154,$B182),0) -> 6249132.794 | H182: =MAX(TREND(H153:H154,$B153:$B154,$B182),0) -> 7176952.059 | I182: =MIN(MAX(TREND(I153:I154,B153:B154,B182),0),1) -> 0.38 | J182: =MIN(MAX(TREND(J153:J154,B153:B154,B182),0),1) -> 0.38 | K182: =MAX(TREND(K153:K154,B153:B154,B182),0) -> 0 | L182: =MAX(TREND(L153:L154,B153:B154,B182),0) -> 0 | M182: =IFERROR(IF(B147=Hwy,C182*E182/G182,K182/G182),0) -> 0.1612841537 | N182: =IFERROR(IF(B147=Hwy,D182*F182/H182,L182/H182),0) -> 0.04605560193 | O182: =MAX(TREND(O153:O154,$B153:$B154,$B182),0) -> 0 | P182: =MAX(TREND(P153:P154,$B153:$B154,$B182),0) -> 0 | Q182: =TREND(Q153:Q154,$B153:$B154,$B182) -> 6249132.794 | R182: =IF(Induced="N",0,(IF(B147=Hwy,M182*(I182*ValTimeTruck+(1-I182)*ValTimeAuto)-N182*(J182*ValTimeTruck+(1-J182)*ValTimeAuto),(IF(INDEX($P$197:$X$200,MATCH(B147,$O$197:$O$200,0),7)>0,INDEX($P$197:$X$200,MATCH(B147,$O$197:$O$200,0),7)/IF(INDEX($P$197:$X$200,MATCH(B147,$O$197:$O$200,0),6)=0,1,INDEX($P$197:$X$200,MATCH(B147,$O$197:$O$200,0),6)),M182)-N182)*ValTimeAuto)+O182-P182)*(H182-Q182)*0.5*(1+TTUprater)^($B182-YearCurrent)) -> 1239956.912 | S182: 1239956.912 | T182: 152233.2382
B183: 2052 | C183: =MAX(TREND(C153:C154,B153:B154,B183),0) -> 700499.4118 | D183: =MAX(TREND(D153:D154,B153:B154,B183),0) -> 229799.7059 | E183: =MAX(TREND(E153:E154,B153:B154,B183),0) -> 1.48 | F183: =MAX(TREND(F153:F154,B153:B154,B183),0) -> 1.48 | G183: =MAX(TREND(G153:G154,$B153:$B154,$B183),0) -> 6427993.529 | H183: =MAX(TREND(H153:H154,$B153:$B154,$B183),0) -> 7383434.706 | I183: =MIN(MAX(TREND(I153:I154,B153:B154,B183),0),1) -> 0.38 | J183: =MIN(MAX(TREND(J153:J154,B153:B154,B183),0),1) -> 0.38 | K183: =MAX(TREND(K153:K154,B153:B154,B183),0) -> 0 | L183: =MAX(TREND(L153:L154,B153:B154,B183),0) -> 0 | M183: =IFERROR(IF(B147=Hwy,C183*E183/G183,K183/G183),0) -> 0.16128503 | N183: =IFERROR(IF(B147=Hwy,D183*F183/H183,L183/H183),0) -> 0.04606305578 | O183: =MAX(TREND(O153:O154,$B153:$B154,$B183),0) -> 0 | P183: =MAX(TREND(P153:P154,$B153:$B154,$B183),0) -> 0 | Q183: =TREND(Q153:Q154,$B153:$B154,$B183) -> 6427993.529 | R183: =IF(Induced="N",0,(IF(B147=Hwy,M183*(I183*ValTimeTruck+(1-I183)*ValTimeAuto)-N183*(J183*ValTimeTruck+(1-J183)*ValTimeAuto),(IF(INDEX($P$197:$X$200,MATCH(B147,$O$197:$O$200,0),7)>0,INDEX($P$197:$X$200,MATCH(B147,$O$197:$O$200,0),7)/IF(INDEX($P$197:$X$200,MATCH(B147,$O$197:$O$200,0),6)=0,1,INDEX($P$197:$X$200,MATCH(B147,$O$197:$O$200,0),6)),M183)-N183)*ValTimeAuto)+O183-P183)*(H183-Q183)*0.5*(1+TTUprater)^($B183-YearCurrent)) -> 1276798.52 | S183: 1276798.52 | T183: 146501.3021
B184: 2053 | C184: =MAX(TREND(C153:C154,B153:B154,B184),0) -> 719994.7059 | D184: =MAX(TREND(D153:D154,B153:B154,B184),0) -> 236262.3529 | E184: =MAX(TREND(E153:E154,B153:B154,B184),0) -> 1.48 | F184: =MAX(TREND(F153:F154,B153:B154,B184),0) -> 1.48 | G184: =MAX(TREND(G153:G154,$B153:$B154,$B184),0) -> 6606854.265 | H184: =MAX(TREND(H153:H154,$B153:$B154,$B184),0) -> 7589917.353 | I184: =MIN(MAX(TREND(I153:I154,B153:B154,B184),0),1) -> 0.38 | J184: =MIN(MAX(TREND(J153:J154,B153:B154,B184),0),1) -> 0.38 | K184: =MAX(TREND(K153:K154,B153:B154,B184),0) -> 0 | L184: =MAX(TREND(L153:L154,B153:B154,B184),0) -> 0 | M184: =IFERROR(IF(B147=Hwy,C184*E184/G184,K184/G184),0) -> 0.1612858589 | N184: =IFERROR(IF(B147=Hwy,D184*F184/H184,L184/H184),0) -> 0.04607010407 | O184: =MAX(TREND(O153:O154,$B153:$B154,$B184),0) -> 0 | P184: =MAX(TREND(P153:P154,$B153:$B154,$B184),0) -> 0 | Q184: =TREND(Q153:Q154,$B153:$B154,$B184) -> 6606854.265 | R184: =IF(Induced="N",0,(IF(B147=Hwy,M184*(I184*ValTimeTruck+(1-I184)*ValTimeAuto)-N184*(J184*ValTimeTruck+(1-J184)*ValTimeAuto),(IF(INDEX($P$197:$X$200,MATCH(B147,$O$197:$O$200,0),7)>0,INDEX($P$197:$X$200,MATCH(B147,$O$197:$O$200,0),7)/IF(INDEX($P$197:$X$200,MATCH(B147,$O$197:$O$200,0),6)=0,1,INDEX($P$197:$X$200,MATCH(B147,$O$197:$O$200,0),6)),M184)-N184)*ValTimeAuto)+O184-P184)*(H184-Q184)*0.5*(1+TTUprater)^($B184-YearCurrent)) -> 1313639.998 | S184: 1313639.998 | T184: 140867.7896
B185: 2054 | C185: =MAX(TREND(C153:C154,B153:B154,B185),0) -> 739490 | D185: =MAX(TREND(D153:D154,B153:B154,B185),0) -> 242725 | E185: =MAX(TREND(E153:E154,B153:B154,B185),0) -> 1.48 | F185: =MAX(TREND(F153:F154,B153:B154,B185),0) -> 1.48 | G185: =MAX(TREND(G153:G154,$B153:$B154,$B185),0) -> 6785715 | H185: =MAX(TREND(H153:H154,$B153:$B154,$B185),0) -> 7796400 | I185: =MIN(MAX(TREND(I153:I154,B153:B154,B185),0),1) -> 0.38 | J185: =MIN(MAX(TREND(J153:J154,B153:B154,B185),0),1) -> 0.38 | K185: =MAX(TREND(K153:K154,B153:B154,B185),0) -> 0 | L185: =MAX(TREND(L153:L154,B153:B154,B185),0) -> 0 | M185: =IFERROR(IF(B147=Hwy,C185*E185/G185,K185/G185),0) -> 0.1612866441 | N185: =IFERROR(IF(B147=Hwy,D185*F185/H185,L185/H185),0) -> 0.04607677903 | O185: =MAX(TREND(O153:O154,$B153:$B154,$B185),0) -> 0 | P185: =MAX(TREND(P153:P154,$B153:$B154,$B185),0) -> 0 | Q185: =TREND(Q153:Q154,$B153:$B154,$B185) -> 6785715 | R185: =IF(Induced="N",0,(IF(B147=Hwy,M185*(I185*ValTimeTruck+(1-I185)*ValTimeAuto)-N185*(J185*ValTimeTruck+(1-J185)*ValTimeAuto),(IF(INDEX($P$197:$X$200,MATCH(B147,$O$197:$O$200,0),7)>0,INDEX($P$197:$X$200,MATCH(B147,$O$197:$O$200,0),7)/IF(INDEX($P$197:$X$200,MATCH(B147,$O$197:$O$200,0),6)=0,1,INDEX($P$197:$X$200,MATCH(B147,$O$197:$O$200,0),6)),M185)-N185)*ValTimeAuto)+O185-P185)*(H185-Q185)*0.5*(1+TTUprater)^($B185-YearCurrent)) -> 1350481.355 | S185: 1350481.355 | T185: 135344.3564
B187: Total | T187: =SUM(T156:T185) -> 6069779.891
C192: SUMMARY OF TRIPS BY MODE (across model groups) | O192: AVERAGE PROFILE FOR DIVERTED TRIPS/INDUCED TRIPS BY MODE
P193: For Trips Diverting from Highway to Transit | U193: Least Cost Alternative (for Induced Trips)
D194: TOTAL TRIPS*
D195: =YearFirst -> 2020 | H195: =YearLast -> 2054 | P195: Average Speed in | Q195: Average Trip Length in | R195: Average Speed in | S195: Average Trip Length in | U195: Average Speed in | V195: Average Trip Length in | W195: Average Speed in | X195: Average Trip Length in
C196: Mode | D196: No Build | E196: Build | F196: Build - No Build** | G196: Induced Demand | H196: No Build | I196: Build | J196: Build - No Build** | K196: Induced Demand | O196: Mode | P196: =YearFirst&" (mph)" -> 2020 (mph) | Q196: =YearFirst&" (miles)" -> 2020 (miles) | R196: =YearLast&" (mph)" -> 2054 (mph) | S196: =YearLast&" (miles)" -> 2054 (miles) | U196: =YearFirst&" (mph)" -> 2020 (mph) | V196: =YearFirst&" (miles)" -> 2020 (miles) | W196: =YearLast&" (mph)" -> 2054 (mph) | X196: =YearLast&" (miles)" -> 2054 (miles)
C197: =PARAMETERS!$J$9 -> Bus | D197: =SUMIF(INDEX(HwyTransitModelGroup,,1),$C197,INDEX(ModelData1NB,,1))*AnnualFactor -> 0 | E197: =SUMIF(INDEX(HwyTransitModelGroup,,1),$C197,INDEX(ModelData1B,,1))*AnnualFactor -> 0 | F197: =E197-D197 -> 0 | G197: =IF(OR($F$201=0,F197<=0),0,F197/SUMIF(F$197:F$200,">0",F$197:F$200)*F$201) -> 0 | H197: =SUMIF(INDEX(HwyTransitModelGroup,,1),$C197,INDEX(ModelData20NB,,1))*AnnualFactor -> 0 | I197: =SUMIF(INDEX(HwyTransitModelGroup,,1),$C197,INDEX(ModelData20B,,1))*AnnualFactor -> 0 | J197: =I197-H197 -> 0 | K197: =IF(OR($F$201=0,J197<=0),0,J197/SUMIF(J$197:J$200,">0",J$197:J$200)*J$201) -> 0 | O197: =PARAMETERS!$J$9 -> Bus | P197: =IFERROR(1/(SUMPRODUCT(P$209:P$211,$E$209:$E$211,--($D$209:$D$211=$C197))/IF(SUMPRODUCT($E$209:$E$211,--($D$209:$D$211=$C197))=0,1,SUMPRODUCT($E$209:$E$211,--($D$209:$D$211=$C197)))),0) -> 0 | Q197: =IFERROR(SUMPRODUCT(Q$209:Q$211,$E$209:$E$211,--($D$209:$D$211=$C197))/SUMPRODUCT($E$209:$E$211,--($D$209:$D$211=$C197)),0) -> 0 | R197: =IFERROR(1/(SUMPRODUCT(R$209:R$211,$I$209:$I$211,--($D$209:$D$211=$C197))/IF(SUMPRODUCT($I$209:$I$211,--($D$209:$D$211=$C197))=0,1,SUMPRODUCT($I$209:$I$211,--($D$209:$D$211=$C197)))),0) -> 0 | S197: =IFERROR(SUMPRODUCT(S$209:S$211,$I$209:$I$211,--($D$209:$D$211=$C197))/SUMPRODUCT($I$209:$I$211,--($D$209:$D$211=$C197)),0) -> 0 | U197: =IFERROR(1/(SUMPRODUCT(U$209:U$211,$E$209:$E$211,--($D$209:$D$211=$C197))/IF(SUMPRODUCT($E$209:$E$211,--($D$209:$D$211=$C197))=0,1,SUMPRODUCT($E$209:$E$211,--($D$209:$D$211=$C197)))),0) -> 0 | V197: =IFERROR(SUMPRODUCT(V$209:V$211,$E$209:$E$211,--($D$209:$D$211=$C197))/SUMPRODUCT($E$209:$E$211,--($D$209:$D$211=$C197)),0) -> 0 | W197: =IFERROR(1/(SUMPRODUCT(W$209:W$211,$I$209:$I$211,--($D$209:$D$211=$C197))/IF(SUMPRODUCT($I$209:$I$211,--($D$209:$D$211=$C197))=0,1,SUMPRODUCT($I$209:$I$211,--($D$209:$D$211=$C197)))),0) -> 0 | X197: =IFERROR(SUMPRODUCT(X$209:X$211,$I$209:$I$211,--($D$209:$D$211=$C197))/SUMPRODUCT($I$209:$I$211,--($D$209:$D$211=$C197)),0) -> 0
C198: =PARAMETERS!$J$10 -> Pass Train | D198: =SUMIF(INDEX(HwyTransitModelGroup,,1),$C198,INDEX(ModelData1NB,,1))*AnnualFactor -> 0 | E198: =SUMIF(INDEX(HwyTransitModelGroup,,1),$C198,INDEX(ModelData1B,,1))*AnnualFactor -> 0 | F198: =E198-D198 -> 0 | G198: =IF(OR($F$201=0,F198<=0),0,F198/SUMIF(F$197:F$200,">0",F$197:F$200)*F$201) -> 0 | H198: =SUMIF(INDEX(HwyTransitModelGroup,,1),$C198,INDEX(ModelData20NB,,1))*AnnualFactor -> 0 | I198: =SUMIF(INDEX(HwyTransitModelGroup,,1),$C198,INDEX(ModelData20B,,1))*AnnualFactor -> 0 | J198: =I198-H198 -> 0 | K198: =IF(OR($F$201=0,J198<=0),0,J198/SUMIF(J$197:J$200,">0",J$197:J$200)*J$201) -> 0 | O198: =PARAMETERS!$J$10 -> Pass Train | P198: =IFERROR(1/(SUMPRODUCT(P$209:P$211,$E$209:$E$211,--($D$209:$D$211=$C198))/IF(SUMPRODUCT($E$209:$E$211,--($D$209:$D$211=$C198))=0,1,SUMPRODUCT($E$209:$E$211,--($D$209:$D$211=$C198)))),0) -> 0 | Q198: =IFERROR(SUMPRODUCT(Q$209:Q$211,$E$209:$E$211,--($D$209:$D$211=$C198))/SUMPRODUCT($E$209:$E$211,--($D$209:$D$211=$C198)),0) -> 0 | R198: =IFERROR(1/(SUMPRODUCT(R$209:R$211,$I$209:$I$211,--($D$209:$D$211=$C198))/IF(SUMPRODUCT($I$209:$I$211,--($D$209:$D$211=$C198))=0,1,SUMPRODUCT($I$209:$I$211,--($D$209:$D$211=$C198)))),0) -> 0 | S198: =IFERROR(SUMPRODUCT(S$209:S$211,$I$209:$I$211,--($D$209:$D$211=$C198))/SUMPRODUCT($I$209:$I$211,--($D$209:$D$211=$C198)),0) -> 0 | U198: =IFERROR(1/(SUMPRODUCT(U$209:U$211,$E$209:$E$211,--($D$209:$D$211=$C198))/IF(SUMPRODUCT($E$209:$E$211,--($D$209:$D$211=$C198))=0,1,SUMPRODUCT($E$209:$E$211,--($D$209:$D$211=$C198)))),0) -> 0 | V198: =IFERROR(SUMPRODUCT(V$209:V$211,$E$209:$E$211,--($D$209:$D$211=$C198))/SUMPRODUCT($E$209:$E$211,--($D$209:$D$211=$C198)),0) -> 0 | W198: =IFERROR(1/(SUMPRODUCT(W$209:W$211,$I$209:$I$211,--($D$209:$D$211=$C198))/IF(SUMPRODUCT($I$209:$I$211,--($D$209:$D$211=$C198))=0,1,SUMPRODUCT($I$209:$I$211,--($D$209:$D$211=$C198)))),0) -> 0 | X198: =IFERROR(SUMPRODUCT(X$209:X$211,$I$209:$I$211,--($D$209:$D$211=$C198))/SUMPRODUCT($I$209:$I$211,--($D$209:$D$211=$C198)),0) -> 0
C199: =PARAMETERS!$J$11 -> Light Rail | D199: =SUMIF(INDEX(HwyTransitModelGroup,,1),$C199,INDEX(ModelData1NB,,1))*AnnualFactor -> 0 | E199: =SUMIF(INDEX(HwyTransitModelGroup,,1),$C199,INDEX(ModelData1B,,1))*AnnualFactor -> 0 | F199: 0 | G199: 0 | H199: =SUMIF(INDEX(HwyTransitModelGroup,,1),$C199,INDEX(ModelData20NB,,1))*AnnualFactor -> 0 | I199: =SUMIF(INDEX(HwyTransitModelGroup,,1),$C199,INDEX(ModelData20B,,1))*AnnualFactor -> 0 | J199: 0 | K199: 0 | O199: =PARAMETERS!$J$11 -> Light Rail | P199: =IFERROR(1/(SUMPRODUCT(P$209:P$211,$E$209:$E$211,--($D$209:$D$211=$C199))/IF(SUMPRODUCT($E$209:$E$211,--($D$209:$D$211=$C199))=0,1,SUMPRODUCT($E$209:$E$211,--($D$209:$D$211=$C199)))),0) -> 0 | Q199: =IFERROR(SUMPRODUCT(Q$209:Q$211,$E$209:$E$211,--($D$209:$D$211=$C199))/SUMPRODUCT($E$209:$E$211,--($D$209:$D$211=$C199)),0) -> 0 | R199: =IFERROR(1/(SUMPRODUCT(R$209:R$211,$I$209:$I$211,--($D$209:$D$211=$C199))/IF(SUMPRODUCT($I$209:$I$211,--($D$209:$D$211=$C199))=0,1,SUMPRODUCT($I$209:$I$211,--($D$209:$D$211=$C199)))),0) -> 0 | S199: =IFERROR(SUMPRODUCT(S$209:S$211,$I$209:$I$211,--($D$209:$D$211=$C199))/SUMPRODUCT($I$209:$I$211,--($D$209:$D$211=$C199)),0) -> 0 | U199: =IFERROR(1/(SUMPRODUCT(U$209:U$211,$E$209:$E$211,--($D$209:$D$211=$C199))/IF(SUMPRODUCT($E$209:$E$211,--($D$209:$D$211=$C199))=0,1,SUMPRODUCT($E$209:$E$211,--($D$209:$D$211=$C199)))),0) -> 0 | V199: =IFERROR(SUMPRODUCT(V$209:V$211,$E$209:$E$211,--($D$209:$D$211=$C199))/SUMPRODUCT($E$209:$E$211,--($D$209:$D$211=$C199)),0) -> 0 | W199: =IFERROR(1/(SUMPRODUCT(W$209:W$211,$I$209:$I$211,--($D$209:$D$211=$C199))/IF(SUMPRODUCT($I$209:$I$211,--($D$209:$D$211=$C199))=0,1,SUMPRODUCT($I$209:$I$211,--($D$209:$D$211=$C199)))),0) -> 0 | X199: =IFERROR(SUMPRODUCT(X$209:X$211,$I$209:$I$211,--($D$209:$D$211=$C199))/SUMPRODUCT($I$209:$I$211,--($D$209:$D$211=$C199)),0) -> 0
C200: =PARAMETERS!$J$12 -> Highway | D200: =SUMIF(INDEX(HwyTransitModelGroup,,1),$C200,INDEX(ModelData1NB,,1))*AnnualFactor -> 704450 | E200: =SUMIF(INDEX(HwyTransitModelGroup,,1),$C200,INDEX(ModelData1B,,1))*AnnualFactor -> 775990 | F200: 71540 | G200: 71540 | H200: =SUMIF(INDEX(HwyTransitModelGroup,,1),$C200,INDEX(ModelData20NB,,1))*AnnualFactor -> 6785715 | I200: =SUMIF(INDEX(HwyTransitModelGroup,,1),$C200,INDEX(ModelData20B,,1))*AnnualFactor -> 7796400 | J200: 1010685 | K200: 1010685 | O200: =PARAMETERS!$J$12 -> Highway | P200: =IFERROR(1/(SUMPRODUCT(P$209:P$211,$E$209:$E$211,--($D$209:$D$211=$C200))/IF(SUMPRODUCT($E$209:$E$211,--($D$209:$D$211=$C200))=0,1,SUMPRODUCT($E$209:$E$211,--($D$209:$D$211=$C200)))),0) -> 0 | Q200: =IFERROR(SUMPRODUCT(Q$209:Q$211,$E$209:$E$211,--($D$209:$D$211=$C200))/SUMPRODUCT($E$209:$E$211,--($D$209:$D$211=$C200)),0) -> 0 | R200: =IFERROR(1/(SUMPRODUCT(R$209:R$211,$I$209:$I$211,--($D$209:$D$211=$C200))/IF(SUMPRODUCT($I$209:$I$211,--($D$209:$D$211=$C200))=0,1,SUMPRODUCT($I$209:$I$211,--($D$209:$D$211=$C200)))),0) -> 0 | S200: =IFERROR(SUMPRODUCT(S$209:S$211,$I$209:$I$211,--($D$209:$D$211=$C200))/SUMPRODUCT($I$209:$I$211,--($D$209:$D$211=$C200)),0) -> 0 | U200: =IFERROR(1/(SUMPRODUCT(U$209:U$211,$E$209:$E$211,--($D$209:$D$211=$C200))/IF(SUMPRODUCT($E$209:$E$211,--($D$209:$D$211=$C200))=0,1,SUMPRODUCT($E$209:$E$211,--($D$209:$D$211=$C200)))),0) -> 0 | V200: =IFERROR(SUMPRODUCT(V$209:V$211,$E$209:$E$211,--($D$209:$D$211=$C200))/SUMPRODUCT($E$209:$E$211,--($D$209:$D$211=$C200)),0) -> 0 | W200: =IFERROR(1/(SUMPRODUCT(W$209:W$211,$I$209:$I$211,--($D$209:$D$211=$C200))/IF(SUMPRODUCT($I$209:$I$211,--($D$209:$D$211=$C200))=0,1,SUMPRODUCT($I$209:$I$211,--($D$209:$D$211=$C200)))),0) -> 0 | X200: =IFERROR(SUMPRODUCT(X$209:X$211,$I$209:$I$211,--($D$209:$D$211=$C200))/SUMPRODUCT($I$209:$I$211,--($D$209:$D$211=$C200)),0) -> 0
C201: TOTAL | D201: =SUM(D197:D200) -> 704450 | E201: =SUM(E197:E200) -> 775990 | F201: =MAX(E201-D201,0) -> 71540 | G201: =SUM(G197:G200) -> 71540 | H201: =SUM(H197:H200) -> 6785715 | I201: =SUM(I197:I200) -> 7796400 | J201: =MAX(I201-H201,0) -> 1010685 | K201: =SUM(K197:K200) -> 1010685
C202: *Person trips for transit modes, vehicle trips for highway.
C203: **Positive values are trip increases (induced and diverted). Negative values are diverted trips.
P204: For Trips Diverting from Highway to Transit | U204: Least Cost Alternative (for Induced Trips)
B205: ="MODEL DATA" -> MODEL DATA
E206: =YearFirst -> 2020 | I206: =YearLast -> 2054
E207: Number of Trips (No Build) | F207: Increase in Number of Trips (Build vs. No Build) | G207: Share within mode | H207: Transit Does Not Exist in No Build | I207: Number of Trips (No Build) | J207: Increase in Number of Trips (Build vs. No Build) | K207: Share within mode | L207: Transit Does Not Exist in No Build | O207: Mode | P207: ="Inverse of Average Speed in Year "&YearFirst&" (mph)" -> Inverse of Average Speed in Year 2020 (mph) | Q207: ="Average Trip Length in Year "&YearFirst&" (miles)" -> Average Trip Length in Year 2020 (miles) | R207: ="Inverse of Average Speed in Year "&YearLast&" (mph)" -> Inverse of Average Speed in Year 2054 (mph) | S207: ="Average Trip Length in Year "&YearLast&" (miles)" -> Average Trip Length in Year 2054 (miles) | U207: ="Inverse of Average Speed in Year "&YearFirst&" (mph)" -> Inverse of Average Speed in Year 2020 (mph) | V207: ="Average Trip Length in Year "&YearFirst&" (miles)" -> Average Trip Length in Year 2020 (miles) | W207: ="Inverse of Average Speed in Year "&YearLast&" (mph)" -> Inverse of Average Speed in Year 2054 (mph) | X207: ="Average Trip Length in Year "&YearLast&" (miles)" -> Average Trip Length in Year 2054 (miles) | Z207: =$O$197 -> Bus | AA207: =$O$198 -> Pass Train | AB207: =$O$199 -> Light Rail | AC207: =$O$200 -> Highway
B209: ='2) Model Inputs'!D30 -> 1 | C209: ='2) Model Inputs'!E30 -> Avion/Jurupa | D209: ='2) Model Inputs'!F11 -> Highway | E209: ='2) Model Inputs'!F30 -> 1930 | F209: =MAX('2) Model Inputs'!F37-'2) Model Inputs'!F30,0) -> 196 | G209: =IFERROR(F209/SUMIF($D$209:$D$211,$D209,F$209:F$211),0) -> 1 | H209: =AND($D209<>Hwy,SUM('2) Model Inputs'!$I30:$K30)=0) -> FALSE | I209: ='2) Model Inputs'!V30 -> 18591 | J209: =MAX('2) Model Inputs'!V37-'2) Model Inputs'!V30,0) -> 2769 | K209: =IFERROR(J209/SUMIF($D$209:$D$211,$D209,J$209:J$211),0) -> 1 | L209: =AND($D209<>Hwy,SUM('2) Model Inputs'!$Y30:$AA30)=0) -> FALSE | O209: ='2) Model Inputs'!U11 -> 0 | P209: =IF($H209=TRUE,IFERROR(1/'2) Model Inputs'!V11,0),"") ->  | Q209: =IF($H209=TRUE,'2) Model Inputs'!W11,"") ->  | R209: =IF($L209=TRUE,IFERROR(1/'2) Model Inputs'!X11,0),"") ->  | S209: =IF($L209=TRUE,'2) Model Inputs'!Y11,"") ->  | U209: =IF($H209=TRUE,IFERROR(1/'2) Model Inputs'!AA11,0),"") ->  | V209: =IF($H209=TRUE,'2) Model Inputs'!AB11,"") ->  | W209: =IF($L209=TRUE,IFERROR(1/'2) Model Inputs'!AC11,0),"") ->  | X209: =IF($L209=TRUE,'2) Model Inputs'!AD11,"") ->  | Z209: =IF($D209=Z$207,1,0) -> 0 | AA209: 0 | AB209: 0 | AC209: 1
B210: ='2) Model Inputs'!D31 -> 2 | C210: ='2) Model Inputs'!E31 -> Dummy | D210: ='2) Model Inputs'!F12 -> Highway | E210: ='2) Model Inputs'!F31 -> 0 | F210: =MAX('2) Model Inputs'!F38-'2) Model Inputs'!F31,0) -> 0 | G210: =IFERROR(F210/SUMIF($D$209:$D$211,$D210,F$209:F$211),0) -> 0 | H210: =AND($D210<>Hwy,SUM('2) Model Inputs'!$I31:$K31)=0) -> FALSE | I210: ='2) Model Inputs'!V31 -> 0 | J210: =MAX('2) Model Inputs'!V38-'2) Model Inputs'!V31,0) -> 0 | K210: =IFERROR(J210/SUMIF($D$209:$D$211,$D210,J$209:J$211),0) -> 0 | L210: =AND($D210<>Hwy,SUM('2) Model Inputs'!$Y31:$AA31)=0) -> FALSE | O210: ='2) Model Inputs'!U12 -> 0 | P210: =IF($H210=TRUE,IFERROR(1/'2) Model Inputs'!V12,0),"") ->  | Q210: =IF($H210=TRUE,'2) Model Inputs'!W12,"") ->  | R210: =IF($L210=TRUE,IFERROR(1/'2) Model Inputs'!X12,0),"") ->  | S210: =IF($L210=TRUE,'2) Model Inputs'!Y12,"") ->  | U210: =IF($H210=TRUE,IFERROR(1/'2) Model Inputs'!AA12,0),"") ->  | V210: =IF($H210=TRUE,'2) Model Inputs'!AB12,"") ->  | W210: =IF($L210=TRUE,IFERROR(1/'2) Model Inputs'!AC12,0),"") ->  | X210: =IF($L210=TRUE,'2) Model Inputs'!AD12,"") ->  | Z210: 0 | AA210: 0 | AB210: 0 | AC210: 1

Sheet Reliability
B1: Travel Time Reliability Benefits
B3: This sheet calculates total travel time reliability benefits on highway.
B5: Formulas: | Q5: Present Value = Future Value (in Constant Dollars)
H6: Std. Dev. Of TTI = (0.71 x (TTI Mean - 1) ^ 0.56) x Impacted Length / FF Speed | R6: ( 1 + Real Discount Rate) ^ Year
B7: Recurring Delay Rate = 1 / Est. Act. Speed - 1 / FF Speed | H7: hours/vehicle mi mph
B8: hours/mi mph mph | H8: Reliability Savings = Change in Std. Dev. Of TTI x Avg. Value of Reliability
B9: Recurring TTI Mean = 1 + Recurring Delay Rate x FF Speed | H9: $/yr hrs/yr $/hr
B10: hours/mi mph | H10: Avg. Value of Reliability = Avg. Value of Time x Reliability Ratio
B11: TTI Mean = 1.0274 x Recurring TTI Mean ^ 1.2204 | H11: $/hr $/hr
H12: Induced = Change in Trips x Change in Std. Dev. of TTI x 0.5
B17: A | C17: AUTOMOBILE BENEFITS | P17: B | Q17: TRUCK BENEFITS | AD17: C | AE17: SUMMARY OF TRAVEL TIME RELIABILITY BENEFITS
A20: =MAX($A$1:A19)+1 -> 1 | B20: =IF(ISBLANK(INDEX(ReliabilityGroup,A20,2)),"Not Used",INDEX(ReliabilityGroup,A20,2)) -> Avion | O20: =MAX($O$1:O19)+1 -> 1 | P20: =IF(ISBLANK(INDEX(ReliabilityGroup,O20,2)),"Not Used",INDEX(ReliabilityGroup,O20,2)) -> Avion
C22: AVERAGE VOLUME | E22: AVERAGE SPEED | G22: RECURRING DELAY RATE | I22: STANDARD DEVIATION | K22: RELIABILITY BENEFIT | Q22: AVERAGE VOLUME | S22: AVERAGE SPEED | U22: RECURRING DELAY RATE | W22: STANDARD DEVIATION | Y22: RELIABILITY BENEFIT | AD22: Automobile | AE22: 1 | AF22: 2 | AH22: Present
C23: (vehicles/hour) | E23: (mph) | G23: (hrs/mi) | I23: OF TRAVEL TIME INDEX | K23: (person-hours/yr) | Q23: (vehicles/hour) | S23: (mph) | U23: (hrs/mi) | W23: OF TRAVEL TIME INDEX | Y23: (person-hours/yr) | AE23: =IF(ISBLANK(INDEX(ModelGroup,AE22,1)),"Not Used",INDEX(ModelGroup,AE22,1)) -> Avion/Jurupa | AF23: =IF(ISBLANK(INDEX(ModelGroup,AF22,1)),"Not Used",INDEX(ModelGroup,AF22,1)) -> Dummy | AH23: Value of
B24: Year | I24: (hours/vehicle) | K24: Existing | L24: New | M24: Constant | N24: Present | P24: Year | W24: (hours/vehicle) | Y24: Existing | Z24: New | AA24: Constant | AB24: Present | AD24: Year | AH24: Reliability | AJ24: Constant
C25: No Build | D25: Build | E25: No Build | F25: Build | G25: No Build | H25: Build | I25: No Build | J25: Build | K25: Users | L25: (Induced) | M25: Dollars | N25: Value | Q25: No Build | R25: Build | S25: No Build | T25: Build | U25: No Build | V25: Build | W25: No Build | X25: Build | Y25: Users | Z25: (Induced) | AA25: Dollars | AB25: Value | AH25: =IF(Induced="Y","Benefits","Benefits*") -> Benefits | AJ25: Dollars
B26: =YearFirst -> 2020 | C26: =_xlfn.SINGLE(IF(_xlfn.SINGLE(INDEX(ReliabilityGroup,$A20,1))=Hwy,IFERROR(_xlfn.SINGLE(INDEX(ReliabilityData1NB,$A20,5))*(1-_xlfn.SINGLE(INDEX(ReliabilityData1NB,$A20,3))),0),0)) -> 24.93002019 | D26: =_xlfn.SINGLE(IF(_xlfn.SINGLE(INDEX(ReliabilityGroup,$A20,1))=Hwy,IFERROR(_xlfn.SINGLE(INDEX(ReliabilityData1B,A20,5))*(1-_xlfn.SINGLE(INDEX(ReliabilityData1B,A20,3))),0),0)) -> 27.45852057 | E26: =_xlfn.SINGLE(IF(_xlfn.SINGLE(INDEX(ReliabilityGroup,A20,1))=Hwy,IFERROR(_xlfn.SINGLE(INDEX(ReliabilityData1NB,A20,4)),0),0)) -> 10.01428571 | F26: =_xlfn.SINGLE(IF(_xlfn.SINGLE(INDEX(ReliabilityGroup,A20,1))=Hwy,IFERROR(_xlfn.SINGLE(INDEX(ReliabilityData1B,A20,4)),0),0)) -> 35.14285714 | G26: =IFERROR(MAX(1/E26-1/INDEX(ReliabilityModelGroup,A20,17), 0),0) -> 0 | H26: =IFERROR(MAX(1/F26-1/INDEX(ReliabilityModelGroup,A20,24), 0),0) -> 0 | I26: =IFERROR(AlphaSTD*MAX(AlphaTTI*(1+INDEX(ReliabilityModelGroup,A20,17)*G26)^BetaTTI-1,0)^BetaSTD*INDEX(ReliabilityModelGroup,A20,16)/INDEX(ReliabilityModelGroup,A20,17)*INDEX(RelAdjFactors,A20,5),0) -> 0.02063933756 | J26: =IFERROR(AlphaSTD*MAX(AlphaTTI*(1+INDEX(ReliabilityModelGroup,A20,24)*H26)^BetaTTI-1,0)^BetaSTD*INDEX(ReliabilityModelGroup,A20,23)/INDEX(ReliabilityModelGroup,A20,24)*INDEX(RelAdjFactors,A20,5),0) -> 0.005636526454 | K26: =MIN(C26*INDEX(ReliabilityModelGroup,A20,18),D26*INDEX(ReliabilityModelGroup,A20,25))*(I26-J26)*(INDEX(ReliabilityModelGroup,A20,12)*AnnualFactor) -> 4849.099473 | L26: =IF(AND(D26*INDEX(ReliabilityModelGroup,A20,25)>C26*INDEX(ReliabilityModelGroup,A20,18), Induced="Y"), (D26*INDEX(ReliabilityModelGroup,A20,25)-C26*INDEX(ReliabilityModelGroup,A20,18))*(I26-J26)*0.5*(INDEX(ReliabilityModelGroup,A20,12)*AnnualFactor), 0) -> 245.9073387 | M26: =(K26+L26)*ValTimeAuto*ValRelAuto*IF(IM,ValTimeIMFactor,1)*(1+TTUprater)^($B26-YearCurrent) -> 72552.897 | N26: =M26/(1+DiscRate)^(B26-YearCurrent) -> 72552.897 | P26: =YearFirst -> 2020 | Q26: =_xlfn.SINGLE(IF(_xlfn.SINGLE(INDEX(ReliabilityGroup,$O20,1))=Hwy,IFERROR(_xlfn.SINGLE(INDEX(ReliabilityData1NB,$O20,5))*_xlfn.SINGLE(INDEX(ReliabilityData1NB,$O20,3)),0),0)) -> 15.27968979 | R26: =_xlfn.SINGLE(IF(_xlfn.SINGLE(INDEX(ReliabilityGroup,$O20,1))=Hwy,IFERROR(_xlfn.SINGLE(INDEX(ReliabilityData1B,$O20,5))*_xlfn.SINGLE(INDEX(ReliabilityData1B,$O20,3)),0),0)) -> 16.82941583 | S26: =_xlfn.SINGLE(IF(_xlfn.SINGLE(INDEX(ReliabilityGroup,O20,1))=Hwy,IFERROR(_xlfn.SINGLE(INDEX(ReliabilityData1NB,O20,4)),0),0)) -> 10.01428571 | T26: =_xlfn.SINGLE(IF(_xlfn.SINGLE(INDEX(ReliabilityGroup,O20,1))=Hwy,IFERROR(_xlfn.SINGLE(INDEX(ReliabilityData1B,O20,4)),0),0)) -> 35.14285714 | U26: =IFERROR(MAX(1/S26-1/INDEX(ReliabilityModelGroup,O20,17), 0),0) -> 0 | V26: =IFERROR(MAX(1/T26-1/INDEX(ReliabilityModelGroup,O20,24), 0),0) -> 0 | W26: =IFERROR(AlphaSTD*MAX(AlphaTTI*(1+INDEX(ReliabilityModelGroup,O20,17)*U26)^BetaTTI-1,0)^BetaSTD*INDEX(ReliabilityModelGroup,O20,16)/INDEX(ReliabilityModelGroup,O20,17)*INDEX(RelAdjFactors,O20,15),0) -> 0.02063933756 | X26: =IFERROR(AlphaSTD*MAX(AlphaTTI*(1+INDEX(ReliabilityModelGroup,O20,24)*V26)^BetaTTI-1,0)^BetaSTD*INDEX(ReliabilityModelGroup,O20,23)/INDEX(ReliabilityModelGroup,O20,24)*INDEX(RelAdjFactors,O20,15),0) -> 0.005636526454 | Y26: =MIN(Q26,R26)*(W26-X26)*(INDEX(ReliabilityModelGroup,A20,12)*AnnualFactor) -> 2008.127506 | Z26: =IF(AND(R26>Q26, Induced="Y"), (R26-Q26)*(W26-X26)*0.5*(INDEX(ReliabilityModelGroup,A20,12)*AnnualFactor), 0) -> 101.8360819 | AA26: =(Y26+Z26)*ValTimeTruck*ValRelTruck*IF(IM,ValTimeIMFactor,1)*(1+TTUprater)^($B26-YearCurrent) -> 74270.7183 | AB26: =AA26/(1+DiscRate)^(P26-YearCurrent) -> 74270.7183 | AD26: =YearOpen -> 2025 | AE26: =OFFSET($N9,MATCH(AE$22,$A:$A),0) -> 119552.16 | AF26: 0 | AH26: =IF(Reliability="N", 0, SUM(AE26:AG26,AE69:AG69)) -> 258214.8537 | AJ26: =AH26/(1+DiscRate)^(AD26-YearCurrent) -> 184103.622
